Workbook

Sheet 1-18 (hidden)
BC1: Приложение № 1
BC2: к приказу Минэнерго России
BC3: от 5 мая 2016 г. № 380
A4: Форма 1. Перечени инвестиционных проектов
A5: на год _2018-2021 г.г._
A7: Инвестиционная программа_____Общество с ограниченной ответственностью "Мордовская сетевая компания"____
A8: полное наименование субъекта электроэнергетики
A10: Год раскрытия информации: __2018__ год
A12: Утвержденные плановые значения показателей приведены в соответствии с приказом Министерства энергетики и тарифной политики Республики Мордовия №117 от 31.10.2017 г.
A13: реквизиты решения органа исполнительной власти, утвердившего инвестиционную программу
A15: Номер группы инвести-ционных проектов | B15: Наименование инвестиционного проекта (группы инвестиционных проектов) | C15: Идентифика-тор инвестицион-ного проекта | D15: Цели реализации инвестиционных проектов и плановые (фактические) значения количественных показателей, характеризующие достижение таких целей
D16: Развитие электрической сети/усиление существующей электрической сети, связанное с подключением новых потребителей | V16: Замещение (обновление) электрической сети/повышение экономической эффективности (мероприятия направленные на снижение эксплуатационных затрат) оказания услуг в сфере электроэнергетики | AH16: Повышение надежности оказываемых услуг в сфере электроэнергетики | AN16: Повышение качества оказываемых услуг в сфере электроэнергетики | AR16: Выполнение требований законодательства Российской Федерации, предписаний органов исполнительной власти, регламентов рынков электрической энергии | AX16: Обеспечение текущей деятельности в сфере электроэнергетики, в том числе развитие информационной инфраструктуры, хозяйственное обеспечение деятельности | BB16: Инвестиции, связанные с деятельностью, не относящейся к сфере электроэнергетики
D17: Показатель увеличения мощности силовых трансформаторов на подстанциях, не связанного с осуществлением технологического присоединения к электрическим сетям (ΔРтр.n) | F17: Показатель увеличения мощности силовых трансформаторов на подстанциях в рамках осуществления технологического присоединения к электрическим сетям (ΔРтп_тр.n) | H17: Показатель увеличения протяженности линий электропередачи, не связанного с осуществлением технологического присоединения к электрическим сеям (ΔLлэп.n) | L17: Показатель увеличения протяженности линий электропередачи в рамках осуществления технологического присоединения к электрическим сетям (ΔLтп_лэп.n) | P17: Показатель максимальной мощности присоединяемых потребителей электрической эенергии (Sпотр.тп) | R17: Показатель максимальной мощности энергопринимающих устройств при осуществлении технологического присоединения объектов электросетевого хозяйства, принадлежащих иным сетевым организациям или иным лицам (Sэх.тп) | T17: Показатель степени загрузки трансформаторной подстанции (Кзагр.) | V17: Показатель замены силовых трансформаторов (Рз_тр.n) | X17: Показатель замены линий электропередачи (Lз_лэп.n) | Z17: Показатель замены линий электропередачи (Lз_лэп.n) | AB17: Показатель замены выключателей (Вз.n) | AD17: Показатель замены устройств компенсации реактивной мощности (Рз_укрм.n) | AF17: Показатель оценки изменения доли полезного отпуска электрической энергии, который формируется посредством приборов учета электричекой энергии, включенных в систему сбора и передачи данных (ΔПОдист) | AH17: Показатель оценки изменения средней продолжительности прекращения передачи электрической энергии потребителям услуг (Δпsaidi) | AJ17: Показатель оценки изменения средней частоты прекращения передачи электрической энергии потребителям услуг (ΔПsaifi) | AL17: Показатель оценки изменения объема недоотпущенной электрической энергии (ΔПens) | AN17: Показатель общего числа исполненных в рамках инвестиционной программы обязательств сетевой организации по осуществлению технологического присоединения (Nсд_тпр) | AP17: Показатель числа обязательств сетевой организации по осуществлению технологического присоединения, исполненных в рамках инвестиционной программы с нарушением установленного срока технологического присоединения (Nсд_тпр.нс) | AR17: Показатель объема финансовых потребностей, необходимых для реализации мероприятий, направленных на выполнение требований законодательства (Фтз) | AT17: Показатель объема финансовых потребностей, необходимых для реализации мероприятий, напрвленных на выполнение приедписаний органов исполнительной власти (Фоив) | AV17: Показатель объема финансовых потребностей, необходимых для реализации мероприятий, направленных на выполнение требований регламентов рынков электрической энергии (Фтрр) | AX17: Показатель объема финансовых потребностей, необходимых для реализации мероприятий, направленных на развитие информационной инфраструктуры (Фит) | AZ17: Показатель объема финансовых потребностей, необходимых для реализации мероприятий, направленных на хозяйственное обеспечение деятельности сетевой организации (Фхо) | BB17: Показатель объема финансовых потребностей, необходимых для реализации мероприятий, направленных на реализацию инвестиционных проектов, связанных с деятельностью, не относящейся к сфере электроэнергетики (Фнэ)
D18: план | E18: Предложение по корректировке утвержденного плана | F18: план | G18: Предложение по корректировке утвержденного плана | H18: план | I18: Предложение по корректировке утвержденного плана | J18: план | K18: Предложение по корректировке утвержденного плана | L18: план | M18: Предложение по корректировке утвержденного плана | N18: план | O18: Предложение по корректировке утвержденного плана | P18: план | Q18: Предложение по корректировке утвержденного плана | R18: план | S18: Предложение по корректировке утвержденного плана | T18: план | U18: Предложение по корректировке утвержденного плана | V18: план | W18: Предложение по корректировке утвержденного плана | X18: план | Y18: Предложение по корректировке утвержденного плана | Z18: план | AA18: Предложение по корректировке утвержденного плана | AB18: план | AC18: Предложение по корректировке утвержденного плана | AD18: план | AE18: Предложение по корректировке утвержденного плана | AF18: план | AG18: Предложение по корректировке утвержденного плана | AH18: план | AI18: Предложение по корректировке утвержденного плана | AJ18: план | AK18: Предложение по корректировке утвержденного плана | AL18: план | AM18: Предложение по корректировке утвержденного плана | AN18: план | AO18: Предложение по корректировке утвержденного плана | AP18: план | AQ18: Предложение по корректировке утвержденного плана | AR18: план | AS18: Предложение по корректировке утвержденного плана | AT18: план | AU18: Предложение по корректировке утвержденного плана | AV18: план | AW18: Предложение по корректировке утвержденного плана | AX18: план | AY18: Предложение по корректировке утвержденного плана | AZ18: план | BA18: Предложение по корректировке утвержденного плана | BB18: план | BC18: Предложение по корректировке утвержденного плана
A19: 0 | B19: 0 | C19: 0 | D19: Класс напряжения, кВ | V19: Класс напряжения, кВ | AF19: 0 | AG19: 0 | AH19: 0 | AI19: 0 | AJ19: 0 | AK19: 0 | AL19: 0 | AM19: 0 | AN19: 0 | AO19: 0 | AP19: 0 | AQ19: 0 | AR19: 0 | AS19: 0 | AT19: 0 | AU19: 0 | AV19: 0 | AW19: 0 | AX19: 0 | AY19: 0 | AZ19: 0 | BA19: 0 | BB19: 0 | BC19: 0
A20: 0 | B20: 0 | C20: 0 | D20: 6-10 | F20: 6-10 | H20: 6-10 | J20: 0.4 | L20: 6-10 | N20: 0.4 | P20: 0 | Q20: 0 | R20: 0 | S20: 0 | T20: 0 | U20: 0 | V20: 6-10 | X20: 0,4 | Z20: 6-10 | AB20: 6-10 | AD20: 0 | AE20: 0 | AF20: 0 | AG20: 0 | AH20: 0 | AI20: 0 | AJ20: 0 | AK20: 0 | AL20: 0 | AM20: 0 | AN20: 0 | AO20: 0 | AP20: 0 | AQ20: 0 | AR20: 0 | AS20: 0 | AT20: 0 | AU20: 0 | AV20: 0 | AW20: 0 | AX20: 0 | AY20: 0 | AZ20: 0 | BA20: 0 | BB20: 0 | BC20: 0
A21: 1 | B21: 2 | C21: 3 | D21: 4.1 | E21: 4.2 | F21: 4.3 | G21: 4.4 | H21: 4.5.1 | I21: 4.6.1 | J21: 4.5.2 | K21: 4.6.2 | L21: 4.7.1 | M21: 4.8.1 | N21: 4.7.2 | O21: 4.8.2 | P21: 4.9 | Q21: 4.10 | R21: 4.11 | S21: 4.12 | T21: 4.13 | U21: 4.14 | V21: 5.1 | W21: 5.2 | X21: 5.3 | Y21: 5.4 | Z21: 5.5 | AA21: 5.6 | AB21: 5.7 | AC21: 5.8 | AD21: 5.9 | AE21: 5.10 | AF21: 5.11 | AG21: 5.10 | AH21: 6.1 | AI21: 6.2 | AJ21: 6.3 | AK21: 6.4 | AL21: 6.5 | AM21: 6.6 | AN21: 7.1 | AO21: 7.2 | AP21: 7.3 | AQ21: 7.4 | AR21: 8.1 | AS21: 8.2 | AT21: 8.3 | AU21: 8.4 | AV21: 8.5 | AW21: 8.6 | AX21: 9.1 | AY21: 9.2 | AZ21: 9.3 | BA21: 9.4 | BB21: 10.1 | BC21: 10.2
A22: 0 | B22: ВСЕГО по инвестиционной программе, в том числе: | C22: нд | D22: =SUM(D23:D28) -> 0 | E22: нд | F22: =SUM(F23:F28) -> 0 | G22: =G23 -> 0.41 | H22: =SUM(H23:H28) -> 0 | I22: нд | J22: =SUM(J23:J28) -> 0 | K22: нд | L22: =SUM(L23:L28) -> 0 | M22: нд | N22: =SUM(N23:N28) -> 0.3 | O22: =SUM(O23:O28) -> 0 | P22: =SUM(P23:P28) -> 0 | Q22: нд | R22: =SUM(R23:R28) -> 0 | S22: нд | T22: =SUM(T23:T28) -> 0 | U22: нд | V22: =SUM(V23:V28) -> 0 | W22: нд | X22: =SUM(X23:X28) -> 3.567 | Y22: =SUM(Y23:Y28) -> 0.867 | Z22: =SUM(Z23:Z28) -> 0 | AA22: нд | AB22: =SUM(AB23:AB28) -> 2 | AC22: =SUM(AC23:AC28) -> 2 | AD22: =SUM(AD23:AD28) -> 0 | AE22: нд | AF22: =SUM(AF23:AF28) -> 0 | AG22: нд | AH22: =SUM(AH23:AH28) -> 0 | AI22: нд | AJ22: =SUM(AJ23:AJ28) -> 0 | AK22: нд | AL22: =SUM(AL23:AL28) -> 0 | AM22: =SUM(AM23:AM28) -> 0 | AN22: =SUM(AN23:AN28) -> 0 | AO22: нд | AP22: =SUM(AP23:AP28) -> 0 | AQ22: нд | AR22: =SUM(AR23:AR28) -> 0 | AS22: нд | AT22: =SUM(AT23:AT28) -> 0 | AU22: нд | AV22: =SUM(AV23:AV28) -> 0 | AW22: нд | AX22: =SUM(AX23:AX28) -> 0 | AY22: нд | AZ22: 10.53324382 | BA22: 12.4072286 | BB22: =SUM(BB23:BB28) -> 0 | BC22: нд
A23: 0.1 | B23: Технологическое присоединение, всего | C23: нд | D23: =D29 -> 0 | E23: нд | F23: =F29 -> 0 | G23: =G29 -> 0.41 | H23: =H29 -> 0 | I23: нд | J23: =J29 -> 0 | K23: нд | L23: =L29 -> 0 | M23: нд | N23: =N29 -> 0.3 | O23: =O29 ->  | P23: =P29 -> 0 | Q23: нд | R23: =R29 -> 0 | S23: нд | T23: =T29 -> 0 | U23: нд | V23: =V29 -> 0 | W23: нд | X23: =X29 -> 0 | Y23: нд | Z23: =Z29 -> 0 | AA23: нд | AB23: =AB29 -> 0 | AC23: нд | AD23: =AD29 -> 0 | AE23: нд | AF23: =AF29 -> 0 | AG23: нд | AH23: =AH29 -> 0 | AI23: нд | AJ23: =AJ29 -> 0 | AK23: нд | AL23: =AL29 -> нд | AM23: =AM29 -> 0 | AN23: =AN29 -> 0 | AO23: нд | AP23: =AP29 -> 0 | AQ23: нд | AR23: =AR29 -> 0 | AS23: нд | AT23: =AT29 -> 0 | AU23: нд | AV23: =AV29 -> 0 | AW23: нд | AX23: =AX29 -> 0 | AY23: нд | AZ23: 8.142745 | BA23: 10.016411 | BB23: =BB29 -> 0 | BC23: нд
A24: 0.2 | B24: Реконструкция, модернизация, техническое перевооружение, всего | C24: нд | D24: =D50 -> 0 | E24: нд | F24: =F50 -> 0 | G24: нд | H24: =H50 -> 0 | I24: нд | J24: =J50 -> 0 | K24: нд | L24: =L50 -> 0 | M24: нд | N24: =N50 -> 0 | O24: нд | P24: =P50 -> 0 | Q24: нд | R24: =R50 -> 0 | S24: нд | T24: =T50 -> 0 | U24: нд | V24: =V50 -> 0 | W24: нд | X24: =X50 -> 3.567 | Y24: =Y50 -> 0.867 | Z24: =Z50 -> 0 | AA24: нд | AB24: =AB50 -> 2 | AC24: =AC50 -> 2 | AD24: =AD50 -> 0 | AE24: нд | AF24: =AF50 -> 0 | AG24: нд | AH24: =AH50 -> 0 | AI24: нд | AJ24: =AJ50 -> 0 | AK24: нд | AL24: =AL50 -> 0 | AM24: =AM50 -> 0 | AN24: =AN50 -> 0 | AO24: нд | AP24: =AP50 -> 0 | AQ24: нд | AR24: =AR50 -> 0 | AS24: нд | AT24: =AT50 -> 0 | AU24: нд | AV24: =AV50 -> 0 | AW24: нд | AX24: =AX50 -> 0 | AY24: нд | AZ24: 0.889088816 | BA24: 0.8894076 | BB24: =BB50 -> 0 | BC24: нд
A25: 0.3 | B25: Инвестиционные проекты, реализация которых обуславливается схемами и программами перспективного развития электроэнергетики, всего | C25: нд | D25: =D79 -> 0 | E25: нд | F25: =F79 -> 0 | G25: нд | H25: =H79 -> 0 | I25: нд | J25: =J79 -> 0 | K25: нд | L25: =L79 -> 0 | M25: нд | N25: =N79 -> 0 | O25: нд | P25: =P79 -> 0 | Q25: нд | R25: =R79 -> 0 | S25: нд | T25: =T79 -> 0 | U25: нд | V25: =V79 -> 0 | W25: нд | X25: =X79 -> 0 | Y25: нд | Z25: =Z79 -> 0 | AA25: нд | AB25: =AB79 -> 0 | AC25: нд | AD25: =AD79 -> 0 | AE25: нд | AF25: =AF79 -> 0 | AG25: нд | AH25: =AH79 -> 0 | AI25: нд | AJ25: =AJ79 -> 0 | AK25: нд | AL25: нд | AM25: =AM79 -> 0 | AN25: =AN79 -> 0 | AO25: нд | AP25: =AP79 -> 0 | AQ25: нд | AR25: =AR79 -> 0 | AS25: нд | AT25: =AT79 -> 0 | AU25: нд | AV25: =AV79 -> 0 | AW25: нд | AX25: =AX79 -> 0 | AY25: нд | AZ25: 0 | BA25: 0 | BB25: =BB79 -> 0 | BC25: нд
A26: 0.4 | B26: Прочее новое строительство объектов электросетевого хозяйства, всего | C26: нд | D26: =D82 -> 0 | E26: нд | F26: =F82 -> 0 | G26: нд | H26: =H82 -> 0 | I26: нд | J26: =J82 -> 0 | K26: нд | L26: =L82 -> 0 | M26: нд | N26: =N82 -> 0 | O26: нд | P26: =P82 -> 0 | Q26: нд | R26: =R82 -> 0 | S26: нд | T26: =T82 -> 0 | U26: нд | V26: =V82 -> 0 | W26: нд | X26: =X82 -> 0 | Y26: нд | Z26: =Z82 -> 0 | AA26: нд | AB26: =AB82 -> 0 | AC26: нд | AD26: =AD82 -> 0 | AE26: нд | AF26: =AF82 -> 0 | AG26: нд | AH26: =AH82 -> 0 | AI26: нд | AJ26: =AJ82 -> 0 | AK26: нд | AL26: нд | AM26: =AM82 -> 0 | AN26: =AN82 -> 0 | AO26: нд | AP26: =AP82 -> 0 | AQ26: нд | AR26: =AR82 -> 0 | AS26: нд | AT26: =AT82 -> 0 | AU26: нд | AV26: =AV82 -> 0 | AW26: нд | AX26: =AX82 -> 0 | AY26: нд | AZ26: 0 | BA26: 0 | BB26: =BB82 -> 0 | BC26: нд
A27: 0.5 | B27: Покупка земельных участков для целей реализации инвестиционных проектов, всего | C27: нд | D27: =D83 -> 0 | E27: нд | F27: =F83 -> 0 | G27: нд | H27: =H83 -> 0 | I27: нд | J27: =J83 -> 0 | K27: нд | L27: =L83 -> 0 | M27: нд | N27: =N83 -> 0 | O27: нд | P27: =P83 -> 0 | Q27: нд | R27: =R83 -> 0 | S27: нд | T27: =T83 -> 0 | U27: нд | V27: =V83 -> 0 | W27: нд | X27: =X83 -> 0 | Y27: нд | Z27: =Z83 -> 0 | AA27: нд | AB27: =AB83 -> 0 | AC27: нд | AD27: =AD83 -> 0 | AE27: нд | AF27: =AF83 -> 0 | AG27: нд | AH27: =AH83 -> 0 | AI27: нд | AJ27: =AJ83 -> 0 | AK27: нд | AL27: нд | AM27: =AM83 -> 0 | AN27: =AN83 -> 0 | AO27: нд | AP27: =AP83 -> 0 | AQ27: нд | AR27: =AR83 -> 0 | AS27: нд | AT27: =AT83 -> 0 | AU27: нд | AV27: =AV83 -> 0 | AW27: нд | AX27: =AX83 -> 0 | AY27: нд | AZ27: 0 | BA27: 0 | BB27: =BB83 -> 0 | BC27: нд
A28: 0.6 | B28: Прочие инвестиционные проекты, всего | C28: нд | D28: =D84 -> 0 | E28: нд | F28: =F84 -> 0 | G28: нд | H28: =H84 -> 0 | I28: нд | J28: =J84 -> 0 | K28: нд | L28: =L84 -> 0 | M28: нд | N28: =N84 -> 0 | O28: нд | P28: =P84 -> 0 | Q28: нд | R28: =R84 -> 0 | S28: нд | T28: =T84 -> 0 | U28: нд | V28: =V84 -> 0 | W28: нд | X28: =X84 -> 0 | Y28: нд | Z28: =Z84 -> 0 | AA28: нд | AB28: =AB84 -> 0 | AC28: =AC84 -> нд | AD28: =AD84 -> 0 | AE28: нд | AF28: =AF84 -> 0 | AG28: нд | AH28: =AH84 -> 0 | AI28: нд | AJ28: =AJ84 -> 0 | AK28: нд | AL28: нд | AM28: =AM84 -> 0 | AN28: =AN84 -> 0 | AO28: нд | AP28: =AP84 -> 0 | AQ28: нд | AR28: =AR84 -> 0 | AS28: нд | AT28: =AT84 -> 0 | AU28: нд | AV28: =AV84 -> 0 | AW28: нд | AX28: =AX84 -> 0 | AY28: нд | AZ28: 1.50141 | BA28: 1.50141 | BB28: =BB84 -> 0 | BC28: нд
A29: 1.1 | B29: Технологическое присоединение, всего, в том числе: | C29: нд | D29: =D30 -> 0 | E29: нд | F29: =F30 -> 0 | G29: =G30 -> 0.41 | H29: =H30 -> 0 | I29: нд | J29: =J30 -> 0 | K29: нд | L29: =L30 -> 0 | M29: нд | N29: =N30 -> 0.3 | O29: =O30 ->  | P29: =P30 -> 0 | Q29: нд | R29: =R30 -> 0 | S29: нд | T29: =T30 -> 0 | U29: нд | V29: =V30 -> 0 | W29: нд | X29: =X30 -> 0 | Y29: нд | Z29: =Z30 -> 0 | AA29: нд | AB29: =AB30 -> 0 | AC29: нд | AD29: =AD30 -> 0 | AE29: нд | AF29: =AF30 -> 0 | AG29: нд | AH29: =AH30 -> 0 | AI29: нд | AJ29: =AJ30 -> 0 | AK29: нд | AL29: нд | AM29: =AM30 -> 0 | AN29: =AN30 -> 0 | AO29: нд | AP29: =AP30 -> 0 | AQ29: нд | AR29: =AR30 -> 0 | AS29: нд | AT29: =AT30 -> 0 | AU29: нд | AV29: =AV30 -> 0 | AW29: нд | AX29: =AX30 -> 0 | AY29: нд | AZ29: 8.142745 | BA29: 10.016411 | BB29: =BB30 -> 0 | BC29: нд
A30: 1.1.1 | B30: Технологическое присоединение энергопринимающих устройств потребителей, всего, в том числе: | C30: нд | D30: =D31+D33+D34 -> 0 | E30: нд | F30: =F31+F33+F34 -> 0 | G30: =G31 -> 0.41 | H30: =H31+H33+H34 -> 0 | I30: нд | J30: =J31+J33+J34 -> 0 | K30: нд | L30: =L31+L33+L34 -> 0 | M30: нд | N30: =N31 -> 0.3 | O30: =O31 ->  | P30: =P31+P33+P34 -> 0 | Q30: нд | R30: =R31+R33+R34 -> 0 | S30: нд | T30: =T31+T33+T34 -> 0 | U30: нд | V30: =V31+V33+V34 -> 0 | W30: нд | X30: =X31 -> 0 | Y30: нд | Z30: =Z31+Z33+Z34 -> 0 | AA30: нд | AB30: =AB31 -> 0 | AC30: нд | AD30: =AD31+AD33+AD34 -> 0 | AE30: нд | AF30: =AF31+AF33+AF34 -> 0 | AG30: нд | AH30: =AH31+AH33+AH34 -> 0 | AI30: нд | AJ30: =AJ31+AJ33+AJ34 -> 0 | AK30: нд | AL30: нд | AM30: =AM31 -> 0 | AN30: =AN31+AN33+AN34 -> 0 | AO30: нд | AP30: =AP31+AP33+AP34 -> 0 | AQ30: нд | AR30: =AR31+AR33+AR34 -> 0 | AS30: нд | AT30: =AT31+AT33+AT34 -> 0 | AU30: нд | AV30: =AV31+AV33+AV34 -> 0 | AW30: нд | AX30: =AX31+AX33+AX34 -> 0 | AY30: нд | AZ30: 8.142745 | BA30: 10.016411 | BB30: =BB31+BB33+BB34 -> 0 | BC30: нд
A31: 1.1.1.1 | B31: Технологическое присоединение энергопринимающих устройств потребителей максимальной мощностью до 15 кВт включительно, всего | C31: нд | D31: =D33 -> 0 | E31: нд | F31: =F33 -> 0 | G31: =G32 -> 0.41 | H31: =H33 -> 0 | I31: нд | J31: =J33 -> 0 | K31: нд | L31: =L33 -> 0 | M31: нд | N31: =N32 -> 0.3 | O31: =O32 ->  | P31: =P33 -> 0 | Q31: нд | R31: =R33 -> 0 | S31: нд | T31: =T33 -> 0 | U31: нд | V31: =V33 -> 0 | W31: нд | X31: =X33 -> 0 | Y31: нд | Z31: =Z33 -> 0 | AA31: нд | AB31: =AB33 -> 0 | AC31: нд | AD31: =AD33 -> 0 | AE31: нд | AF31: =AF33 -> 0 | AG31: нд | AH31: =AH33 -> 0 | AI31: нд | AJ31: =AJ33 -> 0 | AK31: нд | AL31: нд | AM31: =AM33 -> 0 | AN31: =AN33 -> 0 | AO31: нд | AP31: =AP33 -> 0 | AQ31: нд | AR31: =AR33 -> 0 | AS31: нд | AT31: =AT33 -> 0 | AU31: нд | AV31: =AV33 -> 0 | AW31: нд | AX31: =AX33 -> 0 | AY31: нд | AZ31: 8.142745 | BA31: 4.904696 | BB31: =BB33 -> 0 | BC31: нд
A32: 1.1.1.1.1 | B32: Строительство электрических сетей для создания технической возможности технологического присоединения энергопринимающих устройств Заявителей, максимальной мощностью, не превышающей 15 кВт включительно, не включаемых в состав платы за технологическое присоединение (строительство "последней мили") | C32: Н_МСК_17 | D32: =D34 -> 0 | E32: нд | F32: =F34 -> 0 | G32: =0.25+0.16 -> 0.41 | H32: =H34 -> 0 | I32: нд | J32: =J34 -> 0 | K32: нд | L32: =L34 -> 0 | M32: нд | N32: 0.3 | P32: =P34 -> 0 | Q32: нд | R32: =R34 -> 0 | S32: нд | T32: =T34 -> 0 | U32: нд | V32: =V34 -> 0 | W32: нд | X32: =X34 -> 0 | Y32: нд | Z32: =Z34 -> 0 | AA32: нд | AB32: =AB34 -> 0 | AC32: нд | AD32: =AD34 -> 0 | AE32: нд | AF32: =AF34 -> 0 | AG32: нд | AH32: =AH34 -> 0 | AI32: нд | AJ32: =AJ34 -> 0 | AK32: нд | AL32: нд | AM32: =AM34 -> 0 | AN32: =AN34 -> 0 | AO32: нд | AP32: =AP34 -> 0 | AQ32: нд | AR32: =AR34 -> 0 | AS32: нд | AT32: =AT34 -> 0 | AU32: нд | AV32: =AV34 -> 0 | AW32: нд | AX32: =AX34 -> 0 | AY32: нд | AZ32: 8.142745 | BA32: 4.904696 | BB32: =BB34 -> 0 | BC32: нд
A33: 1.1.1.2 | B33: Технологическое присоединение энергопринимающих устройств потребителей максимальной мощностью до 150 кВт включительно, всего | C33: нд | D33: 0 | E33: нд | F33: 0 | G33: нд | H33: 0 | I33: нд | J33: 0 | K33: нд | L33: 0 | M33: нд | N33: 0 | O33: нд | P33: 0 | Q33: нд | R33: 0 | S33: нд | T33: 0 | U33: нд | V33: 0 | W33: нд | X33: 0 | Y33: нд | Z33: 0 | AA33: нд | AB33: 0 | AC33: нд | AD33: 0 | AE33: нд | AF33: 0 | AG33: нд | AH33: 0 | AI33: нд | AJ33: 0 | AK33: нд | AL33: нд | AM33: 0 | AN33: 0 | AO33: нд | AP33: 0 | AQ33: нд | AR33: 0 | AS33: нд | AT33: 0 | AU33: нд | AV33: 0 | AW33: нд | AX33: 0 | AY33: нд | AZ33: 0 | BA33: 5.111715 | BB33: 0 | BC33: нд
A34: 1.1.1.3 | B34: Технологическое присоединение энергопринимающих устройств потребителей свыше 150 кВт, всего, в том числе: | C34: нд | D34: 0 | E34: нд | F34: 0 | G34: нд | H34: 0 | I34: нд | J34: 0 | K34: нд | L34: 0 | M34: нд | N34: 0 | O34: нд | P34: 0 | Q34: нд | R34: 0 | S34: нд | T34: 0 | U34: нд | V34: 0 | W34: нд | X34: 0 | Y34: нд | Z34: 0 | AA34: нд | AB34: 0 | AC34: нд | AD34: 0 | AE34: нд | AF34: 0 | AG34: нд | AH34: 0 | AI34: нд | AJ34: 0 | AK34: нд | AL34: нд | AM34: 0 | AN34: 0 | AO34: нд | AP34: 0 | AQ34: нд | AR34: 0 | AS34: нд | AT34: 0 | AU34: нд | AV34: 0 | AW34: нд | AX34: 0 | AY34: нд | AZ34: 0 | BA34: 0 | BB34: 0 | BC34: нд
A35: 1.1.2 | B35: Технологическое присоединение объектов электросетевого хозяйства, всего, в том числе: | C35: нд | D35: 0 | E35: нд | F35: 0 | G35: нд | H35: 0 | I35: нд | J35: 0 | K35: нд | L35: 0 | M35: нд | N35: 0 | O35: нд | P35: 0 | Q35: нд | R35: 0 | S35: нд | T35: 0 | U35: нд | V35: 0 | W35: нд | X35: 0 | Y35: нд | Z35: 0 | AA35: нд | AB35: 0 | AC35: нд | AD35: 0 | AE35: нд | AF35: 0 | AG35: нд | AH35: 0 | AI35: нд | AJ35: 0 | AK35: нд | AL35: нд | AM35: 0 | AN35: 0 | AO35: нд | AP35: 0 | AQ35: нд | AR35: 0 | AS35: нд | AT35: 0 | AU35: нд | AV35: 0 | AW35: нд | AX35: 0 | AY35: нд | AZ35: 0 | BA35: 0 | BB35: 0 | BC35: нд
A36: 1.1.2.1 | B36: Технологическое присоединение объектов электросетевого хозяйства, принадлежащих иным сетевым организациям и иным лицам, всего, в том числе: | C36: нд | D36: 0 | E36: нд | F36: 0 | G36: нд | H36: 0 | I36: нд | J36: 0 | K36: нд | L36: 0 | M36: нд | N36: 0 | O36: нд | P36: 0 | Q36: нд | R36: 0 | S36: нд | T36: 0 | U36: нд | V36: 0 | W36: нд | X36: 0 | Y36: нд | Z36: 0 | AA36: нд | AB36: 0 | AC36: нд | AD36: 0 | AE36: нд | AF36: 0 | AG36: нд | AH36: 0 | AI36: нд | AJ36: 0 | AK36: нд | AL36: нд | AM36: 0 | AN36: 0 | AO36: нд | AP36: 0 | AQ36: нд | AR36: 0 | AS36: нд | AT36: 0 | AU36: нд | AV36: 0 | AW36: нд | AX36: 0 | AY36: нд | AZ36: 0 | BA36: 0 | BB36: 0 | BC36: нд
A37: 1.1.2.2 | B37: Технологическое присоединение к электрическим сетям иных сетевых организаций, всего, в том числе: | C37: нд | D37: 0 | E37: нд | F37: 0 | G37: нд | H37: 0 | I37: нд | J37: 0 | K37: нд | L37: 0 | M37: нд | N37: 0 | O37: нд | P37: 0 | Q37: нд | R37: 0 | S37: нд | T37: 0 | U37: нд | V37: 0 | W37: нд | X37: 0 | Y37: нд | Z37: 0 | AA37: нд | AB37: 0 | AC37: нд | AD37: 0 | AE37: нд | AF37: 0 | AG37: нд | AH37: 0 | AI37: нд | AJ37: 0 | AK37: нд | AL37: нд | AM37: 0 | AN37: 0 | AO37: нд | AP37: 0 | AQ37: нд | AR37: 0 | AS37: нд | AT37: 0 | AU37: нд | AV37: 0 | AW37: нд | AX37: 0 | AY37: нд | AZ37: 0 | BA37: 0 | BB37: 0 | BC37: нд
A38: 1.1.3 | B38: Технологическое присоединение объектов по производству электрической энергии всего, в том числе: | C38: нд | D38: 0 | E38: нд | F38: 0 | G38: нд | H38: 0 | I38: нд | J38: 0 | K38: нд | L38: 0 | M38: нд | N38: 0 | O38: нд | P38: 0 | Q38: нд | R38: 0 | S38: нд | T38: 0 | U38: нд | V38: 0 | W38: нд | X38: 0 | Y38: нд | Z38: 0 | AA38: нд | AB38: 0 | AC38: нд | AD38: 0 | AE38: нд | AF38: 0 | AG38: нд | AH38: 0 | AI38: нд | AJ38: 0 | AK38: нд | AL38: нд | AM38: 0 | AN38: 0 | AO38: нд | AP38: 0 | AQ38: нд | AR38: 0 | AS38: нд | AT38: 0 | AU38: нд | AV38: 0 | AW38: нд | AX38: 0 | AY38: нд | AZ38: 0 | BA38: 0 | BB38: 0 | BC38: нд
A39: 1.1.3.1 | B39: Наименование объекта по производству электрической энергии, всего, в том числе: | C39: нд | D39: 0 | E39: нд | F39: 0 | G39: нд | H39: 0 | I39: нд | J39: 0 | K39: нд | L39: 0 | M39: нд | N39: 0 | O39: нд | P39: 0 | Q39: нд | R39: 0 | S39: нд | T39: 0 | U39: нд | V39: 0 | W39: нд | X39: 0 | Y39: нд | Z39: 0 | AA39: нд | AB39: 0 | AC39: нд | AD39: 0 | AE39: нд | AF39: 0 | AG39: нд | AH39: 0 | AI39: нд | AJ39: 0 | AK39: нд | AL39: нд | AM39: 0 | AN39: 0 | AO39: нд | AP39: 0 | AQ39: нд | AR39: 0 | AS39: нд | AT39: 0 | AU39: нд | AV39: 0 | AW39: нд | AX39: 0 | AY39: нд | AZ39: 0 | BA39: 0 | BB39: 0 | BC39: нд
A40: 1.1.3.1 | B40: Строительство новых объектов электросетевого хозяйства (за исключением усиления существующей электрической сети) в целях осуществления технологического присоединения объекта по производству электрической энергии, всего, в том числе: | C40: нд | D40: 0 | E40: нд | F40: 0 | G40: нд | H40: 0 | I40: нд | J40: 0 | K40: нд | L40: 0 | M40: нд | N40: 0 | O40: нд | P40: 0 | Q40: нд | R40: 0 | S40: нд | T40: 0 | U40: нд | V40: 0 | W40: нд | X40: 0 | Y40: нд | Z40: 0 | AA40: нд | AB40: 0 | AC40: нд | AD40: 0 | AE40: нд | AF40: 0 | AG40: нд | AH40: 0 | AI40: нд | AJ40: 0 | AK40: нд | AL40: нд | AM40: 0 | AN40: 0 | AO40: нд | AP40: 0 | AQ40: нд | AR40: 0 | AS40: нд | AT40: 0 | AU40: нд | AV40: 0 | AW40: нд | AX40: 0 | AY40: нд | AZ40: 0 | BA40: 0 | BB40: 0 | BC40: нд
A41: 1.1.3.1 | B41: Строительство новых объектов электросетевого хозяйства для усиления электрической сети в целях осуществления технологического присоединения объекта по производству электрической энергии, всего, в том числе: | C41: нд | D41: 0 | E41: нд | F41: 0 | G41: нд | H41: 0 | I41: нд | J41: 0 | K41: нд | L41: 0 | M41: нд | N41: 0 | O41: нд | P41: 0 | Q41: нд | R41: 0 | S41: нд | T41: 0 | U41: нд | V41: 0 | W41: нд | X41: 0 | Y41: нд | Z41: 0 | AA41: нд | AB41: 0 | AC41: нд | AD41: 0 | AE41: нд | AF41: 0 | AG41: нд | AH41: 0 | AI41: нд | AJ41: 0 | AK41: нд | AL41: нд | AM41: 0 | AN41: 0 | AO41: нд | AP41: 0 | AQ41: нд | AR41: 0 | AS41: нд | AT41: 0 | AU41: нд | AV41: 0 | AW41: нд | AX41: 0 | AY41: нд | AZ41: 0 | BA41: 0 | BB41: 0 | BC41: нд
A42: 1.1.3.1 | B42: Реконструкция существующих объектов электросетевого хозяйства для усиления электрической сети в целях осуществления технологического присоединения объекта по производству электрической энергии всего, в том числе: | C42: нд | D42: 0 | E42: нд | F42: 0 | G42: нд | H42: 0 | I42: нд | J42: 0 | K42: нд | L42: 0 | M42: нд | N42: 0 | O42: нд | P42: 0 | Q42: нд | R42: 0 | S42: нд | T42: 0 | U42: нд | V42: 0 | W42: нд | X42: 0 | Y42: нд | Z42: 0 | AA42: нд | AB42: 0 | AC42: нд | AD42: 0 | AE42: нд | AF42: 0 | AG42: нд | AH42: 0 | AI42: нд | AJ42: 0 | AK42: нд | AL42: нд | AM42: 0 | AN42: 0 | AO42: нд | AP42: 0 | AQ42: нд | AR42: 0 | AS42: нд | AT42: 0 | AU42: нд | AV42: 0 | AW42: нд | AX42: 0 | AY42: нд | AZ42: 0 | BA42: 0 | BB42: 0 | BC42: нд
A43: 1.1.3.2 | B43: Наименование объекта по производству электрической энергии, всего, в том числе: | C43: нд | D43: 0 | E43: нд | F43: 0 | G43: нд | H43: 0 | I43: нд | J43: 0 | K43: нд | L43: 0 | M43: нд | N43: 0 | O43: нд | P43: 0 | Q43: нд | R43: 0 | S43: нд | T43: 0 | U43: нд | V43: 0 | W43: нд | X43: 0 | Y43: нд | Z43: 0 | AA43: нд | AB43: 0 | AC43: нд | AD43: 0 | AE43: нд | AF43: 0 | AG43: нд | AH43: 0 | AI43: нд | AJ43: 0 | AK43: нд | AL43: нд | AM43: 0 | AN43: 0 | AO43: нд | AP43: 0 | AQ43: нд | AR43: 0 | AS43: нд | AT43: 0 | AU43: нд | AV43: 0 | AW43: нд | AX43: 0 | AY43: нд | AZ43: 0 | BA43: 0 | BB43: 0 | BC43: нд
A44: 1.1.3.2 | B44: Строительство новых объектов электросетевого хозяйства (за исключением усиления существующей электрической сети) в целях осуществления технологического присоединения объекта по производству электрической энергии, всего, в том числе: | C44: нд | D44: 0 | E44: нд | F44: 0 | G44: нд | H44: 0 | I44: нд | J44: 0 | K44: нд | L44: 0 | M44: нд | N44: 0 | O44: нд | P44: 0 | Q44: нд | R44: 0 | S44: нд | T44: 0 | U44: нд | V44: 0 | W44: нд | X44: 0 | Y44: нд | Z44: 0 | AA44: нд | AB44: 0 | AC44: нд | AD44: 0 | AE44: нд | AF44: 0 | AG44: нд | AH44: 0 | AI44: нд | AJ44: 0 | AK44: нд | AL44: нд | AM44: 0 | AN44: 0 | AO44: нд | AP44: 0 | AQ44: нд | AR44: 0 | AS44: нд | AT44: 0 | AU44: нд | AV44: 0 | AW44: нд | AX44: 0 | AY44: нд | AZ44: 0 | BA44: 0 | BB44: 0 | BC44: нд
A45: 1.1.3.2 | B45: Строительство новых объектов электросетевого хозяйства для усиления электрической сети в целях осуществления технологического присоединения объекта по производству электрической энергии, всего, в том числе: | C45: нд | D45: 0 | E45: нд | F45: 0 | G45: нд | H45: 0 | I45: нд | J45: 0 | K45: нд | L45: 0 | M45: нд | N45: 0 | O45: нд | P45: 0 | Q45: нд | R45: 0 | S45: нд | T45: 0 | U45: нд | V45: 0 | W45: нд | X45: 0 | Y45: нд | Z45: 0 | AA45: нд | AB45: 0 | AC45: нд | AD45: 0 | AE45: нд | AF45: 0 | AG45: нд | AH45: 0 | AI45: нд | AJ45: 0 | AK45: нд | AL45: нд | AM45: 0 | AN45: 0 | AO45: нд | AP45: 0 | AQ45: нд | AR45: 0 | AS45: нд | AT45: 0 | AU45: нд | AV45: 0 | AW45: нд | AX45: 0 | AY45: нд | AZ45: 0 | BA45: 0 | BB45: 0 | BC45: нд
A46: 1.1.3.2 | B46: Реконструкция существующих объектов электросетевого хозяйства для усиления электрической сети в целях осуществления технологического присоединения объекта по производству электрической энергии, всего, в том числе: | C46: нд | D46: 0 | E46: нд | F46: 0 | G46: нд | H46: 0 | I46: нд | J46: 0 | K46: нд | L46: 0 | M46: нд | N46: 0 | O46: нд | P46: 0 | Q46: нд | R46: 0 | S46: нд | T46: 0 | U46: нд | V46: 0 | W46: нд | X46: 0 | Y46: нд | Z46: 0 | AA46: нд | AB46: 0 | AC46: нд | AD46: 0 | AE46: нд | AF46: 0 | AG46: нд | AH46: 0 | AI46: нд | AJ46: 0 | AK46: нд | AL46: нд | AM46: 0 | AN46: 0 | AO46: нд | AP46: 0 | AQ46: нд | AR46: 0 | AS46: нд | AT46: 0 | AU46: нд | AV46: 0 | AW46: нд | AX46: 0 | AY46: нд | AZ46: 0 | BA46: 0 | BB46: 0 | BC46: нд
A47: 1.1.4 | B47: Усиление электрической сети в целях осуществления технологического присоединения энергопринимающих устройств потребителей и (или) объектов электросетевого хозяйства всего, в том числе: | C47: нд | D47: 0 | E47: нд | F47: 0 | G47: нд | H47: 0 | I47: нд | J47: 0 | K47: нд | L47: 0 | M47: нд | N47: 0 | O47: нд | P47: 0 | Q47: нд | R47: 0 | S47: нд | T47: 0 | U47: нд | V47: 0 | W47: нд | X47: 0 | Y47: нд | Z47: 0 | AA47: нд | AB47: 0 | AC47: нд | AD47: 0 | AE47: нд | AF47: 0 | AG47: нд | AH47: 0 | AI47: нд | AJ47: 0 | AK47: нд | AL47: нд | AM47: 0 | AN47: 0 | AO47: нд | AP47: 0 | AQ47: нд | AR47: 0 | AS47: нд | AT47: 0 | AU47: нд | AV47: 0 | AW47: нд | AX47: 0 | AY47: нд | AZ47: 0 | BA47: 0 | BB47: 0 | BC47: нд
A48: 1.1.4.1 | B48: Строительство новых объектов электросетевого хозяйства для усиления электрической сети в целях осуществления технологического присоединения, всего, в том числе: | C48: нд | D48: 0 | E48: нд | F48: 0 | G48: нд | H48: 0 | I48: нд | J48: 0 | K48: нд | L48: 0 | M48: нд | N48: 0 | O48: нд | P48: 0 | Q48: нд | R48: 0 | S48: нд | T48: 0 | U48: нд | V48: 0 | W48: нд | X48: 0 | Y48: нд | Z48: 0 | AA48: нд | AB48: 0 | AC48: нд | AD48: 0 | AE48: нд | AF48: 0 | AG48: нд | AH48: 0 | AI48: нд | AJ48: 0 | AK48: нд | AL48: нд | AM48: 0 | AN48: 0 | AO48: нд | AP48: 0 | AQ48: нд | AR48: 0 | AS48: нд | AT48: 0 | AU48: нд | AV48: 0 | AW48: нд | AX48: 0 | AY48: нд | AZ48: 0 | BA48: 0 | BB48: 0 | BC48: нд
A49: 1.1.4.2 | B49: Реконструкция существующих объектов электросетевого хозяйства для усиления электрической сети в целях осуществления технологического присоединения, всего, в том числе: | C49: нд | D49: 0 | E49: нд | F49: 0 | G49: нд | H49: 0 | I49: нд | J49: 0 | K49: нд | L49: 0 | M49: нд | N49: 0 | O49: нд | P49: 0 | Q49: нд | R49: 0 | S49: нд | T49: 0 | U49: нд | V49: 0 | W49: нд | X49: 0 | Y49: нд | Z49: 0 | AA49: нд | AB49: 0 | AC49: нд | AD49: 0 | AE49: нд | AF49: 0 | AG49: нд | AH49: 0 | AI49: нд | AJ49: 0 | AK49: нд | AL49: нд | AM49: 0 | AN49: 0 | AO49: нд | AP49: 0 | AQ49: нд | AR49: 0 | AS49: нд | AT49: 0 | AU49: нд | AV49: 0 | AW49: нд | AX49: 0 | AY49: нд | AZ49: 0 | BA49: 0 | BB49: 0 | BC49: нд
A50: 1.2 | B50: Реконструкция, модернизация, техническое перевооружение всего, в том числе: | C50: нд | D50: 0 | E50: нд | F50: 0 | G50: нд | H50: 0 | I50: нд | J50: 0 | K50: нд | L50: 0 | M50: нд | N50: 0 | O50: нд | P50: 0 | Q50: нд | R50: 0 | S50: нд | T50: 0 | U50: нд | V50: 0 | W50: нд | X50: =X52+X59+X65 -> 3.567 | Y50: =Y52+Y59+Y65 -> 0.867 | Z50: 0 | AA50: нд | AB50: =AB52 -> 2 | AC50: =AC52 -> 2 | AD50: 0 | AE50: нд | AF50: 0 | AG50: нд | AH50: 0 | AI50: нд | AJ50: 0 | AK50: нд | AL50: =AL65 -> 0 | AM50: =AM51+AM59+AM65 -> 0 | AN50: 0 | AO50: нд | AP50: 0 | AQ50: нд | AR50: 0 | AS50: нд | AT50: 0 | AU50: нд | AV50: 0 | AW50: нд | AX50: 0 | AY50: нд | AZ50: 0.889088816 | BA50: 0.8894076 | BB50: 0 | BC50: нд
A51: 1.2.1 | B51: Реконструкция, модернизация, техническое перевооружение трансформаторных и иных подстанций, распределительных пунктов, всего, в том числе: | C51: нд | D51: 0 | E51: нд | F51: 0 | G51: нд | H51: 0 | I51: нд | J51: 0 | K51: нд | L51: 0 | M51: нд | N51: 0 | O51: нд | P51: 0 | Q51: нд | R51: 0 | S51: нд | T51: 0 | U51: нд | V51: 0 | W51: нд | X51: 0 | Y51: нд | Z51: 0 | AA51: нд | AB51: 0 | AC51: нд | AD51: 0 | AE51: нд | AF51: 0 | AG51: нд | AH51: 0 | AI51: нд | AJ51: 0 | AK51: нд | AL51: нд | AM51: =AM52 -> 0 | AN51: 0 | AO51: нд | AP51: 0 | AQ51: нд | AR51: 0 | AS51: нд | AT51: 0 | AU51: нд | AV51: 0 | AW51: нд | AX51: 0 | AY51: нд | AZ51: 0.141681216 | BA51: 0.142 | BB51: 0 | BC51: нд
A52: 1.2.1.1 | B52: Реконструкция трансформаторных и иных подстанций, всего, в том числе: | C52: нд | D52: 0 | E52: нд | F52: 0 | G52: нд | H52: 0 | I52: нд | J52: 0 | K52: нд | L52: 0 | M52: нд | N52: 0 | O52: нд | P52: 0 | Q52: нд | R52: 0 | S52: нд | T52: 0 | U52: нд | V52: 0 | W52: нд | X52: 0 | Y52: 0 | Z52: 0 | AA52: нд | AB52: =AB55 -> 2 | AC52: =AC55 -> 2 | AD52: 0 | AE52: нд | AF52: 0 | AG52: нд | AH52: 0 | AI52: нд | AJ52: 0 | AK52: нд | AL52: 0 | AM52: =SUM(AM58:AM60) -> 0 | AN52: 0 | AO52: нд | AP52: 0 | AQ52: нд | AR52: 0 | AS52: нд | AT52: 0 | AU52: нд | AV52: 0 | AW52: нд | AX52: 0 | AY52: нд | AZ52: 0.141681216 | BA52: 0.142 | BB52: 0 | BC52: нд
A53: 1.2.1.1.1 | B53: Замена ячеек с автоматами АВМ-1000 А на панели щитов ЩО-70 в ТП-10/0,4 кВ «Масис» по адресу: г.Саранск, Александровское шоссе, 26 | C53: Н_МСК_01 | D53: 0 | E53: 0 | F53: 0 | G53: 0 | H53: 0 | I53: 0 | J53: 0 | K53: 0 | L53: 0 | M53: 0 | N53: 0 | O53: 0 | P53: 0 | Q53: 0 | R53: 0 | S53: 0 | T53: 0 | U53: 0 | V53: 0 | W53: 0 | X53: 0 | Y53: 0 | Z53: 0 | AA53: 0 | AB53: 0 | AC53: 0 | AD53: 0 | AE53: 0 | AF53: 0 | AG53: 0 | AH53: 0 | AI53: 0 | AJ53: 0 | AK53: 0 | AL53: 0 | AM53: 0 | AN53: 0 | AO53: 0 | AP53: 0 | AQ53: 0 | AR53: 0 | AS53: 0 | AT53: 0 | AU53: 0 | AV53: 0 | AW53: 0 | AX53: 0 | AY53: 0 | AZ53: 0 | BA53: 0 | BB53: 0 | BC53: 0
A54: 1.2.1.1.2 | B54: Установка камеры КСО-366 1НУЗ В ТП-10/0,4 кВ «Масис» по адресу: г.Саранск, Александровское шоссе, 26 | C54: Н_МСК_02 | D54: 0 | E54: 0 | F54: 0 | G54: 0 | H54: 0 | I54: 0 | J54: 0 | K54: 0 | L54: 0 | M54: 0 | N54: 0 | O54: 0 | P54: 0 | Q54: 0 | R54: 0 | S54: 0 | T54: 0 | U54: 0 | V54: 0 | W54: 0 | X54: 0 | Y54: 0 | Z54: 0 | AA54: 0 | AB54: 0 | AC54: 0 | AD54: 0 | AE54: 0 | AF54: 0 | AG54: 0 | AH54: 0 | AI54: 0 | AJ54: 0 | AK54: 0 | AL54: 0 | AM54: 0 | AN54: 0 | AO54: 0 | AP54: 0 | AQ54: 0 | AR54: 0 | AS54: 0 | AT54: 0 | AU54: 0 | AV54: 0 | AW54: 0 | AX54: 0 | AY54: 0 | AZ54: 0 | BA54: 0 | BB54: 0 | BC54: 0
A55: 1.2.1.1.3 | B55: Замена выключателей нагрузки ВН-16 на ВНА/ТЕ-(Л)л-10/630 ТП-560/630/6/0,4 кВ «СТЭМ» по адресу: г.Саранск, ул. Пролетарская, 144 А | C55: Н_МСК_03 | D55: 0 | E55: нд | F55: 0 | G55: нд | H55: 0 | I55: нд | J55: 0 | K55: нд | L55: 0 | M55: нд | N55: 0 | O55: нд | P55: 0 | Q55: нд | R55: 0 | S55: нд | T55: 0 | U55: нд | V55: 0 | W55: нд | X55: 0 | Y55: нд | Z55: 0 | AA55: нд | AB55: 2 | AC55: 2 | AD55: 0 | AE55: нд | AF55: 0 | AG55: нд | AH55: 0 | AI55: нд | AJ55: 0 | AK55: нд | AL55: нд | AM55: 0 | AN55: 0 | AO55: нд | AP55: 0 | AQ55: нд | AR55: 0 | AS55: нд | AT55: 0 | AU55: нд | AV55: 0 | AW55: нд | AX55: 0 | AY55: нд | AZ55: 0.141681216 | BA55: 0.142 | BB55: 0 | BC55: нд
A56: 1.2.1.1.4 | B56: Замена масляных выключателей на вакуумные в ТП-630/10/0,4 кВ «Ремстроймаш», по адресу: г.Саранск, Александровское шоссе, 8 | C56: Н_МСК_04 | D56: 0 | E56: 0 | F56: 0 | G56: 0 | H56: 0 | I56: 0 | J56: 0 | K56: 0 | L56: 0 | M56: 0 | N56: 0 | O56: 0 | P56: 0 | Q56: 0 | R56: 0 | S56: 0 | T56: 0 | U56: 0 | V56: 0 | W56: 0 | X56: 0 | Y56: 0 | Z56: 0 | AA56: 0 | AB56: 0 | AC56: 0 | AD56: 0 | AE56: 0 | AF56: 0 | AG56: 0 | AH56: 0 | AI56: 0 | AJ56: 0 | AK56: 0 | AL56: 0 | AM56: 0 | AN56: 0 | AO56: 0 | AP56: 0 | AQ56: 0 | AR56: 0 | AS56: 0 | AT56: 0 | AU56: 0 | AV56: 0 | AW56: 0 | AX56: 0 | AY56: 0 | AZ56: 0 | BA56: 0 | BB56: 0 | BC56: 0
A57: 1.2.1.1.5 | B57: Монтаж ТСН-10/0,4 кВ для ТП-630/10/0,4 кВ «Рестроймаш», по адресу: г.Саранск, Александровское шоссе, 8 | C57: Н_МСК_05 | D57: 0 | E57: 0 | F57: 0 | G57: 0 | H57: 0 | I57: 0 | J57: 0 | K57: 0 | L57: 0 | M57: 0 | N57: 0 | O57: 0 | P57: 0 | Q57: 0 | R57: 0 | S57: 0 | T57: 0 | U57: 0 | V57: 0 | W57: 0 | X57: 0 | Y57: 0 | Z57: 0 | AA57: 0 | AB57: 0 | AC57: 0 | AD57: 0 | AE57: 0 | AF57: 0 | AG57: 0 | AH57: 0 | AI57: 0 | AJ57: 0 | AK57: 0 | AL57: 0 | AM57: 0 | AN57: 0 | AO57: 0 | AP57: 0 | AQ57: 0 | AR57: 0 | AS57: 0 | AT57: 0 | AU57: 0 | AV57: 0 | AW57: 0 | AX57: 0 | AY57: 0 | AZ57: 0 | BA57: 0 | BB57: 0 | BC57: 0
A58: 1.2.1.2 | B58: Модернизация, техническое перевооружение трансформаторных и иных подстанций, распределительных пунктов, всего, в том числе: | C58: нд | D58: 0 | E58: нд | F58: 0 | G58: нд | H58: 0 | I58: нд | J58: 0 | K58: нд | L58: 0 | M58: нд | N58: 0 | O58: нд | P58: 0 | Q58: нд | R58: 0 | S58: нд | T58: 0 | U58: нд | V58: 0 | W58: нд | X58: 0 | Y58: нд | Z58: 0 | AA58: нд | AB58: 0 | AC58: нд | AD58: 0 | AE58: нд | AF58: 0 | AG58: нд | AH58: 0 | AI58: нд | AJ58: 0 | AK58: нд | AL58: нд | AM58: 0 | AN58: 0 | AO58: нд | AP58: 0 | AQ58: нд | AR58: 0 | AS58: нд | AT58: 0 | AU58: нд | AV58: 0 | AW58: нд | AX58: 0 | AY58: нд | AZ58: 0 | BA58: 0 | BB58: 0 | BC58: нд
A59: 1.2.2 | B59: Реконструкция, модернизация, техническое перевооружение линий электропередачи, всего, в том числе: | C59: нд | D59: 0 | E59: нд | F59: 0 | G59: нд | H59: 0 | I59: нд | J59: 0 | K59: нд | L59: 0 | M59: нд | N59: 0 | O59: нд | P59: 0 | Q59: нд | R59: 0 | S59: нд | T59: 0 | U59: нд | V59: 0 | W59: нд | X59: =X60 -> 3.567 | Y59: =Y60 -> 0.867 | Z59: 0 | AA59: нд | AB59: 0 | AC59: нд | AD59: 0 | AE59: нд | AF59: 0 | AG59: нд | AH59: 0 | AI59: нд | AJ59: 0 | AK59: нд | AL59: нд | AM59: =AM60 -> 0 | AN59: 0 | AO59: нд | AP59: 0 | AQ59: нд | AR59: 0 | AS59: нд | AT59: 0 | AU59: нд | AV59: 0 | AW59: нд | AX59: 0 | AY59: нд | AZ59: 0.7474076 | BA59: 0.7474076 | BB59: 0 | BC59: нд
A60: 1.2.2.1 | B60: Реконструкция линий электропередачи, всего, в том числе: | C60: нд | D60: 0 | E60: нд | F60: 0 | G60: нд | H60: 0 | I60: нд | J60: 0 | K60: нд | L60: 0 | M60: нд | N60: 0 | O60: нд | P60: 0 | Q60: нд | R60: 0 | S60: нд | T60: 0 | U60: нд | V60: 0 | W60: нд | X60: =SUM(X61:X65) -> 3.567 | Y60: =SUM(Y61:Y65) -> 0.867 | Z60: 0 | AA60: нд | AB60: 0 | AC60: нд | AD60: 0 | AE60: нд | AF60: 0 | AG60: нд | AH60: 0 | AI60: нд | AJ60: 0 | AK60: нд | AL60: нд | AM60: =SUM(AM61:AM65) -> 0 | AN60: 0 | AO60: нд | AP60: 0 | AQ60: нд | AR60: 0 | AS60: нд | AT60: 0 | AU60: нд | AV60: 0 | AW60: нд | AX60: 0 | AY60: нд | AZ60: 0.7474076 | BA60: 0.7474076 | BB60: 0 | BC60: нд
A61: 1.2.2.1.1 | B61: Реконструкция линии ВЛ-0,4 кВ протяженностью 0,867 км на ВЛИ-0,4 кВ по адресу: р.п. Ромоданово, пер. Филатова | C61: Н_МСК_06 | D61: 0 | E61: нд | F61: 0 | G61: нд | H61: 0 | I61: нд | J61: 0 | K61: нд | L61: 0 | M61: нд | N61: 0 | O61: нд | P61: 0 | Q61: нд | R61: 0 | S61: нд | T61: 0 | U61: нд | V61: 0 | W61: нд | X61: 0.867 | Y61: 0.867 | Z61: 0 | AA61: нд | AB61: 0 | AC61: нд | AD61: 0 | AE61: нд | AF61: 0 | AG61: нд | AH61: 0 | AI61: нд | AJ61: 0 | AK61: нд | AL61: нд | AM61: 0 | AN61: 0 | AO61: нд | AP61: 0 | AQ61: нд | AR61: 0 | AS61: нд | AT61: 0 | AU61: нд | AV61: 0 | AW61: нд | AX61: 0 | AY61: нд | AZ61: 0.6074076 | BA61: 0.6074076 | BB61: 0 | BC61: нд
A62: 1.2.2.1.2 | B62: Реконструкция ВЛ-10 кВ от яч. 23 ГПП 110/10 кВ «ВКМ-Сталь» | C62: Н_МСК_07 | D62: 0 | E62: нд | F62: 0 | G62: нд | H62: 0 | I62: нд | J62: 0 | K62: нд | L62: 0 | M62: нд | N62: 0 | O62: нд | P62: 0 | Q62: нд | R62: 0 | S62: нд | T62: 0 | U62: нд | V62: 0 | W62: нд | X62: 2.7 | Y62: 0 | Z62: 0 | AA62: нд | AB62: 0 | AC62: нд | AD62: 0 | AE62: нд | AF62: 0 | AG62: нд | AH62: 0 | AI62: нд | AJ62: 0 | AK62: нд | AL62: нд | AM62: 0 | AN62: 0 | AO62: нд | AP62: 0 | AQ62: нд | AR62: 0 | AS62: нд | AT62: 0 | AU62: нд | AV62: 0 | AW62: нд | AX62: 0 | AY62: нд | AZ62: 0.14 | BA62: 0.14 | BB62: 0 | BC62: нд
A63: 1.2.2.1.3 | B63: Замена двух КЛ-6 кВ от ГРУ-6 кВ ТЭЦ-2 до ТП-630/10/0,4 кВ «Ремстроймаш», по адресу: г.Саранск, Александровское шоссе, 8 | C63: Н_МСК_08 | D63: 0 | E63: 0 | F63: 0 | G63: 0 | H63: 0 | I63: 0 | J63: 0 | K63: 0 | L63: 0 | M63: 0 | N63: 0 | O63: 0 | P63: 0 | Q63: 0 | R63: 0 | S63: 0 | T63: 0 | U63: 0 | V63: 0 | W63: 0 | X63: 0 | Y63: 0 | Z63: 0 | AA63: 0 | AB63: 0 | AC63: 0 | AD63: 0 | AE63: 0 | AF63: 0 | AG63: 0 | AH63: 0 | AI63: 0 | AJ63: 0 | AK63: 0 | AL63: 0 | AM63: 0 | AN63: 0 | AO63: 0 | AP63: 0 | AQ63: 0 | AR63: 0 | AS63: 0 | AT63: 0 | AU63: 0 | AV63: 0 | AW63: 0 | AX63: 0 | AY63: 0 | AZ63: 0 | BA63: 0 | BB63: 0 | BC63: 0
A64: 1.2.2.2 | B64: Модернизация, техническое перевооружение линий электропередачи, всего, в том числе: | C64: нд | D64: 0 | E64: нд | F64: 0 | G64: нд | H64: 0 | I64: нд | J64: 0 | K64: нд | L64: 0 | M64: нд | N64: 0 | O64: нд | P64: 0 | Q64: нд | R64: 0 | S64: нд | T64: 0 | U64: нд | V64: 0 | W64: нд | X64: 0 | Y64: нд | Z64: 0 | AA64: нд | AB64: 0 | AC64: нд | AD64: 0 | AE64: нд | AF64: 0 | AG64: нд | AH64: 0 | AI64: нд | AJ64: 0 | AK64: нд | AL64: нд | AM64: 0 | AN64: 0 | AO64: нд | AP64: 0 | AQ64: нд | AR64: 0 | AS64: нд | AT64: 0 | AU64: нд | AV64: 0 | AW64: нд | AX64: 0 | AY64: нд | AZ64: 0 | BA64: 0 | BB64: 0 | BC64: нд
A65: 1.2.3 | B65: Развитие и модернизация учета электрической энергии (мощности), всего, в том числе: | C65: нд | D65: 0 | E65: нд | F65: 0 | G65: нд | H65: 0 | I65: нд | J65: 0 | K65: нд | L65: 0 | M65: нд | N65: 0 | O65: нд | P65: 0 | Q65: нд | R65: 0 | S65: нд | T65: 0 | U65: нд | V65: 0 | W65: нд | X65: 0 | Y65: 0 | Z65: 0 | AA65: нд | AB65: 0 | AC65: нд | AD65: 0 | AE65: нд | AF65: 0 | AG65: нд | AH65: 0 | AI65: нд | AJ65: 0 | AK65: нд | AL65: =AL67+AL69 -> 0 | AM65: =AM73 -> 0 | AN65: 0 | AO65: нд | AP65: 0 | AQ65: нд | AR65: 0 | AS65: нд | AT65: 0 | AU65: нд | AV65: 0 | AW65: нд | AX65: 0 | AY65: нд | AZ65: 0 | BA65: 0 | BB65: 0 | BC65: нд
A66: 1.2.3.1 | B66: «Установка приборов учета, класс напряжения 0,22 (0,4) кВ, всего, в том числе:» | C66: нд | D66: 0 | E66: нд | F66: 0 | G66: нд | H66: 0 | I66: нд | J66: 0 | K66: нд | L66: 0 | M66: нд | N66: 0 | O66: нд | P66: 0 | Q66: нд | R66: 0 | S66: нд | T66: 0 | U66: нд | V66: 0 | W66: нд | X66: 0 | Y66: нд | Z66: 0 | AA66: нд | AB66: 0 | AC66: нд | AD66: 0 | AE66: нд | AF66: 0 | AG66: нд | AH66: 0 | AI66: нд | AJ66: 0 | AK66: нд | AL66: нд | AM66: 0 | AN66: 0 | AO66: нд | AP66: 0 | AQ66: нд | AR66: 0 | AS66: нд | AT66: 0 | AU66: нд | AV66: 0 | AW66: нд | AX66: 0 | AY66: нд | AZ66: 0 | BA66: 0 | BB66: 0 | BC66: нд
A67: 1.2.3.1.1 | B67: Внедрение автоматизированной системы технического учета электроэнергии (АСТУЭ) в количестве 312 шт. | C67: Н_МСК_09 | D67: 0 | E67: нд | F67: 0 | G67: нд | H67: 0 | I67: нд | J67: 0 | K67: нд | L67: 0 | M67: нд | N67: 0 | O67: нд | P67: 0 | Q67: нд | R67: 0 | S67: нд | T67: 0 | U67: нд | V67: 0 | W67: нд | X67: 0 | Y67: нд | Z67: 0 | AA67: нд | AB67: 0 | AC67: нд | AD67: 0 | AE67: нд | AF67: 0 | AG67: нд | AH67: 0 | AI67: нд | AJ67: 0 | AK67: нд | AL67: 0 | AM67: 0 | AN67: 0 | AO67: нд | AP67: 0 | AQ67: нд | AR67: 0 | AS67: нд | AT67: 0 | AU67: нд | AV67: 0 | AW67: нд | AX67: 0 | AY67: нд | AZ67: 0 | BA67: 0 | BB67: 0 | BC67: нд
A68: 1.2.3.2 | B68: «Установка приборов учета, класс напряжения 6 (10) кВ, всего, в том числе:» | C68: нд | D68: 0 | E68: нд | F68: 0 | G68: нд | H68: 0 | I68: нд | J68: 0 | K68: нд | L68: 0 | M68: нд | N68: 0 | O68: нд | P68: 0 | Q68: нд | R68: 0 | S68: нд | T68: 0 | U68: нд | V68: 0 | W68: нд | X68: 0 | Y68: нд | Z68: 0 | AA68: нд | AB68: 0 | AC68: нд | AD68: 0 | AE68: нд | AF68: 0 | AG68: нд | AH68: 0 | AI68: нд | AJ68: 0 | AK68: нд | AL68: нд | AM68: 0 | AN68: 0 | AO68: нд | AP68: 0 | AQ68: нд | AR68: 0 | AS68: нд | AT68: 0 | AU68: нд | AV68: 0 | AW68: нд | AX68: 0 | AY68: нд | AZ68: 0 | BA68: 0 | BB68: 0 | BC68: нд
A69: 1.2.3.2.1 | B69: Внедрение автоматизированной системы технического учета электроэнергии (АСТУЭ) в количестве 17 шт. | C69: Н_МСК_10 | D69: 0 | E69: нд | F69: 0 | G69: нд | H69: 0 | I69: нд | J69: 0 | K69: нд | L69: 0 | M69: нд | N69: 0 | O69: нд | P69: 0 | Q69: нд | R69: 0 | S69: нд | T69: 0 | U69: нд | V69: 0 | W69: нд | X69: 0 | Y69: нд | Z69: 0 | AA69: нд | AB69: 0 | AC69: нд | AD69: 0 | AE69: нд | AF69: 0 | AG69: нд | AH69: 0 | AI69: нд | AJ69: 0 | AK69: нд | AL69: 0 | AM69: 0 | AN69: 0 | AO69: нд | AP69: 0 | AQ69: нд | AR69: 0 | AS69: нд | AT69: 0 | AU69: нд | AV69: 0 | AW69: нд | AX69: 0 | AY69: нд | AZ69: 0 | BA69: 0 | BB69: 0 | BC69: нд
A70: 1.2.3.3 | B70: «Установка приборов учета, класс напряжения 35 кВ, всего, в том числе:» | C70: нд | D70: 0 | E70: нд | F70: 0 | G70: нд | H70: 0 | I70: нд | J70: 0 | K70: нд | L70: 0 | M70: нд | N70: 0 | O70: нд | P70: 0 | Q70: нд | R70: 0 | S70: нд | T70: 0 | U70: нд | V70: 0 | W70: нд | X70: 0 | Y70: нд | Z70: 0 | AA70: нд | AB70: 0 | AC70: нд | AD70: 0 | AE70: нд | AF70: 0 | AG70: нд | AH70: 0 | AI70: нд | AJ70: 0 | AK70: нд | AL70: нд | AM70: 0 | AN70: 0 | AO70: нд | AP70: 0 | AQ70: нд | AR70: 0 | AS70: нд | AT70: 0 | AU70: нд | AV70: 0 | AW70: нд | AX70: 0 | AY70: нд | AZ70: 0 | BA70: 0 | BB70: 0 | BC70: нд
A71: 1.2.3.4 | B71: «Установка приборов учета, класс напряжения 110 кВ и выше, всего, в том числе:» | C71: нд | D71: 0 | E71: нд | F71: 0 | G71: нд | H71: 0 | I71: нд | J71: 0 | K71: нд | L71: 0 | M71: нд | N71: 0 | O71: нд | P71: 0 | Q71: нд | R71: 0 | S71: нд | T71: 0 | U71: нд | V71: 0 | W71: нд | X71: 0 | Y71: нд | Z71: 0 | AA71: нд | AB71: 0 | AC71: нд | AD71: 0 | AE71: нд | AF71: 0 | AG71: нд | AH71: 0 | AI71: нд | AJ71: 0 | AK71: нд | AL71: нд | AM71: 0 | AN71: 0 | AO71: нд | AP71: 0 | AQ71: нд | AR71: 0 | AS71: нд | AT71: 0 | AU71: нд | AV71: 0 | AW71: нд | AX71: 0 | AY71: нд | AZ71: 0 | BA71: 0 | BB71: 0 | BC71: нд
A72: 1.2.3.5 | B72: «Включение приборов учета в систему сбора и передачи данных, класс напряжения 0,22 (0,4) кВ, всего, в том числе:» | C72: нд | D72: 0 | E72: нд | F72: 0 | G72: нд | H72: 0 | I72: нд | J72: 0 | K72: нд | L72: 0 | M72: нд | N72: 0 | O72: нд | P72: 0 | Q72: нд | R72: 0 | S72: нд | T72: 0 | U72: нд | V72: 0 | W72: нд | X72: 0 | Y72: нд | Z72: 0 | AA72: нд | AB72: 0 | AC72: нд | AD72: 0 | AE72: нд | AF72: 0 | AG72: нд | AH72: 0 | AI72: нд | AJ72: 0 | AK72: нд | AL72: нд | AM72: 0 | AN72: 0 | AO72: нд | AP72: 0 | AQ72: нд | AR72: 0 | AS72: нд | AT72: 0 | AU72: нд | AV72: 0 | AW72: нд | AX72: 0 | AY72: нд | AZ72: 0 | BA72: 0 | BB72: 0 | BC72: нд
A73: 1.2.3.6 | B73: «Включение приборов учета в систему сбора и передачи данных, класс напряжения 6 (10) кВ, всего, в том числе:» | C73: нд | D73: 0 | E73: нд | F73: 0 | G73: нд | H73: 0 | I73: нд | J73: 0 | K73: нд | L73: 0 | M73: нд | N73: 0 | O73: нд | P73: 0 | Q73: нд | R73: 0 | S73: нд | T73: 0 | U73: нд | V73: 0 | W73: нд | X73: 0 | Y73: нд | Z73: 0 | AA73: нд | AB73: 0 | AC73: нд | AD73: 0 | AE73: нд | AF73: 0 | AG73: нд | AH73: 0 | AI73: нд | AJ73: 0 | AK73: нд | AL73: нд | AM73: 0 | AN73: 0 | AO73: нд | AP73: 0 | AQ73: нд | AR73: 0 | AS73: нд | AT73: 0 | AU73: нд | AV73: 0 | AW73: нд | AX73: 0 | AY73: нд | AZ73: 0 | BA73: 0 | BB73: 0 | BC73: нд
A74: 1.2.3.7 | B74: «Включение приборов учета в систему сбора и передачи данных, класс напряжения 35 кВ, всего, в том числе:» | C74: нд | D74: 0 | E74: нд | F74: 0 | G74: нд | H74: 0 | I74: нд | J74: 0 | K74: нд | L74: 0 | M74: нд | N74: 0 | O74: нд | P74: 0 | Q74: нд | R74: 0 | S74: нд | T74: 0 | U74: нд | V74: 0 | W74: нд | X74: 0 | Y74: нд | Z74: 0 | AA74: нд | AB74: 0 | AC74: нд | AD74: 0 | AE74: нд | AF74: 0 | AG74: нд | AH74: 0 | AI74: нд | AJ74: 0 | AK74: нд | AL74: нд | AM74: 0 | AN74: 0 | AO74: нд | AP74: 0 | AQ74: нд | AR74: 0 | AS74: нд | AT74: 0 | AU74: нд | AV74: 0 | AW74: нд | AX74: 0 | AY74: нд | AZ74: 0 | BA74: 0 | BB74: 0 | BC74: нд
A75: 1.2.3.8 | B75: «Включение приборов учета в систему сбора и передачи данных, класс напряжения 110 кВ и выше, всего, в том числе:» | C75: нд | D75: 0 | E75: нд | F75: 0 | G75: нд | H75: 0 | I75: нд | J75: 0 | K75: нд | L75: 0 | M75: нд | N75: 0 | O75: нд | P75: 0 | Q75: нд | R75: 0 | S75: нд | T75: 0 | U75: нд | V75: 0 | W75: нд | X75: 0 | Y75: нд | Z75: 0 | AA75: нд | AB75: 0 | AC75: нд | AD75: 0 | AE75: нд | AF75: 0 | AG75: нд | AH75: 0 | AI75: нд | AJ75: 0 | AK75: нд | AL75: нд | AM75: 0 | AN75: 0 | AO75: нд | AP75: 0 | AQ75: нд | AR75: 0 | AS75: нд | AT75: 0 | AU75: нд | AV75: 0 | AW75: нд | AX75: 0 | AY75: нд | AZ75: 0 | BA75: 0 | BB75: 0 | BC75: нд
A76: 1.2.4 | B76: Реконструкция, модернизация, техническое перевооружение прочих объектов основных средств, всего, в том числе: | C76: нд | D76: 0 | E76: нд | F76: 0 | G76: нд | H76: 0 | I76: нд | J76: 0 | K76: нд | L76: 0 | M76: нд | N76: 0 | O76: нд | P76: 0 | Q76: нд | R76: 0 | S76: нд | T76: 0 | U76: нд | V76: 0 | W76: нд | X76: 0 | Y76: нд | Z76: 0 | AA76: нд | AB76: 0 | AC76: нд | AD76: 0 | AE76: нд | AF76: 0 | AG76: нд | AH76: 0 | AI76: нд | AJ76: 0 | AK76: нд | AL76: нд | AM76: 0 | AN76: 0 | AO76: нд | AP76: 0 | AQ76: нд | AR76: 0 | AS76: нд | AT76: 0 | AU76: нд | AV76: 0 | AW76: нд | AX76: 0 | AY76: нд | AZ76: 0 | BA76: 0 | BB76: 0 | BC76: нд
A77: 1.2.4.1 | B77: Реконструкция прочих объектов основных средств, всего, в том числе: | C77: нд | D77: 0 | E77: нд | F77: 0 | G77: нд | H77: 0 | I77: нд | J77: 0 | K77: нд | L77: 0 | M77: нд | N77: 0 | O77: нд | P77: 0 | Q77: нд | R77: 0 | S77: нд | T77: 0 | U77: нд | V77: 0 | W77: нд | X77: 0 | Y77: нд | Z77: 0 | AA77: нд | AB77: 0 | AC77: нд | AD77: 0 | AE77: нд | AF77: 0 | AG77: нд | AH77: 0 | AI77: нд | AJ77: 0 | AK77: нд | AL77: нд | AM77: 0 | AN77: 0 | AO77: нд | AP77: 0 | AQ77: нд | AR77: 0 | AS77: нд | AT77: 0 | AU77: нд | AV77: 0 | AW77: нд | AX77: 0 | AY77: нд | AZ77: 0 | BA77: 0 | BB77: 0 | BC77: нд
A78: 1.2.4.2 | B78: Модернизация, техническое перевооружение прочих объектов основных средств, всего, в том числе: | C78: нд | D78: 0 | E78: нд | F78: 0 | G78: нд | H78: 0 | I78: нд | J78: 0 | K78: нд | L78: 0 | M78: нд | N78: 0 | O78: нд | P78: 0 | Q78: нд | R78: 0 | S78: нд | T78: 0 | U78: нд | V78: 0 | W78: нд | X78: 0 | Y78: нд | Z78: 0 | AA78: нд | AB78: 0 | AC78: нд | AD78: 0 | AE78: нд | AF78: 0 | AG78: нд | AH78: 0 | AI78: нд | AJ78: 0 | AK78: нд | AL78: нд | AM78: 0 | AN78: 0 | AO78: нд | AP78: 0 | AQ78: нд | AR78: 0 | AS78: нд | AT78: 0 | AU78: нд | AV78: 0 | AW78: нд | AX78: 0 | AY78: нд | AZ78: 0 | BA78: 0 | BB78: 0 | BC78: нд
A79: 1.3 | B79: Инвестиционные проекты, реализация которых обуславливается схемами и программами перспективного развития электроэнергетики, всего, в том числе: | C79: нд | D79: 0 | E79: нд | F79: 0 | G79: нд | H79: 0 | I79: нд | J79: 0 | K79: нд | L79: 0 | M79: нд | N79: 0 | O79: нд | P79: 0 | Q79: нд | R79: 0 | S79: нд | T79: 0 | U79: нд | V79: 0 | W79: нд | X79: 0 | Y79: нд | Z79: 0 | AA79: нд | AB79: 0 | AC79: нд | AD79: 0 | AE79: нд | AF79: 0 | AG79: нд | AH79: 0 | AI79: нд | AJ79: 0 | AK79: нд | AL79: нд | AM79: 0 | AN79: 0 | AO79: нд | AP79: 0 | AQ79: нд | AR79: 0 | AS79: нд | AT79: 0 | AU79: нд | AV79: 0 | AW79: нд | AX79: 0 | AY79: нд | AZ79: 0 | BA79: 0 | BB79: 0 | BC79: нд
A80: 1.3.1 | B80: Инвестиционные проекты, предусмотренные схемой и программой развития Единой энергетической системы России, всего, в том числе: | C80: нд | D80: 0 | E80: нд | F80: 0 | G80: нд | H80: 0 | I80: нд | J80: 0 | K80: нд | L80: 0 | M80: нд | N80: 0 | O80: нд | P80: 0 | Q80: нд | R80: 0 | S80: нд | T80: 0 | U80: нд | V80: 0 | W80: нд | X80: 0 | Y80: нд | Z80: 0 | AA80: нд | AB80: 0 | AC80: нд | AD80: 0 | AE80: нд | AF80: 0 | AG80: нд | AH80: 0 | AI80: нд | AJ80: 0 | AK80: нд | AL80: нд | AM80: 0 | AN80: 0 | AO80: нд | AP80: 0 | AQ80: нд | AR80: 0 | AS80: нд | AT80: 0 | AU80: нд | AV80: 0 | AW80: нд | AX80: 0 | AY80: нд | AZ80: 0 | BA80: 0 | BB80: 0 | BC80: нд
A81: 1.3.2 | B81: Инвестиционные проекты, предусмотренные схемой и программой развития субъекта Российской Федерации, всего, в том числе: | C81: нд | D81: 0 | E81: нд | F81: 0 | G81: нд | H81: 0 | I81: нд | J81: 0 | K81: нд | L81: 0 | M81: нд | N81: 0 | O81: нд | P81: 0 | Q81: нд | R81: 0 | S81: нд | T81: 0 | U81: нд | V81: 0 | W81: нд | X81: 0 | Y81: нд | Z81: 0 | AA81: нд | AB81: 0 | AC81: нд | AD81: 0 | AE81: нд | AF81: 0 | AG81: нд | AH81: 0 | AI81: нд | AJ81: 0 | AK81: нд | AL81: нд | AM81: 0 | AN81: 0 | AO81: нд | AP81: 0 | AQ81: нд | AR81: 0 | AS81: нд | AT81: 0 | AU81: нд | AV81: 0 | AW81: нд | AX81: 0 | AY81: нд | AZ81: 0 | BA81: 0 | BB81: 0 | BC81: нд
A82: 1.4 | B82: Прочее новое строительство объектов электросетевого хозяйства, всего, в том числе: | C82: нд | D82: =D93 -> 0 | E82: нд | F82: =F93 -> 0 | G82: нд | H82: =H93 -> 0 | I82: нд | J82: =J93 -> 0 | K82: нд | L82: =L93 -> 0 | M82: нд | N82: =N93 -> 0 | O82: нд | P82: =P93 -> 0 | Q82: нд | R82: =R93 -> 0 | S82: нд | T82: =T93 -> 0 | U82: нд | V82: =V93 -> 0 | W82: нд | X82: =V93 -> 0 | Y82: нд | Z82: =Z93 -> 0 | AA82: нд | AB82: 0 | AC82: нд | AD82: =AD93 -> 0 | AE82: нд | AF82: =AF93 -> 0 | AG82: нд | AH82: =AH93 -> 0 | AI82: нд | AJ82: =AJ93 -> 0 | AK82: нд | AL82: нд | AM82: =AK93 -> 0 | AN82: =AN93 -> 0 | AO82: нд | AP82: =AP93 -> 0 | AQ82: нд | AR82: =AR93 -> 0 | AS82: нд | AT82: =AT93 -> 0 | AU82: нд | AV82: =AV93 -> 0 | AW82: нд | AX82: =AX93 -> 0 | AY82: нд | AZ82: 0 | BA82: 0 | BB82: =BB93 -> 0 | BC82: нд
A83: 1.5 | B83: Покупка земельных участков для целей реализации инвестиционных проектов, всего, в том числе: | C83: нд | D83: 0 | E83: нд | F83: 0 | G83: нд | H83: 0 | I83: нд | J83: 0 | K83: нд | L83: 0 | M83: нд | N83: 0 | O83: нд | P83: 0 | Q83: нд | R83: 0 | S83: нд | T83: 0 | U83: нд | V83: 0 | W83: нд | X83: 0 | Y83: нд | Z83: 0 | AA83: нд | AB83: 0 | AC83: нд | AD83: 0 | AE83: нд | AF83: 0 | AG83: нд | AH83: 0 | AI83: нд | AJ83: 0 | AK83: нд | AL83: нд | AM83: 0 | AN83: 0 | AO83: нд | AP83: 0 | AQ83: нд | AR83: 0 | AS83: нд | AT83: 0 | AU83: нд | AV83: 0 | AW83: нд | AX83: 0 | AY83: нд | AZ83: 0 | BA83: 0 | BB83: 0 | BC83: нд
A84: 1.6 | B84: Прочие инвестиционные проекты, всего, в том числе: | C84: нд | D84: =D85 -> 0 | E84: нд | F84: =F85 -> 0 | G84: нд | H84: =H85 -> 0 | I84: нд | J84: =J85 -> 0 | K84: нд | L84: =L85 -> 0 | M84: нд | N84: =N85 -> 0 | O84: нд | P84: =P85 -> 0 | Q84: нд | R84: =R85 -> 0 | S84: нд | T84: =T85 -> 0 | U84: нд | V84: =V85 -> 0 | W84: нд | X84: =X85 -> 0 | Y84: нд | Z84: =Z85 -> 0 | AA84: нд | AB84: 0 | AC84: нд | AD84: =AD85 -> 0 | AE84: нд | AF84: =AF85 -> 0 | AG84: нд | AH84: =AH85 -> 0 | AI84: нд | AJ84: =AJ85 -> 0 | AK84: нд | AL84: нд | AM84: =AM85 -> 0 | AN84: =AN85 -> 0 | AO84: нд | AP84: =AP85 -> 0 | AQ84: нд | AR84: =AR85 -> 0 | AS84: нд | AT84: =AT85 -> 0 | AU84: нд | AV84: =AV85 -> 0 | AW84: нд | AX84: =AX85 -> 0 | AY84: нд | AZ84: 1.50141 | BA84: 1.50141 | BB84: =BB85 -> 0 | BC84: нд
A85: 1.6.1 | B85: Приобретение в лизинг автотранспортных средств | C85: нд | D85: 0 | E85: нд | F85: 0 | G85: нд | H85: 0 | I85: нд | J85: 0 | K85: нд | L85: 0 | M85: нд | N85: 0 | O85: нд | P85: 0 | Q85: нд | R85: 0 | S85: нд | T85: 0 | U85: нд | V85: 0 | W85: нд | X85: 0 | Y85: нд | Z85: 0 | AA85: нд | AB85: 0 | AC85: нд | AD85: 0 | AE85: нд | AF85: 0 | AG85: нд | AH85: 0 | AI85: нд | AJ85: 0 | AK85: нд | AL85: нд | AM85: 0 | AN85: 0 | AO85: нд | AP85: 0 | AQ85: нд | AR85: 0 | AS85: нд | AT85: 0 | AU85: нд | AV85: 0 | AW85: нд | AX85: 0 | AY85: нд | AZ85: 1.016 | BA85: 1.016 | BB85: 0 | BC85: нд
A86: 1.6.1.1 | B86: Приобретение в лизинг автотранспортных средств УАЗ-390995-04 Комби в количестве 1 ед. | C86: Н_МСК_11 | D86: 0 | E86: нд | F86: 0 | G86: нд | H86: 0 | I86: нд | J86: 0 | K86: нд | L86: 0 | M86: нд | N86: 0 | O86: нд | P86: 0 | Q86: нд | R86: 0 | S86: нд | T86: 0 | U86: нд | V86: 0 | W86: нд | X86: 0 | Y86: нд | Z86: 0 | AA86: нд | AB86: 0 | AC86: нд | AD86: 0 | AE86: нд | AF86: 0 | AG86: нд | AH86: 0 | AI86: нд | AJ86: 0 | AK86: нд | AL86: нд | AM86: 0 | AN86: 0 | AO86: нд | AP86: 0 | AQ86: нд | AR86: 0 | AS86: нд | AT86: 0 | AU86: нд | AV86: 0 | AW86: нд | AX86: 0 | AY86: нд | AZ86: 0 | BA86: 0 | BB86: 0 | BC86: нд
A87: 1.6.1.2 | B87: Приобретение в лизинг автотранспортных средств УАЗ-390945-520 Фермер в количестве 1 ед. | C87: Н_МСК_12 | D87: 0 | E87: нд | F87: 0 | G87: нд | H87: 0 | I87: нд | J87: 0 | K87: нд | L87: 0 | M87: нд | N87: 0 | O87: нд | P87: 0 | Q87: нд | R87: 0 | S87: нд | T87: 0 | U87: нд | V87: 0 | W87: нд | X87: 0 | Y87: нд | Z87: 0 | AA87: нд | AB87: 0 | AC87: нд | AD87: 0 | AE87: нд | AF87: 0 | AG87: нд | AH87: 0 | AI87: нд | AJ87: 0 | AK87: нд | AL87: нд | AM87: 0 | AN87: 0 | AO87: нд | AP87: 0 | AQ87: нд | AR87: 0 | AS87: нд | AT87: 0 | AU87: нд | AV87: 0 | AW87: нд | AX87: 0 | AY87: нд | AZ87: 0.173 | BA87: 0.173 | BB87: 0 | BC87: нд
A88: 1.6.1.3 | B88: Приобретение в лизинг автотранспортных средств Автогидроподъемник телескопический на шасси ГАЗ 3309 со сдвоенной кабиной в количестве 1 ед. | C88: Н_МСК_13 | D88: 0 | E88: нд | F88: 0 | G88: нд | H88: 0 | I88: нд | J88: 0 | K88: нд | L88: 0 | M88: нд | N88: 0 | O88: нд | P88: 0 | Q88: нд | R88: 0 | S88: нд | T88: 0 | U88: нд | V88: 0 | W88: нд | X88: 0 | Y88: нд | Z88: 0 | AA88: нд | AB88: 0 | AC88: нд | AD88: 0 | AE88: нд | AF88: 0 | AG88: нд | AH88: 0 | AI88: нд | AJ88: 0 | AK88: нд | AL88: нд | AM88: 0 | AN88: 0 | AO88: нд | AP88: 0 | AQ88: нд | AR88: 0 | AS88: нд | AT88: 0 | AU88: нд | AV88: 0 | AW88: нд | AX88: 0 | AY88: нд | AZ88: 0 | BA88: 0 | BB88: 0 | BC88: нд
A89: 1.6.1.4 | B89: Приобретение в лизинг автотранспортных средств Автогидроподъемник телескопический на шасси ГАЗ 33088-1010 Садко 4х4 в количестве 1 ед. | C89: Н_МСК_18 | D89: 0 | E89: нд | F89: 0 | G89: нд | H89: 0 | I89: нд | J89: 0 | K89: нд | L89: 0 | M89: нд | N89: 0 | O89: нд | P89: 0 | Q89: нд | R89: 0 | S89: нд | T89: 0 | U89: нд | V89: 0 | W89: нд | X89: 0 | Y89: нд | Z89: 0 | AA89: нд | AB89: 0 | AC89: нд | AD89: 0 | AE89: нд | AF89: 0 | AG89: нд | AH89: 0 | AI89: нд | AJ89: 0 | AK89: нд | AL89: нд | AM89: 0 | AN89: 0 | AO89: нд | AP89: 0 | AQ89: нд | AR89: 0 | AS89: нд | AT89: 0 | AU89: нд | AV89: 0 | AW89: нд | AX89: 0 | AY89: нд | AZ89: 0.843 | BA89: 0.843 | BB89: 0 | BC89: нд
A90: 1.6.2 | B90: Приобретение АИД-70М | C90: Н_МСК_14 | D90: 0 | E90: нд | F90: 0 | G90: нд | H90: 0 | I90: нд | J90: 0 | K90: нд | L90: 0 | M90: нд | N90: 0 | O90: нд | P90: 0 | Q90: нд | R90: 0 | S90: нд | T90: 0 | U90: нд | V90: 0 | W90: нд | X90: 0 | Y90: нд | Z90: 0 | AA90: нд | AB90: 0 | AC90: нд | AD90: 0 | AE90: нд | AF90: 0 | AG90: нд | AH90: 0 | AI90: нд | AJ90: 0 | AK90: нд | AL90: нд | AM90: 0 | AN90: 0 | AO90: нд | AP90: 0 | AQ90: нд | AR90: 0 | AS90: нд | AT90: 0 | AU90: нд | AV90: 0 | AW90: нд | AX90: 0 | AY90: нд | AZ90: 0.25 | BA90: 0.25 | BB90: 0 | BC90: нд
A91: 1.6.3 | B91: Приобретение прибора Атлет-319 «СКИН» | C91: Н_МСК_15 | D91: 0 | E91: нд | F91: 0 | G91: нд | H91: 0 | I91: нд | J91: 0 | K91: нд | L91: 0 | M91: нд | N91: 0 | O91: нд | P91: 0 | Q91: нд | R91: 0 | S91: нд | T91: 0 | U91: нд | V91: 0 | W91: нд | X91: 0 | Y91: нд | Z91: 0 | AA91: нд | AB91: 0 | AC91: нд | AD91: 0 | AE91: нд | AF91: 0 | AG91: нд | AH91: 0 | AI91: нд | AJ91: 0 | AK91: нд | AL91: нд | AM91: 0 | AN91: 0 | AO91: нд | AP91: 0 | AQ91: нд | AR91: 0 | AS91: нд | AT91: 0 | AU91: нд | AV91: 0 | AW91: нд | AX91: 0 | AY91: нд | AZ91: 0.180068 | BA91: 0.180068 | BB91: 0 | BC91: нд
A92: 1.6.4 | B92: Приобретение прибора Рейс 105 М1 | C92: Н_МСК_16 | D92: 0 | E92: нд | F92: 0 | G92: нд | H92: 0 | I92: нд | J92: 0 | K92: нд | L92: 0 | M92: нд | N92: 0 | O92: нд | P92: 0 | Q92: нд | R92: 0 | S92: нд | T92: 0 | U92: нд | V92: 0 | W92: нд | X92: 0 | Y92: нд | Z92: 0 | AA92: нд | AB92: 0 | AC92: нд | AD92: 0 | AE92: нд | AF92: 0 | AG92: нд | AH92: 0 | AI92: нд | AJ92: 0 | AK92: нд | AL92: нд | AM92: 0 | AN92: 0 | AO92: нд | AP92: 0 | AQ92: нд | AR92: 0 | AS92: нд | AT92: 0 | AU92: нд | AV92: 0 | AW92: нд | AX92: 0 | AY92: нд | AZ92: 0.055342 | BA92: 0.055342 | BB92: 0 | BC92: нд

Sheet 1-19 (hidden)
BA1: Приложение № 1
BA2: к приказу Минэнерго России
BA3: от 5 мая 2016 г. № 380
A4: Форма 1. Перечени инвестиционных проектов
A5: на год _2018-2021 г.г._
A7: Инвестиционная программа_____Общество с ограниченной ответственностью "Мордовская сетевая компания"____
A8: полное наименование субъекта электроэнергетики
A10: Год раскрытия информации: __2018__ год
A12: Утвержденные плановые значения показателей приведены в соответствии с приказом Министерства энергетики и тарифной политики Республики Мордовия №117 от 31.10.2017 г.
A13: реквизиты решения органа исполнительной власти, утвердившего инвестиционную программу
A15: Номер группы инвести-ционных проектов | B15: Наименование инвестиционного проекта (группы инвестиционных проектов) | C15: Идентифика-тор инвестицион-ного проекта | D15: Цели реализации инвестиционных проектов и плановые (фактические) значения количественных показателей, характеризующие достижение таких целей
D16: Развитие электрической сети/усиление существующей электрической сети, связанное с подключением новых потребителей | V16: Замещение (обновление) электрической сети/повышение экономической эффективности (мероприятия направленные на снижение эксплуатационных затрат) оказания услуг в сфере электроэнергетики | AH16: Повышение надежности оказываемых услуг в сфере электроэнергетики | AN16: Повышение качества оказываемых услуг в сфере электроэнергетики | AR16: Выполнение требований законодательства Российской Федерации, предписаний органов исполнительной власти, регламентов рынков электрической энергии | AX16: Обеспечение текущей деятельности в сфере электроэнергетики, в том числе развитие информационной инфраструктуры, хозяйственное обеспечение деятельности | BB16: Инвестиции, связанные с деятельностью, не относящейся к сфере электроэнергетики
D17: Показатель увеличения мощности силовых трансформаторов на подстанциях, не связанного с осуществлением технологического присоединения к электрическим сетям (ΔРтр.n) | F17: Показатель увеличения мощности силовых трансформаторов на подстанциях в рамках осуществления технологического присоединения к электрическим сетям (ΔРтп_тр.n) | H17: Показатель увеличения протяженности линий электропередачи, не связанного с осуществлением технологического присоединения к электрическим сеям (ΔLлэп.n) | L17: Показатель увеличения протяженности линий электропередачи в рамках осуществления технологического присоединения к электрическим сеям (ΔLтп_лэп.n) | P17: Показатель максимальной мощности присоединяемых потребителей электрической эенергии (Sпотр.тп) | R17: Показатель максимальной мощности энергопринимающих устройств при осуществлении технологического присоединения объектов электросетевого хозяйства, принадлежащих иным сетевым организациям или иным лицам (Sэх.тп) | T17: Показатель степени загрузки трансформаторной подстанции (Кзагр.) | V17: Показатель замены силовых трансформаторов (Рз_тр.n) | X17: Показатель замены линий электропередачи (Lз_лэп.n) | Z17: Показатель замены выключателей (Вз.n) | AB17: Показатель замены выключателей (Вз.n) | AD17: Показатель замены устройств компенсации реактивной мощности (Рз_укрм.n) | AF17: Показатель оценки изменения доли полезного отпуска электрической энергии, который формируется посредством приборов учета электричекой энергии, включенных в систему сбора и передачи данных (ΔПОдист) | AH17: Показатель оценки изменения средней продолжительности прекращения передачи электрической энергии потребителям услуг (Δпsaidi) | AJ17: Показатель оценки изменения средней частоты прекращения передачи электрической энергии потребителям услуг (ΔПsaifi) | AL17: Показатель оценки изменения объема недоотпущенной электрической энергии (ΔПens) | AN17: Показатель общего числа исполненных в рамках инвестиционной программы обязательств сетевой организации по осуществлению технологического присоединения (Nсд_тпр) | AP17: Показатель числа обязательств сетевой организации по осуществлению технологического присоединения, исполненных в рамках инвестиционной программы с нарушением установленного срока технологического присоединения (Nсд_тпр.нс) | AR17: Показатель объема финансовых потребностей, необходимых для реализации мероприятий, направленных на выполнение требований законодательства (Фтз) | AT17: Показатель объема финансовых потребностей, необходимых для реализации мероприятий, напрвленных на выполнение приедписаний органов исполнительной власти (Фоив) | AV17: Показатель объема финансовых потребностей, необходимых для реализации мероприятий, направленных на выполнение требований регламентов рынков электрической энергии (Фтрр) | AX17: Показатель объема финансовых потребностей, необходимых для реализации мероприятий, направленных на развитие информационной инфраструктуры (Фит) | AZ17: Показатель объема финансовых потребностей, необходимых для реализации мероприятий, направленных на хозяйственное обеспечение деятельности сетевой организации (Фхо) | BB17: Показатель объема финансовых потребностей, необходимых для реализации мероприятий, направленных на реализацию инвестиционных проектов, связанных с деятельностью, не относящейся к сфере электроэнергетики (Фнэ)
D18: план | E18: Предложение по корректировке утвержденного плана | F18: план | G18: Предложение по корректировке утвержденного плана | H18: план | I18: Предложение по корректировке утвержденного плана | J18: план | K18: Предложение по корректировке утвержденного плана | L18: план | M18: Предложение по корректировке утвержденного плана | N18: план | O18: Предложение по корректировке утвержденного плана | P18: план | Q18: Предложение по корректировке утвержденного плана | R18: план | S18: Предложение по корректировке утвержденного плана | T18: план | U18: Предложение по корректировке утвержденного плана | V18: план | W18: Предложение по корректировке утвержденного плана | X18: план | Y18: Предложение по корректировке утвержденного плана | Z18: план | AA18: Предложение по корректировке утвержденного плана | AB18: план | AC18: Предложение по корректировке утвержденного плана | AD18: план | AE18: Предложение по корректировке утвержденного плана | AF18: план | AG18: Предложение по корректировке утвержденного плана | AH18: план | AI18: Предложение по корректировке утвержденного плана | AJ18: план | AK18: Предложение по корректировке утвержденного плана | AL18: план | AM18: Предложение по корректировке утвержденного плана | AN18: план | AO18: Предложение по корректировке утвержденного плана | AP18: план | AQ18: Предложение по корректировке утвержденного плана | AR18: план | AS18: Предложение по корректировке утвержденного плана | AT18: план | AU18: Предложение по корректировке утвержденного плана | AV18: план | AW18: Предложение по корректировке утвержденного плана | AX18: план | AY18: Предложение по корректировке утвержденного плана | AZ18: план | BA18: Предложение по корректировке утвержденного плана | BB18: план | BC18: Предложение по корректировке утвержденного плана
A19: 0 | B19: 0 | C19: 0 | D19: Класс напряжения, кВ | V19: Класс напряжения, кВ | AH19: 0 | AI19: 0 | AJ19: 0 | AK19: 0 | AL19: 0 | AM19: 0 | AN19: 0 | AO19: 0 | AP19: 0 | AQ19: 0 | AR19: 0 | AS19: 0 | AT19: 0 | AU19: 0 | AV19: 0 | AW19: 0 | AX19: 0 | AY19: 0 | AZ19: 0 | BA19: 0 | BB19: 0 | BC19: 0
A20: 0 | B20: 0 | C20: 0 | D20: 6-10 | F20: 6-10 | H20: 6-10 | J20: 0.4 | L20: 6-10 | N20: 0.4 | P20: 0 | Q20: 0 | R20: 0 | S20: 0 | T20: 0 | U20: 0 | V20: 6-10 | X20: 6-10 | Z20: 0.4 | AB20: 6-10 | AD20: 0 | AE20: 0 | AF20: 0 | AG20: 0 | AH20: 0 | AI20: 0 | AJ20: 0 | AK20: 0 | AL20: 0 | AM20: 0 | AN20: 0 | AO20: 0 | AP20: 0 | AQ20: 0 | AR20: 0 | AS20: 0 | AT20: 0 | AU20: 0 | AV20: 0 | AW20: 0 | AX20: 0 | AY20: 0 | AZ20: 0 | BA20: 0 | BB20: 0 | BC20: 0
A21: 1 | B21: 2 | C21: 3 | D21: 4.1 | E21: 4.2 | F21: 4.3 | G21: 4.4 | H21: 4.5.1 | I21: 4.6.1 | J21: 4.5.2 | K21: 4.6.2 | L21: 4.7.1 | M21: 4.8.1 | N21: 4.7.2 | O21: 4.8.2 | P21: 4.9 | Q21: 4.10 | R21: 4.11 | S21: 4.12 | T21: 4.13 | U21: 4.14 | V21: 5.1 | W21: 5.2 | X21: 5.3 | Y21: 5.4 | Z21: 5.5 | AA21: 5.6 | AB21: 5.7 | AC21: 5.8 | AD21: 5.9 | AE21: 5.10 | AF21: 5.11 | AG21: 5.12 | AH21: 6.1 | AI21: 6.2 | AJ21: 6.3 | AK21: 6.4 | AL21: 6.5 | AM21: 6.6 | AN21: 7.1 | AO21: 7.2 | AP21: 7.3 | AQ21: 7.4 | AR21: 8.1 | AS21: 8.2 | AT21: 8.3 | AU21: 8.4 | AV21: 8.5 | AW21: 8.6 | AX21: 9.1 | AY21: 9.2 | AZ21: 9.3 | BA21: 9.4 | BB21: 10.1 | BC21: 10.2
A22: 0 | B22: ВСЕГО по инвестиционной программе, в том числе: | C22: нд | D22: =SUM(D23:D28) -> 0 | E22: нд | F22: =SUM(F23:F28) -> 0.84 | G22: нд | H22: =SUM(H23:H28) -> 0 | I22: нд | J22: =SUM(J23:J28) -> 0 | K22: нд | L22: =SUM(L23:L28) -> 1.6846 | M22: нд | N22: =SUM(N23:N28) -> 1.72807 | O22: =SUM(O23:O28) -> 2.1656 | P22: =SUM(P23:P28) -> 0 | Q22: нд | R22: =SUM(R23:R28) -> 0 | S22: нд | T22: =SUM(T23:T28) -> 0 | U22: нд | V22: =SUM(V23:V28) -> 0 | W22: нд | X22: =SUM(X23:X28) -> 2.7 | Y22: =SUM(Y23:Y28) -> 2 | Z22: =SUM(Z23:Z28) -> 7 | AA22: =SUM(AA23:AA28) -> 6 | AB22: =SUM(AB23:AB28) -> 1 | AC22: =SUM(AC23:AC28) -> 0 | AD22: =SUM(AD23:AD28) -> 0 | AE22: нд | AF22: =SUM(AF23:AF28) -> 0 | AG22: нд | AH22: =SUM(AH23:AH28) -> 0 | AI22: нд | AJ22: =SUM(AJ23:AJ28) -> 0 | AK22: нд | AL22: =SUM(AL23:AL28) -> 0 | AM22: нд | AN22: =SUM(AN23:AN28) -> 0 | AO22: нд | AP22: =SUM(AP23:AP28) -> 0 | AQ22: нд | AR22: =SUM(AR23:AR28) -> 0 | AS22: нд | AT22: =SUM(AT23:AT28) -> 0 | AU22: нд | AV22: =SUM(AV23:AV28) -> 0 | AW22: нд | AX22: =SUM(AX23:AX28) -> 0 | AY22: нд | AZ22: 19.61947172 | BA22: 16.14136924 | BB22: =SUM(BB23:BB28) -> 0 | BC22: нд
A23: 0.1 | B23: Технологическое присоединение, всего | C23: нд | D23: =D29 -> 0 | E23: нд | F23: =F29 -> 0.84 | G23: нд | H23: =H29 -> 0 | I23: нд | J23: =J29 -> 0 | K23: нд | L23: =L29 -> 1.6846 | M23: нд | N23: =N29 -> 1.72807 | O23: =O29 -> 2.1656 | P23: =P29 -> 0 | Q23: нд | R23: =R29 -> 0 | S23: нд | T23: =T29 -> 0 | U23: нд | V23: =V29 -> 0 | W23: нд | X23: =X29 -> 0 | Y23: =Y29 -> нд | Z23: =Z29 -> 0 | AA23: нд | AB23: =AB29 -> 0 | AC23: нд | AD23: =AD29 -> 0 | AE23: нд | AF23: =AF29 -> 0 | AG23: нд | AH23: =AH29 -> 0 | AI23: нд | AJ23: =AJ29 -> 0 | AK23: нд | AL23: =AL29 -> 0 | AM23: нд | AN23: =AN29 -> 0 | AO23: нд | AP23: =AP29 -> 0 | AQ23: нд | AR23: =AR29 -> 0 | AS23: нд | AT23: =AT29 -> 0 | AU23: нд | AV23: =AV29 -> 0 | AW23: нд | AX23: =AX29 -> 0 | AY23: нд | AZ23: 17.15955155 | BA23: 13.81614907 | BB23: =BB29 -> 0 | BC23: нд
A24: 0.2 | B24: Реконструкция, модернизация, техническое перевооружение, всего | C24: нд | D24: =D65 -> 0 | E24: нд | F24: =F65 -> 0 | G24: нд | H24: =H65 -> 0 | I24: нд | J24: =J65 -> 0 | K24: нд | L24: =L65 -> 0 | M24: нд | N24: =N65 -> 0 | O24: нд | P24: =P65 -> 0 | Q24: нд | R24: =R65 -> 0 | S24: нд | T24: =T65 -> 0 | U24: нд | V24: =V65 -> 0 | W24: нд | X24: =X65 -> 2.7 | Y24: =Y65 -> 2 | Z24: =Z65 -> 7 | AA24: =AA65 -> 6 | AB24: =AB65 -> 1 | AC24: =AC65 -> 0 | AD24: =AD65 -> 0 | AE24: нд | AF24: =AF65 -> 0 | AG24: нд | AH24: =AH65 -> 0 | AI24: нд | AJ24: =AJ65 -> 0 | AK24: нд | AL24: =AL65 -> 0 | AM24: нд | AN24: =AN65 -> 0 | AO24: нд | AP24: =AP65 -> 0 | AQ24: нд | AR24: =AR65 -> 0 | AS24: нд | AT24: =AT65 -> 0 | AU24: нд | AV24: =AV65 -> 0 | AW24: нд | AX24: =AX65 -> 0 | AY24: нд | AZ24: 0.5867 | BA24: 0.452 | BB24: =BB65 -> 0 | BC24: нд
A25: 0.3 | B25: Инвестиционные проекты, реализация которых обуславливается схемами и программами перспективного развития электроэнергетики, всего | C25: нд | D25: =D96 -> 0 | E25: нд | F25: =F96 -> 0 | G25: нд | H25: =H96 -> 0 | I25: нд | J25: =J96 -> 0 | K25: нд | L25: =L96 -> 0 | M25: нд | N25: =N96 -> 0 | O25: нд | P25: =P96 -> 0 | Q25: нд | R25: =R96 -> 0 | S25: нд | T25: =T96 -> 0 | U25: нд | V25: =V96 -> 0 | W25: нд | X25: =X96 -> 0 | Y25: нд | Z25: =Z96 -> 0 | AA25: нд | AB25: =AB96 -> 0 | AC25: нд | AD25: =AD96 -> 0 | AE25: нд | AF25: =AF96 -> 0 | AG25: нд | AH25: =AH96 -> 0 | AI25: нд | AJ25: =AJ96 -> 0 | AK25: нд | AL25: =AL96 -> 0 | AM25: нд | AN25: =AN96 -> 0 | AO25: нд | AP25: =AP96 -> 0 | AQ25: нд | AR25: =AR96 -> 0 | AS25: нд | AT25: =AT96 -> 0 | AU25: нд | AV25: =AV96 -> 0 | AW25: нд | AX25: =AX96 -> 0 | AY25: нд | AZ25: 0 | BA25: 0 | BB25: =BB96 -> 0 | BC25: нд
A26: 0.4 | B26: Прочее новое строительство объектов электросетевого хозяйства, всего | C26: нд | D26: =D99 -> 0 | E26: нд | F26: =F99 -> 0 | G26: нд | H26: =H99 -> 0 | I26: нд | J26: =J99 -> 0 | K26: нд | L26: =L99 -> 0 | M26: нд | N26: =N99 -> 0 | O26: нд | P26: =P99 -> 0 | Q26: нд | R26: =R99 -> 0 | S26: нд | T26: =T99 -> 0 | U26: нд | V26: =V99 -> 0 | W26: нд | X26: =X99 -> 0 | Y26: нд | Z26: =Z99 -> 0 | AA26: нд | AB26: =AB99 -> 0 | AC26: нд | AD26: =AD99 -> 0 | AE26: нд | AF26: =AF99 -> 0 | AG26: нд | AH26: =AH99 -> 0 | AI26: нд | AJ26: =AJ99 -> 0 | AK26: нд | AL26: =AL99 -> 0 | AM26: нд | AN26: =AN99 -> 0 | AO26: нд | AP26: =AP99 -> 0 | AQ26: нд | AR26: =AR99 -> 0 | AS26: нд | AT26: =AT99 -> 0 | AU26: нд | AV26: =AV99 -> 0 | AW26: нд | AX26: =AX99 -> 0 | AY26: нд | AZ26: 0 | BA26: 0 | BB26: =BB99 -> 0 | BC26: нд
A27: 0.5 | B27: Покупка земельных участков для целей реализации инвестиционных проектов, всего | C27: нд | D27: =D100 -> 0 | E27: нд | F27: =F100 -> 0 | G27: нд | H27: =H100 -> 0 | I27: нд | J27: =J100 -> 0 | K27: нд | L27: =L100 -> 0 | M27: нд | N27: =N100 -> 0 | O27: нд | P27: =P100 -> 0 | Q27: нд | R27: =R100 -> 0 | S27: нд | T27: =T100 -> 0 | U27: нд | V27: =V100 -> 0 | W27: нд | X27: =X100 -> 0 | Y27: нд | Z27: =Z100 -> 0 | AA27: нд | AB27: =AB100 -> 0 | AC27: нд | AD27: =AD100 -> 0 | AE27: нд | AF27: =AF100 -> 0 | AG27: нд | AH27: =AH100 -> 0 | AI27: нд | AJ27: =AJ100 -> 0 | AK27: нд | AL27: =AL100 -> 0 | AM27: нд | AN27: =AN100 -> 0 | AO27: нд | AP27: =AP100 -> 0 | AQ27: нд | AR27: =AR100 -> 0 | AS27: нд | AT27: =AT100 -> 0 | AU27: нд | AV27: =AV100 -> 0 | AW27: нд | AX27: =AX100 -> 0 | AY27: нд | AZ27: 0 | BA27: 0 | BB27: =BB100 -> 0 | BC27: нд
A28: 0.6 | B28: Прочие инвестиционные проекты, всего | C28: нд | D28: =D101 -> 0 | E28: нд | F28: =F101 -> 0 | G28: нд | H28: =H101 -> 0 | I28: нд | J28: =J101 -> 0 | K28: нд | L28: =L101 -> 0 | M28: нд | N28: =N101 -> 0 | O28: нд | P28: =P101 -> 0 | Q28: нд | R28: =R101 -> 0 | S28: нд | T28: =T101 -> 0 | U28: нд | V28: =V101 -> 0 | W28: нд | X28: =X101 -> 0 | Y28: нд | Z28: =Z101 -> 0 | AA28: нд | AB28: =AB101 -> 0 | AC28: нд | AD28: =AD101 -> 0 | AE28: нд | AF28: =AF101 -> 0 | AG28: нд | AH28: =AH101 -> 0 | AI28: нд | AJ28: =AJ101 -> 0 | AK28: нд | AL28: =AL101 -> 0 | AM28: нд | AN28: =AN101 -> 0 | AO28: нд | AP28: =AP101 -> 0 | AQ28: нд | AR28: =AR101 -> 0 | AS28: нд | AT28: =AT101 -> 0 | AU28: нд | AV28: =AV101 -> 0 | AW28: нд | AX28: =AX101 -> 0 | AY28: нд | AZ28: 1.87322017 | BA28: 1.87322017 | BB28: =BB101 -> 0 | BC28: нд
A29: 1.1 | B29: Технологическое присоединение, всего, в том числе: | C29: нд | D29: =D30 -> 0 | E29: нд | F29: =F30 -> 0.84 | G29: нд | H29: =H30 -> 0 | I29: нд | J29: =J30 -> 0 | K29: нд | L29: =L30 -> 1.6846 | M29: нд | N29: =N30 -> 1.72807 | O29: =O30 -> 2.1656 | P29: =P30 -> 0 | Q29: нд | R29: =R30 -> 0 | S29: нд | T29: =T30 -> 0 | U29: нд | V29: =V30 -> 0 | W29: нд | X29: =X30 -> 0 | Y29: нд | Z29: =Z30 -> 0 | AA29: нд | AB29: =AB30 -> 0 | AC29: нд | AD29: =AD30 -> 0 | AE29: нд | AF29: =AF30 -> 0 | AG29: нд | AH29: =AH30 -> 0 | AI29: нд | AJ29: =AJ30 -> 0 | AK29: нд | AL29: =AL30 -> 0 | AM29: нд | AN29: =AN30 -> 0 | AO29: нд | AP29: =AP30 -> 0 | AQ29: нд | AR29: =AR30 -> 0 | AS29: нд | AT29: =AT30 -> 0 | AU29: нд | AV29: =AV30 -> 0 | AW29: нд | AX29: =AX30 -> 0 | AY29: нд | AZ29: 17.15955155 | BA29: 13.81614907 | BB29: =BB30 -> 0 | BC29: нд
A30: 1.1.1 | B30: Технологическое присоединение энергопринимающих устройств потребителей, всего, в том числе: | C30: нд | D30: =D31+D40+D49 -> 0 | E30: нд | F30: =F31+F40+F49 -> 0.84 | G30: нд | H30: =H31+H40+H49 -> 0 | I30: нд | J30: =J31+J40+J49 -> 0 | K30: нд | L30: =L31+L40+L49 -> 1.6846 | M30: =M31+M40 -> 0.173 | N30: =N31+N40 -> 1.72807 | O30: =O31+O40 -> 2.1656 | P30: =P31+P40+P49 -> 0 | Q30: нд | R30: =R31+R40+R49 -> 0 | S30: нд | T30: =T31+T40+T49 -> 0 | U30: нд | V30: =V31+V40+V49 -> 0 | W30: нд | X30: =X31 -> 0 | Y30: нд | Z30: =Z31 -> 0 | AA30: нд | AB30: =AB31 -> 0 | AC30: нд | AD30: =AD31+AD40+AD49 -> 0 | AE30: нд | AF30: =AF31+AF40+AF49 -> 0 | AG30: нд | AH30: =AH31+AH40+AH49 -> 0 | AI30: нд | AJ30: =AJ31+AJ40+AJ49 -> 0 | AK30: нд | AL30: =AL31+AL40+AL49 -> 0 | AM30: нд | AN30: =AN31+AN40+AN49 -> 0 | AO30: нд | AP30: =AP31+AP40+AP49 -> 0 | AQ30: нд | AR30: =AR31+AR40+AR49 -> 0 | AS30: нд | AT30: =AT31+AT40+AT49 -> 0 | AU30: нд | AV30: =AV31+AV40+AV49 -> 0 | AW30: нд | AX30: =AX31+AX40+AX49 -> 0 | AY30: нд | AZ30: 17.15955155 | BA30: 13.81614907 | BB30: =BB31+BB40+BB49 -> 0 | BC30: нд
A31: 1.1.1.1 | B31: Технологическое присоединение энергопринимающих устройств потребителей максимальной мощностью до 15 кВт включительно, всего | C31: нд | D31: =D40 -> 0 | E31: нд | F31: =F40 -> 0.42 | G31: нд | H31: =H40 -> 0 | I31: нд | J31: =J40 -> 0 | K31: нд | L31: =L40 -> 0.8423 | M31: 0 | N31: =N32 -> 0.9288 | O31: =O32 -> 0.9888 | P31: =P40 -> 0 | Q31: нд | R31: =R40 -> 0 | S31: нд | T31: =T40 -> 0 | U31: нд | V31: =V40 -> 0 | W31: нд | X31: =X40 -> 0 | Y31: нд | Z31: =Z40 -> 0 | AA31: нд | AB31: =AB40 -> 0 | AC31: нд | AD31: =AD40 -> 0 | AE31: нд | AF31: =AF40 -> 0 | AG31: нд | AH31: =AH40 -> 0 | AI31: нд | AJ31: =AJ40 -> 0 | AK31: нд | AL31: =AL40 -> 0 | AM31: нд | AN31: =AN40 -> 0 | AO31: нд | AP31: =AP40 -> 0 | AQ31: нд | AR31: =AR40 -> 0 | AS31: нд | AT31: =AT40 -> 0 | AU31: нд | AV31: =AV40 -> 0 | AW31: нд | AX31: =AX40 -> 0 | AY31: нд | AZ31: 0.96969355 | BA31: 1.049106914 | BB31: =BB40 -> 0 | BC31: нд
A32: 1.1.1.1.1 | B32: Строительство электрических сетей для создания технической возможности технологического присоединения энергопринимающих устройств Заявителей, максимальной мощностью, не превышающей 15 кВт включительно, не включаемых в состав платы за технологическое присоединение (строительство "последней мили") | C32: Н_МСК_17 | D32: =D49 -> 0 | E32: нд | F32: =F49 -> 0 | G32: нд | H32: =H49 -> 0 | I32: нд | J32: =J49 -> 0 | K32: нд | L32: =L49 -> 0 | M32: 0 | N32: =SUM(N33:N38) -> 0.9288 | O32: =SUM(O33:O38) -> 0.9888 | P32: =P49 -> 0 | Q32: нд | R32: =R49 -> 0 | S32: нд | T32: =T49 -> 0 | U32: нд | V32: =V49 -> 0 | W32: нд | X32: =X49 -> 0 | Y32: нд | Z32: =Z49 -> 0 | AA32: нд | AB32: =AB49 -> 0 | AC32: нд | AD32: =AD49 -> 0 | AE32: нд | AF32: =AF49 -> 0 | AG32: нд | AH32: =AH49 -> 0 | AI32: нд | AJ32: =AJ49 -> 0 | AK32: нд | AL32: =AL49 -> 0 | AM32: нд | AN32: =AN49 -> 0 | AO32: нд | AP32: =AP49 -> 0 | AQ32: нд | AR32: =AR49 -> 0 | AS32: нд | AT32: =AT49 -> 0 | AU32: нд | AV32: =AV49 -> 0 | AW32: нд | AX32: =AX49 -> 0 | AY32: нд | AZ32: 0.96969355 | BA32: 1.049106914 | BB32: =BB49 -> 0 | BC32: нд
A33: 1.1.1.1.1.1 | B33: ='2'!B29 -> Строительство ЛЭП-0,4 кВ до границ земельного участка объекта, расположенного по адресу: РМ, г. Саранск, Александровское шоссе (Сейтимов) | C33: нд | D33: =D50 -> 0 | E33: нд | F33: =F50 -> 0 | G33: нд | H33: =H50 -> 0 | I33: нд | J33: =J50 -> 0 | K33: нд | L33: =L50 -> 0 | M33: нд | N33: 0.446 | O33: 0.446 | P33: =P50 -> 0 | Q33: нд | R33: =R50 -> 0 | S33: нд | T33: =T50 -> 0 | U33: нд | V33: =V50 -> 0 | W33: нд | X33: =X50 -> 0 | Y33: нд | Z33: =Z50 -> 0 | AA33: нд | AB33: =AB50 -> 0 | AC33: нд | AD33: =AD50 -> 0 | AE33: нд | AF33: =AF50 -> 0 | AG33: нд | AH33: =AH50 -> 0 | AI33: нд | AJ33: =AJ50 -> 0 | AK33: нд | AL33: =AL50 -> 0 | AM33: нд | AN33: =AN50 -> 0 | AO33: нд | AP33: =AP50 -> 0 | AQ33: нд | AR33: =AR50 -> 0 | AS33: нд | AT33: =AT50 -> 0 | AU33: нд | AV33: =AV50 -> 0 | AW33: нд | AX33: =AX50 -> 0 | AY33: нд | AZ33: 0.31808897 | BA33: 0.31808897 | BB33: =BB50 -> 0 | BC33: нд
A34: 1.1.1.1.1.2 | B34: ='2'!B30 -> СтроительствуоЛЭП-0,4 кВ от ВЛИ-0,4 кВ ТП 6/0,4 кВ №2221А до границ земельного участка присоединяемого объекта, расположенного по адресу: РМ, Лямбирский район, с. Лямбирь, ул. Вознесенская, участок №3 (Солдатов) | C34: нд | D34: =D51 -> 0 | E34: нд | F34: =F51 -> 0 | G34: нд | H34: =H51 -> 0 | I34: нд | J34: =J51 -> 0 | K34: нд | L34: =L51 -> 0 | M34: нд | N34: 0.085 | O34: 0.085 | P34: =P51 -> 0 | Q34: нд | R34: =R51 -> 0 | S34: нд | T34: =T51 -> 0 | U34: нд | V34: =V51 -> 0 | W34: нд | X34: =X51 -> 0 | Y34: нд | Z34: =Z51 -> 0 | AA34: нд | AB34: =AB51 -> 0 | AC34: нд | AD34: =AD51 -> 0 | AE34: нд | AF34: =AF51 -> 0 | AG34: нд | AH34: =AH51 -> 0 | AI34: нд | AJ34: =AJ51 -> 0 | AK34: нд | AL34: =AL51 -> 0 | AM34: нд | AN34: =AN51 -> 0 | AO34: нд | AP34: =AP51 -> 0 | AQ34: нд | AR34: =AR51 -> 0 | AS34: нд | AT34: =AT51 -> 0 | AU34: нд | AV34: =AV51 -> 0 | AW34: нд | AX34: =AX51 -> 0 | AY34: нд | AZ34: 0.10577418 | BA34: 0.10577418 | BB34: =BB51 -> 0 | BC34: нд
A35: 1.1.1.1.1.3 | B35: ='2'!B31 -> Строительство ЛЭП-0,4 кВ от РУ-0,4 кВ ТП 10/0,4 кВ «Насосная» до ЩУ-0,4 кВ присоединяемого объекта, расположенного по адресу; РМ, г. Саранск, ул. 2-ая Промышленная, 5 (МТС) | C35: нд | D35: =D52 -> 0 | E35: нд | F35: =F52 -> 0 | G35: нд | H35: =H52 -> 0 | I35: нд | J35: =J52 -> 0 | K35: нд | L35: =L52 -> 0 | M35: нд | N35: 0.167 | O35: 0.167 | P35: =P52 -> 0 | Q35: нд | R35: =R52 -> 0 | S35: нд | T35: =T52 -> 0 | U35: нд | V35: =V52 -> 0 | W35: нд | X35: =X52 -> 0 | Y35: нд | Z35: =Z52 -> 0 | AA35: нд | AB35: =AB52 -> 0 | AC35: нд | AD35: =AD52 -> 0 | AE35: нд | AF35: =AF52 -> 0 | AG35: нд | AH35: =AH52 -> 0 | AI35: нд | AJ35: =AJ52 -> 0 | AK35: нд | AL35: =AL52 -> 0 | AM35: нд | AN35: =AN52 -> 0 | AO35: нд | AP35: =AP52 -> 0 | AQ35: нд | AR35: =AR52 -> 0 | AS35: нд | AT35: =AT52 -> 0 | AU35: нд | AV35: =AV52 -> 0 | AW35: нд | AX35: =AX52 -> 0 | AY35: нд | AZ35: 0.24551861 | BA35: 0.24551861 | BB35: =BB52 -> 0 | BC35: нд
A36: 1.1.1.1.1.4 | B36: ='2'!B32 -> Строительство ВЛИ-0,4 кВ от ТП 10/0,4 кВ №333/100 кВА, до границ земельного участка присоединяемого объекта, расположенного по адресу: РМ, с. Б. Елховка (Сарайкин) | C36: нд | D36: =D53 -> 0 | E36: нд | F36: =F53 -> 0 | G36: нд | H36: =H53 -> 0 | I36: нд | J36: =J53 -> 0 | K36: нд | L36: =L53 -> 0 | M36: нд | N36: 0.053 | O36: 0.053 | P36: =P53 -> 0 | Q36: нд | R36: =R53 -> 0 | S36: нд | T36: =T53 -> 0 | U36: нд | V36: =V53 -> 0 | W36: нд | X36: =X53 -> 0 | Y36: нд | Z36: =Z53 -> 0 | AA36: нд | AB36: =AB53 -> 0 | AC36: нд | AD36: =AD53 -> 0 | AE36: нд | AF36: =AF53 -> 0 | AG36: нд | AH36: =AH53 -> 0 | AI36: нд | AJ36: =AJ53 -> 0 | AK36: нд | AL36: =AL53 -> 0 | AM36: нд | AN36: =AN53 -> 0 | AO36: нд | AP36: =AP53 -> 0 | AQ36: нд | AR36: =AR53 -> 0 | AS36: нд | AT36: =AT53 -> 0 | AU36: нд | AV36: =AV53 -> 0 | AW36: нд | AX36: =AX53 -> 0 | AY36: нд | AZ36: 0.10669671 | BA36: 0.12137276 | BB36: =BB53 -> 0 | BC36: нд
A37: 1.1.1.1.1.5 | B37: ='2'!B33 -> Строительство ВЛИ-0,4 кВ от опоры №15 ВЛ-0,4 кВ от ТП 10/0,4 кВ «Маяк», до земельного участка заявителя, расположенного по адресу: РМ, с. Ромоданово (Тимофеев) | C37: нд | D37: =D54 -> 0 | E37: нд | F37: =F54 -> 0 | G37: нд | H37: =H54 -> 0 | I37: нд | J37: =J54 -> 0 | K37: нд | L37: =L54 -> 0 | M37: нд | N37: 0.1778 | O37: 0.1778 | P37: =P54 -> 0 | Q37: нд | R37: =R54 -> 0 | S37: нд | T37: =T54 -> 0 | U37: нд | V37: =V54 -> 0 | W37: нд | X37: =X54 -> 0 | Y37: нд | Z37: =Z54 -> 0 | AA37: нд | AB37: =AB54 -> 0 | AC37: нд | AD37: =AD54 -> 0 | AE37: нд | AF37: =AF54 -> 0 | AG37: нд | AH37: =AH54 -> 0 | AI37: нд | AJ37: =AJ54 -> 0 | AK37: нд | AL37: =AL54 -> 0 | AM37: нд | AN37: =AN54 -> 0 | AO37: нд | AP37: =AP54 -> 0 | AQ37: нд | AR37: =AR54 -> 0 | AS37: нд | AT37: =AT54 -> 0 | AU37: нд | AV37: =AV54 -> 0 | AW37: нд | AX37: =AX54 -> 0 | AY37: нд | AZ37: 0.15861508 | BA37: 0.133768844 | BB37: =BB54 -> 0 | BC37: нд
A38: 1.1.1.1.1.6 | B38: ='2'!B34 -> Строительство ВЛИ-0,4 кВ от опоры №22 ВЛ-0,4 кВ от ТП 10/0,4 кВ «Маяк», до земельного участка заявителя, расположенного по адресу: РМ, с. Ромоданово земельный участок №13:16:0120001:592 (Савинов) | C38: нд | D38: =D55 -> 0 | E38: нд | F38: =F55 -> 0 | G38: нд | H38: =H55 -> 0 | I38: нд | J38: =J55 -> 0 | K38: нд | L38: =L55 -> 0 | M38: нд | N38: 0 | O38: 0.06 | P38: =P55 -> 0 | Q38: нд | R38: =R55 -> 0 | S38: нд | T38: =T55 -> 0 | U38: нд | V38: =V55 -> 0 | W38: нд | X38: =X55 -> 0 | Y38: нд | Z38: =Z55 -> 0 | AA38: нд | AB38: =AB55 -> 0 | AC38: нд | AD38: =AD55 -> 0 | AE38: нд | AF38: =AF55 -> 0 | AG38: нд | AH38: =AH55 -> 0 | AI38: нд | AJ38: =AJ55 -> 0 | AK38: нд | AL38: =AL55 -> 0 | AM38: нд | AN38: =AN55 -> 0 | AO38: нд | AP38: =AP55 -> 0 | AQ38: нд | AR38: =AR55 -> 0 | AS38: нд | AT38: =AT55 -> 0 | AU38: нд | AV38: =AV55 -> 0 | AW38: нд | AX38: =AX55 -> 0 | AY38: нд | AZ38: 0.035 | BA38: 0.09608355 | BB38: =BB55 -> 0 | BC38: нд
B39: Строительство ЛЭП-0,4 кВ от ТП №9-1 до границ земельного участка присоединяемого объекта, расположенного по адресу: РМ, г. Саранск, ул. 1-я Промышленная, земельный участок 6Б, кадастровый № 13:023:1007033:31 | C39: нд | D39: =D56 -> 0 | E39: нд | F39: =F56 -> 0 | G39: нд | H39: =H56 -> 0 | I39: нд | J39: =J56 -> 0 | K39: нд | L39: =L56 -> 0 | M39: нд | N39: 0 | O39: 0 | P39: =P56 -> 0 | Q39: нд | R39: =R56 -> 0 | S39: нд | T39: =T56 -> 0 | U39: нд | V39: =V56 -> 0 | W39: нд | X39: =X56 -> 0 | Y39: нд | Z39: =Z56 -> 0 | AA39: нд | AB39: =AB56 -> 0 | AC39: нд | AD39: =AD56 -> 0 | AE39: нд | AF39: =AF56 -> 0 | AG39: нд | AH39: =AH56 -> 0 | AI39: нд | AJ39: =AJ56 -> 0 | AK39: нд | AL39: =AL56 -> 0 | AM39: нд | AN39: =AN56 -> 0 | AO39: нд | AP39: =AP56 -> 0 | AQ39: нд | AR39: =AR56 -> 0 | AS39: нд | AT39: =AT56 -> 0 | AU39: нд | AV39: =AV56 -> 0 | AW39: нд | AX39: =AX56 -> 0 | AY39: нд | AZ39: 0 | BA39: 0.0285 | BB39: =BB56 -> 0 | BC39: нд
A40: 1.1.1.2 | B40: Технологическое присоединение энергопринимающих устройств потребителей максимальной мощностью до 150 кВт включительно, всего | C40: ='2'!C38 -> J_МСК_19 | D40: 0 | E40: нд | F40: =SUM(F41:F48) -> 0.42 | G40: =SUM(G41:G48) -> 0.42 | H40: 0 | I40: нд | J40: 0 | K40: нд | L40: =SUM(L41:L48) -> 0.8423 | M40: =SUM(M41:M48) -> 0.173 | N40: =SUM(N41:N48) -> 0.79927 | O40: =SUM(O41:O48) -> 1.1768 | P40: 0 | Q40: нд | R40: 0 | S40: нд | T40: 0 | U40: нд | V40: 0 | W40: нд | X40: 0 | Y40: нд | Z40: 0 | AA40: нд | AB40: 0 | AC40: нд | AD40: 0 | AE40: нд | AF40: 0 | AG40: нд | AH40: 0 | AI40: нд | AJ40: 0 | AK40: нд | AL40: 0 | AM40: нд | AN40: 0 | AO40: нд | AP40: 0 | AQ40: нд | AR40: 0 | AS40: нд | AT40: 0 | AU40: нд | AV40: 0 | AW40: нд | AX40: 0 | AY40: нд | AZ40: 16.189858 | BA40: 12.76704216 | BB40: 0 | BC40: нд
A41: 1.1.1.2.1 | B41: ='2'!B61 -> Строительство ЛЭП-0,4 кВ до ВРУ объекта, расположенного по адресу: РМ, г. Саранск, ул. Лодыгина 17Д | C41: нд | D41: 0 | E41: нд | F41: 0 | G41: 0 | H41: =H57 -> 0 | I41: нд | J41: =J57 -> 0 | K41: нд | L41: =L57 -> 0 | M41: 0 | N41: 0.1099 | O41: 0.1099 | P41: 0 | Q41: нд | R41: 0 | S41: нд | T41: 0 | U41: нд | V41: 0 | W41: нд | X41: 0 | Y41: нд | Z41: 0 | AA41: нд | AB41: 0 | AC41: нд | AD41: 0 | AE41: нд | AF41: 0 | AG41: нд | AH41: 0 | AI41: нд | AJ41: 0 | AK41: нд | AL41: 0 | AM41: нд | AN41: 0 | AO41: нд | AP41: 0 | AQ41: нд | AR41: 0 | AS41: нд | AT41: 0 | AU41: нд | AV41: 0 | AW41: нд | AX41: 0 | AY41: нд | AZ41: 0 | BA41: 0.21327231 | BB41: 0 | BC41: нд
A42: 1.1.1.2.2 | B42: ='2'!B62 -> Строительство ВЛЗ-10 кВ, ТП 160/10/0,4 кВ, ВЛИ-0,4 кВ до границ земельного участка объекта, расположенного по адресу: РМ, г. Саранск, ул. 2-я Промышленная, д14 | C42: нд | D42: 0 | E42: нд | F42: 0.16 | G42: 0.16 | H42: 0 | I42: нд | J42: 0 | K42: нд | L42: 0.153 | M42: 0.153 | N42: 0.01 | O42: 0.01 | P42: 0 | Q42: нд | R42: 0 | S42: нд | T42: 0 | U42: нд | V42: 0 | W42: нд | X42: 0 | Y42: нд | Z42: 0 | AA42: нд | AB42: 0 | AC42: нд | AD42: 0 | AE42: нд | AF42: 0 | AG42: нд | AH42: 0 | AI42: нд | AJ42: 0 | AK42: нд | AL42: 0 | AM42: нд | AN42: 0 | AO42: нд | AP42: 0 | AQ42: нд | AR42: 0 | AS42: нд | AT42: 0 | AU42: нд | AV42: 0 | AW42: нд | AX42: 0 | AY42: нд | AZ42: 0 | BA42: 1.56025182 | BB42: 0 | BC42: нд
A43: 1.1.1.2.3 | B43: ='2'!B63 -> Строительство ВЛИ-0,4 кВ от ТП 10/0,4 кВ №230-2103А/400 кВА, до ЩУ-0,4 кВ присоединяемого объекта, расположенного по адресу: РМ, Дубенский район, с. Дубенки, ул. Сергея Бурнаева, д. 30 | C43: нд | D43: 0 | E43: нд | F43: 0 | G43: 0 | H43: =H59 -> 0 | I43: нд | J43: =J59 -> 0 | K43: нд | L43: =L59 -> 0 | M43: 0 | N43: 0.454 | O43: 0.454 | P43: 0 | Q43: нд | R43: 0 | S43: нд | T43: 0 | U43: нд | V43: 0 | W43: нд | X43: 0 | Y43: нд | Z43: 0 | AA43: нд | AB43: 0 | AC43: нд | AD43: 0 | AE43: нд | AF43: 0 | AG43: нд | AH43: 0 | AI43: нд | AJ43: 0 | AK43: нд | AL43: 0 | AM43: нд | AN43: 0 | AO43: нд | AP43: 0 | AQ43: нд | AR43: 0 | AS43: нд | AT43: 0 | AU43: нд | AV43: 0 | AW43: нд | AX43: 0 | AY43: нд | AZ43: 0 | BA43: 0.37373121 | BB43: 0 | BC43: нд
A44: 1.1.1.2.4 | B44: ='2'!B64 -> Строительство ЛЭП-0,4 кВ от РУ-0,4 кВ ТП 6/0,4 кВ №3 до границ земельного участка присоединяемого объекта, расположенного по адресу: РМ, г. Саранск, ул. Лодыгина 7В | C44: нд | D44: 0 | E44: нд | F44: 0 | G44: 0 | H44: 0 | I44: нд | J44: 0 | K44: нд | L44: 0 | M44: 0 | N44: 0.21837 | O44: 0.21837 | P44: 0 | Q44: нд | R44: 0 | S44: нд | T44: 0 | U44: нд | V44: 0 | W44: нд | X44: 0 | Y44: нд | Z44: 0 | AA44: нд | AB44: 0 | AC44: нд | AD44: 0 | AE44: нд | AF44: 0 | AG44: нд | AH44: 0 | AI44: нд | AJ44: 0 | AK44: нд | AL44: 0 | AM44: нд | AN44: 0 | AO44: нд | AP44: 0 | AQ44: нд | AR44: 0 | AS44: нд | AT44: 0 | AU44: нд | AV44: 0 | AW44: нд | AX44: 0 | AY44: нд | AZ44: 0 | BA44: 0.156120362 | BB44: 0 | BC44: нд
A45: 1.1.1.2.5 | B45: ='2'!B65 -> Строительство отпайки от ВЛ-10 кВ от яч. №9 ПС «СТЗ», ТП 10/0,4 кВ 160 кВА, ЛЭП-0,4 кВ от РУ-0,4 кВ ТП 10/0,4 кВ до границ земельного участка присоединяемого объекта, расположенного по адресу: РМ, г. Саранск, ул. 1я Промышленная | C45: нд | D45: 0 | E45: нд | F45: 0.16 | G45: 0.16 | H45: =H61 -> 0 | I45: нд | J45: =J61 -> 0 | K45: нд | L45: 0.026 | M45: 0.02 | N45: 0.002 | O45: 0.002 | P45: 0 | Q45: нд | R45: 0 | S45: нд | T45: 0 | U45: нд | V45: 0 | W45: нд | X45: 0 | Y45: нд | Z45: 0 | AA45: нд | AB45: 0 | AC45: нд | AD45: 0 | AE45: нд | AF45: 0 | AG45: нд | AH45: 0 | AI45: нд | AJ45: 0 | AK45: нд | AL45: 0 | AM45: нд | AN45: 0 | AO45: нд | AP45: 0 | AQ45: нд | AR45: 0 | AS45: нд | AT45: 0 | AU45: нд | AV45: 0 | AW45: нд | AX45: 0 | AY45: нд | AZ45: 0 | BA45: 0.94605088 | BB45: 0 | BC45: нд
A46: 1.1.1.2.6 | B46: ='2'!B66 -> Строительство отпайки ВЛ-10 кВ от отпайки 9-1яч. №9 ПС «СТЗ», ТП 25 кВА до границ земельного участка присоединяемого объекта, расположенного по адресу: РМ, г. Саранск, ул. Лодыгина, земельный участок 9Б | C46: нд | D46: 0 | E46: нд | F46: 0.1 | G46: 0 | H46: 0 | I46: нд | J46: 0 | K46: нд | L46: 0.6633 | M46: 0 | N46: 0.005 | O46: 0 | P46: 0 | Q46: нд | R46: 0 | S46: нд | T46: 0 | U46: нд | V46: 0 | W46: нд | X46: 0 | Y46: нд | Z46: 0 | AA46: нд | AB46: 0 | AC46: нд | AD46: 0 | AE46: нд | AF46: 0 | AG46: нд | AH46: 0 | AI46: нд | AJ46: 0 | AK46: нд | AL46: 0 | AM46: нд | AN46: 0 | AO46: нд | AP46: 0 | AQ46: нд | AR46: 0 | AS46: нд | AT46: 0 | AU46: нд | AV46: 0 | AW46: нд | AX46: 0 | AY46: нд | AZ46: 0 | BA46: 0.085958 | BB46: 0 | BC46: нд
A47: 1.1.1.2.7 | B47: ='2'!B67 -> Строительство ЛЭП-0,4 кВ от ТП №0414 до границ земельного участка присоединяемого объекта, расположенного по адресу: РМ, г. Саранск, Александровское шоссе, д.37Б | C47: нд | D47: 0 | E47: нд | F47: 0 | G47: 0 | H47: =H63 -> 0 | I47: нд | J47: =J63 -> 0 | K47: нд | L47: =L63 -> 0 | M47: 0 | N47: 0 | O47: 0.12843 | P47: 0 | Q47: нд | R47: 0 | S47: нд | T47: 0 | U47: нд | V47: 0 | W47: нд | X47: 0 | Y47: нд | Z47: 0 | AA47: нд | AB47: 0 | AC47: нд | AD47: 0 | AE47: нд | AF47: 0 | AG47: нд | AH47: 0 | AI47: нд | AJ47: 0 | AK47: нд | AL47: 0 | AM47: нд | AN47: 0 | AO47: нд | AP47: 0 | AQ47: нд | AR47: 0 | AS47: нд | AT47: 0 | AU47: нд | AV47: 0 | AW47: нд | AX47: 0 | AY47: нд | AZ47: 0 | BA47: 0.236307928 | BB47: 0 | BC47: нд
A48: 1.1.1.2.8 | B48: ='2'!B68 -> Строительство ЛЭП-10 кВ, ЛЭП-0,4 кВ, ТП 10/0,4кВ для электроснабжения НК-Бетон | C48: нд | D48: 0 | E48: нд | F48: 0 | G48: 0.1 | H48: 0 | I48: нд | J48: 0 | K48: нд | L48: 0 | M48: 0 | N48: 0 | O48: 0.2541 | P48: 0 | Q48: нд | R48: 0 | S48: нд | T48: 0 | U48: нд | V48: 0 | W48: нд | X48: 0 | Y48: нд | Z48: 0 | AA48: нд | AB48: 0 | AC48: нд | AD48: 0 | AE48: нд | AF48: 0 | AG48: нд | AH48: 0 | AI48: нд | AJ48: 0 | AK48: нд | AL48: 0 | AM48: нд | AN48: 0 | AO48: нд | AP48: 0 | AQ48: нд | AR48: 0 | AS48: нд | AT48: 0 | AU48: нд | AV48: 0 | AW48: нд | AX48: 0 | AY48: нд | AZ48: 0 | BA48: 0.060348 | BB48: 0 | BC48: нд
A49: 1.1.1.3 | B49: Технологическое присоединение энергопринимающих устройств потребителей свыше 150 кВт, всего, в том числе: | C49: нд | D49: 0 | E49: нд | F49: 0 | G49: нд | H49: 0 | I49: нд | J49: 0 | K49: нд | L49: 0 | M49: нд | N49: 0 | O49: нд | P49: 0 | Q49: нд | R49: 0 | S49: нд | T49: 0 | U49: нд | V49: 0 | W49: нд | X49: 0 | Y49: нд | Z49: 0 | AA49: нд | AB49: 0 | AC49: нд | AD49: 0 | AE49: нд | AF49: 0 | AG49: нд | AH49: 0 | AI49: нд | AJ49: 0 | AK49: нд | AL49: 0 | AM49: нд | AN49: 0 | AO49: нд | AP49: 0 | AQ49: нд | AR49: 0 | AS49: нд | AT49: 0 | AU49: нд | AV49: 0 | AW49: нд | AX49: 0 | AY49: нд | AZ49: 0 | BA49: 0 | BB49: 0 | BC49: нд
A50: 1.1.2 | B50: Технологическое присоединение объектов электросетевого хозяйства, всего, в том числе: | C50: нд | D50: 0 | E50: нд | F50: 0 | G50: нд | H50: 0 | I50: нд | J50: 0 | K50: нд | L50: 0 | M50: нд | N50: 0 | O50: нд | P50: 0 | Q50: нд | R50: 0 | S50: нд | T50: 0 | U50: нд | V50: 0 | W50: нд | X50: 0 | Y50: нд | Z50: 0 | AA50: нд | AB50: 0 | AC50: нд | AD50: 0 | AE50: нд | AF50: 0 | AG50: нд | AH50: 0 | AI50: нд | AJ50: 0 | AK50: нд | AL50: 0 | AM50: нд | AN50: 0 | AO50: нд | AP50: 0 | AQ50: нд | AR50: 0 | AS50: нд | AT50: 0 | AU50: нд | AV50: 0 | AW50: нд | AX50: 0 | AY50: нд | AZ50: 0 | BA50: 0 | BB50: 0 | BC50: нд
A51: 1.1.2.1 | B51: Технологическое присоединение объектов электросетевого хозяйства, принадлежащих иным сетевым организациям и иным лицам, всего, в том числе: | C51: нд | D51: 0 | E51: нд | F51: 0 | G51: нд | H51: 0 | I51: нд | J51: 0 | K51: нд | L51: 0 | M51: нд | N51: 0 | O51: нд | P51: 0 | Q51: нд | R51: 0 | S51: нд | T51: 0 | U51: нд | V51: 0 | W51: нд | X51: 0 | Y51: нд | Z51: 0 | AA51: нд | AB51: 0 | AC51: нд | AD51: 0 | AE51: нд | AF51: 0 | AG51: нд | AH51: 0 | AI51: нд | AJ51: 0 | AK51: нд | AL51: 0 | AM51: нд | AN51: 0 | AO51: нд | AP51: 0 | AQ51: нд | AR51: 0 | AS51: нд | AT51: 0 | AU51: нд | AV51: 0 | AW51: нд | AX51: 0 | AY51: нд | AZ51: 0 | BA51: 0 | BB51: 0 | BC51: нд
A52: 1.1.2.2 | B52: Технологическое присоединение к электрическим сетям иных сетевых организаций, всего, в том числе: | C52: нд | D52: 0 | E52: нд | F52: 0 | G52: нд | H52: 0 | I52: нд | J52: 0 | K52: нд | L52: 0 | M52: нд | N52: 0 | O52: нд | P52: 0 | Q52: нд | R52: 0 | S52: нд | T52: 0 | U52: нд | V52: 0 | W52: нд | X52: 0 | Y52: нд | Z52: 0 | AA52: нд | AB52: 0 | AC52: нд | AD52: 0 | AE52: нд | AF52: 0 | AG52: нд | AH52: 0 | AI52: нд | AJ52: 0 | AK52: нд | AL52: 0 | AM52: нд | AN52: 0 | AO52: нд | AP52: 0 | AQ52: нд | AR52: 0 | AS52: нд | AT52: 0 | AU52: нд | AV52: 0 | AW52: нд | AX52: 0 | AY52: нд | AZ52: 0 | BA52: 0 | BB52: 0 | BC52: нд
A53: 1.1.3 | B53: Технологическое присоединение объектов по производству электрической энергии всего, в том числе: | C53: нд | D53: 0 | E53: нд | F53: 0 | G53: нд | H53: 0 | I53: нд | J53: 0 | K53: нд | L53: 0 | M53: нд | N53: 0 | O53: нд | P53: 0 | Q53: нд | R53: 0 | S53: нд | T53: 0 | U53: нд | V53: 0 | W53: нд | X53: 0 | Y53: нд | Z53: 0 | AA53: нд | AB53: 0 | AC53: нд | AD53: 0 | AE53: нд | AF53: 0 | AG53: нд | AH53: 0 | AI53: нд | AJ53: 0 | AK53: нд | AL53: 0 | AM53: нд | AN53: 0 | AO53: нд | AP53: 0 | AQ53: нд | AR53: 0 | AS53: нд | AT53: 0 | AU53: нд | AV53: 0 | AW53: нд | AX53: 0 | AY53: нд | AZ53: 0 | BA53: 0 | BB53: 0 | BC53: нд
A54: 1.1.3.1 | B54: Наименование объекта по производству электрической энергии, всего, в том числе: | C54: нд | D54: 0 | E54: нд | F54: 0 | G54: нд | H54: 0 | I54: нд | J54: 0 | K54: нд | L54: 0 | M54: нд | N54: 0 | O54: нд | P54: 0 | Q54: нд | R54: 0 | S54: нд | T54: 0 | U54: нд | V54: 0 | W54: нд | X54: 0 | Y54: нд | Z54: 0 | AA54: нд | AB54: 0 | AC54: нд | AD54: 0 | AE54: нд | AF54: 0 | AG54: нд | AH54: 0 | AI54: нд | AJ54: 0 | AK54: нд | AL54: 0 | AM54: нд | AN54: 0 | AO54: нд | AP54: 0 | AQ54: нд | AR54: 0 | AS54: нд | AT54: 0 | AU54: нд | AV54: 0 | AW54: нд | AX54: 0 | AY54: нд | AZ54: 0 | BA54: 0 | BB54: 0 | BC54: нд
A55: 1.1.3.1 | B55: Строительство новых объектов электросетевого хозяйства (за исключением усиления существующей электрической сети) в целях осуществления технологического присоединения объекта по производству электрической энергии, всего, в том числе: | C55: нд | D55: 0 | E55: нд | F55: 0 | G55: нд | H55: 0 | I55: нд | J55: 0 | K55: нд | L55: 0 | M55: нд | N55: 0 | O55: нд | P55: 0 | Q55: нд | R55: 0 | S55: нд | T55: 0 | U55: нд | V55: 0 | W55: нд | X55: 0 | Y55: нд | Z55: 0 | AA55: нд | AB55: 0 | AC55: нд | AD55: 0 | AE55: нд | AF55: 0 | AG55: нд | AH55: 0 | AI55: нд | AJ55: 0 | AK55: нд | AL55: 0 | AM55: нд | AN55: 0 | AO55: нд | AP55: 0 | AQ55: нд | AR55: 0 | AS55: нд | AT55: 0 | AU55: нд | AV55: 0 | AW55: нд | AX55: 0 | AY55: нд | AZ55: 0 | BA55: 0 | BB55: 0 | BC55: нд
A56: 1.1.3.1 | B56: Строительство новых объектов электросетевого хозяйства для усиления электрической сети в целях осуществления технологического присоединения объекта по производству электрической энергии, всего, в том числе: | C56: нд | D56: 0 | E56: нд | F56: 0 | G56: нд | H56: 0 | I56: нд | J56: 0 | K56: нд | L56: 0 | M56: нд | N56: 0 | O56: нд | P56: 0 | Q56: нд | R56: 0 | S56: нд | T56: 0 | U56: нд | V56: 0 | W56: нд | X56: 0 | Y56: нд | Z56: 0 | AA56: нд | AB56: 0 | AC56: нд | AD56: 0 | AE56: нд | AF56: 0 | AG56: нд | AH56: 0 | AI56: нд | AJ56: 0 | AK56: нд | AL56: 0 | AM56: нд | AN56: 0 | AO56: нд | AP56: 0 | AQ56: нд | AR56: 0 | AS56: нд | AT56: 0 | AU56: нд | AV56: 0 | AW56: нд | AX56: 0 | AY56: нд | AZ56: 0 | BA56: 0 | BB56: 0 | BC56: нд
A57: 1.1.3.1 | B57: Реконструкция существующих объектов электросетевого хозяйства для усиления электрической сети в целях осуществления технологического присоединения объекта по производству электрической энергии всего, в том числе: | C57: нд | D57: 0 | E57: нд | F57: 0 | G57: нд | H57: 0 | I57: нд | J57: 0 | K57: нд | L57: 0 | M57: нд | N57: 0 | O57: нд | P57: 0 | Q57: нд | R57: 0 | S57: нд | T57: 0 | U57: нд | V57: 0 | W57: нд | X57: 0 | Y57: нд | Z57: 0 | AA57: нд | AB57: 0 | AC57: нд | AD57: 0 | AE57: нд | AF57: 0 | AG57: нд | AH57: 0 | AI57: нд | AJ57: 0 | AK57: нд | AL57: 0 | AM57: нд | AN57: 0 | AO57: нд | AP57: 0 | AQ57: нд | AR57: 0 | AS57: нд | AT57: 0 | AU57: нд | AV57: 0 | AW57: нд | AX57: 0 | AY57: нд | AZ57: 0 | BA57: 0 | BB57: 0 | BC57: нд
A58: 1.1.3.2 | B58: Наименование объекта по производству электрической энергии, всего, в том числе: | C58: нд | D58: 0 | E58: нд | F58: 0 | G58: нд | H58: 0 | I58: нд | J58: 0 | K58: нд | L58: 0 | M58: нд | N58: 0 | O58: нд | P58: 0 | Q58: нд | R58: 0 | S58: нд | T58: 0 | U58: нд | V58: 0 | W58: нд | X58: 0 | Y58: нд | Z58: 0 | AA58: нд | AB58: 0 | AC58: нд | AD58: 0 | AE58: нд | AF58: 0 | AG58: нд | AH58: 0 | AI58: нд | AJ58: 0 | AK58: нд | AL58: 0 | AM58: нд | AN58: 0 | AO58: нд | AP58: 0 | AQ58: нд | AR58: 0 | AS58: нд | AT58: 0 | AU58: нд | AV58: 0 | AW58: нд | AX58: 0 | AY58: нд | AZ58: 0 | BA58: 0 | BB58: 0 | BC58: нд
A59: 1.1.3.2 | B59: Строительство новых объектов электросетевого хозяйства (за исключением усиления существующей электрической сети) в целях осуществления технологического присоединения объекта по производству электрической энергии, всего, в том числе: | C59: нд | D59: 0 | E59: нд | F59: 0 | G59: нд | H59: 0 | I59: нд | J59: 0 | K59: нд | L59: 0 | M59: нд | N59: 0 | O59: нд | P59: 0 | Q59: нд | R59: 0 | S59: нд | T59: 0 | U59: нд | V59: 0 | W59: нд | X59: 0 | Y59: нд | Z59: 0 | AA59: нд | AB59: 0 | AC59: нд | AD59: 0 | AE59: нд | AF59: 0 | AG59: нд | AH59: 0 | AI59: нд | AJ59: 0 | AK59: нд | AL59: 0 | AM59: нд | AN59: 0 | AO59: нд | AP59: 0 | AQ59: нд | AR59: 0 | AS59: нд | AT59: 0 | AU59: нд | AV59: 0 | AW59: нд | AX59: 0 | AY59: нд | AZ59: 0 | BA59: 0 | BB59: 0 | BC59: нд
A60: 1.1.3.2 | B60: Строительство новых объектов электросетевого хозяйства для усиления электрической сети в целях осуществления технологического присоединения объекта по производству электрической энергии, всего, в том числе: | C60: нд | D60: 0 | E60: нд | F60: 0 | G60: нд | H60: 0 | I60: нд | J60: 0 | K60: нд | L60: 0 | M60: нд | N60: 0 | O60: нд | P60: 0 | Q60: нд | R60: 0 | S60: нд | T60: 0 | U60: нд | V60: 0 | W60: нд | X60: 0 | Y60: нд | Z60: 0 | AA60: нд | AB60: 0 | AC60: нд | AD60: 0 | AE60: нд | AF60: 0 | AG60: нд | AH60: 0 | AI60: нд | AJ60: 0 | AK60: нд | AL60: 0 | AM60: нд | AN60: 0 | AO60: нд | AP60: 0 | AQ60: нд | AR60: 0 | AS60: нд | AT60: 0 | AU60: нд | AV60: 0 | AW60: нд | AX60: 0 | AY60: нд | AZ60: 0 | BA60: 0 | BB60: 0 | BC60: нд
A61: 1.1.3.2 | B61: Реконструкция существующих объектов электросетевого хозяйства для усиления электрической сети в целях осуществления технологического присоединения объекта по производству электрической энергии, всего, в том числе: | C61: нд | D61: 0 | E61: нд | F61: 0 | G61: нд | H61: 0 | I61: нд | J61: 0 | K61: нд | L61: 0 | M61: нд | N61: 0 | O61: нд | P61: 0 | Q61: нд | R61: 0 | S61: нд | T61: 0 | U61: нд | V61: 0 | W61: нд | X61: 0 | Y61: нд | Z61: 0 | AA61: нд | AB61: 0 | AC61: нд | AD61: 0 | AE61: нд | AF61: 0 | AG61: нд | AH61: 0 | AI61: нд | AJ61: 0 | AK61: нд | AL61: 0 | AM61: нд | AN61: 0 | AO61: нд | AP61: 0 | AQ61: нд | AR61: 0 | AS61: нд | AT61: 0 | AU61: нд | AV61: 0 | AW61: нд | AX61: 0 | AY61: нд | AZ61: 0 | BA61: 0 | BB61: 0 | BC61: нд
A62: 1.1.4 | B62: Усиление электрической сети в целях осуществления технологического присоединения энергопринимающих устройств потребителей и (или) объектов электросетевого хозяйства всего, в том числе: | C62: нд | D62: 0 | E62: нд | F62: 0 | G62: нд | H62: 0 | I62: нд | J62: 0 | K62: нд | L62: 0 | M62: нд | N62: 0 | O62: нд | P62: 0 | Q62: нд | R62: 0 | S62: нд | T62: 0 | U62: нд | V62: 0 | W62: нд | X62: 0 | Y62: нд | Z62: 0 | AA62: нд | AB62: 0 | AC62: нд | AD62: 0 | AE62: нд | AF62: 0 | AG62: нд | AH62: 0 | AI62: нд | AJ62: 0 | AK62: нд | AL62: 0 | AM62: нд | AN62: 0 | AO62: нд | AP62: 0 | AQ62: нд | AR62: 0 | AS62: нд | AT62: 0 | AU62: нд | AV62: 0 | AW62: нд | AX62: 0 | AY62: нд | AZ62: 9.13500165 | BA62: 9.13500165 | BB62: 0 | BC62: нд
A63: 1.1.4.1 | B63: Строительство новых объектов электросетевого хозяйства для усиления электрической сети в целях осуществления технологического присоединения, всего, в том числе: | C63: нд | D63: 0 | E63: нд | F63: 0 | G63: нд | H63: 0 | I63: нд | J63: 0 | K63: нд | L63: 0 | M63: нд | N63: 0 | O63: нд | P63: 0 | Q63: нд | R63: 0 | S63: нд | T63: 0 | U63: нд | V63: 0 | W63: нд | X63: 0 | Y63: нд | Z63: 0 | AA63: нд | AB63: 0 | AC63: нд | AD63: 0 | AE63: нд | AF63: 0 | AG63: нд | AH63: 0 | AI63: нд | AJ63: 0 | AK63: нд | AL63: 0 | AM63: нд | AN63: 0 | AO63: нд | AP63: 0 | AQ63: нд | AR63: 0 | AS63: нд | AT63: 0 | AU63: нд | AV63: 0 | AW63: нд | AX63: 0 | AY63: нд | AZ63: 0 | BA63: 0 | BB63: 0 | BC63: нд
A64: 1.1.4.2 | B64: Реконструкция существующих объектов электросетевого хозяйства для усиления электрической сети в целях осуществления технологического присоединения, всего, в том числе: | C64: нд | D64: 0 | E64: нд | F64: 0 | G64: нд | H64: 0 | I64: нд | J64: 0 | K64: нд | L64: 0 | M64: нд | N64: 0 | O64: нд | P64: 0 | Q64: нд | R64: 0 | S64: нд | T64: 0 | U64: нд | V64: 0 | W64: нд | X64: 0 | Y64: нд | Z64: 0 | AA64: нд | AB64: 0 | AC64: нд | AD64: 0 | AE64: нд | AF64: 0 | AG64: нд | AH64: 0 | AI64: нд | AJ64: 0 | AK64: нд | AL64: 0 | AM64: нд | AN64: 0 | AO64: нд | AP64: 0 | AQ64: нд | AR64: 0 | AS64: нд | AT64: 0 | AU64: нд | AV64: 0 | AW64: нд | AX64: 0 | AY64: нд | AZ64: 9.13500165 | BA64: 9.13500165 | BB64: 0 | BC64: нд
A65: 1.2 | B65: Реконструкция, модернизация, техническое перевооружение всего, в том числе: | C65: нд | D65: 0 | E65: нд | F65: 0 | G65: нд | H65: 0 | I65: нд | J65: 0 | K65: нд | L65: 0 | M65: нд | N65: 0 | O65: нд | P65: 0 | Q65: нд | R65: 0 | S65: нд | T65: 0 | U65: нд | V65: 0 | W65: нд | X65: =X66+X74+X81 -> 2.7 | Y65: =Y66+Y74+Y81 -> 2 | Z65: =Z67 -> 7 | AA65: =AA67 -> 6 | AB65: =AB67 -> 1 | AC65: =AC67 -> 0 | AD65: 0 | AE65: нд | AF65: 0 | AG65: нд | AH65: 0 | AI65: нд | AJ65: 0 | AK65: нд | AL65: 0 | AM65: нд | AN65: 0 | AO65: нд | AP65: 0 | AQ65: нд | AR65: 0 | AS65: нд | AT65: 0 | AU65: нд | AV65: 0 | AW65: нд | AX65: 0 | AY65: нд | AZ65: 0.5867 | BA65: 0.452 | BB65: 0 | BC65: нд
A66: 1.2.1 | B66: Реконструкция, модернизация, техническое перевооружение трансформаторных и иных подстанций, распределительных пунктов, всего, в том числе: | C66: нд | D66: 0 | E66: нд | F66: 0 | G66: нд | H66: 0 | I66: нд | J66: 0 | K66: нд | L66: 0 | M66: нд | N66: 0 | O66: нд | P66: 0 | Q66: нд | R66: 0 | S66: нд | T66: 0 | U66: нд | V66: 0 | W66: нд | X66: =X67 -> 0 | Y66: =Y67 -> 0 | Z66: 0 | AA66: нд | AB66: 0 | AC66: нд | AD66: 0 | AE66: нд | AF66: 0 | AG66: нд | AH66: 0 | AI66: нд | AJ66: 0 | AK66: нд | AL66: 0 | AM66: нд | AN66: 0 | AO66: нд | AP66: 0 | AQ66: нд | AR66: 0 | AS66: нд | AT66: 0 | AU66: нд | AV66: 0 | AW66: нд | AX66: 0 | AY66: нд | AZ66: 0.5067 | BA66: 0.372 | BB66: 0 | BC66: нд
A67: 1.2.1.1 | B67: Реконструкция трансформаторных и иных подстанций, всего, в том числе: | C67: нд | D67: 0 | E67: нд | F67: 0 | G67: нд | H67: 0 | I67: нд | J67: 0 | K67: нд | L67: 0 | M67: нд | N67: 0 | O67: нд | P67: 0 | Q67: нд | R67: 0 | S67: нд | T67: 0 | U67: нд | V67: 0 | W67: нд | X67: =SUM(X68:X73) -> 0 | Y67: =SUM(Y68:Y73) -> 0 | Z67: =SUM(Z68:Z73) -> 7 | AA67: =SUM(AA68:AA73) -> 6 | AB67: =SUM(AB68:AB73) -> 1 | AC67: =SUM(AC68:AC73) -> 0 | AD67: 0 | AE67: нд | AF67: 0 | AG67: нд | AH67: 0 | AI67: нд | AJ67: 0 | AK67: нд | AL67: 0 | AM67: нд | AN67: 0 | AO67: нд | AP67: 0 | AQ67: нд | AR67: 0 | AS67: нд | AT67: 0 | AU67: нд | AV67: 0 | AW67: нд | AX67: 0 | AY67: нд | AZ67: 0.5067 | BA67: 0.372 | BB67: 0 | BC67: нд
A68: 1.2.1.1 | B68: Замена ячеек с автоматами АВМ-1000 А на панели щитов ЩО-70 в ТП-10/0,4 кВ «Масис» по адресу: г.Саранск, Александровское шоссе, 26 | C68: Н_МСК_01 | D68: 0 | E68: нд | F68: 0 | G68: нд | H68: 0 | I68: нд | J68: 0 | K68: нд | L68: 0 | M68: нд | N68: 0 | O68: нд | P68: 0 | Q68: нд | R68: 0 | S68: нд | T68: 0 | U68: нд | V68: 0 | W68: нд | X68: 0 | Y68: 0 | Z68: 7 | AA68: 6 | AB68: 0 | AC68: нд | AD68: 0 | AE68: нд | AF68: 0 | AG68: нд | AH68: 0 | AI68: нд | AJ68: 0 | AK68: нд | AL68: 0 | AM68: нд | AN68: 0 | AO68: нд | AP68: 0 | AQ68: нд | AR68: 0 | AS68: нд | AT68: 0 | AU68: нд | AV68: 0 | AW68: нд | AX68: 0 | AY68: нд | AZ68: 0.5067 | BA68: 0.372 | BB68: 0 | BC68: нд
A69: 1.2.1.1 | B69: Установка камеры КСО-366 1НУЗ В ТП-10/0,4 кВ «Масис» по адресу: г.Саранск, Александровское шоссе, 26 | C69: Н_МСК_02 | D69: 0 | E69: нд | F69: 0 | G69: нд | H69: 0 | I69: нд | J69: 0 | K69: нд | L69: 0 | M69: нд | N69: 0 | O69: нд | P69: 0 | Q69: нд | R69: 0 | S69: нд | T69: 0 | U69: нд | V69: 0 | W69: нд | X69: 0 | Y69: 0 | Z69: 0 | AA69: нд | AB69: 1 | AC69: 0 | AD69: 0 | AE69: нд | AF69: 0 | AG69: нд | AH69: 0 | AI69: нд | AJ69: 0 | AK69: нд | AL69: 0 | AM69: нд | AN69: 0 | AO69: нд | AP69: 0 | AQ69: нд | AR69: 0 | AS69: нд | AT69: 0 | AU69: нд | AV69: 0 | AW69: нд | AX69: 0 | AY69: нд | AZ69: 0 | BA69: 0 | BB69: 0 | BC69: нд
A70: 1.2.1.1 | B70: Замена выключателей нагрузки ВН-16 на ВНА/ТЕ-(Л)л-10/630 ТП-560/630/6/0,4 кВ «СТЭМ» по адресу: г.Саранск, ул. Пролетарская, 144 А | C70: Н_МСК_03 | D70: 0 | E70: 0 | F70: 0 | G70: 0 | H70: 0 | I70: 0 | J70: 0 | K70: 0 | L70: 0 | M70: 0 | N70: 0 | O70: 0 | P70: 0 | Q70: 0 | R70: 0 | S70: 0 | T70: 0 | U70: 0 | V70: 0 | W70: 0 | X70: 0 | Y70: 0 | Z70: 0 | AA70: 0 | AB70: 0 | AC70: 0 | AD70: 0 | AE70: 0 | AF70: 0 | AG70: 0 | AH70: 0 | AI70: 0 | AJ70: 0 | AK70: 0 | AL70: 0 | AM70: 0 | AN70: 0 | AO70: 0 | AP70: 0 | AQ70: 0 | AR70: 0 | AS70: 0 | AT70: 0 | AU70: 0 | AV70: 0 | AW70: 0 | AX70: 0 | AY70: 0 | AZ70: 0 | BA70: 0 | BB70: 0 | BC70: 0
A71: 1.2.1.1 | B71: Замена масляных выключателей на вакуумные в ТП-630/10/0,4 кВ «Ремстроймаш», по адресу: г.Саранск, Александровское шоссе, 8 | C71: Н_МСК_04 | D71: 0 | E71: 0 | F71: 0 | G71: 0 | H71: 0 | I71: 0 | J71: 0 | K71: 0 | L71: 0 | M71: 0 | N71: 0 | O71: 0 | P71: 0 | Q71: 0 | R71: 0 | S71: 0 | T71: 0 | U71: 0 | V71: 0 | W71: 0 | X71: 0 | Y71: 0 | Z71: 0 | AA71: 0 | AB71: 0 | AC71: 0 | AD71: 0 | AE71: 0 | AF71: 0 | AG71: 0 | AH71: 0 | AI71: 0 | AJ71: 0 | AK71: 0 | AL71: 0 | AM71: 0 | AN71: 0 | AO71: 0 | AP71: 0 | AQ71: 0 | AR71: 0 | AS71: 0 | AT71: 0 | AU71: 0 | AV71: 0 | AW71: 0 | AX71: 0 | AY71: 0 | AZ71: 0 | BA71: 0 | BB71: 0 | BC71: 0
A72: 1.2.1.1 | B72: Монтаж ТСН-10/0,4 кВ для ТП-630/10/0,4 кВ «Рестроймаш», по адресу: г.Саранск, Александровское шоссе, 8 | C72: Н_МСК_05 | D72: 0 | E72: 0 | F72: 0 | G72: 0 | H72: 0 | I72: 0 | J72: 0 | K72: 0 | L72: 0 | M72: 0 | N72: 0 | O72: 0 | P72: 0 | Q72: 0 | R72: 0 | S72: 0 | T72: 0 | U72: 0 | V72: 0 | W72: 0 | X72: 0 | Y72: 0 | Z72: 0 | AA72: 0 | AB72: 0 | AC72: 0 | AD72: 0 | AE72: 0 | AF72: 0 | AG72: 0 | AH72: 0 | AI72: 0 | AJ72: 0 | AK72: 0 | AL72: 0 | AM72: 0 | AN72: 0 | AO72: 0 | AP72: 0 | AQ72: 0 | AR72: 0 | AS72: 0 | AT72: 0 | AU72: 0 | AV72: 0 | AW72: 0 | AX72: 0 | AY72: 0 | AZ72: 0 | BA72: 0 | BB72: 0 | BC72: 0
A73: 1.2.1.2 | B73: Модернизация, техническое перевооружение трансформаторных и иных подстанций, распределительных пунктов, всего, в том числе: | C73: нд | D73: 0 | E73: нд | F73: 0 | G73: нд | H73: 0 | I73: нд | J73: 0 | K73: нд | L73: 0 | M73: нд | N73: 0 | O73: нд | P73: 0 | Q73: нд | R73: 0 | S73: нд | T73: 0 | U73: нд | V73: 0 | W73: нд | X73: 0 | Y73: 0 | Z73: 0 | AA73: нд | AB73: 0 | AC73: нд | AD73: 0 | AE73: нд | AF73: 0 | AG73: нд | AH73: 0 | AI73: нд | AJ73: 0 | AK73: нд | AL73: 0 | AM73: нд | AN73: 0 | AO73: нд | AP73: 0 | AQ73: нд | AR73: 0 | AS73: нд | AT73: 0 | AU73: нд | AV73: 0 | AW73: нд | AX73: 0 | AY73: нд | AZ73: 0 | BA73: 0 | BB73: 0 | BC73: нд
A74: 1.2.2 | B74: Реконструкция, модернизация, техническое перевооружение линий электропередачи, всего, в том числе: | C74: нд | D74: 0 | E74: нд | F74: 0 | G74: нд | H74: 0 | I74: нд | J74: 0 | K74: нд | L74: 0 | M74: нд | N74: 0 | O74: нд | P74: 0 | Q74: нд | R74: 0 | S74: нд | T74: 0 | U74: нд | V74: 0 | W74: нд | X74: =X75 -> 2.7 | Y74: =Y75 -> 2 | Z74: 0 | AA74: нд | AB74: 0 | AC74: нд | AD74: 0 | AE74: нд | AF74: 0 | AG74: нд | AH74: 0 | AI74: нд | AJ74: 0 | AK74: нд | AL74: 0 | AM74: нд | AN74: 0 | AO74: нд | AP74: 0 | AQ74: нд | AR74: 0 | AS74: нд | AT74: 0 | AU74: нд | AV74: 0 | AW74: нд | AX74: 0 | AY74: нд | AZ74: 0.08 | BA74: 0.08 | BB74: 0 | BC74: нд
A75: 1.2.2.1 | B75: Реконструкция линий электропередачи, всего, в том числе: | C75: нд | D75: 0 | E75: нд | F75: 0 | G75: нд | H75: 0 | I75: нд | J75: 0 | K75: нд | L75: 0 | M75: нд | N75: 0 | O75: нд | P75: 0 | Q75: нд | R75: 0 | S75: нд | T75: 0 | U75: нд | V75: 0 | W75: нд | X75: =SUM(X77:X80) -> 2.7 | Y75: =SUM(Y77:Y80) -> 2 | Z75: 0 | AA75: нд | AB75: 0 | AC75: нд | AD75: 0 | AE75: нд | AF75: 0 | AG75: нд | AH75: 0 | AI75: нд | AJ75: 0 | AK75: нд | AL75: 0 | AM75: нд | AN75: 0 | AO75: нд | AP75: 0 | AQ75: нд | AR75: 0 | AS75: нд | AT75: 0 | AU75: нд | AV75: 0 | AW75: нд | AX75: 0 | AY75: нд | AZ75: 0.08 | BA75: 0.08 | BB75: 0 | BC75: нд
A76: 1.2.2.1 | B76: Реконструкция линии ВЛ-0,4 кВ протяженностью 0,867 км на ВЛИ-0,4 кВ по адресу: р.п. Ромоданово, пер. Филатова | C76: Н_МСК_06 | D76: 0 | E76: 0 | F76: 0 | G76: 0 | H76: 0 | I76: 0 | J76: 0 | K76: 0 | L76: 0 | M76: 0 | N76: 0 | O76: 0 | P76: 0 | Q76: 0 | R76: 0 | S76: 0 | T76: 0 | U76: 0 | V76: 0 | W76: 0 | X76: 0 | Y76: 0 | Z76: 0 | AA76: 0 | AB76: 0 | AC76: 0 | AD76: 0 | AE76: 0 | AF76: 0 | AG76: 0 | AH76: 0 | AI76: 0 | AJ76: 0 | AK76: 0 | AL76: 0 | AM76: 0 | AN76: 0 | AO76: 0 | AP76: 0 | AQ76: 0 | AR76: 0 | AS76: 0 | AT76: 0 | AU76: 0 | AV76: 0 | AW76: 0 | AX76: 0 | AY76: 0 | AZ76: 0 | BA76: 0 | BB76: 0 | BC76: 0
A77: 1.2.2.1 | B77: Реконструкция ВЛ-10 кВ от яч. 23 ГПП 110/10 кВ «ВКМ-Сталь» | C77: Н_МСК_07 | D77: 0 | E77: нд | F77: 0 | G77: нд | H77: 0 | I77: нд | J77: 0 | K77: нд | L77: 0 | M77: нд | N77: 0 | O77: нд | P77: 0 | Q77: нд | R77: 0 | S77: нд | T77: 0 | U77: нд | V77: 0 | W77: нд | X77: 2.7 | Y77: 2 | Z77: 0 | AA77: нд | AB77: 0 | AC77: нд | AD77: 0 | AE77: нд | AF77: 0 | AG77: нд | AH77: 0 | AI77: нд | AJ77: 0 | AK77: нд | AL77: 0 | AM77: нд | AN77: 0 | AO77: нд | AP77: 0 | AQ77: нд | AR77: 0 | AS77: нд | AT77: 0 | AU77: нд | AV77: 0 | AW77: нд | AX77: 0 | AY77: нд | AZ77: 0 | BA77: 0 | BB77: 0 | BC77: нд
A78: 1.2.2.1 | B78: Замена двух КЛ-6 кВ от ГРУ-6 кВ ТЭЦ-2 до ТП-630/10/0,4 кВ «Ремстроймаш», по адресу: г.Саранск, Александровское шоссе, 8 | C78: Н_МСК_08 | D78: 0 | E78: 0 | F78: 0 | G78: 0 | H78: 0 | I78: 0 | J78: 0 | K78: 0 | L78: 0 | M78: 0 | N78: 0 | O78: 0 | P78: 0 | Q78: 0 | R78: 0 | S78: 0 | T78: 0 | U78: 0 | V78: 0 | W78: 0 | X78: 0 | Y78: 0 | Z78: 0 | AA78: 0 | AB78: 0 | AC78: 0 | AD78: 0 | AE78: 0 | AF78: 0 | AG78: 0 | AH78: 0 | AI78: 0 | AJ78: 0 | AK78: 0 | AL78: 0 | AM78: 0 | AN78: 0 | AO78: 0 | AP78: 0 | AQ78: 0 | AR78: 0 | AS78: 0 | AT78: 0 | AU78: 0 | AV78: 0 | AW78: 0 | AX78: 0 | AY78: 0 | AZ78: 0 | BA78: 0 | BB78: 0 | BC78: 0
B79: Реконструкция ВЛ-0,4 кВ от ТП 10/0,4 кВ "Поводимовская школа - интернат" с заменой ТП 10/0,4 кВ мощностью 160 кВА в с. Поводимово Дубенского муниципального района РМ | C79: J_МСК_21 | D79: 0 | E79: 0 | F79: 0 | G79: 0 | H79: 0 | I79: 0 | J79: 0 | K79: 0 | L79: 0 | M79: 0 | N79: 0 | O79: 0 | P79: 0 | Q79: 0 | R79: 0 | S79: 0 | T79: 0 | U79: 0 | V79: 0 | W79: 0 | X79: 0 | Y79: 0 | Z79: 0 | AA79: 0 | AB79: 0 | AC79: 0 | AD79: 0 | AE79: 0 | AF79: 0 | AG79: 0 | AH79: 0 | AI79: 0 | AJ79: 0 | AK79: 0 | AL79: 0 | AM79: 0 | AN79: 0 | AO79: 0 | AP79: 0 | AQ79: 0 | AR79: 0 | AS79: 0 | AT79: 0 | AU79: 0 | AV79: 0 | AW79: 0 | AX79: 0 | AY79: 0 | AZ79: 0 | BA79: 0.08 | BB79: 0 | BC79: 0
A80: 1.2.2.2 | B80: Модернизация, техническое перевооружение линий электропередачи, всего, в том числе: | C80: нд | D80: 0 | E80: нд | F80: 0 | G80: нд | H80: 0 | I80: нд | J80: 0 | K80: нд | L80: 0 | M80: нд | N80: 0 | O80: нд | P80: 0 | Q80: нд | R80: 0 | S80: нд | T80: 0 | U80: нд | V80: 0 | W80: нд | X80: 0 | Y80: 0 | Z80: 0 | AA80: нд | AB80: 0 | AC80: нд | AD80: 0 | AE80: нд | AF80: 0 | AG80: нд | AH80: 0 | AI80: нд | AJ80: 0 | AK80: нд | AL80: 0 | AM80: нд | AN80: 0 | AO80: нд | AP80: 0 | AQ80: нд | AR80: 0 | AS80: нд | AT80: 0 | AU80: нд | AV80: 0 | AW80: нд | AX80: 0 | AY80: нд | AZ80: 0 | BA80: 0 | BB80: 0 | BC80: нд
A81: 1.2.3 | B81: Развитие и модернизация учета электрической энергии (мощности), всего, в том числе: | C81: нд | D81: 0 | E81: нд | F81: 0 | G81: нд | H81: 0 | I81: нд | J81: 0 | K81: нд | L81: 0 | M81: нд | N81: 0 | O81: нд | P81: 0 | Q81: нд | R81: 0 | S81: нд | T81: 0 | U81: нд | V81: 0 | W81: нд | X81: 0 | Y81: 0 | Z81: 0 | AA81: нд | AB81: 0 | AC81: нд | AD81: 0 | AE81: нд | AF81: 0 | AG81: нд | AH81: 0 | AI81: нд | AJ81: 0 | AK81: нд | AL81: 0 | AM81: нд | AN81: 0 | AO81: нд | AP81: 0 | AQ81: нд | AR81: 0 | AS81: нд | AT81: 0 | AU81: нд | AV81: 0 | AW81: нд | AX81: 0 | AY81: нд | AZ81: 0 | BA81: 0 | BB81: 0 | BC81: нд
A82: 1.2.3.1 | B82: «Установка приборов учета, класс напряжения 0,22 (0,4) кВ, всего, в том числе:» | C82: нд | D82: 0 | E82: нд | F82: 0 | G82: нд | H82: 0 | I82: нд | J82: 0 | K82: нд | L82: 0 | M82: нд | N82: 0 | O82: нд | P82: 0 | Q82: нд | R82: 0 | S82: нд | T82: 0 | U82: нд | V82: 0 | W82: нд | X82: 0 | Y82: нд | Z82: 0 | AA82: нд | AB82: 0 | AC82: нд | AD82: 0 | AE82: нд | AF82: 0 | AG82: нд | AH82: 0 | AI82: нд | AJ82: 0 | AK82: нд | AL82: 0 | AM82: нд | AN82: 0 | AO82: нд | AP82: 0 | AQ82: нд | AR82: 0 | AS82: нд | AT82: 0 | AU82: нд | AV82: 0 | AW82: нд | AX82: 0 | AY82: нд | AZ82: 0 | BA82: 0 | BB82: 0 | BC82: нд
A83: 1.2.3.1 | B83: Внедрение автоматизированной системы технического учета электроэнергии (АСТУЭ) в количестве 312 шт. | C83: Н_МСК_09 | D83: 0 | E83: нд | F83: 0 | G83: нд | H83: 0 | I83: нд | J83: 0 | K83: нд | L83: 0 | M83: нд | N83: 0 | O83: нд | P83: 0 | Q83: нд | R83: 0 | S83: нд | T83: 0 | U83: нд | V83: 0 | W83: нд | X83: 0 | Y83: нд | Z83: 0 | AA83: нд | AB83: 0 | AC83: нд | AD83: 0 | AE83: нд | AF83: 0 | AG83: нд | AH83: 0 | AI83: нд | AJ83: 0 | AK83: нд | AL83: 0 | AM83: нд | AN83: 0 | AO83: нд | AP83: 0 | AQ83: нд | AR83: 0 | AS83: нд | AT83: 0 | AU83: нд | AV83: 0 | AW83: нд | AX83: 0 | AY83: нд | AZ83: 0 | BA83: 0 | BB83: 0 | BC83: нд
B84: Строительство системы коммерческого учета с применением интеллектуальных приборов учета | C84: J_МСК_20 | D84: 0 | E84: нд | F84: 0 | G84: нд | H84: 0 | I84: нд | J84: 0 | K84: нд | L84: 0 | M84: нд | N84: 0 | O84: нд | P84: 0 | Q84: нд | R84: 0 | S84: нд | T84: 0 | U84: нд | V84: 0 | W84: нд | X84: 0 | Y84: нд | Z84: 0 | AA84: нд | AB84: 0 | AC84: нд | AD84: 0 | AE84: нд | AF84: 0 | AG84: нд | AH84: 0 | AI84: нд | AJ84: 0 | AK84: нд | AL84: 0 | AM84: нд | AN84: 0 | AO84: нд | AP84: 0 | AQ84: нд | AR84: 0 | AS84: нд | AT84: 0 | AU84: нд | AV84: 0 | AW84: нд | AX84: 0 | AY84: нд | AZ84: 0 | BA84: 0 | BB84: 0 | BC84: нд
A85: 1.2.3.2 | B85: «Установка приборов учета, класс напряжения 6 (10) кВ, всего, в том числе:» | C85: нд | D85: 0 | E85: нд | F85: 0 | G85: нд | H85: 0 | I85: нд | J85: 0 | K85: нд | L85: 0 | M85: нд | N85: 0 | O85: нд | P85: 0 | Q85: нд | R85: 0 | S85: нд | T85: 0 | U85: нд | V85: 0 | W85: нд | X85: 0 | Y85: нд | Z85: 0 | AA85: нд | AB85: 0 | AC85: нд | AD85: 0 | AE85: нд | AF85: 0 | AG85: нд | AH85: 0 | AI85: нд | AJ85: 0 | AK85: нд | AL85: 0 | AM85: нд | AN85: 0 | AO85: нд | AP85: 0 | AQ85: нд | AR85: 0 | AS85: нд | AT85: 0 | AU85: нд | AV85: 0 | AW85: нд | AX85: 0 | AY85: нд | AZ85: 0 | BA85: 0 | BB85: 0 | BC85: нд
A86: 1.2.3.2 | B86: Внедрение автоматизированной системы технического учета электроэнергии (АСТУЭ) в количестве 17 шт. | C86: Н_МСК_10 | D86: 0 | E86: 0 | F86: 0 | G86: 0 | H86: 0 | I86: 0 | J86: 0 | K86: 0 | L86: 0 | M86: 0 | N86: 0 | O86: 0 | P86: 0 | Q86: 0 | R86: 0 | S86: 0 | T86: 0 | U86: 0 | V86: 0 | W86: 0 | X86: 0 | Y86: 0 | Z86: 0 | AA86: 0 | AB86: 0 | AC86: 0 | AD86: 0 | AE86: 0 | AF86: 0 | AG86: 0 | AH86: 0 | AI86: 0 | AJ86: 0 | AK86: 0 | AL86: 0 | AM86: 0 | AN86: 0 | AO86: 0 | AP86: 0 | AQ86: 0 | AR86: 0 | AS86: 0 | AT86: 0 | AU86: 0 | AV86: 0 | AW86: 0 | AX86: 0 | AY86: 0 | AZ86: 0 | BA86: 0 | BB86: 0 | BC86: 0
A87: 1.2.3.3 | B87: «Установка приборов учета, класс напряжения 35 кВ, всего, в том числе:» | C87: нд | D87: 0 | E87: нд | F87: 0 | G87: нд | H87: 0 | I87: нд | J87: 0 | K87: нд | L87: 0 | M87: нд | N87: 0 | O87: нд | P87: 0 | Q87: нд | R87: 0 | S87: нд | T87: 0 | U87: нд | V87: 0 | W87: нд | X87: 0 | Y87: нд | Z87: 0 | AA87: нд | AB87: 0 | AC87: нд | AD87: 0 | AE87: нд | AF87: 0 | AG87: нд | AH87: 0 | AI87: нд | AJ87: 0 | AK87: нд | AL87: 0 | AM87: нд | AN87: 0 | AO87: нд | AP87: 0 | AQ87: нд | AR87: 0 | AS87: нд | AT87: 0 | AU87: нд | AV87: 0 | AW87: нд | AX87: 0 | AY87: нд | AZ87: 0 | BA87: 0 | BB87: 0 | BC87: нд
A88: 1.2.3.4 | B88: «Установка приборов учета, класс напряжения 110 кВ и выше, всего, в том числе:» | C88: нд | D88: 0 | E88: нд | F88: 0 | G88: нд | H88: 0 | I88: нд | J88: 0 | K88: нд | L88: 0 | M88: нд | N88: 0 | O88: нд | P88: 0 | Q88: нд | R88: 0 | S88: нд | T88: 0 | U88: нд | V88: 0 | W88: нд | X88: 0 | Y88: нд | Z88: 0 | AA88: нд | AB88: 0 | AC88: нд | AD88: 0 | AE88: нд | AF88: 0 | AG88: нд | AH88: 0 | AI88: нд | AJ88: 0 | AK88: нд | AL88: 0 | AM88: нд | AN88: 0 | AO88: нд | AP88: 0 | AQ88: нд | AR88: 0 | AS88: нд | AT88: 0 | AU88: нд | AV88: 0 | AW88: нд | AX88: 0 | AY88: нд | AZ88: 0 | BA88: 0 | BB88: 0 | BC88: нд
A89: 1.2.3.5 | B89: «Включение приборов учета в систему сбора и передачи данных, класс напряжения 0,22 (0,4) кВ, всего, в том числе:» | C89: нд | D89: 0 | E89: нд | F89: 0 | G89: нд | H89: 0 | I89: нд | J89: 0 | K89: нд | L89: 0 | M89: нд | N89: 0 | O89: нд | P89: 0 | Q89: нд | R89: 0 | S89: нд | T89: 0 | U89: нд | V89: 0 | W89: нд | X89: 0 | Y89: нд | Z89: 0 | AA89: нд | AB89: 0 | AC89: нд | AD89: 0 | AE89: нд | AF89: 0 | AG89: нд | AH89: 0 | AI89: нд | AJ89: 0 | AK89: нд | AL89: 0 | AM89: нд | AN89: 0 | AO89: нд | AP89: 0 | AQ89: нд | AR89: 0 | AS89: нд | AT89: 0 | AU89: нд | AV89: 0 | AW89: нд | AX89: 0 | AY89: нд | AZ89: 0 | BA89: 0 | BB89: 0 | BC89: нд
A90: 1.2.3.6 | B90: «Включение приборов учета в систему сбора и передачи данных, класс напряжения 6 (10) кВ, всего, в том числе:» | C90: нд | D90: 0 | E90: нд | F90: 0 | G90: нд | H90: 0 | I90: нд | J90: 0 | K90: нд | L90: 0 | M90: нд | N90: 0 | O90: нд | P90: 0 | Q90: нд | R90: 0 | S90: нд | T90: 0 | U90: нд | V90: 0 | W90: нд | X90: 0 | Y90: нд | Z90: 0 | AA90: нд | AB90: 0 | AC90: нд | AD90: 0 | AE90: нд | AF90: 0 | AG90: нд | AH90: 0 | AI90: нд | AJ90: 0 | AK90: нд | AL90: 0 | AM90: нд | AN90: 0 | AO90: нд | AP90: 0 | AQ90: нд | AR90: 0 | AS90: нд | AT90: 0 | AU90: нд | AV90: 0 | AW90: нд | AX90: 0 | AY90: нд | AZ90: 0 | BA90: 0 | BB90: 0 | BC90: нд
A91: 1.2.3.7 | B91: «Включение приборов учета в систему сбора и передачи данных, класс напряжения 35 кВ, всего, в том числе:» | C91: нд | D91: 0 | E91: нд | F91: 0 | G91: нд | H91: 0 | I91: нд | J91: 0 | K91: нд | L91: 0 | M91: нд | N91: 0 | O91: нд | P91: 0 | Q91: нд | R91: 0 | S91: нд | T91: 0 | U91: нд | V91: 0 | W91: нд | X91: 0 | Y91: нд | Z91: 0 | AA91: нд | AB91: 0 | AC91: нд | AD91: 0 | AE91: нд | AF91: 0 | AG91: нд | AH91: 0 | AI91: нд | AJ91: 0 | AK91: нд | AL91: 0 | AM91: нд | AN91: 0 | AO91: нд | AP91: 0 | AQ91: нд | AR91: 0 | AS91: нд | AT91: 0 | AU91: нд | AV91: 0 | AW91: нд | AX91: 0 | AY91: нд | AZ91: 0 | BA91: 0 | BB91: 0 | BC91: нд
A92: 1.2.3.8 | B92: «Включение приборов учета в систему сбора и передачи данных, класс напряжения 110 кВ и выше, всего, в том числе:» | C92: нд | D92: 0 | E92: нд | F92: 0 | G92: нд | H92: 0 | I92: нд | J92: 0 | K92: нд | L92: 0 | M92: нд | N92: 0 | O92: нд | P92: 0 | Q92: нд | R92: 0 | S92: нд | T92: 0 | U92: нд | V92: 0 | W92: нд | X92: 0 | Y92: нд | Z92: 0 | AA92: нд | AB92: 0 | AC92: нд | AD92: 0 | AE92: нд | AF92: 0 | AG92: нд | AH92: 0 | AI92: нд | AJ92: 0 | AK92: нд | AL92: 0 | AM92: нд | AN92: 0 | AO92: нд | AP92: 0 | AQ92: нд | AR92: 0 | AS92: нд | AT92: 0 | AU92: нд | AV92: 0 | AW92: нд | AX92: 0 | AY92: нд | AZ92: 0 | BA92: 0 | BB92: 0 | BC92: нд
A93: 1.2.4 | B93: Реконструкция, модернизация, техническое перевооружение прочих объектов основных средств, всего, в том числе: | C93: нд | D93: 0 | E93: нд | F93: 0 | G93: нд | H93: 0 | I93: нд | J93: 0 | K93: нд | L93: 0 | M93: нд | N93: 0 | O93: нд | P93: 0 | Q93: нд | R93: 0 | S93: нд | T93: 0 | U93: нд | V93: 0 | W93: нд | X93: 0 | Y93: нд | Z93: 0 | AA93: нд | AB93: 0 | AC93: нд | AD93: 0 | AE93: нд | AF93: 0 | AG93: нд | AH93: 0 | AI93: нд | AJ93: 0 | AK93: нд | AL93: 0 | AM93: нд | AN93: 0 | AO93: нд | AP93: 0 | AQ93: нд | AR93: 0 | AS93: нд | AT93: 0 | AU93: нд | AV93: 0 | AW93: нд | AX93: 0 | AY93: нд | AZ93: 0 | BA93: 0 | BB93: 0 | BC93: нд
A94: 1.2.4.1 | B94: Реконструкция прочих объектов основных средств, всего, в том числе: | C94: нд | D94: 0 | E94: нд | F94: 0 | G94: нд | H94: 0 | I94: нд | J94: 0 | K94: нд | L94: 0 | M94: нд | N94: 0 | O94: нд | P94: 0 | Q94: нд | R94: 0 | S94: нд | T94: 0 | U94: нд | V94: 0 | W94: нд | X94: 0 | Y94: нд | Z94: 0 | AA94: нд | AB94: 0 | AC94: нд | AD94: 0 | AE94: нд | AF94: 0 | AG94: нд | AH94: 0 | AI94: нд | AJ94: 0 | AK94: нд | AL94: 0 | AM94: нд | AN94: 0 | AO94: нд | AP94: 0 | AQ94: нд | AR94: 0 | AS94: нд | AT94: 0 | AU94: нд | AV94: 0 | AW94: нд | AX94: 0 | AY94: нд | AZ94: 0 | BA94: 0 | BB94: 0 | BC94: нд
A95: 1.2.4.2 | B95: Модернизация, техническое перевооружение прочих объектов основных средств, всего, в том числе: | C95: нд | D95: 0 | E95: нд | F95: 0 | G95: нд | H95: 0 | I95: нд | J95: 0 | K95: нд | L95: 0 | M95: нд | N95: 0 | O95: нд | P95: 0 | Q95: нд | R95: 0 | S95: нд | T95: 0 | U95: нд | V95: 0 | W95: нд | X95: 0 | Y95: нд | Z95: 0 | AA95: нд | AB95: 0 | AC95: нд | AD95: 0 | AE95: нд | AF95: 0 | AG95: нд | AH95: 0 | AI95: нд | AJ95: 0 | AK95: нд | AL95: 0 | AM95: нд | AN95: 0 | AO95: нд | AP95: 0 | AQ95: нд | AR95: 0 | AS95: нд | AT95: 0 | AU95: нд | AV95: 0 | AW95: нд | AX95: 0 | AY95: нд | AZ95: 0 | BA95: 0 | BB95: 0 | BC95: нд
A96: 1.3 | B96: Инвестиционные проекты, реализация которых обуславливается схемами и программами перспективного развития электроэнергетики, всего, в том числе: | C96: нд | D96: 0 | E96: нд | F96: 0 | G96: нд | H96: 0 | I96: нд | J96: 0 | K96: нд | L96: 0 | M96: нд | N96: 0 | O96: нд | P96: 0 | Q96: нд | R96: 0 | S96: нд | T96: 0 | U96: нд | V96: 0 | W96: нд | X96: 0 | Y96: нд | Z96: 0 | AA96: нд | AB96: 0 | AC96: нд | AD96: 0 | AE96: нд | AF96: 0 | AG96: нд | AH96: 0 | AI96: нд | AJ96: 0 | AK96: нд | AL96: 0 | AM96: нд | AN96: 0 | AO96: нд | AP96: 0 | AQ96: нд | AR96: 0 | AS96: нд | AT96: 0 | AU96: нд | AV96: 0 | AW96: нд | AX96: 0 | AY96: нд | AZ96: 0 | BA96: 0 | BB96: 0 | BC96: нд
A97: 1.3.1 | B97: Инвестиционные проекты, предусмотренные схемой и программой развития Единой энергетической системы России, всего, в том числе: | C97: нд | D97: 0 | E97: нд | F97: 0 | G97: нд | H97: 0 | I97: нд | J97: 0 | K97: нд | L97: 0 | M97: нд | N97: 0 | O97: нд | P97: 0 | Q97: нд | R97: 0 | S97: нд | T97: 0 | U97: нд | V97: 0 | W97: нд | X97: 0 | Y97: нд | Z97: 0 | AA97: нд | AB97: 0 | AC97: нд | AD97: 0 | AE97: нд | AF97: 0 | AG97: нд | AH97: 0 | AI97: нд | AJ97: 0 | AK97: нд | AL97: 0 | AM97: нд | AN97: 0 | AO97: нд | AP97: 0 | AQ97: нд | AR97: 0 | AS97: нд | AT97: 0 | AU97: нд | AV97: 0 | AW97: нд | AX97: 0 | AY97: нд | AZ97: 0 | BA97: 0 | BB97: 0 | BC97: нд
A98: 1.3.2 | B98: Инвестиционные проекты, предусмотренные схемой и программой развития субъекта Российской Федерации, всего, в том числе: | C98: нд | D98: 0 | E98: нд | F98: 0 | G98: нд | H98: 0 | I98: нд | J98: 0 | K98: нд | L98: 0 | M98: нд | N98: 0 | O98: нд | P98: 0 | Q98: нд | R98: 0 | S98: нд | T98: 0 | U98: нд | V98: 0 | W98: нд | X98: 0 | Y98: нд | Z98: 0 | AA98: нд | AB98: 0 | AC98: нд | AD98: 0 | AE98: нд | AF98: 0 | AG98: нд | AH98: 0 | AI98: нд | AJ98: 0 | AK98: нд | AL98: 0 | AM98: нд | AN98: 0 | AO98: нд | AP98: 0 | AQ98: нд | AR98: 0 | AS98: нд | AT98: 0 | AU98: нд | AV98: 0 | AW98: нд | AX98: 0 | AY98: нд | AZ98: 0 | BA98: 0 | BB98: 0 | BC98: нд
A99: 1.4 | B99: Прочее новое строительство объектов электросетевого хозяйства, всего, в том числе: | C99: нд | D99: =D112 -> 0 | E99: нд | F99: =F112 -> 0 | G99: нд | H99: =H112 -> 0 | I99: нд | J99: =J112 -> 0 | K99: нд | L99: =L112 -> 0 | M99: нд | N99: =N112 -> 0 | O99: нд | P99: =P112 -> 0 | Q99: нд | R99: =R112 -> 0 | S99: нд | T99: =T112 -> 0 | U99: нд | V99: =V112 -> 0 | W99: нд | X99: =Y112 -> 0 | Y99: нд | Z99: 0 | AA99: нд | AB99: 0 | AC99: нд | AD99: =AD112 -> 0 | AE99: нд | AF99: =AF112 -> 0 | AG99: нд | AH99: =AH112 -> 0 | AI99: нд | AJ99: =AJ112 -> 0 | AK99: нд | AL99: =AL112 -> 0 | AM99: нд | AN99: =AN112 -> 0 | AO99: нд | AP99: =AP112 -> 0 | AQ99: нд | AR99: =AR112 -> 0 | AS99: нд | AT99: =AT112 -> 0 | AU99: нд | AV99: =AV112 -> 0 | AW99: нд | AX99: =AX112 -> 0 | AY99: нд | AZ99: 0 | BA99: 0 | BB99: =BB112 -> 0 | BC99: нд
A100: 1.5 | B100: Покупка земельных участков для целей реализации инвестиционных проектов, всего, в том числе: | C100: нд | D100: 0 | E100: нд | F100: 0 | G100: нд | H100: 0 | I100: нд | J100: 0 | K100: нд | L100: 0 | M100: нд | N100: 0 | O100: нд | P100: 0 | Q100: нд | R100: 0 | S100: нд | T100: 0 | U100: нд | V100: 0 | W100: нд | X100: 0 | Y100: нд | Z100: 0 | AA100: нд | AB100: 0 | AC100: нд | AD100: 0 | AE100: нд | AF100: 0 | AG100: нд | AH100: 0 | AI100: нд | AJ100: 0 | AK100: нд | AL100: 0 | AM100: нд | AN100: 0 | AO100: нд | AP100: 0 | AQ100: нд | AR100: 0 | AS100: нд | AT100: 0 | AU100: нд | AV100: 0 | AW100: нд | AX100: 0 | AY100: нд | AZ100: 0 | BA100: 0 | BB100: 0 | BC100: нд
A101: 1.6 | B101: Прочие инвестиционные проекты, всего, в том числе: | C101: нд | D101: =D102 -> 0 | E101: нд | F101: =F102 -> 0 | G101: нд | H101: =H102 -> 0 | I101: нд | J101: =J102 -> 0 | K101: нд | L101: =L102 -> 0 | M101: нд | N101: =N102 -> 0 | O101: нд | P101: =P102 -> 0 | Q101: нд | R101: =R102 -> 0 | S101: нд | T101: =T102 -> 0 | U101: нд | V101: =V102 -> 0 | W101: нд | X101: =X102 -> 0 | Y101: нд | Z101: 0 | AA101: нд | AB101: 0 | AC101: нд | AD101: =AD102 -> 0 | AE101: нд | AF101: =AF102 -> 0 | AG101: нд | AH101: =AH102 -> 0 | AI101: нд | AJ101: =AJ102 -> 0 | AK101: нд | AL101: =AL102 -> 0 | AM101: нд | AN101: =AN102 -> 0 | AO101: нд | AP101: =AP102 -> 0 | AQ101: нд | AR101: =AR102 -> 0 | AS101: нд | AT101: =AT102 -> 0 | AU101: нд | AV101: =AV102 -> 0 | AW101: нд | AX101: =AX102 -> 0 | AY101: нд | AZ101: 1.87322017 | BA101: 1.87322017 | BB101: =BB102 -> 0 | BC101: нд
A102: 1.6.1 | B102: Приобретение в лизинг автотранспортных средств | C102: нд | D102: 0 | E102: нд | F102: 0 | G102: нд | H102: 0 | I102: нд | J102: 0 | K102: нд | L102: 0 | M102: нд | N102: 0 | O102: нд | P102: 0 | Q102: нд | R102: 0 | S102: нд | T102: 0 | U102: нд | V102: 0 | W102: нд | X102: 0 | Y102: нд | Z102: 0 | AA102: нд | AB102: 0 | AC102: нд | AD102: 0 | AE102: нд | AF102: 0 | AG102: нд | AH102: 0 | AI102: нд | AJ102: 0 | AK102: нд | AL102: 0 | AM102: нд | AN102: 0 | AO102: нд | AP102: 0 | AQ102: нд | AR102: 0 | AS102: нд | AT102: 0 | AU102: нд | AV102: 0 | AW102: нд | AX102: 0 | AY102: нд | AZ102: 1.87322017 | BA102: 1.87322017 | BB102: 0 | BC102: нд
A103: 1.6.1.1 | B103: Приобретение в лизинг автотранспортных средств УАЗ-390995-04 Комби в количестве 1 ед. | C103: Н_МСК_11 | D103: 0 | E103: нд | F103: 0 | G103: нд | H103: 0 | I103: нд | J103: 0 | K103: нд | L103: 0 | M103: нд | N103: 0 | O103: нд | P103: 0 | Q103: нд | R103: 0 | S103: нд | T103: 0 | U103: нд | V103: 0 | W103: нд | X103: 0 | Y103: нд | Z103: 0 | AA103: нд | AB103: 0 | AC103: нд | AD103: 0 | AE103: нд | AF103: 0 | AG103: нд | AH103: 0 | AI103: нд | AJ103: 0 | AK103: нд | AL103: 0 | AM103: нд | AN103: 0 | AO103: нд | AP103: 0 | AQ103: нд | AR103: 0 | AS103: нд | AT103: 0 | AU103: нд | AV103: 0 | AW103: нд | AX103: 0 | AY103: нд | AZ103: 0 | BA103: 0 | BB103: 0 | BC103: нд
A104: 1.6.1.2 | B104: Приобретение в лизинг автотранспортных средств УАЗ-390945-520 Фермер в количестве 1 ед. | C104: Н_МСК_12 | D104: 0 | E104: нд | F104: 0 | G104: нд | H104: 0 | I104: нд | J104: 0 | K104: нд | L104: 0 | M104: нд | N104: 0 | O104: нд | P104: 0 | Q104: нд | R104: 0 | S104: нд | T104: 0 | U104: нд | V104: 0 | W104: нд | X104: 0 | Y104: нд | Z104: 0 | AA104: нд | AB104: 0 | AC104: нд | AD104: 0 | AE104: нд | AF104: 0 | AG104: нд | AH104: 0 | AI104: нд | AJ104: 0 | AK104: нд | AL104: 0 | AM104: нд | AN104: 0 | AO104: нд | AP104: 0 | AQ104: нд | AR104: 0 | AS104: нд | AT104: 0 | AU104: нд | AV104: 0 | AW104: нд | AX104: 0 | AY104: нд | AZ104: 0.31932195 | BA104: 0.31932195 | BB104: 0 | BC104: нд
A105: 1.6.1.3 | B105: Приобретение в лизинг автотранспортных средств Автогидроподъемник телескопический на шасси ГАЗ 3309 со сдвоенной кабиной в количестве 1 ед. | C105: Н_МСК_13 | D105: 0 | E105: нд | F105: 0 | G105: нд | H105: 0 | I105: нд | J105: 0 | K105: нд | L105: 0 | M105: нд | N105: 0 | O105: нд | P105: 0 | Q105: нд | R105: 0 | S105: нд | T105: 0 | U105: нд | V105: 0 | W105: нд | X105: 0 | Y105: нд | Z105: 0 | AA105: нд | AB105: 0 | AC105: нд | AD105: 0 | AE105: нд | AF105: 0 | AG105: нд | AH105: 0 | AI105: нд | AJ105: 0 | AK105: нд | AL105: 0 | AM105: нд | AN105: 0 | AO105: нд | AP105: 0 | AQ105: нд | AR105: 0 | AS105: нд | AT105: 0 | AU105: нд | AV105: 0 | AW105: нд | AX105: 0 | AY105: нд | AZ105: 0 | BA105: 0 | BB105: 0 | BC105: нд
A106: 1.6.1.4 | B106: Приобретение в лизинг автотранспортных средств Автогидроподъемник телескопический на шасси ГАЗ 33088-1010 Садко 4х4 в количестве 1 ед. | C106: Н_МСК_18 | D106: 0 | E106: нд | F106: 0 | G106: нд | H106: 0 | I106: нд | J106: 0 | K106: нд | L106: 0 | M106: нд | N106: 0 | O106: нд | P106: 0 | Q106: нд | R106: 0 | S106: нд | T106: 0 | U106: нд | V106: 0 | W106: нд | X106: 0 | Y106: нд | Z106: 0 | AA106: нд | AB106: 0 | AC106: нд | AD106: 0 | AE106: нд | AF106: 0 | AG106: нд | AH106: 0 | AI106: нд | AJ106: 0 | AK106: нд | AL106: 0 | AM106: нд | AN106: 0 | AO106: нд | AP106: 0 | AQ106: нд | AR106: 0 | AS106: нд | AT106: 0 | AU106: нд | AV106: 0 | AW106: нд | AX106: 0 | AY106: нд | AZ106: 1.55389822 | BA106: 1.55389822 | BB106: 0 | BC106: нд
A107: 1.6.2 | B107: Приобретение АИД-70М | C107: Н_МСК_14 | D107: 0 | E107: нд | F107: 0 | G107: нд | H107: 0 | I107: нд | J107: 0 | K107: нд | L107: 0 | M107: нд | N107: 0 | O107: нд | P107: 0 | Q107: нд | R107: 0 | S107: нд | T107: 0 | U107: нд | V107: 0 | W107: нд | X107: 0 | Y107: нд | Z107: 0 | AA107: нд | AB107: 0 | AC107: нд | AD107: 0 | AE107: нд | AF107: 0 | AG107: нд | AH107: 0 | AI107: нд | AJ107: 0 | AK107: нд | AL107: 0 | AM107: нд | AN107: 0 | AO107: нд | AP107: 0 | AQ107: нд | AR107: 0 | AS107: нд | AT107: 0 | AU107: нд | AV107: 0 | AW107: нд | AX107: 0 | AY107: нд | AZ107: 0 | BA107: 0 | BB107: 0 | BC107: нд
A108: 1.6.3 | B108: Приобретение прибора Атлет-319 «СКИН» | C108: Н_МСК_15 | D108: 0 | E108: нд | F108: 0 | G108: нд | H108: 0 | I108: нд | J108: 0 | K108: нд | L108: 0 | M108: нд | N108: 0 | O108: нд | P108: 0 | Q108: нд | R108: 0 | S108: нд | T108: 0 | U108: нд | V108: 0 | W108: нд | X108: 0 | Y108: нд | Z108: 0 | AA108: нд | AB108: 0 | AC108: нд | AD108: 0 | AE108: нд | AF108: 0 | AG108: нд | AH108: 0 | AI108: нд | AJ108: 0 | AK108: нд | AL108: 0 | AM108: нд | AN108: 0 | AO108: нд | AP108: 0 | AQ108: нд | AR108: 0 | AS108: нд | AT108: 0 | AU108: нд | AV108: 0 | AW108: нд | AX108: 0 | AY108: нд | AZ108: 0 | BA108: 0 | BB108: 0 | BC108: нд
A109: 1.6.4 | B109: Приобретение прибора Рейс 105 М1 | C109: Н_МСК_16 | D109: 0 | E109: нд | F109: 0 | G109: нд | H109: 0 | I109: нд | J109: 0 | K109: нд | L109: 0 | M109: нд | N109: 0 | O109: нд | P109: 0 | Q109: нд | R109: 0 | S109: нд | T109: 0 | U109: нд | V109: 0 | W109: нд | X109: 0 | Y109: нд | Z109: 0 | AA109: нд | AB109: 0 | AC109: нд | AD109: 0 | AE109: нд | AF109: 0 | AG109: нд | AH109: 0 | AI109: нд | AJ109: 0 | AK109: нд | AL109: 0 | AM109: нд | AN109: 0 | AO109: нд | AP109: 0 | AQ109: нд | AR109: 0 | AS109: нд | AT109: 0 | AU109: нд | AV109: 0 | AW109: нд | AX109: 0 | AY109: нд | AZ109: 0 | BA109: 0 | BB109: 0 | BC109: нд

Sheet 1-20
BA1: Приложение № 1
BA2: к приказу Минэнерго России
BA3: от 5 мая 2016 г. № 380
A4: Форма 1. Перечени инвестиционных проектов
A5: на год _2018-2021 г.г._
A7: Инвестиционная программа_____Общество с ограниченной ответственностью "Мордовская сетевая компания"__
A8: полное наименование субъекта электроэнергетики
A10: Год раскрытия информации: __2018__ год
A12: Утвержденные плановые значения показателей приведены в соответствии с приказом Министерства энергетики и тарифной политики Республики Мордовия №117 от 31.10.2017 г.
A13: реквизиты решения органа исполнительной власти, утвердившего инвестиционную программу
A15: Номер группы инвести-ционных проектов | B15: Наименование инвестиционного проекта (группы инвестиционных проектов) | C15: Идентифика-тор инвестицион-ного проекта | D15: Цели реализации инвестиционных проектов и плановые (фактические) значения количественных показателей, характеризующие достижение таких целей
D16: Развитие электрической сети/усиление существующей электрической сети, связанное с подключением новых потребителей | V16: Замещение (обновление) электрической сети/повышение экономической эффективности (мероприятия направленные на снижение эксплуатационных затрат) оказания услуг в сфере электроэнергетики | AF16: Повышение надежности оказываемых услуг в сфере электроэнергетики | AL16: Повышение качества оказываемых услуг в сфере электроэнергетики | AP16: Выполнение требований законодательства Российской Федерации, предписаний органов исполнительной власти, регламентов рынков электрической энергии | AV16: Обеспечение текущей деятельности в сфере электроэнергетики, в том числе развитие информационной инфраструктуры, хозяйственное обеспечение деятельности | AZ16: Инвестиции, связанные с деятельностью, не относящейся к сфере электроэнергетики
D17: Показатель увеличения мощности силовых трансформаторов на подстанциях, не связанного с осуществлением технологического присоединения к электрическим сетям (ΔРтр.n) | F17: Показатель увеличения мощности силовых трансформаторов на подстанциях в рамках осуществления технологического присоединения к электрическим сетям (ΔРтп_тр.n) | H17: Показатель увеличения протяженности линий электропередачи, не связанного с осуществлением технологического присоединения к электрическим сеям (ΔLлэп.n) | L17: Показатель увеличения протяженности линий электропередачи в рамках осуществления технологического присоединения к электрическим сетям (ΔLтп_лэп.n) | P17: Показатель максимальной мощности присоединяемых потребителей электрической эенергии (Sпотр.тп) | R17: Показатель максимальной мощности энергопринимающих устройств при осуществлении технологического присоединения объектов электросетевого хозяйства, принадлежащих иным сетевым организациям или иным лицам (Sэх.тп) | T17: Показатель степени загрузки трансформаторной подстанции (Кзагр.) | V17: Показатель замены силовых трансформаторов (Рз_тр.n) | X17: Показатель замены линий электропередачи (Lз_лэп.n) | Z17: Показатель замены выключателей (Вз.n) | AB17: Показатель замены устройств компенсации реактивной мощности (Рз_укрм.n) | AD17: Показатель оценки изменения доли полезного отпуска электрической энергии, который формируется посредством приборов учета электричекой энергии, включенных в систему сбора и передачи данных (ΔПОдист) | AF17: Показатель оценки изменения средней продолжительности прекращения передачи электрической энергии потребителям услуг (Δпsaidi) | AH17: Показатель оценки изменения средней частоты прекращения передачи электрической энергии потребителям услуг (ΔПsaifi) | AJ17: Показатель оценки изменения объема недоотпущенной электрической энергии (ΔПens) | AL17: Показатель общего числа исполненных в рамках инвестиционной программы обязательств сетевой организации по осуществлению технологического присоединения (Nсд_тпр) | AN17: Показатель числа обязательств сетевой организации по осуществлению технологического присоединения, исполненных в рамках инвестиционной программы с нарушением установленного срока технологического присоединения (Nсд_тпр.нс) | AP17: Показатель объема финансовых потребностей, необходимых для реализации мероприятий, направленных на выполнение требований законодательства (Фтз) | AR17: Показатель объема финансовых потребностей, необходимых для реализации мероприятий, напрвленных на выполнение приедписаний органов исполнительной власти (Фоив) | AT17: Показатель объема финансовых потребностей, необходимых для реализации мероприятий, направленных на выполнение требований регламентов рынков электрической энергии (Фтрр) | AV17: Показатель объема финансовых потребностей, необходимых для реализации мероприятий, направленных на развитие информационной инфраструктуры (Фит) | AX17: Показатель объема финансовых потребностей, необходимых для реализации мероприятий, направленных на хозяйственное обеспечение деятельности сетевой организации (Фхо) | AZ17: Показатель объема финансовых потребностей, необходимых для реализации мероприятий, направленных на реализацию инвестиционных проектов, связанных с деятельностью, не относящейся к сфере электроэнергетики (Фнэ)
D18: план | E18: Предложение по корректировке утвержденного плана | F18: план | G18: Предложение по корректировке утвержденного плана | H18: план | I18: Предложение по корректировке утвержденного плана | J18: план | K18: Предложение по корректировке утвержденного плана | L18: план | M18: Предложение по корректировке утвержденного плана | N18: план | O18: Предложение по корректировке утвержденного плана | P18: план | Q18: Предложение по корректировке утвержденного плана | R18: план | S18: Предложение по корректировке утвержденного плана | T18: план | U18: Предложение по корректировке утвержденного плана | V18: план | W18: Предложение по корректировке утвержденного плана | X18: план | Y18: Предложение по корректировке утвержденного плана | Z18: план | AA18: Предложение по корректировке утвержденного плана | AB18: план | AC18: Предложение по корректировке утвержденного плана | AD18: план | AE18: Предложение по корректировке утвержденного плана | AF18: план | AG18: Предложение по корректировке утвержденного плана | AH18: план | AI18: Предложение по корректировке утвержденного плана | AJ18: план | AK18: Предложение по корректировке утвержденного плана | AL18: план | AM18: Предложение по корректировке утвержденного плана | AN18: план | AO18: Предложение по корректировке утвержденного плана | AP18: план | AQ18: Предложение по корректировке утвержденного плана | AR18: план | AS18: Предложение по корректировке утвержденного плана | AT18: план | AU18: Предложение по корректировке утвержденного плана | AV18: план | AW18: Предложение по корректировке утвержденного плана | AX18: план | AY18: Предложение по корректировке утвержденного плана | AZ18: план | BA18: Предложение по корректировке утвержденного плана
A19: 0 | B19: 0 | C19: 0 | D19: Класс напряжения, кВ | V19: Класс напряжения, кВ | AF19: 0 | AG19: 0 | AH19: 0 | AI19: 0 | AJ19: 0 | AK19: 0 | AL19: 0 | AM19: 0 | AN19: 0 | AO19: 0 | AP19: 0 | AQ19: 0 | AR19: 0 | AS19: 0 | AT19: 0 | AU19: 0 | AV19: 0 | AW19: 0 | AX19: 0 | AY19: 0 | AZ19: 0 | BA19: 0
A20: 0 | B20: 0 | C20: 0 | D20: 6-10 | F20: 6-10 | H20: 6-10 | J20: 0.4 | L20: 6-10 | N20: 0.4 | P20: 0 | Q20: 0 | R20: 0 | S20: 0 | T20: 0 | U20: 0 | V20: 6-10 | X20: 6-10 | Z20: 6-10 | AB20: 0 | AC20: 0 | AD20: 0 | AE20: 0 | AF20: 0 | AG20: 0 | AH20: 0 | AI20: 0 | AJ20: 0 | AK20: 0 | AL20: 0 | AM20: 0 | AN20: 0 | AO20: 0 | AP20: 0 | AQ20: 0 | AR20: 0 | AS20: 0 | AT20: 0 | AU20: 0 | AV20: 0 | AW20: 0 | AX20: 0 | AY20: 0 | AZ20: 0 | BA20: 0
A21: 1 | B21: 2 | C21: 3 | D21: 4.1 | E21: 4.2 | F21: 4.3 | G21: 4.4 | H21: 4.5.1 | I21: 4.6.1 | J21: 4.5.2 | K21: 4.6.2 | L21: 4.7.1 | M21: 4.8.1 | N21: 4.7.2 | O21: 4.8.2 | P21: 4.9 | Q21: 4.10 | R21: 4.11 | S21: 4.12 | T21: 4.13 | U21: 4.14 | V21: 5.1 | W21: 5.2 | X21: 5.3 | Y21: 5.4 | Z21: 5.5 | AA21: 5.6 | AB21: 5.7 | AC21: 5.8 | AD21: 5.9 | AE21: 5.10 | AF21: 6.1 | AG21: 6.2 | AH21: 6.3 | AI21: 6.4 | AJ21: 6.5 | AK21: 6.6 | AL21: 7.1 | AM21: 7.2 | AN21: 7.3 | AO21: 7.4 | AP21: 8.1 | AQ21: 8.2 | AR21: 8.3 | AS21: 8.4 | AT21: 8.5 | AU21: 8.6 | AV21: 9.1 | AW21: 9.2 | AX21: 9.3 | AY21: 9.4 | AZ21: 10.1 | BA21: 10.2
A22: 0 | B22: ВСЕГО по инвестиционной программе, в том числе: | C22: нд | D22: =SUM(D23:D28) -> 0 | E22: нд | F22: =SUM(F23:F28) -> 0 | G22: нд | H22: =SUM(H23:H28) -> 0 | I22: нд | J22: =SUM(J23:J28) -> 0 | K22: нд | L22: =SUM(L23:L28) -> 0 | M22: =SUM(M23:M28) -> 1.3 | N22: =SUM(N23:N28) -> 0.3 | O22: =SUM(O23:O28) -> 0.375 | P22: =SUM(P23:P28) -> 0 | Q22: нд | R22: =SUM(R23:R28) -> 0 | S22: нд | T22: =SUM(T23:T28) -> 0 | U22: нд | V22: =SUM(V23:V28) -> 0 | W22: нд | X22: =SUM(X23:X28) -> 0 | Y22: нд | Z22: =SUM(Z23:Z28) -> 2 | AA22: =SUM(AA23:AA28) -> 2 | AB22: =SUM(AB23:AB28) -> 0 | AC22: нд | AD22: =SUM(AD23:AD28) -> 0 | AE22: нд | AF22: =SUM(AF23:AF28) -> 0 | AG22: нд | AH22: =SUM(AH23:AH28) -> 0 | AI22: нд | AJ22: =AJ76 -> 59 | AK22: =AK76 -> 0 | AL22: =SUM(AL23:AL28) -> 0 | AM22: нд | AN22: =SUM(AN23:AN28) -> 0 | AO22: нд | AP22: =SUM(AP23:AP28) -> 0 | AQ22: нд | AR22: =SUM(AR23:AR28) -> 0 | AS22: нд | AT22: =SUM(AT23:AT28) -> 0 | AU22: нд | AV22: =SUM(AV23:AV28) -> 0 | AW22: нд | AX22: ='2'!Y18 -> 12.60325525 | AY22: ='2'!AI18 -> 10.3223983 | AZ22: =SUM(AZ23:AZ28) -> 0 | BA22: нд
A23: 0.1 | B23: Технологическое присоединение, всего | C23: нд | D23: =D29 -> 0 | E23: нд | F23: =F29 -> 0 | G23: нд | H23: =H29 -> 0 | I23: нд | J23: =J29 -> 0 | K23: нд | L23: =L29 -> 0 | M23: =M29 -> 1.3 | N23: =N29 -> 0.3 | O23: =O29 -> 0.375 | P23: =P29 -> 0 | Q23: нд | R23: =R29 -> 0 | S23: нд | T23: =T29 -> 0 | U23: нд | V23: =V29 -> 0 | W23: нд | X23: =X29 -> 0 | Y23: нд | Z23: =Z29 -> 0 | AA23: нд | AB23: =AB29 -> 0 | AC23: нд | AD23: =AD29 -> 0 | AE23: нд | AF23: =AF29 -> 0 | AG23: нд | AH23: =AH29 -> 0 | AI23: нд | AJ23: нд | AK23: нд | AL23: =AL29 -> 0 | AM23: нд | AN23: =AN29 -> 0 | AO23: нд | AP23: =AP29 -> 0 | AQ23: нд | AR23: =AR29 -> 0 | AS23: нд | AT23: =AT29 -> 0 | AU23: нд | AV23: =AV29 -> 0 | AW23: нд | AX23: ='2'!Y19 -> 10.59816501 | AY23: ='2'!AI19 -> 8.317308058 | AZ23: =AZ29 -> 0 | BA23: нд
A24: 0.2 | B24: Реконструкция, модернизация, техническое перевооружение, всего | C24: нд | D24: 0 | E24: нд | F24: 0 | G24: нд | H24: 0 | I24: нд | J24: 0 | K24: нд | L24: 0 | M24: нд | N24: =N60 -> 0 | O24: нд | P24: 0 | Q24: нд | R24: 0 | S24: нд | T24: 0 | U24: нд | V24: 0 | W24: нд | X24: 0 | Y24: нд | Z24: =Z60 -> 2 | AA24: =AA60 -> 2 | AB24: 0 | AC24: нд | AD24: 0 | AE24: нд | AF24: 0 | AG24: нд | AH24: 0 | AI24: нд | AJ24: нд | AK24: нд | AL24: 0 | AM24: нд | AN24: 0 | AO24: нд | AP24: 0 | AQ24: нд | AR24: 0 | AS24: нд | AT24: 0 | AU24: нд | AV24: 0 | AW24: нд | AX24: ='2'!Y20 -> 0.13492091 | AY24: ='2'!AI20 -> 0.13492091 | AZ24: 0 | BA24: нд
A25: 0.3 | B25: Инвестиционные проекты, реализация которых обуславливается схемами и программами перспективного развития электроэнергетики, всего | C25: нд | D25: =D91 -> 0 | E25: нд | F25: =F91 -> 0 | G25: нд | H25: =H91 -> 0 | I25: нд | J25: =J91 -> 0 | K25: нд | L25: =L91 -> 0 | M25: нд | N25: =N91 -> 0 | O25: нд | P25: =P91 -> 0 | Q25: нд | R25: =R91 -> 0 | S25: нд | T25: =T91 -> 0 | U25: нд | V25: =V91 -> 0 | W25: нд | X25: =X91 -> 0 | Y25: нд | Z25: =Z91 -> 0 | AA25: нд | AB25: =AB91 -> 0 | AC25: нд | AD25: =AD91 -> 0 | AE25: нд | AF25: =AF91 -> 0 | AG25: нд | AH25: =AH91 -> 0 | AI25: нд | AJ25: нд | AK25: нд | AL25: =AL91 -> 0 | AM25: нд | AN25: =AN91 -> 0 | AO25: нд | AP25: =AP91 -> 0 | AQ25: нд | AR25: =AR91 -> 0 | AS25: нд | AT25: =AT91 -> 0 | AU25: нд | AV25: =AV91 -> 0 | AW25: нд | AX25: ='2'!Y21 -> 0 | AY25: ='2'!AI21 -> 0 | AZ25: =AZ91 -> 0 | BA25: нд
A26: 0.4 | B26: Прочее новое строительство объектов электросетевого хозяйства, всего | C26: нд | D26: =D94 -> 0 | E26: нд | F26: =F94 -> 0 | G26: нд | H26: =H94 -> 0 | I26: нд | J26: =J94 -> 0 | K26: нд | L26: =L94 -> 0 | M26: нд | N26: =N94 -> 0 | O26: нд | P26: =P94 -> 0 | Q26: нд | R26: =R94 -> 0 | S26: нд | T26: =T94 -> 0 | U26: нд | V26: =V94 -> 0 | W26: нд | X26: =X94 -> 0 | Y26: нд | Z26: =Z94 -> 0 | AA26: нд | AB26: =AB94 -> 0 | AC26: нд | AD26: =AD94 -> 0 | AE26: нд | AF26: =AF94 -> 0 | AG26: нд | AH26: =AH94 -> 0 | AI26: нд | AJ26: нд | AK26: нд | AL26: =AL94 -> 0 | AM26: нд | AN26: =AN94 -> 0 | AO26: нд | AP26: =AP94 -> 0 | AQ26: нд | AR26: =AR94 -> 0 | AS26: нд | AT26: =AT94 -> 0 | AU26: нд | AV26: =AV94 -> 0 | AW26: нд | AX26: ='2'!Y22 -> 0 | AY26: ='2'!AI22 -> 0 | AZ26: =AZ94 -> 0 | BA26: нд
A27: 0.5 | B27: Покупка земельных участков для целей реализации инвестиционных проектов, всего | C27: нд | D27: =D95 -> 0 | E27: нд | F27: =F95 -> 0 | G27: нд | H27: =H95 -> 0 | I27: нд | J27: =J95 -> 0 | K27: нд | L27: =L95 -> 0 | M27: нд | N27: =N95 -> 0 | O27: нд | P27: =P95 -> 0 | Q27: нд | R27: =R95 -> 0 | S27: нд | T27: =T95 -> 0 | U27: нд | V27: =V95 -> 0 | W27: нд | X27: =X95 -> 0 | Y27: нд | Z27: =Z95 -> 0 | AA27: нд | AB27: =AB95 -> 0 | AC27: нд | AD27: =AD95 -> 0 | AE27: нд | AF27: =AF95 -> 0 | AG27: нд | AH27: =AH95 -> 0 | AI27: нд | AJ27: нд | AK27: нд | AL27: =AL95 -> 0 | AM27: нд | AN27: =AN95 -> 0 | AO27: нд | AP27: =AP95 -> 0 | AQ27: нд | AR27: =AR95 -> 0 | AS27: нд | AT27: =AT95 -> 0 | AU27: нд | AV27: =AV95 -> 0 | AW27: нд | AX27: ='2'!Y23 -> 0 | AY27: ='2'!AI23 -> 0 | AZ27: =AZ95 -> 0 | BA27: нд
A28: 0.6 | B28: Прочие инвестиционные проекты, всего | C28: нд | D28: =D96 -> 0 | E28: нд | F28: =F96 -> 0 | G28: нд | H28: =H96 -> 0 | I28: нд | J28: =J96 -> 0 | K28: нд | L28: =L96 -> 0 | M28: нд | N28: =N96 -> 0 | O28: нд | P28: =P96 -> 0 | Q28: нд | R28: =R96 -> 0 | S28: нд | T28: =T96 -> 0 | U28: нд | V28: =V96 -> 0 | W28: нд | X28: =X96 -> 0 | Y28: нд | Z28: =Z96 -> 0 | AA28: нд | AB28: =AB96 -> 0 | AC28: нд | AD28: =AD96 -> 0 | AE28: нд | AF28: =AF96 -> 0 | AG28: нд | AH28: =AH96 -> 0 | AI28: нд | AJ28: нд | AK28: нд | AL28: =AL96 -> 0 | AM28: нд | AN28: =AN96 -> 0 | AO28: нд | AP28: =AP96 -> 0 | AQ28: нд | AR28: =AR96 -> 0 | AS28: нд | AT28: =AT96 -> 0 | AU28: нд | AV28: =AV96 -> 0 | AW28: нд | AX28: ='2'!Y24 -> 1.87016933 | AY28: ='2'!AI24 -> 1.87016933 | AZ28: =AZ96 -> 0 | BA28: нд
A29: 1.1 | B29: Технологическое присоединение, всего, в том числе: | C29: нд | D29: =D30 -> 0 | E29: нд | F29: =F30 -> 0 | G29: нд | H29: =H30 -> 0 | I29: нд | J29: =J30 -> 0 | K29: нд | L29: =L30 -> 0 | M29: =M30 -> 1.3 | N29: =N30 -> 0.3 | O29: =O30 -> 0.375 | P29: =P30 -> 0 | Q29: нд | R29: =R30 -> 0 | S29: нд | T29: =T30 -> 0 | U29: нд | V29: =V30 -> 0 | W29: нд | X29: =X30 -> 0 | Y29: нд | Z29: =Z30 -> 0 | AA29: нд | AB29: =AB30 -> 0 | AC29: нд | AD29: =AD30 -> 0 | AE29: нд | AF29: =AF30 -> 0 | AG29: нд | AH29: =AH30 -> 0 | AI29: нд | AJ29: нд | AK29: нд | AL29: =AL30 -> 0 | AM29: нд | AN29: =AN30 -> 0 | AO29: нд | AP29: =AP30 -> 0 | AQ29: нд | AR29: =AR30 -> 0 | AS29: нд | AT29: =AT30 -> 0 | AU29: нд | AV29: =AV30 -> 0 | AW29: нд | AX29: ='2'!Y25 -> 10.59816501 | AY29: ='2'!AI25 -> 8.317308058 | AZ29: =AZ30 -> 0 | BA29: нд
A30: 1.1.1 | B30: Технологическое присоединение энергопринимающих устройств потребителей, всего, в том числе: | C30: нд | D30: =D31 -> 0 | E30: нд | F30: =F31 -> 0 | G30: нд | H30: =H31 -> 0 | I30: нд | J30: =J31 -> 0 | K30: нд | L30: =L31 -> 0 | M30: =M31+M36 -> 1.3 | N30: =N31 -> 0.3 | O30: =O31+O36 -> 0.375 | P30: =P31 -> 0 | Q30: нд | R30: =R31 -> 0 | S30: нд | T30: =T31 -> 0 | U30: нд | V30: =V31 -> 0 | W30: нд | X30: =X31 -> 0 | Y30: нд | Z30: =Z31 -> 0 | AA30: нд | AB30: =AB31 -> 0 | AC30: нд | AD30: =AD31 -> 0 | AE30: нд | AF30: =AF31 -> 0 | AG30: нд | AH30: =AH31 -> 0 | AI30: нд | AJ30: нд | AK30: нд | AL30: =AL31 -> 0 | AM30: нд | AN30: =AN31 -> 0 | AO30: нд | AP30: =AP31 -> 0 | AQ30: нд | AR30: =AR31 -> 0 | AS30: нд | AT30: =AT31 -> 0 | AU30: нд | AV30: =AV31 -> 0 | AW30: нд | AX30: ='2'!Y26 -> 10.59816501 | AY30: ='2'!AI26 -> 8.317308058 | AZ30: =AZ31 -> 0 | BA30: нд
A31: 1.1.1.1 | B31: Технологическое присоединение энергопринимающих устройств потребителей максимальной мощностью до 15 кВт включительно, всего | C31: нд | D31: =D36 -> 0 | E31: нд | F31: =F36 -> 0 | G31: нд | H31: =H36 -> 0 | I31: нд | J31: =J36 -> 0 | K31: нд | L31: =L36 -> 0 | M31: 0 | N31: =N32 -> 0.3 | O31: =O32 -> 0.3 | P31: =P36 -> 0 | Q31: нд | R31: =R36 -> 0 | S31: нд | T31: =T36 -> 0 | U31: нд | V31: =V36 -> 0 | W31: нд | X31: =X36 -> 0 | Y31: нд | Z31: =Z36 -> 0 | AA31: нд | AB31: =AB36 -> 0 | AC31: нд | AD31: =AD36 -> 0 | AE31: нд | AF31: =AF36 -> 0 | AG31: нд | AH31: =AH36 -> 0 | AI31: нд | AJ31: нд | AK31: нд | AL31: =AL36 -> 0 | AM31: нд | AN31: =AN36 -> 0 | AO31: нд | AP31: =AP36 -> 0 | AQ31: нд | AR31: =AR36 -> 0 | AS31: нд | AT31: =AT36 -> 0 | AU31: нд | AV31: =AV36 -> 0 | AW31: нд | AX31: ='2'!Y27 -> 0.78229908 | AY31: ='2'!AI27 -> 0.732882386 | AZ31: =AZ36 -> 0 | BA31: нд
A32: 1.1.1.1.1 | B32: Строительство электрических сетей для создания технической возможности технологического присоединения энергопринимающих устройств Заявителей, максимальной мощностью, не превышающей 15 кВт включительно, не включаемых в состав платы за технологическое присоединение (строительство "последней мили") | C32: Н_МСК_17 | D32: =D44 -> 0 | E32: нд | F32: =F44 -> 0 | G32: нд | H32: =H44 -> 0 | I32: нд | J32: =J44 -> 0 | K32: нд | L32: =L44 -> 0 | M32: 0 | N32: 0.3 | O32: 0.3 | P32: =P44 -> 0 | Q32: нд | R32: =R44 -> 0 | S32: нд | T32: =T44 -> 0 | U32: нд | V32: =V44 -> 0 | W32: нд | X32: =X44 -> 0 | Y32: нд | Z32: =Z44 -> 0 | AA32: нд | AB32: =AB44 -> 0 | AC32: нд | AD32: =AD44 -> 0 | AE32: нд | AF32: =AF44 -> 0 | AG32: нд | AH32: =AH44 -> 0 | AI32: нд | AJ32: нд | AK32: нд | AL32: =AL44 -> 0 | AM32: нд | AN32: =AN44 -> 0 | AO32: нд | AP32: =AP44 -> 0 | AQ32: нд | AR32: =AR44 -> 0 | AS32: нд | AT32: =AT44 -> 0 | AU32: нд | AV32: =AV44 -> 0 | AW32: нд | AX32: ='2'!Y28 -> 0.78229908 | AY32: ='2'!AI28 -> 0.732882386 | AZ32: =AZ44 -> 0 | BA32: нд
B33: ='2'!B35 -> Строительство ЛЭП-0,4 кВ от ТП №9-1 до границ земельного участка присоединяемого объекта, расположенного по адресу: РМ, г. Саранск, ул. 1-я Промышленная, земельный участок 6Б, кадастровый № 13:023:1007033:31 Моисеева | C33: нд | D33: =D45 -> 0 | E33: нд | F33: =F45 -> 0 | G33: нд | H33: =H45 -> 0 | I33: нд | J33: =J45 -> 0 | K33: нд | L33: =L45 -> 0 | M33: 0 | N33: 0 | O33: ='6'!M37 -> 0.0646 | P33: =P45 -> 0 | Q33: нд | R33: =R45 -> 0 | S33: нд | T33: =T45 -> 0 | U33: нд | V33: =V45 -> 0 | W33: нд | X33: =X45 -> 0 | Y33: нд | Z33: =Z45 -> 0 | AA33: нд | AB33: =AB45 -> 0 | AC33: нд | AD33: =AD45 -> 0 | AE33: нд | AF33: =AF45 -> 0 | AG33: нд | AH33: =AH45 -> 0 | AI33: нд | AJ33: нд | AK33: нд | AL33: =AL45 -> 0 | AM33: нд | AN33: =AN45 -> 0 | AO33: нд | AP33: =AP45 -> 0 | AQ33: нд | AR33: =AR45 -> 0 | AS33: нд | AT33: =AT45 -> 0 | AU33: нд | AV33: =AV45 -> 0 | AW33: нд | AX33: 0 | AY33: ='2'!AI35 -> 0.116811596
B34: ='2'!B36 -> Ст-во ЛЭП-0,4 кВ от ВЛИ-0,4 кВ, ТП 10/0,4 кВ №160-2221А/160 кВА, Ф-22, ВЛ-10 кВ, ПС 110/35/10кВ, Лямбирский район, с. Лямбирь, ул. Октябрьская, участок 88(Никушенков А.М.) | C34: нд | D34: =D46 -> 0 | E34: нд | F34: =F46 -> 0 | G34: нд | H34: =H46 -> 0 | I34: нд | J34: =J46 -> 0 | K34: нд | L34: =L46 -> 0 | M34: 0 | N34: 0 | O34: ='6'!M38 -> 0.127 | P34: =P46 -> 0 | Q34: нд | R34: =R46 -> 0 | S34: нд | T34: =T46 -> 0 | U34: нд | V34: =V46 -> 0 | W34: нд | X34: =X46 -> 0 | Y34: нд | Z34: =Z46 -> 0 | AA34: нд | AB34: =AB46 -> 0 | AC34: нд | AD34: =AD46 -> 0 | AE34: нд | AF34: =AF46 -> 0 | AG34: нд | AH34: =AH46 -> 0 | AI34: нд | AJ34: нд | AK34: нд | AL34: =AL46 -> 0 | AM34: нд | AN34: =AN46 -> 0 | AO34: нд | AP34: =AP46 -> 0 | AQ34: нд | AR34: =AR46 -> 0 | AS34: нд | AT34: =AT46 -> 0 | AU34: нд | AV34: =AV46 -> 0 | AW34: нд | AX34: 0 | AY34: ='2'!AI36 -> 0.21255559
B35: ='2'!B37 -> Строительство ЛЭП-0,4 кВ от РУ-0,4 кВ ТП 10/0,4/630 «Мордовоптцентр», ЛЭП-0,4 кВ от РУ-0,4кВ ТП 10/0,4 кВ №2347-16/400 кВА до границ земельного участка присоединяемого объекта, расположенного по адресу: РМ, Автодорога в северной промзоне от ж/д переезда «Северный тупик» до автомагистрали «Северный обход Саранска в г.о. Саранск, пункта питания наружного освещения №1, №2 | C35: нд | D35: =D47 -> 0 | E35: нд | F35: =F47 -> 0 | G35: нд | H35: =H47 -> 0 | I35: нд | J35: =J47 -> 0 | K35: нд | L35: =L47 -> 0 | M35: 0 | N35: 0 | O35: ='6'!M39 -> 0 | P35: =P47 -> 0 | Q35: нд | R35: =R47 -> 0 | S35: нд | T35: =T47 -> 0 | U35: нд | V35: =V47 -> 0 | W35: нд | X35: =X47 -> 0 | Y35: нд | Z35: =Z47 -> 0 | AA35: нд | AB35: =AB47 -> 0 | AC35: нд | AD35: =AD47 -> 0 | AE35: нд | AF35: =AF47 -> 0 | AG35: нд | AH35: =AH47 -> 0 | AI35: нд | AJ35: нд | AK35: нд | AL35: =AL47 -> 0 | AM35: нд | AN35: =AN47 -> 0 | AO35: нд | AP35: =AP47 -> 0 | AQ35: нд | AR35: =AR47 -> 0 | AS35: нд | AT35: =AT47 -> 0 | AU35: нд | AV35: =AV47 -> 0 | AW35: нд | AX35: 0 | AY35: ='2'!AI37 -> 0.4035152
A36: 1.1.1.2 | B36: Технологическое присоединение энергопринимающих устройств потребителей максимальной мощностью до 150 кВт включительно, всего | C36: нд | D36: 0 | E36: нд | F36: 0 | G36: нд | H36: 0 | I36: нд | J36: 0 | K36: нд | L36: 0 | M36: 1.3 | N36: 0 | O36: 0.075 | P36: 0 | Q36: нд | R36: 0 | S36: нд | T36: 0 | U36: нд | V36: 0 | W36: нд | X36: 0 | Y36: нд | Z36: 0 | AA36: нд | AB36: 0 | AC36: нд | AD36: 0 | AE36: нд | AF36: 0 | AG36: нд | AH36: 0 | AI36: нд | AJ36: нд | AK36: нд | AL36: 0 | AM36: нд | AN36: 0 | AO36: нд | AP36: 0 | AQ36: нд | AR36: 0 | AS36: нд | AT36: 0 | AU36: нд | AV36: 0 | AW36: нд | AX36: ='2'!Y38 -> 9.81586593 | AY36: ='2'!AI38 -> 7.584425672 | AZ36: 0 | BA36: нд
A37: 1.1.1.2.1 | B37: ='2'!B69 -> Строительство ЛЭП-0,4 кВ от ТП 6/0,4 кВ №0417/400 кВА до границ земельного участка присоединяемого объекта, расположенного по адресу: РМ, г. Саранск, ул. Лодыгина, д. 17Б, кадастровый номер участка 13:23:1009041:95(Арко газ, Стройгарант) | C37: нд | D37: 1 | E37: нд | F37: 0 | G37: ='4'!O71 -> 0 | H37: 0 | I37: нд | J37: 0 | K37: нд | L37: 0 | M37: 0 | N37: 0 | O37: ='4'!Q71 -> 0.1341 | P37: 0 | Q37: нд | R37: 0 | S37: нд | T37: 1 | U37: нд | V37: 0 | W37: нд | X37: 0 | Y37: нд | Z37: 0 | AA37: нд | AB37: 0 | AC37: нд | AD37: 0 | AE37: нд | AF37: 0 | AG37: нд | AH37: 0 | AI37: нд | AJ37: нд | AK37: нд | AL37: 0 | AM37: нд | AN37: 0 | AO37: нд | AP37: 0 | AQ37: нд | AR37: 0 | AS37: нд | AT37: 0 | AU37: нд | AV37: 0 | AW37: нд | AX37: ='2'!Y39 -> 0 | AY37: ='2'!AI68 -> 1.2435809
A38: 1.1.1.2.2 | B38: ='2'!B70 -> Строительство ЛЭП-6 кВ от РП-6кВ «РМЦ» до вновь проектируемой КТП-6/0,4, до границ земельных участков присоединяемых объектов, расположенных по адресам: 1) РМ, г. Саранск, ш. Северо-Восточное, д.6А, стр.1 кадастровый номер участка 13:23:1107042:155; 2) РМ, г. Саранск, ш. Северо-Восточное, д.6А, стр.3 кадастровый номер участка 13:23:1107042:12(Гущеваров) | C38: нд | D38: 2 | E38: нд | F38: 0 | G38: ='4'!O72 -> 0.25 | H38: 0 | I38: нд | J38: 2 | K38: нд | L38: 0 | M38: 0.3 | N38: 0 | O38: 0 | P38: 0 | Q38: нд | R38: 0 | S38: нд | T38: 0 | U38: нд | V38: 0 | W38: нд | X38: 0 | Y38: нд | Z38: 0 | AA38: нд | AB38: 0 | AC38: нд | AD38: 0 | AE38: нд | AF38: 0 | AG38: нд | AH38: 0 | AI38: нд | AJ38: нд | AK38: нд | AL38: 0 | AM38: нд | AN38: 0 | AO38: нд | AP38: 0 | AQ38: нд | AR38: 0 | AS38: нд | AT38: 0 | AU38: нд | AV38: 0 | AW38: нд | AX38: ='2'!Y40 -> 0 | AY38: ='2'!AI69 -> 0.26807454
A39: 1.1.1.2.3 | B39: ='2'!B71 -> Строительство ЛЭП-10 кВ от ПС 110/10 «СТЗ» до вновь проектируемой КТП-10/0,4 кВ, до границ земельного участка присоединяемого объекта, расположенного по адресу: РМ, г. Саранск, Лямбирское шоссе, 2 км, кадастровый номер участка 13:23:1007031:167(ООО "Севреный замок") | C39: нд | D39: 3 | E39: нд | F39: 0 | G39: ='4'!O73 -> 0 | H39: 0 | I39: нд | J39: 0 | K39: нд | L39: 0 | M39: 0 | N39: 0 | O39: 0 | P39: 0 | Q39: нд | R39: 0 | S39: нд | T39: 0 | U39: нд | V39: 0 | W39: нд | X39: 0 | Y39: нд | Z39: 0 | AA39: нд | AB39: 0 | AC39: нд | AD39: 0 | AE39: нд | AF39: 0 | AG39: нд | AH39: 1 | AI39: нд | AJ39: нд | AK39: нд | AL39: 0 | AM39: нд | AN39: 0 | AO39: нд | AP39: 0 | AQ39: нд | AR39: 0 | AS39: нд | AT39: 0 | AU39: нд | AV39: 0 | AW39: нд | AX39: ='2'!Y41 -> 0 | AY39: ='2'!AI70 -> 1.695463242
A40: 1.1.1.2.4 | B40: ='2'!B72 -> Строительство ЛЭП-6 кВ от ячейки №13 РП-4 до вновь проектируемой КТП-6/0,4, ЛЭП-0,4 кВ до границ земельного участка присоединяемого объекта, расположенного по адресу: РМ, г. Саранск, Северо-Восточное шоссе, д. 15, кадастровый номер участка 13:23:1104070:1059( Ноздрина) | C40: нд | D40: 4 | E40: нд | F40: 0 | G40: ='4'!O74 -> 0.4 | H40: 0 | I40: нд | J40: 0 | K40: нд | L40: 0 | M40: 0.3 | N40: 0 | O40: 0 | P40: 0 | Q40: нд | R40: 0 | S40: нд | T40: 0 | U40: нд | V40: 0 | W40: нд | X40: 0 | Y40: нд | Z40: 0 | AA40: нд | AB40: 0 | AC40: нд | AD40: 0 | AE40: нд | AF40: 0 | AG40: нд | AH40: 2 | AI40: нд | AJ40: нд | AK40: нд | AL40: 0 | AM40: нд | AN40: 0 | AO40: нд | AP40: 0 | AQ40: нд | AR40: 0 | AS40: нд | AT40: 0 | AU40: нд | AV40: 0 | AW40: нд | AX40: ='2'!Y42 -> 0 | AY40: ='2'!AI71 -> 0.9369538
A41: 1.1.1.2.5 | B41: ='2'!B73 -> Строительство ЛЭП-0,4 кВ от РУ-0,4 кВ ТП 10/0,4кВ № 2347-16/400 кВА до границ участка присоединяемого объекта, расположенного по адресу: РМ, г. Саранск, ул. Промышленная, д.2/16(Мемориал) | C41: нд | D41: 5 | E41: нд | F41: 0 | G41: ='4'!O75 -> 0 | H41: 0 | I41: нд | J41: 0 | K41: нд | L41: 0 | M41: 0 | N41: 0 | O41: ='4'!Q75 -> 0.1859 | P41: 0 | Q41: нд | R41: 0 | S41: нд | T41: 0 | U41: нд | V41: 0 | W41: нд | X41: 0 | Y41: нд | Z41: 0 | AA41: нд | AB41: 0 | AC41: нд | AD41: 0 | AE41: нд | AF41: 0 | AG41: нд | AH41: 3 | AI41: нд | AJ41: нд | AK41: нд | AL41: 0 | AM41: нд | AN41: 0 | AO41: нд | AP41: 0 | AQ41: нд | AR41: 0 | AS41: нд | AT41: 0 | AU41: нд | AV41: 0 | AW41: нд | AX41: ='2'!Y43 -> 0 | AY41: ='2'!AI72 -> 2.01816597
A42: 1.1.1.2.6 | B42: ='2'!B74 -> Строительство ЛЭП-0,4 кВ от РУ-0,4 кВ до границы участка присоединяемого объекта, расположенного по адресу: РМ, г. Саранск: ул. Промышленная 1-ая, д.45, кадастровый номер 13:23:1009041:441 (Беломамз) | C42: нд | D42: 6 | E42: нд | F42: 0 | G42: ='4'!O76 -> 0 | H42: 0 | I42: нд | J42: 0 | K42: нд | L42: 0 | M42: 0 | N42: 0 | O42: 0 | P42: 0 | Q42: нд | R42: 0 | S42: нд | T42: 0 | U42: нд | V42: 0 | W42: нд | X42: 0 | Y42: нд | Z42: 0 | AA42: нд | AB42: 0 | AC42: нд | AD42: 0 | AE42: нд | AF42: 0 | AG42: нд | AH42: 4 | AI42: нд | AJ42: нд | AK42: нд | AL42: 0 | AM42: нд | AN42: 0 | AO42: нд | AP42: 0 | AQ42: нд | AR42: 0 | AS42: нд | AT42: 0 | AU42: нд | AV42: 0 | AW42: нд | AX42: ='2'!Y44 -> 0 | AY42: ='2'!AI73 -> 0.28449209
A43: 1.1.1.2.7 | B43: ='2'!B75 -> Строительство ЛЭП-0,4 кВ от РУ-0,4 кВ ТП 10/0,4 кВ №2347-10/1/100 кВА до границ земельного участка присоединяемого объекта, расположенного по адресу: РМ, г. Саранск, ул. Промышленная 2-ая, д.18, строен.2, кадастровый номер ОКС 13:23:1009038:36 (Стройцентр М) | C43: нд | D43: 7 | E43: нд | F43: 0 | G43: ='4'!O77 -> 0 | H43: 0 | I43: нд | J43: 0 | K43: нд | L43: 0 | M43: 0 | N43: 0 | O43: 0 | P43: 0 | Q43: нд | R43: 0 | S43: нд | T43: 0 | U43: нд | V43: 0 | W43: нд | X43: 0 | Y43: нд | Z43: 0 | AA43: нд | AB43: 0 | AC43: нд | AD43: 0 | AE43: нд | AF43: 0 | AG43: нд | AH43: 5 | AI43: нд | AJ43: нд | AK43: нд | AL43: 0 | AM43: нд | AN43: 0 | AO43: нд | AP43: 0 | AQ43: нд | AR43: 0 | AS43: нд | AT43: 0 | AU43: нд | AV43: 0 | AW43: нд | AX43: ='2'!Y45 -> 0 | AY43: ='2'!AI74 -> 0.25841311
A44: 1.1.1.3 | B44: Технологическое присоединение энергопринимающих устройств потребителей свыше 150 кВт, всего, в том числе: | C44: нд | D44: 0 | E44: нд | F44: 0 | G44: нд | H44: 0 | I44: нд | J44: 0 | K44: нд | L44: 0 | M44: нд | N44: 0 | O44: нд | P44: 0 | Q44: нд | R44: 0 | S44: нд | T44: 0 | U44: нд | V44: 0 | W44: нд | X44: 0 | Y44: нд | Z44: 0 | AA44: нд | AB44: 0 | AC44: нд | AD44: 0 | AE44: нд | AF44: 0 | AG44: нд | AH44: 0 | AI44: нд | AJ44: нд | AK44: нд | AL44: 0 | AM44: нд | AN44: 0 | AO44: нд | AP44: 0 | AQ44: нд | AR44: 0 | AS44: нд | AT44: 0 | AU44: нд | AV44: 0 | AW44: нд | AX44: ='2'!Y39 -> 0 | AY44: ='2'!AI39 -> 0 | AZ44: 0 | BA44: нд
A45: 1.1.2 | B45: Технологическое присоединение объектов электросетевого хозяйства, всего, в том числе: | C45: нд | D45: 0 | E45: нд | F45: 0 | G45: нд | H45: 0 | I45: нд | J45: 0 | K45: нд | L45: 0 | M45: нд | N45: 0 | O45: нд | P45: 0 | Q45: нд | R45: 0 | S45: нд | T45: 0 | U45: нд | V45: 0 | W45: нд | X45: 0 | Y45: нд | Z45: 0 | AA45: нд | AB45: 0 | AC45: нд | AD45: 0 | AE45: нд | AF45: 0 | AG45: нд | AH45: 0 | AI45: нд | AJ45: нд | AK45: нд | AL45: 0 | AM45: нд | AN45: 0 | AO45: нд | AP45: 0 | AQ45: нд | AR45: 0 | AS45: нд | AT45: 0 | AU45: нд | AV45: 0 | AW45: нд | AX45: ='2'!Y40 -> 0 | AY45: ='2'!AI40 -> 0 | AZ45: 0 | BA45: нд
A46: 1.1.2.1 | B46: Технологическое присоединение объектов электросетевого хозяйства, принадлежащих иным сетевым организациям и иным лицам, всего, в том числе: | C46: нд | D46: 0 | E46: нд | F46: 0 | G46: нд | H46: 0 | I46: нд | J46: 0 | K46: нд | L46: 0 | M46: нд | N46: 0 | O46: нд | P46: 0 | Q46: нд | R46: 0 | S46: нд | T46: 0 | U46: нд | V46: 0 | W46: нд | X46: 0 | Y46: нд | Z46: 0 | AA46: нд | AB46: 0 | AC46: нд | AD46: 0 | AE46: нд | AF46: 0 | AG46: нд | AH46: 0 | AI46: нд | AJ46: нд | AK46: нд | AL46: 0 | AM46: нд | AN46: 0 | AO46: нд | AP46: 0 | AQ46: нд | AR46: 0 | AS46: нд | AT46: 0 | AU46: нд | AV46: 0 | AW46: нд | AX46: ='2'!Y41 -> 0 | AY46: ='2'!AI41 -> 0 | AZ46: 0 | BA46: нд
A47: 1.1.2.2 | B47: Технологическое присоединение к электрическим сетям иных сетевых организаций, всего, в том числе: | C47: нд | D47: 0 | E47: нд | F47: 0 | G47: нд | H47: 0 | I47: нд | J47: 0 | K47: нд | L47: 0 | M47: нд | N47: 0 | O47: нд | P47: 0 | Q47: нд | R47: 0 | S47: нд | T47: 0 | U47: нд | V47: 0 | W47: нд | X47: 0 | Y47: нд | Z47: 0 | AA47: нд | AB47: 0 | AC47: нд | AD47: 0 | AE47: нд | AF47: 0 | AG47: нд | AH47: 0 | AI47: нд | AJ47: нд | AK47: нд | AL47: 0 | AM47: нд | AN47: 0 | AO47: нд | AP47: 0 | AQ47: нд | AR47: 0 | AS47: нд | AT47: 0 | AU47: нд | AV47: 0 | AW47: нд | AX47: ='2'!Y42 -> 0 | AY47: ='2'!AI42 -> 0 | AZ47: 0 | BA47: нд
A48: 1.1.3 | B48: Технологическое присоединение объектов по производству электрической энергии всего, в том числе: | C48: нд | D48: 0 | E48: нд | F48: 0 | G48: нд | H48: 0 | I48: нд | J48: 0 | K48: нд | L48: 0 | M48: нд | N48: 0 | O48: нд | P48: 0 | Q48: нд | R48: 0 | S48: нд | T48: 0 | U48: нд | V48: 0 | W48: нд | X48: 0 | Y48: нд | Z48: 0 | AA48: нд | AB48: 0 | AC48: нд | AD48: 0 | AE48: нд | AF48: 0 | AG48: нд | AH48: 0 | AI48: нд | AJ48: нд | AK48: нд | AL48: 0 | AM48: нд | AN48: 0 | AO48: нд | AP48: 0 | AQ48: нд | AR48: 0 | AS48: нд | AT48: 0 | AU48: нд | AV48: 0 | AW48: нд | AX48: ='2'!Y43 -> 0 | AY48: ='2'!AI43 -> 0 | AZ48: 0 | BA48: нд
A49: 1.1.3.1 | B49: Наименование объекта по производству электрической энергии, всего, в том числе: | C49: нд | D49: 0 | E49: нд | F49: 0 | G49: нд | H49: 0 | I49: нд | J49: 0 | K49: нд | L49: 0 | M49: нд | N49: 0 | O49: нд | P49: 0 | Q49: нд | R49: 0 | S49: нд | T49: 0 | U49: нд | V49: 0 | W49: нд | X49: 0 | Y49: нд | Z49: 0 | AA49: нд | AB49: 0 | AC49: нд | AD49: 0 | AE49: нд | AF49: 0 | AG49: нд | AH49: 0 | AI49: нд | AJ49: нд | AK49: нд | AL49: 0 | AM49: нд | AN49: 0 | AO49: нд | AP49: 0 | AQ49: нд | AR49: 0 | AS49: нд | AT49: 0 | AU49: нд | AV49: 0 | AW49: нд | AX49: ='2'!Y44 -> 0 | AY49: ='2'!AI44 -> 0 | AZ49: 0 | BA49: нд
A50: 1.1.3.1 | B50: Строительство новых объектов электросетевого хозяйства (за исключением усиления существующей электрической сети) в целях осуществления технологического присоединения объекта по производству электрической энергии, всего, в том числе: | C50: нд | D50: 0 | E50: нд | F50: 0 | G50: нд | H50: 0 | I50: нд | J50: 0 | K50: нд | L50: 0 | M50: нд | N50: 0 | O50: нд | P50: 0 | Q50: нд | R50: 0 | S50: нд | T50: 0 | U50: нд | V50: 0 | W50: нд | X50: 0 | Y50: нд | Z50: 0 | AA50: нд | AB50: 0 | AC50: нд | AD50: 0 | AE50: нд | AF50: 0 | AG50: нд | AH50: 0 | AI50: нд | AJ50: нд | AK50: нд | AL50: 0 | AM50: нд | AN50: 0 | AO50: нд | AP50: 0 | AQ50: нд | AR50: 0 | AS50: нд | AT50: 0 | AU50: нд | AV50: 0 | AW50: нд | AX50: ='2'!Y45 -> 0 | AY50: ='2'!AI45 -> 0 | AZ50: 0 | BA50: нд
A51: 1.1.3.1 | B51: Строительство новых объектов электросетевого хозяйства для усиления электрической сети в целях осуществления технологического присоединения объекта по производству электрической энергии, всего, в том числе: | C51: нд | D51: 0 | E51: нд | F51: 0 | G51: нд | H51: 0 | I51: нд | J51: 0 | K51: нд | L51: 0 | M51: нд | N51: 0 | O51: нд | P51: 0 | Q51: нд | R51: 0 | S51: нд | T51: 0 | U51: нд | V51: 0 | W51: нд | X51: 0 | Y51: нд | Z51: 0 | AA51: нд | AB51: 0 | AC51: нд | AD51: 0 | AE51: нд | AF51: 0 | AG51: нд | AH51: 0 | AI51: нд | AJ51: нд | AK51: нд | AL51: 0 | AM51: нд | AN51: 0 | AO51: нд | AP51: 0 | AQ51: нд | AR51: 0 | AS51: нд | AT51: 0 | AU51: нд | AV51: 0 | AW51: нд | AX51: ='2'!Y46 -> 0 | AY51: ='2'!AI46 -> 0 | AZ51: 0 | BA51: нд
A52: 1.1.3.1 | B52: Реконструкция существующих объектов электросетевого хозяйства для усиления электрической сети в целях осуществления технологического присоединения объекта по производству электрической энергии всего, в том числе: | C52: нд | D52: 0 | E52: нд | F52: 0 | G52: нд | H52: 0 | I52: нд | J52: 0 | K52: нд | L52: 0 | M52: нд | N52: 0 | O52: нд | P52: 0 | Q52: нд | R52: 0 | S52: нд | T52: 0 | U52: нд | V52: 0 | W52: нд | X52: 0 | Y52: нд | Z52: 0 | AA52: нд | AB52: 0 | AC52: нд | AD52: 0 | AE52: нд | AF52: 0 | AG52: нд | AH52: 0 | AI52: нд | AJ52: нд | AK52: нд | AL52: 0 | AM52: нд | AN52: 0 | AO52: нд | AP52: 0 | AQ52: нд | AR52: 0 | AS52: нд | AT52: 0 | AU52: нд | AV52: 0 | AW52: нд | AX52: ='2'!Y47 -> 0 | AY52: ='2'!AI47 -> 0 | AZ52: 0 | BA52: нд
A53: 1.1.3.2 | B53: Наименование объекта по производству электрической энергии, всего, в том числе: | C53: нд | D53: 0 | E53: нд | F53: 0 | G53: нд | H53: 0 | I53: нд | J53: 0 | K53: нд | L53: 0 | M53: нд | N53: 0 | O53: нд | P53: 0 | Q53: нд | R53: 0 | S53: нд | T53: 0 | U53: нд | V53: 0 | W53: нд | X53: 0 | Y53: нд | Z53: 0 | AA53: нд | AB53: 0 | AC53: нд | AD53: 0 | AE53: нд | AF53: 0 | AG53: нд | AH53: 0 | AI53: нд | AJ53: нд | AK53: нд | AL53: 0 | AM53: нд | AN53: 0 | AO53: нд | AP53: 0 | AQ53: нд | AR53: 0 | AS53: нд | AT53: 0 | AU53: нд | AV53: 0 | AW53: нд | AX53: ='2'!Y48 -> 0 | AY53: ='2'!AI48 -> 0 | AZ53: 0 | BA53: нд
A54: 1.1.3.2 | B54: Строительство новых объектов электросетевого хозяйства (за исключением усиления существующей электрической сети) в целях осуществления технологического присоединения объекта по производству электрической энергии, всего, в том числе: | C54: нд | D54: 0 | E54: нд | F54: 0 | G54: нд | H54: 0 | I54: нд | J54: 0 | K54: нд | L54: 0 | M54: нд | N54: 0 | O54: нд | P54: 0 | Q54: нд | R54: 0 | S54: нд | T54: 0 | U54: нд | V54: 0 | W54: нд | X54: 0 | Y54: нд | Z54: 0 | AA54: нд | AB54: 0 | AC54: нд | AD54: 0 | AE54: нд | AF54: 0 | AG54: нд | AH54: 0 | AI54: нд | AJ54: нд | AK54: нд | AL54: 0 | AM54: нд | AN54: 0 | AO54: нд | AP54: 0 | AQ54: нд | AR54: 0 | AS54: нд | AT54: 0 | AU54: нд | AV54: 0 | AW54: нд | AX54: ='2'!Y49 -> 0 | AY54: ='2'!AI49 -> 0 | AZ54: 0 | BA54: нд
A55: 1.1.3.2 | B55: Строительство новых объектов электросетевого хозяйства для усиления электрической сети в целях осуществления технологического присоединения объекта по производству электрической энергии, всего, в том числе: | C55: нд | D55: 0 | E55: нд | F55: 0 | G55: нд | H55: 0 | I55: нд | J55: 0 | K55: нд | L55: 0 | M55: нд | N55: 0 | O55: нд | P55: 0 | Q55: нд | R55: 0 | S55: нд | T55: 0 | U55: нд | V55: 0 | W55: нд | X55: 0 | Y55: нд | Z55: 0 | AA55: нд | AB55: 0 | AC55: нд | AD55: 0 | AE55: нд | AF55: 0 | AG55: нд | AH55: 0 | AI55: нд | AJ55: нд | AK55: нд | AL55: 0 | AM55: нд | AN55: 0 | AO55: нд | AP55: 0 | AQ55: нд | AR55: 0 | AS55: нд | AT55: 0 | AU55: нд | AV55: 0 | AW55: нд | AX55: ='2'!Y50 -> 0 | AY55: ='2'!AI50 -> 0 | AZ55: 0 | BA55: нд
A56: 1.1.3.2 | B56: Реконструкция существующих объектов электросетевого хозяйства для усиления электрической сети в целях осуществления технологического присоединения объекта по производству электрической энергии, всего, в том числе: | C56: нд | D56: 0 | E56: нд | F56: 0 | G56: нд | H56: 0 | I56: нд | J56: 0 | K56: нд | L56: 0 | M56: нд | N56: 0 | O56: нд | P56: 0 | Q56: нд | R56: 0 | S56: нд | T56: 0 | U56: нд | V56: 0 | W56: нд | X56: 0 | Y56: нд | Z56: 0 | AA56: нд | AB56: 0 | AC56: нд | AD56: 0 | AE56: нд | AF56: 0 | AG56: нд | AH56: 0 | AI56: нд | AJ56: нд | AK56: нд | AL56: 0 | AM56: нд | AN56: 0 | AO56: нд | AP56: 0 | AQ56: нд | AR56: 0 | AS56: нд | AT56: 0 | AU56: нд | AV56: 0 | AW56: нд | AX56: ='2'!Y51 -> 0 | AY56: ='2'!AI51 -> 0 | AZ56: 0 | BA56: нд
A57: 1.1.4 | B57: Усиление электрической сети в целях осуществления технологического присоединения энергопринимающих устройств потребителей и (или) объектов электросетевого хозяйства всего, в том числе: | C57: нд | D57: 0 | E57: нд | F57: 0 | G57: нд | H57: 0 | I57: нд | J57: 0 | K57: нд | L57: 0 | M57: нд | N57: 0 | O57: нд | P57: 0 | Q57: нд | R57: 0 | S57: нд | T57: 0 | U57: нд | V57: 0 | W57: нд | X57: 0 | Y57: нд | Z57: 0 | AA57: нд | AB57: 0 | AC57: нд | AD57: 0 | AE57: нд | AF57: 0 | AG57: нд | AH57: 0 | AI57: нд | AJ57: нд | AK57: нд | AL57: 0 | AM57: нд | AN57: 0 | AO57: нд | AP57: 0 | AQ57: нд | AR57: 0 | AS57: нд | AT57: 0 | AU57: нд | AV57: 0 | AW57: нд | AX57: ='2'!Y52 -> 0 | AY57: ='2'!AI52 -> 0 | AZ57: 0 | BA57: нд
A58: 1.1.4.1 | B58: Строительство новых объектов электросетевого хозяйства для усиления электрической сети в целях осуществления технологического присоединения, всего, в том числе: | C58: нд | D58: 0 | E58: нд | F58: 0 | G58: нд | H58: 0 | I58: нд | J58: 0 | K58: нд | L58: 0 | M58: нд | N58: 0 | O58: нд | P58: 0 | Q58: нд | R58: 0 | S58: нд | T58: 0 | U58: нд | V58: 0 | W58: нд | X58: 0 | Y58: нд | Z58: 0 | AA58: нд | AB58: 0 | AC58: нд | AD58: 0 | AE58: нд | AF58: 0 | AG58: нд | AH58: 0 | AI58: нд | AJ58: нд | AK58: нд | AL58: 0 | AM58: нд | AN58: 0 | AO58: нд | AP58: 0 | AQ58: нд | AR58: 0 | AS58: нд | AT58: 0 | AU58: нд | AV58: 0 | AW58: нд | AX58: ='2'!Y53 -> 0 | AY58: ='2'!AI53 -> 0 | AZ58: 0 | BA58: нд
A59: 1.1.4.2 | B59: Реконструкция существующих объектов электросетевого хозяйства для усиления электрической сети в целях осуществления технологического присоединения, всего, в том числе: | C59: нд | D59: 0 | E59: нд | F59: 0 | G59: нд | H59: 0 | I59: нд | J59: 0 | K59: нд | L59: 0 | M59: нд | N59: 0 | O59: нд | P59: 0 | Q59: нд | R59: 0 | S59: нд | T59: 0 | U59: нд | V59: 0 | W59: нд | X59: 0 | Y59: нд | Z59: 0 | AA59: нд | AB59: 0 | AC59: нд | AD59: 0 | AE59: нд | AF59: 0 | AG59: нд | AH59: 0 | AI59: нд | AJ59: нд | AK59: нд | AL59: 0 | AM59: нд | AN59: 0 | AO59: нд | AP59: 0 | AQ59: нд | AR59: 0 | AS59: нд | AT59: 0 | AU59: нд | AV59: 0 | AW59: нд | AX59: ='2'!Y54 -> 0 | AY59: ='2'!AI54 -> 0 | AZ59: 0 | BA59: нд
A60: 1.2 | B60: Реконструкция, модернизация, техническое перевооружение всего, в том числе: | C60: нд | D60: =D61+D69+D76 -> 0 | E60: нд | F60: =F61+F69+F76 -> 0 | G60: нд | H60: =H61+H69+H76 -> 0 | I60: нд | J60: =J61+J69+J76 -> 0 | K60: нд | L60: =L61+L69+L76 -> 0 | M60: нд | N60: =N61+N69+N76 -> 0 | O60: нд | P60: =P61+P69+P76 -> 0 | Q60: нд | R60: =R61+R69+R76 -> 0 | S60: нд | T60: =T61+T69+T76 -> 0 | U60: нд | V60: =V61+V69+V76 -> 0 | W60: нд | X60: =X61+X69+X76 -> 0 | Y60: нд | Z60: =Z62 -> 2 | AA60: =AA62 -> 2 | AB60: =AB61+AB69+AB76 -> 0 | AC60: нд | AD60: =AD61+AD69+AD76 -> 0 | AE60: нд | AF60: =AF61+AF69+AF76 -> 0 | AG60: нд | AH60: =AH61+AH69+AH76 -> 0 | AI60: нд | AJ60: нд | AK60: нд | AL60: =AL61+AL69+AL76 -> 0 | AM60: нд | AN60: =AN61+AN69+AN76 -> 0 | AO60: нд | AP60: =AP61+AP69+AP76 -> 0 | AQ60: нд | AR60: =AR61+AR69+AR76 -> 0 | AS60: нд | AT60: =AT61+AT69+AT76 -> 0 | AU60: нд | AV60: =AV61+AV69+AV76 -> 0 | AW60: нд | AX60: ='2'!Y76 -> 0.13492091 | AY60: ='2'!AI76 -> 0.13492091 | AZ60: =AZ61+AZ69+AZ76 -> 0 | BA60: нд
A61: 1.2.1 | B61: Реконструкция, модернизация, техническое перевооружение трансформаторных и иных подстанций, распределительных пунктов, всего, в том числе: | C61: нд | D61: =D62 -> 0 | E61: нд | F61: =F62 -> 0 | G61: нд | H61: =H62 -> 0 | I61: нд | J61: =J62 -> 0 | K61: нд | L61: =L62 -> 0 | M61: нд | N61: =N62 -> 0 | O61: нд | P61: =P62 -> 0 | Q61: нд | R61: =R62 -> 0 | S61: нд | T61: =T62 -> 0 | U61: нд | V61: =V62 -> 0 | W61: нд | X61: =X62 -> 0 | Y61: нд | Z61: 0 | AA61: нд | AB61: =AB62 -> 0 | AC61: нд | AD61: =AD62 -> 0 | AE61: нд | AF61: =AF62 -> 0 | AG61: нд | AH61: =AH62 -> 0 | AI61: нд | AJ61: нд | AK61: нд | AL61: =AL62 -> 0 | AM61: нд | AN61: =AN62 -> 0 | AO61: нд | AP61: =AP62 -> 0 | AQ61: нд | AR61: =AR62 -> 0 | AS61: нд | AT61: =AT62 -> 0 | AU61: нд | AV61: =AV62 -> 0 | AW61: нд | AX61: ='2'!Y77 -> 0.13492091 | AY61: ='2'!AI77 -> 0.13492091 | AZ61: =AZ62 -> 0 | BA61: нд
A62: 1.2.1.1 | B62: Реконструкция трансформаторных и иных подстанций, всего, в том числе: | C62: нд | D62: =SUM(D66:D68) -> 0 | E62: нд | F62: =SUM(F66:F68) -> 0 | G62: нд | H62: =SUM(H66:H68) -> 0 | I62: нд | J62: =SUM(J66:J68) -> 0 | K62: нд | L62: =SUM(L66:L68) -> 0 | M62: нд | N62: =SUM(N66:N68) -> 0 | O62: нд | P62: =SUM(P66:P68) -> 0 | Q62: нд | R62: =SUM(R66:R68) -> 0 | S62: нд | T62: =SUM(T66:T68) -> 0 | U62: нд | V62: =SUM(V66:V68) -> 0 | W62: нд | X62: =SUM(X66:X68) -> 0 | Y62: нд | Z62: =SUM(Z66:Z68) -> 2 | AA62: =SUM(AA63:AA68) -> 2 | AB62: =SUM(AB66:AB68) -> 0 | AC62: нд | AD62: =SUM(AD66:AD68) -> 0 | AE62: нд | AF62: =SUM(AF66:AF68) -> 0 | AG62: нд | AH62: =SUM(AH66:AH68) -> 0 | AI62: нд | AJ62: нд | AK62: нд | AL62: =SUM(AL66:AL68) -> 0 | AM62: нд | AN62: =SUM(AN66:AN68) -> 0 | AO62: нд | AP62: =SUM(AP66:AP68) -> 0 | AQ62: нд | AR62: =SUM(AR66:AR68) -> 0 | AS62: нд | AT62: =SUM(AT66:AT68) -> 0 | AU62: нд | AV62: =SUM(AV66:AV68) -> 0 | AW62: нд | AX62: ='2'!Y78 -> 0.13492091 | AY62: ='2'!AI78 -> 0.13492091 | AZ62: =SUM(AZ66:AZ68) -> 0 | BA62: нд
A63: 1.2.1.1 | B63: Замена ячеек с автоматами АВМ-1000 А на панели щитов ЩО-70 в ТП-10/0,4 кВ «Масис» по адресу: г.Саранск, Александровское шоссе, 26 | C63: Н_МСК_01 | D63: 0 | E63: 0 | F63: 0 | G63: 0 | H63: 0 | I63: 0 | J63: 0 | K63: 0 | L63: 0 | M63: 0 | N63: 0 | O63: 0 | P63: 0 | Q63: 0 | R63: 0 | S63: 0 | T63: 0 | U63: 0 | V63: 0 | W63: 0 | X63: 0 | Y63: 0 | Z63: 0 | AA63: 0 | AB63: 0 | AC63: 0 | AD63: 0 | AE63: 0 | AF63: 0 | AG63: 0 | AH63: 0 | AI63: 0 | AJ63: 0 | AK63: 0 | AL63: 0 | AM63: 0 | AN63: 0 | AO63: 0 | AP63: 0 | AQ63: 0 | AR63: 0 | AS63: 0 | AT63: 0 | AU63: 0 | AV63: 0 | AW63: 0 | AX63: ='2'!Y79 -> 0.13492091 | AY63: ='2'!AI79 -> 0.13492091 | AZ63: 0 | BA63: 0
A64: 1.2.1.1 | B64: Установка камеры КСО-366 1НУЗ В ТП-10/0,4 кВ «Масис» по адресу: г.Саранск, Александровское шоссе, 26 | C64: Н_МСК_02 | D64: 0 | E64: 0 | F64: 0 | G64: 0 | H64: 0 | I64: 0 | J64: 0 | K64: 0 | L64: 0 | M64: 0 | N64: 0 | O64: 0 | P64: 0 | Q64: 0 | R64: 0 | S64: 0 | T64: 0 | U64: 0 | V64: 0 | W64: 0 | X64: 0 | Y64: 0 | Z64: 0 | AA64: 0 | AB64: 0 | AC64: 0 | AD64: 0 | AE64: 0 | AF64: 0 | AG64: 0 | AH64: 0 | AI64: 0 | AJ64: 0 | AK64: 0 | AL64: 0 | AM64: 0 | AN64: 0 | AO64: 0 | AP64: 0 | AQ64: 0 | AR64: 0 | AS64: 0 | AT64: 0 | AU64: 0 | AV64: 0 | AW64: 0 | AX64: ='2'!Y80 -> 0 | AY64: ='2'!AI80 -> 0 | AZ64: 0 | BA64: 0
A65: 1.2.1.1 | B65: Замена выключателей нагрузки ВН-16 на ВНА/ТЕ-(Л)л-10/630 ТП-560/630/6/0,4 кВ «СТЭМ» по адресу: г.Саранск, ул. Пролетарская, 144 А | C65: Н_МСК_03 | D65: 0 | E65: 0 | F65: 0 | G65: 0 | H65: 0 | I65: 0 | J65: 0 | K65: 0 | L65: 0 | M65: 0 | N65: 0 | O65: 0 | P65: 0 | Q65: 0 | R65: 0 | S65: 0 | T65: 0 | U65: 0 | V65: 0 | W65: 0 | X65: 0 | Y65: 0 | Z65: 0 | AA65: 0 | AB65: 0 | AC65: 0 | AD65: 0 | AE65: 0 | AF65: 0 | AG65: 0 | AH65: 0 | AI65: 0 | AJ65: 0 | AK65: 0 | AL65: 0 | AM65: 0 | AN65: 0 | AO65: 0 | AP65: 0 | AQ65: 0 | AR65: 0 | AS65: 0 | AT65: 0 | AU65: 0 | AV65: 0 | AW65: 0 | AX65: ='2'!Y81 -> 0 | AY65: ='2'!AI81 -> 0 | AZ65: 0 | BA65: 0
A66: 1.2.1.1 | B66: Замена масляных выключателей на вакуумные в ТП-630/10/0,4 кВ «Ремстроймаш», по адресу: г.Саранск, Александровское шоссе, 8 | C66: Н_МСК_04 | D66: 0 | E66: нд | F66: 0 | G66: нд | H66: 0 | I66: нд | J66: 0 | K66: нд | L66: 0 | M66: нд | N66: 0 | O66: нд | P66: 0 | Q66: нд | R66: 0 | S66: нд | T66: 0 | U66: нд | V66: 0 | W66: нд | X66: 0 | Y66: нд | Z66: 2 | AA66: 2 | AB66: 0 | AC66: нд | AD66: 0 | AE66: нд | AF66: 0 | AG66: нд | AH66: 0 | AI66: нд | AJ66: нд | AK66: нд | AL66: 0 | AM66: нд | AN66: 0 | AO66: нд | AP66: 0 | AQ66: нд | AR66: 0 | AS66: нд | AT66: 0 | AU66: нд | AV66: 0 | AW66: нд | AX66: ='2'!Y82 -> 0 | AY66: ='2'!AI82 -> 0 | AZ66: 0 | BA66: нд
A67: 1.2.1.1 | B67: Монтаж ТСН-10/0,4 кВ для ТП-630/10/0,4 кВ «Рестроймаш», по адресу: г.Саранск, Александровское шоссе, 8 | C67: Н_МСК_05 | D67: 0 | E67: нд | F67: 0 | G67: нд | H67: 0 | I67: нд | J67: 0 | K67: нд | L67: 0 | M67: нд | N67: 0 | O67: нд | P67: 0 | Q67: нд | R67: 0 | S67: нд | T67: 0 | U67: нд | V67: 0 | W67: нд | X67: 0 | Y67: нд | Z67: 0 | AA67: нд | AB67: 0 | AC67: нд | AD67: 0 | AE67: нд | AF67: 0 | AG67: нд | AH67: 0 | AI67: нд | AJ67: нд | AK67: нд | AL67: 0 | AM67: нд | AN67: 0 | AO67: нд | AP67: 0 | AQ67: нд | AR67: 0 | AS67: нд | AT67: 0 | AU67: нд | AV67: 0 | AW67: нд | AX67: ='2'!Y83 -> 0 | AY67: ='2'!AI83 -> 0 | AZ67: 0 | BA67: нд
A68: 1.2.1.2 | B68: Модернизация, техническое перевооружение трансформаторных и иных подстанций, распределительных пунктов, всего, в том числе: | C68: нд | D68: 0 | E68: нд | F68: 0 | G68: нд | H68: 0 | I68: нд | J68: 0 | K68: нд | L68: 0 | M68: нд | N68: 0 | O68: нд | P68: 0 | Q68: нд | R68: 0 | S68: нд | T68: 0 | U68: нд | V68: 0 | W68: нд | X68: 0 | Y68: нд | Z68: 0 | AA68: нд | AB68: 0 | AC68: нд | AD68: 0 | AE68: нд | AF68: 0 | AG68: нд | AH68: 0 | AI68: нд | AJ68: нд | AK68: нд | AL68: 0 | AM68: нд | AN68: 0 | AO68: нд | AP68: 0 | AQ68: нд | AR68: 0 | AS68: нд | AT68: 0 | AU68: нд | AV68: 0 | AW68: нд | AX68: ='2'!Y84 -> 0 | AY68: ='2'!AI84 -> 0 | AZ68: 0 | BA68: нд
A69: 1.2.2 | B69: Реконструкция, модернизация, техническое перевооружение линий электропередачи, всего, в том числе: | C69: нд | D69: 0 | E69: нд | F69: 0 | G69: нд | H69: 0 | I69: нд | J69: 0 | K69: нд | L69: 0 | M69: нд | N69: 0 | O69: нд | P69: 0 | Q69: нд | R69: 0 | S69: нд | T69: 0 | U69: нд | V69: 0 | W69: нд | X69: 0 | Y69: нд | Z69: 0 | AA69: нд | AB69: 0 | AC69: нд | AD69: 0 | AE69: нд | AF69: 0 | AG69: нд | AH69: 0 | AI69: нд | AJ69: нд | AK69: нд | AL69: 0 | AM69: нд | AN69: 0 | AO69: нд | AP69: 0 | AQ69: нд | AR69: 0 | AS69: нд | AT69: 0 | AU69: нд | AV69: 0 | AW69: нд | AX69: ='2'!Y85 -> 0 | AY69: ='2'!AI85 -> 0 | AZ69: 0 | BA69: нд
A70: 1.2.2.1 | B70: Реконструкция линий электропередачи, всего, в том числе: | C70: нд | D70: 0 | E70: нд | F70: 0 | G70: нд | H70: 0 | I70: нд | J70: 0 | K70: нд | L70: 0 | M70: нд | N70: 0 | O70: =SUM(O71:O74) -> 0 | P70: 0 | Q70: нд | R70: 0 | S70: нд | T70: 0 | U70: нд | V70: 0 | W70: нд | X70: 0 | Y70: нд | Z70: 0 | AA70: нд | AB70: 0 | AC70: нд | AD70: 0 | AE70: нд | AF70: 0 | AG70: нд | AH70: 0 | AI70: нд | AJ70: нд | AK70: нд | AL70: 0 | AM70: нд | AN70: 0 | AO70: нд | AP70: 0 | AQ70: нд | AR70: 0 | AS70: нд | AT70: 0 | AU70: нд | AV70: 0 | AW70: нд | AX70: ='2'!Y86 -> 0 | AY70: ='2'!AI86 -> 0 | AZ70: 0 | BA70: нд
A71: 1.2.2.1 | B71: Реконструкция линии ВЛ-0,4 кВ протяженностью 0,867 км на ВЛИ-0,4 кВ по адресу: р.п. Ромоданово, пер. Филатова | C71: Н_МСК_06 | D71: 0 | E71: 0 | F71: 0 | G71: 0 | H71: 0 | I71: 0 | J71: 0 | K71: 0 | L71: 0 | M71: 0 | N71: 0 | O71: 0 | P71: 0 | Q71: 0 | R71: 0 | S71: 0 | T71: 0 | U71: 0 | V71: 0 | W71: 0 | X71: 0 | Y71: 0 | Z71: 0 | AA71: 0 | AB71: 0 | AC71: 0 | AD71: 0 | AE71: 0 | AF71: 0 | AG71: 0 | AH71: 0 | AI71: 0 | AJ71: 0 | AK71: 0 | AL71: 0 | AM71: 0 | AN71: 0 | AO71: 0 | AP71: 0 | AQ71: 0 | AR71: 0 | AS71: 0 | AT71: 0 | AU71: 0 | AV71: 0 | AW71: 0 | AX71: ='2'!Y87 -> 0 | AY71: ='2'!AI87 -> 0 | AZ71: 0 | BA71: 0
A72: 1.2.2.1 | B72: Реконструкция ВЛ-10 кВ от яч. 23 ГПП 110/10 кВ «ВКМ-Сталь» | C72: Н_МСК_07 | D72: 0 | E72: 0 | F72: 0 | G72: 0 | H72: 0 | I72: 0 | J72: 0 | K72: 0 | L72: 0 | M72: 0 | N72: 0 | O72: 0 | P72: 0 | Q72: 0 | R72: 0 | S72: 0 | T72: 0 | U72: 0 | V72: 0 | W72: 0 | X72: 0 | Y72: 0 | Z72: 0 | AA72: 0 | AB72: 0 | AC72: 0 | AD72: 0 | AE72: 0 | AF72: 0 | AG72: 0 | AH72: 0 | AI72: 0 | AJ72: 0 | AK72: 0 | AL72: 0 | AM72: 0 | AN72: 0 | AO72: 0 | AP72: 0 | AQ72: 0 | AR72: 0 | AS72: 0 | AT72: 0 | AU72: 0 | AV72: 0 | AW72: 0 | AX72: ='2'!Y88 -> 0 | AY72: ='2'!AI88 -> 0 | AZ72: 0 | BA72: 0
A73: 1.2.2.1 | B73: Замена двух КЛ-6 кВ от ГРУ-6 кВ ТЭЦ-2 до ТП-630/10/0,4 кВ «Ремстроймаш», по адресу: г.Саранск, Александровское шоссе, 8 | C73: Н_МСК_08 | D73: 0 | E73: 0 | F73: 0 | G73: 0 | H73: 0 | I73: 0 | J73: 0 | K73: 0 | L73: 0 | M73: 0 | N73: 0 | O73: 0 | P73: 0 | Q73: 0 | R73: 0 | S73: 0 | T73: 0 | U73: 0 | V73: 0 | W73: 0 | X73: 0 | Y73: 0 | Z73: 0 | AA73: 0 | AB73: 0 | AC73: 0 | AD73: 0 | AE73: 0 | AF73: 0 | AG73: 0 | AH73: 0 | AI73: 0 | AJ73: 0 | AK73: 0 | AL73: 0 | AM73: 0 | AN73: 0 | AO73: 0 | AP73: 0 | AQ73: 0 | AR73: 0 | AS73: 0 | AT73: 0 | AU73: 0 | AV73: 0 | AW73: 0 | AX73: ='2'!Y89 -> 0 | AY73: ='2'!AI89 -> 0 | AZ73: 0 | BA73: 0
B74: Реконструкция ВЛ-0,4 кВ от ТП 10/0,4 кВ "Поводимовская школа - интернат" с заменой ТП 10/0,4 кВ мощностью 160 кВА в с. Поводимово Дубенского муниципального района РМ | C74: J_МСК_21 | D74: 0 | E74: 0 | F74: 0 | G74: 0 | H74: 0 | I74: 0 | J74: 0 | K74: 0 | L74: 0 | M74: 0 | N74: 0 | O74: 0 | P74: 0 | Q74: 0 | R74: 0 | S74: 0 | T74: 0 | U74: 0 | V74: 0 | W74: 0.16 | X74: 0 | Y74: 0.737 | Z74: 0 | AA74: 0 | AB74: 0 | AC74: 0 | AD74: 0 | AE74: 0 | AF74: 0 | AG74: 0 | AH74: 0 | AI74: 0 | AJ74: 0 | AK74: 0 | AL74: 0 | AM74: 0 | AN74: 0 | AO74: 0 | AP74: 0 | AQ74: 0 | AR74: 0 | AS74: 0 | AT74: 0 | AU74: 0 | AV74: 0 | AW74: ='2'!AI91 -> 0 | AX74: 0 | AY74: 0
A75: 1.2.2.2 | B75: Модернизация, техническое перевооружение линий электропередачи, всего, в том числе: | C75: нд | D75: 0 | E75: нд | F75: 0 | G75: нд | H75: 0 | I75: нд | J75: 0 | K75: нд | L75: 0 | M75: нд | N75: 0 | O75: нд | P75: 0 | Q75: нд | R75: 0 | S75: нд | T75: 0 | U75: нд | V75: 0 | W75: нд | X75: 0 | Y75: нд | Z75: 0 | AA75: нд | AB75: 0 | AC75: нд | AD75: 0 | AE75: нд | AF75: 0 | AG75: нд | AH75: 0 | AI75: нд | AJ75: нд | AK75: нд | AL75: 0 | AM75: нд | AN75: 0 | AO75: нд | AP75: 0 | AQ75: нд | AR75: 0 | AS75: нд | AT75: 0 | AU75: нд | AV75: 0 | AW75: нд | AX75: ='2'!Y90 -> 0 | AY75: ='2'!AI90 -> 0 | AZ75: 0 | BA75: нд
A76: 1.2.3 | B76: Развитие и модернизация учета электрической энергии (мощности), всего, в том числе: | C76: нд | D76: 0 | E76: нд | F76: 0 | G76: нд | H76: 0 | I76: нд | J76: 0 | K76: нд | L76: 0 | M76: нд | N76: 0 | O76: нд | P76: 0 | Q76: нд | R76: 0 | S76: нд | T76: 0 | U76: нд | V76: 0 | W76: нд | X76: 0 | Y76: нд | Z76: 0 | AA76: нд | AB76: 0 | AC76: нд | AD76: 0 | AE76: нд | AF76: 0 | AG76: нд | AH76: 0 | AI76: нд | AJ76: =AJ78+AJ81 -> 59 | AK76: =AK78+AK81 -> 0 | AL76: 0 | AM76: нд | AN76: 0 | AO76: нд | AP76: 0 | AQ76: нд | AR76: 0 | AS76: нд | AT76: 0 | AU76: нд | AV76: 0 | AW76: нд | AX76: ='2'!Y92 -> 0 | AY76: ='2'!AI92 -> 0 | AZ76: 0 | BA76: нд
A77: 1.2.3.1 | B77: «Установка приборов учета, класс напряжения 0,22 (0,4) кВ, всего, в том числе:» | C77: нд | D77: 0 | E77: нд | F77: 0 | G77: нд | H77: 0 | I77: нд | J77: 0 | K77: нд | L77: 0 | M77: нд | N77: 0 | O77: нд | P77: 0 | Q77: нд | R77: 0 | S77: нд | T77: 0 | U77: нд | V77: 0 | W77: нд | X77: 0 | Y77: нд | Z77: 0 | AA77: нд | AB77: 0 | AC77: нд | AD77: 0 | AE77: нд | AF77: 0 | AG77: нд | AH77: 0 | AI77: нд | AJ77: нд | AK77: нд | AL77: 0 | AM77: нд | AN77: 0 | AO77: нд | AP77: 0 | AQ77: нд | AR77: 0 | AS77: нд | AT77: 0 | AU77: нд | AV77: 0 | AW77: нд | AX77: ='2'!Y93 -> 0 | AY77: ='2'!AI93 -> 0 | AZ77: 0 | BA77: нд
A78: 1.2.3.1 | B78: Внедрение автоматизированной системы технического учета электроэнергии (АСТУЭ) в количестве 312 шт. | C78: Н_МСК_09 | D78: 0 | E78: нд | F78: 0 | G78: нд | H78: 0 | I78: нд | J78: 0 | K78: нд | L78: 0 | M78: нд | N78: 0 | O78: нд | P78: 0 | Q78: нд | R78: 0 | S78: нд | T78: 0 | U78: нд | V78: 0 | W78: нд | X78: 0 | Y78: нд | Z78: 0 | AA78: нд | AB78: 0 | AC78: нд | AD78: 0 | AE78: нд | AF78: 0 | AG78: нд | AH78: 0 | AI78: нд | AJ78: 59 | AK78: 0 | AL78: 0 | AM78: нд | AN78: 0 | AO78: нд | AP78: 0 | AQ78: нд | AR78: 0 | AS78: нд | AT78: 0 | AU78: нд | AV78: 0 | AW78: нд | AX78: ='2'!Y94 -> 0 | AY78: ='2'!AI94 -> 0 | AZ78: 0 | BA78: нд
B79: Строительство системы коммерческого учета с применением интеллектуальных приборов учета | C79: J_МСК_20 | D79: 0 | E79: нд | F79: 0 | G79: нд | H79: 0 | I79: нд | J79: 0 | K79: нд | L79: 0 | M79: нд | N79: 0 | O79: нд | P79: 0 | Q79: нд | R79: 0 | S79: нд | T79: 0 | U79: нд | V79: 0 | W79: нд | X79: 0 | Y79: нд | Z79: 0 | AA79: нд | AB79: 0 | AC79: нд | AD79: 0 | AE79: нд | AF79: 0 | AG79: нд | AH79: 0 | AI79: нд | AJ79: 0 | AK79: 32 | AL79: 0 | AM79: нд | AN79: 0 | AO79: нд | AP79: 0 | AQ79: нд | AR79: 0 | AS79: нд | AT79: 0 | AU79: нд | AV79: 0 | AW79: нд | AX79: ='2'!Y95 -> 0 | AY79: ='2'!AI95 -> 0
A80: 1.2.3.2 | B80: «Установка приборов учета, класс напряжения 6 (10) кВ, всего, в том числе:» | C80: нд | D80: 0 | E80: нд | F80: 0 | G80: нд | H80: 0 | I80: нд | J80: 0 | K80: нд | L80: 0 | M80: нд | N80: 0 | O80: нд | P80: 0 | Q80: нд | R80: 0 | S80: нд | T80: 0 | U80: нд | V80: 0 | W80: нд | X80: 0 | Y80: нд | Z80: 0 | AA80: нд | AB80: 0 | AC80: нд | AD80: 0 | AE80: нд | AF80: 0 | AG80: нд | AH80: 0 | AI80: нд | AJ80: нд | AK80: нд | AL80: 0 | AM80: нд | AN80: 0 | AO80: нд | AP80: 0 | AQ80: нд | AR80: 0 | AS80: нд | AT80: 0 | AU80: нд | AV80: 0 | AW80: нд | AX80: ='2'!Y96 -> 0 | AY80: ='2'!AI96 -> 0 | AZ80: 0 | BA80: нд
A81: 1.2.3.2 | B81: Внедрение автоматизированной системы технического учета электроэнергии (АСТУЭ) в количестве 17 шт. | C81: Н_МСК_10 | D81: 0 | E81: 0 | F81: 0 | G81: 0 | H81: 0 | I81: 0 | J81: 0 | K81: 0 | L81: 0 | M81: 0 | N81: 0 | O81: 0 | P81: 0 | Q81: 0 | R81: 0 | S81: 0 | T81: 0 | U81: 0 | V81: 0 | W81: 0 | X81: 0 | Y81: 0 | Z81: 0 | AA81: 0 | AB81: 0 | AC81: 0 | AD81: 0 | AE81: 0 | AF81: 0 | AG81: нд | AH81: 0 | AI81: нд | AJ81: 0 | AK81: 0 | AL81: 0 | AM81: 0 | AN81: 0 | AO81: 0 | AP81: 0 | AQ81: 0 | AR81: 0 | AS81: 0 | AT81: 0 | AU81: 0 | AV81: 0 | AW81: 0 | AX81: ='2'!Y97 -> 0 | AY81: ='2'!AI97 -> 0 | AZ81: 0 | BA81: 0
A82: 1.2.3.3 | B82: «Установка приборов учета, класс напряжения 35 кВ, всего, в том числе:» | C82: нд | D82: 0 | E82: нд | F82: 0 | G82: нд | H82: 0 | I82: нд | J82: 0 | K82: нд | L82: 0 | M82: нд | N82: 0 | O82: нд | P82: 0 | Q82: нд | R82: 0 | S82: нд | T82: 0 | U82: нд | V82: 0 | W82: нд | X82: 0 | Y82: нд | Z82: 0 | AA82: нд | AB82: 0 | AC82: нд | AD82: 0 | AE82: нд | AF82: 0 | AG82: нд | AH82: 0 | AI82: нд | AJ82: нд | AK82: нд | AL82: 0 | AM82: нд | AN82: 0 | AO82: нд | AP82: 0 | AQ82: нд | AR82: 0 | AS82: нд | AT82: 0 | AU82: нд | AV82: 0 | AW82: нд | AX82: ='2'!Y98 -> 0 | AY82: ='2'!AI98 -> 0 | AZ82: 0 | BA82: нд
A83: 1.2.3.4 | B83: «Установка приборов учета, класс напряжения 110 кВ и выше, всего, в том числе:» | C83: нд | D83: 0 | E83: нд | F83: 0 | G83: нд | H83: 0 | I83: нд | J83: 0 | K83: нд | L83: 0 | M83: нд | N83: 0 | O83: нд | P83: 0 | Q83: нд | R83: 0 | S83: нд | T83: 0 | U83: нд | V83: 0 | W83: нд | X83: 0 | Y83: нд | Z83: 0 | AA83: нд | AB83: 0 | AC83: нд | AD83: 0 | AE83: нд | AF83: 0 | AG83: нд | AH83: 0 | AI83: нд | AJ83: нд | AK83: нд | AL83: 0 | AM83: нд | AN83: 0 | AO83: нд | AP83: 0 | AQ83: нд | AR83: 0 | AS83: нд | AT83: 0 | AU83: нд | AV83: 0 | AW83: нд | AX83: ='2'!Y99 -> 0 | AY83: ='2'!AI99 -> 0 | AZ83: 0 | BA83: нд
A84: 1.2.3.5 | B84: «Включение приборов учета в систему сбора и передачи данных, класс напряжения 0,22 (0,4) кВ, всего, в том числе:» | C84: нд | D84: 0 | E84: нд | F84: 0 | G84: нд | H84: 0 | I84: нд | J84: 0 | K84: нд | L84: 0 | M84: нд | N84: 0 | O84: нд | P84: 0 | Q84: нд | R84: 0 | S84: нд | T84: 0 | U84: нд | V84: 0 | W84: нд | X84: 0 | Y84: нд | Z84: 0 | AA84: нд | AB84: 0 | AC84: нд | AD84: 0 | AE84: нд | AF84: 0 | AG84: нд | AH84: 0 | AI84: нд | AJ84: нд | AK84: нд | AL84: 0 | AM84: нд | AN84: 0 | AO84: нд | AP84: 0 | AQ84: нд | AR84: 0 | AS84: нд | AT84: 0 | AU84: нд | AV84: 0 | AW84: нд | AX84: ='2'!Y100 -> 0 | AY84: ='2'!AI100 -> 0 | AZ84: 0 | BA84: нд
A85: 1.2.3.6 | B85: «Включение приборов учета в систему сбора и передачи данных, класс напряжения 6 (10) кВ, всего, в том числе:» | C85: нд | D85: 0 | E85: нд | F85: 0 | G85: нд | H85: 0 | I85: нд | J85: 0 | K85: нд | L85: 0 | M85: нд | N85: 0 | O85: нд | P85: 0 | Q85: нд | R85: 0 | S85: нд | T85: 0 | U85: нд | V85: 0 | W85: нд | X85: 0 | Y85: нд | Z85: 0 | AA85: нд | AB85: 0 | AC85: нд | AD85: 0 | AE85: нд | AF85: 0 | AG85: нд | AH85: 0 | AI85: нд | AJ85: нд | AK85: нд | AL85: 0 | AM85: нд | AN85: 0 | AO85: нд | AP85: 0 | AQ85: нд | AR85: 0 | AS85: нд | AT85: 0 | AU85: нд | AV85: 0 | AW85: нд | AX85: ='2'!Y101 -> 0 | AY85: ='2'!AI101 -> 0 | AZ85: 0 | BA85: нд
A86: 1.2.3.7 | B86: «Включение приборов учета в систему сбора и передачи данных, класс напряжения 35 кВ, всего, в том числе:» | C86: нд | D86: 0 | E86: нд | F86: 0 | G86: нд | H86: 0 | I86: нд | J86: 0 | K86: нд | L86: 0 | M86: нд | N86: 0 | O86: нд | P86: 0 | Q86: нд | R86: 0 | S86: нд | T86: 0 | U86: нд | V86: 0 | W86: нд | X86: 0 | Y86: нд | Z86: 0 | AA86: нд | AB86: 0 | AC86: нд | AD86: 0 | AE86: нд | AF86: 0 | AG86: нд | AH86: 0 | AI86: нд | AJ86: нд | AK86: нд | AL86: 0 | AM86: нд | AN86: 0 | AO86: нд | AP86: 0 | AQ86: нд | AR86: 0 | AS86: нд | AT86: 0 | AU86: нд | AV86: 0 | AW86: нд | AX86: ='2'!Y102 -> 0 | AY86: ='2'!AI102 -> 0 | AZ86: 0 | BA86: нд
A87: 1.2.3.8 | B87: «Включение приборов учета в систему сбора и передачи данных, класс напряжения 110 кВ и выше, всего, в том числе:» | C87: нд | D87: 0 | E87: нд | F87: 0 | G87: нд | H87: 0 | I87: нд | J87: 0 | K87: нд | L87: 0 | M87: нд | N87: 0 | O87: нд | P87: 0 | Q87: нд | R87: 0 | S87: нд | T87: 0 | U87: нд | V87: 0 | W87: нд | X87: 0 | Y87: нд | Z87: 0 | AA87: нд | AB87: 0 | AC87: нд | AD87: 0 | AE87: нд | AF87: 0 | AG87: нд | AH87: 0 | AI87: нд | AJ87: нд | AK87: нд | AL87: 0 | AM87: нд | AN87: 0 | AO87: нд | AP87: 0 | AQ87: нд | AR87: 0 | AS87: нд | AT87: 0 | AU87: нд | AV87: 0 | AW87: нд | AX87: ='2'!Y103 -> 0 | AY87: ='2'!AI103 -> 0 | AZ87: 0 | BA87: нд
A88: 1.2.4 | B88: Реконструкция, модернизация, техническое перевооружение прочих объектов основных средств, всего, в том числе: | C88: нд | D88: 0 | E88: нд | F88: 0 | G88: нд | H88: 0 | I88: нд | J88: 0 | K88: нд | L88: 0 | M88: нд | N88: 0 | O88: нд | P88: 0 | Q88: нд | R88: 0 | S88: нд | T88: 0 | U88: нд | V88: 0 | W88: нд | X88: 0 | Y88: нд | Z88: 0 | AA88: нд | AB88: 0 | AC88: нд | AD88: 0 | AE88: нд | AF88: 0 | AG88: нд | AH88: 0 | AI88: нд | AJ88: нд | AK88: нд | AL88: 0 | AM88: нд | AN88: 0 | AO88: нд | AP88: 0 | AQ88: нд | AR88: 0 | AS88: нд | AT88: 0 | AU88: нд | AV88: 0 | AW88: нд | AX88: ='2'!Y104 -> 0 | AY88: ='2'!AI104 -> 0 | AZ88: 0 | BA88: нд
A89: 1.2.4.1 | B89: Реконструкция прочих объектов основных средств, всего, в том числе: | C89: нд | D89: 0 | E89: нд | F89: 0 | G89: нд | H89: 0 | I89: нд | J89: 0 | K89: нд | L89: 0 | M89: нд | N89: 0 | O89: нд | P89: 0 | Q89: нд | R89: 0 | S89: нд | T89: 0 | U89: нд | V89: 0 | W89: нд | X89: 0 | Y89: нд | Z89: 0 | AA89: нд | AB89: 0 | AC89: нд | AD89: 0 | AE89: нд | AF89: 0 | AG89: нд | AH89: 0 | AI89: нд | AJ89: нд | AK89: нд | AL89: 0 | AM89: нд | AN89: 0 | AO89: нд | AP89: 0 | AQ89: нд | AR89: 0 | AS89: нд | AT89: 0 | AU89: нд | AV89: 0 | AW89: нд | AX89: ='2'!Y105 -> 0 | AY89: ='2'!AI105 -> 0 | AZ89: 0 | BA89: нд
A90: 1.2.4.2 | B90: Модернизация, техническое перевооружение прочих объектов основных средств, всего, в том числе: | C90: нд | D90: 0 | E90: нд | F90: 0 | G90: нд | H90: 0 | I90: нд | J90: 0 | K90: нд | L90: 0 | M90: нд | N90: 0 | O90: нд | P90: 0 | Q90: нд | R90: 0 | S90: нд | T90: 0 | U90: нд | V90: 0 | W90: нд | X90: 0 | Y90: нд | Z90: 0 | AA90: нд | AB90: 0 | AC90: нд | AD90: 0 | AE90: нд | AF90: 0 | AG90: нд | AH90: 0 | AI90: нд | AJ90: нд | AK90: нд | AL90: 0 | AM90: нд | AN90: 0 | AO90: нд | AP90: 0 | AQ90: нд | AR90: 0 | AS90: нд | AT90: 0 | AU90: нд | AV90: 0 | AW90: нд | AX90: ='2'!Y106 -> 0 | AY90: ='2'!AI106 -> 0 | AZ90: 0 | BA90: нд
A91: 1.3 | B91: Инвестиционные проекты, реализация которых обуславливается схемами и программами перспективного развития электроэнергетики, всего, в том числе: | C91: нд | D91: 0 | E91: нд | F91: 0 | G91: нд | H91: 0 | I91: нд | J91: 0 | K91: нд | L91: 0 | M91: нд | N91: 0 | O91: нд | P91: 0 | Q91: нд | R91: 0 | S91: нд | T91: 0 | U91: нд | V91: 0 | W91: нд | X91: 0 | Y91: нд | Z91: 0 | AA91: нд | AB91: 0 | AC91: нд | AD91: 0 | AE91: нд | AF91: 0 | AG91: нд | AH91: 0 | AI91: нд | AJ91: нд | AK91: нд | AL91: 0 | AM91: нд | AN91: 0 | AO91: нд | AP91: 0 | AQ91: нд | AR91: 0 | AS91: нд | AT91: 0 | AU91: нд | AV91: 0 | AW91: нд | AX91: ='2'!Y107 -> 0 | AY91: ='2'!AI107 -> 0 | AZ91: 0 | BA91: нд
A92: 1.3.1 | B92: Инвестиционные проекты, предусмотренные схемой и программой развития Единой энергетической системы России, всего, в том числе: | C92: нд | D92: 0 | E92: нд | F92: 0 | G92: нд | H92: 0 | I92: нд | J92: 0 | K92: нд | L92: 0 | M92: нд | N92: 0 | O92: нд | P92: 0 | Q92: нд | R92: 0 | S92: нд | T92: 0 | U92: нд | V92: 0 | W92: нд | X92: 0 | Y92: нд | Z92: 0 | AA92: нд | AB92: 0 | AC92: нд | AD92: 0 | AE92: нд | AF92: 0 | AG92: нд | AH92: 0 | AI92: нд | AJ92: нд | AK92: нд | AL92: 0 | AM92: нд | AN92: 0 | AO92: нд | AP92: 0 | AQ92: нд | AR92: 0 | AS92: нд | AT92: 0 | AU92: нд | AV92: 0 | AW92: нд | AX92: ='2'!Y108 -> 0 | AY92: ='2'!AI108 -> 0 | AZ92: 0 | BA92: нд
A93: 1.3.2 | B93: Инвестиционные проекты, предусмотренные схемой и программой развития субъекта Российской Федерации, всего, в том числе: | C93: нд | D93: 0 | E93: нд | F93: 0 | G93: нд | H93: 0 | I93: нд | J93: 0 | K93: нд | L93: 0 | M93: нд | N93: 0 | O93: нд | P93: 0 | Q93: нд | R93: 0 | S93: нд | T93: 0 | U93: нд | V93: 0 | W93: нд | X93: 0 | Y93: нд | Z93: 0 | AA93: нд | AB93: 0 | AC93: нд | AD93: 0 | AE93: нд | AF93: 0 | AG93: нд | AH93: 0 | AI93: нд | AJ93: нд | AK93: нд | AL93: 0 | AM93: нд | AN93: 0 | AO93: нд | AP93: 0 | AQ93: нд | AR93: 0 | AS93: нд | AT93: 0 | AU93: нд | AV93: 0 | AW93: нд | AX93: ='2'!Y109 -> 0 | AY93: ='2'!AI109 -> 0 | AZ93: 0 | BA93: нд
A94: 1.4 | B94: Прочее новое строительство объектов электросетевого хозяйства, всего, в том числе: | C94: нд | D94: =D108 -> 0 | E94: нд | F94: =F108 -> 0 | G94: нд | H94: =H108 -> 0 | I94: нд | J94: =J108 -> 0 | K94: нд | L94: =L108 -> 0 | M94: нд | N94: =N108 -> 0 | O94: нд | P94: =P108 -> 0 | Q94: нд | R94: =R108 -> 0 | S94: нд | T94: =T108 -> 0 | U94: нд | V94: =V108 -> 0 | W94: нд | X94: =X108 -> 0 | Y94: нд | Z94: 0 | AA94: нд | AB94: =AB108 -> 0 | AC94: нд | AD94: =AD108 -> 0 | AE94: нд | AF94: =AF108 -> 0 | AG94: нд | AH94: =AH108 -> 0 | AI94: нд | AJ94: нд | AK94: нд | AL94: =AL108 -> 0 | AM94: нд | AN94: =AN108 -> 0 | AO94: нд | AP94: =AP108 -> 0 | AQ94: нд | AR94: =AR108 -> 0 | AS94: нд | AT94: =AT108 -> 0 | AU94: нд | AV94: =AV108 -> 0 | AW94: нд | AX94: ='2'!Y110 -> 0 | AY94: ='2'!AI110 -> 0 | AZ94: =AZ108 -> 0 | BA94: нд
A95: 1.5 | B95: Покупка земельных участков для целей реализации инвестиционных проектов, всего, в том числе: | C95: нд | D95: 0 | E95: нд | F95: 0 | G95: нд | H95: 0 | I95: нд | J95: 0 | K95: нд | L95: 0 | M95: нд | N95: 0 | O95: нд | P95: 0 | Q95: нд | R95: 0 | S95: нд | T95: 0 | U95: нд | V95: 0 | W95: нд | X95: 0 | Y95: нд | Z95: 0 | AA95: нд | AB95: 0 | AC95: нд | AD95: 0 | AE95: нд | AF95: 0 | AG95: нд | AH95: 0 | AI95: нд | AJ95: нд | AK95: нд | AL95: 0 | AM95: нд | AN95: 0 | AO95: нд | AP95: 0 | AQ95: нд | AR95: 0 | AS95: нд | AT95: 0 | AU95: нд | AV95: 0 | AW95: нд | AX95: ='2'!Y114 -> 0 | AY95: ='2'!AI114 -> 0 | AZ95: 0 | BA95: нд
A96: 1.6 | B96: Прочие инвестиционные проекты, всего, в том числе: | C96: нд | D96: =SUM(D103:D107) -> 0 | E96: нд | F96: =SUM(F103:F107) -> 0 | G96: нд | H96: =SUM(H103:H107) -> 0 | I96: нд | J96: =SUM(J103:J107) -> 0 | K96: нд | L96: =SUM(L103:L107) -> 0 | M96: нд | N96: =SUM(N103:N107) -> 0 | O96: нд | P96: =SUM(P103:P107) -> 0 | Q96: нд | R96: =SUM(R103:R107) -> 0 | S96: нд | T96: =SUM(T103:T107) -> 0 | U96: нд | V96: =SUM(V103:V107) -> 0 | W96: нд | X96: =SUM(X103:X107) -> 0 | Y96: нд | Z96: 0 | AA96: нд | AB96: =SUM(AB103:AB107) -> 0 | AC96: нд | AD96: =SUM(AD103:AD107) -> 0 | AE96: нд | AF96: =SUM(AF103:AF107) -> 0 | AG96: нд | AH96: =SUM(AH103:AH107) -> 0 | AI96: нд | AJ96: нд | AK96: нд | AL96: =SUM(AL103:AL107) -> 0 | AM96: нд | AN96: =SUM(AN103:AN107) -> 0 | AO96: нд | AP96: =SUM(AP103:AP107) -> 0 | AQ96: нд | AR96: =SUM(AR103:AR107) -> 0 | AS96: нд | AT96: =SUM(AT103:AT107) -> 0 | AU96: нд | AV96: =SUM(AV103:AV107) -> 0 | AW96: нд | AX96: ='2'!Y115 -> 1.87016933 | AY96: ='2'!AI115 -> 1.87016933 | AZ96: =SUM(AZ103:AZ107) -> 0 | BA96: нд
A97: 1.6.1 | B97: Приобретение в лизинг автотранспортных средств | C97: нд | D97: 0 | E97: нд | F97: 0 | G97: нд | H97: 0 | I97: нд | J97: 0 | K97: нд | L97: 0 | M97: нд | N97: 0 | O97: нд | P97: 0 | Q97: нд | R97: 0 | S97: нд | T97: 0 | U97: нд | V97: 0 | W97: нд | X97: 0 | Y97: нд | Z97: 0 | AA97: нд | AB97: 0 | AC97: нд | AD97: 0 | AE97: нд | AF97: 0 | AG97: нд | AH97: 0 | AI97: нд | AJ97: нд | AK97: нд | AL97: 0 | AM97: нд | AN97: 0 | AO97: нд | AP97: 0 | AQ97: нд | AR97: 0 | AS97: нд | AT97: 0 | AU97: нд | AV97: 0 | AW97: нд | AX97: ='2'!Y116 -> 1.87016933 | AY97: ='2'!AI116 -> 1.87016933 | AZ97: 0 | BA97: нд
A98: 1.6.1.1 | B98: Приобретение в лизинг автотранспортных средств УАЗ-390995-04 Комби в количестве 1 ед. | C98: Н_МСК_11 | D98: 0 | E98: нд | F98: 0 | G98: нд | H98: 0 | I98: нд | J98: 0 | K98: нд | L98: 0 | M98: нд | N98: 0 | O98: нд | P98: 0 | Q98: нд | R98: 0 | S98: нд | T98: 0 | U98: нд | V98: 0 | W98: нд | X98: 0 | Y98: нд | Z98: 0 | AA98: нд | AB98: 0 | AC98: нд | AD98: 0 | AE98: нд | AF98: 0 | AG98: нд | AH98: 0 | AI98: нд | AJ98: нд | AK98: нд | AL98: 0 | AM98: нд | AN98: 0 | AO98: нд | AP98: 0 | AQ98: нд | AR98: 0 | AS98: нд | AT98: 0 | AU98: нд | AV98: 0 | AW98: нд | AX98: ='2'!Y117 -> 0 | AY98: ='2'!AI117 -> 0 | AZ98: 0 | BA98: нд
A99: 1.6.1.2 | B99: Приобретение в лизинг автотранспортных средств УАЗ-390945-520 Фермер в количестве 1 ед. | C99: Н_МСК_12 | D99: 0 | E99: нд | F99: 0 | G99: нд | H99: 0 | I99: нд | J99: 0 | K99: нд | L99: 0 | M99: нд | N99: 0 | O99: нд | P99: 0 | Q99: нд | R99: 0 | S99: нд | T99: 0 | U99: нд | V99: 0 | W99: нд | X99: 0 | Y99: нд | Z99: 0 | AA99: нд | AB99: 0 | AC99: нд | AD99: 0 | AE99: нд | AF99: 0 | AG99: нд | AH99: 0 | AI99: нд | AJ99: нд | AK99: нд | AL99: 0 | AM99: нд | AN99: 0 | AO99: нд | AP99: 0 | AQ99: нд | AR99: 0 | AS99: нд | AT99: 0 | AU99: нд | AV99: 0 | AW99: нд | AX99: ='2'!Y118 -> 0.31932195 | AY99: ='2'!AI118 -> 0.31932195 | AZ99: 0 | BA99: нд
A100: 1.6.1.3 | B100: Приобретение в лизинг автотранспортных средств Автогидроподъемник телескопический на шасси ГАЗ 3309 со сдвоенной кабиной в количестве 1 ед. | C100: Н_МСК_13 | D100: 0 | E100: нд | F100: 0 | G100: нд | H100: 0 | I100: нд | J100: 0 | K100: нд | L100: 0 | M100: нд | N100: 0 | O100: нд | P100: 0 | Q100: нд | R100: 0 | S100: нд | T100: 0 | U100: нд | V100: 0 | W100: нд | X100: 0 | Y100: нд | Z100: 0 | AA100: нд | AB100: 0 | AC100: нд | AD100: 0 | AE100: нд | AF100: 0 | AG100: нд | AH100: 0 | AI100: нд | AJ100: нд | AK100: нд | AL100: 0 | AM100: нд | AN100: 0 | AO100: нд | AP100: 0 | AQ100: нд | AR100: 0 | AS100: нд | AT100: 0 | AU100: нд | AV100: 0 | AW100: нд | AX100: ='2'!Y119 -> 0 | AY100: ='2'!AI119 -> 0 | AZ100: 0 | BA100: нд
A101: 1.6.1.4 | B101: Приобретение в лизинг автотранспортных средств Автогидроподъемник телескопический на шасси ГАЗ 33088-1010 Садко 4х4 в количестве 1 ед. | C101: Н_МСК_18 | D101: 0 | E101: нд | F101: 0 | G101: нд | H101: 0 | I101: нд | J101: 0 | K101: нд | L101: 0 | M101: нд | N101: 0 | O101: нд | P101: 0 | Q101: нд | R101: 0 | S101: нд | T101: 0 | U101: нд | V101: 0 | W101: нд | X101: 0 | Y101: нд | Z101: 0 | AA101: нд | AB101: 0 | AC101: нд | AD101: 0 | AE101: нд | AF101: 0 | AG101: нд | AH101: 0 | AI101: нд | AJ101: нд | AK101: нд | AL101: 0 | AM101: нд | AN101: 0 | AO101: нд | AP101: 0 | AQ101: нд | AR101: 0 | AS101: нд | AT101: 0 | AU101: нд | AV101: 0 | AW101: нд | AX101: ='2'!Y120 -> 1.55084738 | AY101: ='2'!AI120 -> 1.55084738 | AZ101: 0 | BA101: нд
A102: 1.6.2 | B102: Приобретение АИД-70М | C102: Н_МСК_14 | D102: 0 | E102: нд | F102: 0 | G102: нд | H102: 0 | I102: нд | J102: 0 | K102: нд | L102: 0 | M102: нд | N102: 0 | O102: нд | P102: 0 | Q102: нд | R102: 0 | S102: нд | T102: 0 | U102: нд | V102: 0 | W102: нд | X102: 0 | Y102: нд | Z102: 0 | AA102: нд | AB102: 0 | AC102: нд | AD102: 0 | AE102: нд | AF102: 0 | AG102: нд | AH102: 0 | AI102: нд | AJ102: нд | AK102: нд | AL102: 0 | AM102: нд | AN102: 0 | AO102: нд | AP102: 0 | AQ102: нд | AR102: 0 | AS102: нд | AT102: 0 | AU102: нд | AV102: 0 | AW102: нд | AX102: ='2'!Y124 -> 0 | AY102: ='2'!AI124 -> 0 | AZ102: 0 | BA102: нд
A103: 1.6.3 | B103: Приобретение прибора Атлет-319 «СКИН» | C103: Н_МСК_15 | D103: 0 | E103: нд | F103: 0 | G103: нд | H103: 0 | I103: нд | J103: 0 | K103: нд | L103: 0 | M103: нд | N103: 0 | O103: нд | P103: 0 | Q103: нд | R103: 0 | S103: нд | T103: 0 | U103: нд | V103: 0 | W103: нд | X103: 0 | Y103: нд | Z103: 0 | AA103: нд | AB103: 0 | AC103: нд | AD103: 0 | AE103: нд | AF103: 0 | AG103: нд | AH103: 0 | AI103: нд | AJ103: нд | AK103: нд | AL103: 0 | AM103: нд | AN103: 0 | AO103: нд | AP103: 0 | AQ103: нд | AR103: 0 | AS103: нд | AT103: 0 | AU103: нд | AV103: 0 | AW103: нд | AX103: ='2'!Y125 -> 0 | AY103: ='2'!AI125 -> 0 | AZ103: 0 | BA103: нд
A104: 1.6.4 | B104: Приобретение прибора Рейс 105 М1 | C104: Н_МСК_16 | D104: 0 | E104: нд | F104: 0 | G104: нд | H104: 0 | I104: нд | J104: 0 | K104: нд | L104: 0 | M104: нд | N104: 0 | O104: нд | P104: 0 | Q104: нд | R104: 0 | S104: нд | T104: 0 | U104: нд | V104: 0 | W104: нд | X104: 0 | Y104: нд | Z104: 0 | AA104: нд | AB104: 0 | AC104: нд | AD104: 0 | AE104: нд | AF104: 0 | AG104: нд | AH104: 0 | AI104: нд | AJ104: нд | AK104: нд | AL104: 0 | AM104: нд | AN104: 0 | AO104: нд | AP104: 0 | AQ104: нд | AR104: 0 | AS104: нд | AT104: 0 | AU104: нд | AV104: 0 | AW104: нд | AX104: ='2'!Y126 -> 0 | AY104: ='2'!AI126 -> 0 | AZ104: 0 | BA104: нд

Sheet 1-21
BA1: Приложение № 1
BA2: к приказу Минэнерго России
BA3: от 5 мая 2016 г. № 380
A4: Форма 1. Перечени инвестиционных проектов
A5: на год _2018-2021 г.г._
A7: Инвестиционная программа___Общество с ограниченной ответственностью "Мордовская сетевая компания"__
A8: полное наименование субъекта электроэнергетики
A10: Год раскрытия информации: __2018__ год
A12: Утвержденные плановые значения показателей приведены в соответствии с приказом Министерства энергетики и тарифной политики Республики Мордовия №117 от 31.10.2017 г.
A13: реквизиты решения органа исполнительной власти, утвердившего инвестиционную программу
A15: Номер группы инвести-ционных проектов | B15: Наименование инвестиционного проекта (группы инвестиционных проектов) | C15: Идентифика-тор инвестицион-ного проекта | D15: Цели реализации инвестиционных проектов и плановые (фактические) значения количественных показателей, характеризующие достижение таких целей
D16: Развитие электрической сети/усиление существующей электрической сети, связанное с подключением новых потребителей | V16: Замещение (обновление) электрической сети/повышение экономической эффективности (мероприятия направленные на снижение эксплуатационных затрат) оказания услуг в сфере электроэнергетики | AF16: Повышение надежности оказываемых услуг в сфере электроэнергетики | AL16: Повышение качества оказываемых услуг в сфере электроэнергетики | AP16: Выполнение требований законодательства Российской Федерации, предписаний органов исполнительной власти, регламентов рынков электрической энергии | AV16: Обеспечение текущей деятельности в сфере электроэнергетики, в том числе развитие информационной инфраструктуры, хозяйственное обеспечение деятельности | AZ16: Инвестиции, связанные с деятельностью, не относящейся к сфере электроэнергетики
D17: Показатель увеличения мощности силовых трансформаторов на подстанциях, не связанного с осуществлением технологического присоединения к электрическим сетям (ΔРтр.n) | F17: Показатель увеличения мощности силовых трансформаторов на подстанциях в рамках осуществления технологического присоединения к электрическим сетям (ΔРтп_тр.n) | H17: Показатель увеличения протяженности линий электропередачи, не связанного с осуществлением технологического присоединения к электрическим сеям (ΔLлэп.n) | L17: Показатель увеличения протяженности линий электропередачи в рамках осуществления технологического присоединения к электрическим сеям (ΔLтп_лэп.n) | P17: Показатель максимальной мощности присоединяемых потребителей электрической эенергии (Sпотр.тп) | R17: Показатель максимальной мощности энергопринимающих устройств при осуществлении технологического присоединения объектов электросетевого хозяйства, принадлежащих иным сетевым организациям или иным лицам (Sэх.тп) | T17: Показатель степени загрузки трансформаторной подстанции (Кзагр.) | V17: Показатель замены силовых трансформаторов (Рз_тр.n) | X17: Показатель замены линий электропередачи (Lз_лэп.n) | Z17: Показатель замены выключателей (Вз.n) | AB17: Показатель замены устройств компенсации реактивной мощности (Рз_укрм.n) | AD17: Показатель оценки изменения доли полезного отпуска электрической энергии, который формируется посредством приборов учета электричекой энергии, включенных в систему сбора и передачи данных (ΔПОдист) | AF17: Показатель оценки изменения средней продолжительности прекращения передачи электрической энергии потребителям услуг (Δпsaidi) | AH17: Показатель оценки изменения средней частоты прекращения передачи электрической энергии потребителям услуг (ΔПsaifi) | AJ17: Показатель оценки изменения объема недоотпущенной электрической энергии (ΔПens) | AL17: Показатель общего числа исполненных в рамках инвестиционной программы обязательств сетевой организации по осуществлению технологического присоединения (Nсд_тпр) | AN17: Показатель числа обязательств сетевой организации по осуществлению технологического присоединения, исполненных в рамках инвестиционной программы с нарушением установленного срока технологического присоединения (Nсд_тпр.нс) | AP17: Показатель объема финансовых потребностей, необходимых для реализации мероприятий, направленных на выполнение требований законодательства (Фтз) | AR17: Показатель объема финансовых потребностей, необходимых для реализации мероприятий, напрвленных на выполнение приедписаний органов исполнительной власти (Фоив) | AT17: Показатель объема финансовых потребностей, необходимых для реализации мероприятий, направленных на выполнение требований регламентов рынков электрической энергии (Фтрр) | AV17: Показатель объема финансовых потребностей, необходимых для реализации мероприятий, направленных на развитие информационной инфраструктуры (Фит) | AX17: Показатель объема финансовых потребностей, необходимых для реализации мероприятий, направленных на хозяйственное обеспечение деятельности сетевой организации (Фхо) | AZ17: Показатель объема финансовых потребностей, необходимых для реализации мероприятий, направленных на реализацию инвестиционных проектов, связанных с деятельностью, не относящейся к сфере электроэнергетики (Фнэ)
D18: план | E18: Предложение по корректировке утвержденного плана | F18: план | G18: Предложение по корректировке утвержденного плана | H18: план | I18: Предложение по корректировке утвержденного плана | J18: план | K18: Предложение по корректировке утвержденного плана | L18: план | M18: Предложение по корректировке утвержденного плана | N18: план | O18: Предложение по корректировке утвержденного плана | P18: план | Q18: Предложение по корректировке утвержденного плана | R18: план | S18: Предложение по корректировке утвержденного плана | T18: план | U18: Предложение по корректировке утвержденного плана | V18: план | W18: Предложение по корректировке утвержденного плана | X18: план | Y18: Предложение по корректировке утвержденного плана | Z18: план | AA18: Предложение по корректировке утвержденного плана | AB18: план | AC18: Предложение по корректировке утвержденного плана | AD18: план | AE18: Предложение по корректировке утвержденного плана | AF18: план | AG18: Предложение по корректировке утвержденного плана | AH18: план | AI18: Предложение по корректировке утвержденного плана | AJ18: план | AK18: Предложение по корректировке утвержденного плана | AL18: план | AM18: Предложение по корректировке утвержденного плана | AN18: план | AO18: Предложение по корректировке утвержденного плана | AP18: план | AQ18: Предложение по корректировке утвержденного плана | AR18: план | AS18: Предложение по корректировке утвержденного плана | AT18: план | AU18: Предложение по корректировке утвержденного плана | AV18: план | AW18: Предложение по корректировке утвержденного плана | AX18: план | AY18: Предложение по корректировке утвержденного плана | AZ18: план | BA18: Предложение по корректировке утвержденного плана
D19: Класс напряжения, кВ | V19: Класс напряжения, кВ
D20: 6-10 | F20: 6-10 | H20: 6-10 | J20: 0.4 | L20: 6-10 | N20: 0.4 | V20: 6-10 | X20: 6-10 | Z20: 110
A21: 1 | B21: 2 | C21: 3 | D21: 4.1 | E21: 4.2 | F21: 4.3 | G21: 4.4 | H21: 4.5.1 | I21: 4.6.1 | J21: 4.5.2 | K21: 4.6.2 | L21: 4.7.1 | M21: 4.8.1 | N21: 4.7.2 | O21: 4.8.2 | P21: 4.9 | Q21: 4.10 | R21: 4.11 | S21: 4.12 | T21: 4.13 | U21: 4.14 | V21: 5.1 | W21: 5.2 | X21: 5.3 | Y21: 5.4 | Z21: 5.5 | AA21: 5.6 | AB21: 5.7 | AC21: 5.8 | AD21: 5.9 | AE21: 5.10 | AF21: 6.1 | AG21: 6.2 | AH21: 6.3 | AI21: 6.4 | AJ21: 6.5 | AK21: 6.6 | AL21: 7.1 | AM21: 7.2 | AN21: 7.3 | AO21: 7.4 | AP21: 8.1 | AQ21: 8.2 | AR21: 8.3 | AS21: 8.4 | AT21: 8.5 | AU21: 8.6 | AV21: 9.1 | AW21: 9.2 | AX21: 9.3 | AY21: 9.4 | AZ21: 10.1 | BA21: 10.2
A22: 0 | B22: ВСЕГО по инвестиционной программе, в том числе: | C22: нд | D22: =SUM(D23:D28) -> 0 | E22: нд | F22: 0 | G22: =SUM(G23:G28) -> 0 | H22: =SUM(H23:H28) -> 0 | I22: нд | J22: =SUM(J23:J28) -> 0 | K22: нд | L22: =SUM(L23:L28) -> 0 | M22: нд | N22: =SUM(N23:N28) -> 0.3 | O22: =SUM(O23:O28) -> 0.3 | P22: =SUM(P23:P28) -> 0 | Q22: нд | R22: =SUM(R23:R28) -> 0 | S22: нд | T22: =SUM(T23:T28) -> 0 | U22: нд | V22: =SUM(V23:V28) -> 0 | W22: нд | X22: =SUM(X23:X24) -> 4 | Y22: =SUM(Y23:Y24) -> 4 | Z22: =SUM(Z23:Z28) -> 0 | AA22: =AA24 -> 9 | AB22: =SUM(AB23:AB28) -> 0 | AC22: нд | AD22: =SUM(AD23:AD28) -> 0 | AE22: нд | AF22: =SUM(AF23:AF28) -> 0 | AG22: нд | AH22: =SUM(AH23:AH28) -> 0 | AI22: нд | AJ22: =SUM(AJ23:AJ28) -> 0 | AK22: нд | AL22: =SUM(AL23:AL28) -> 0 | AM22: нд | AN22: =SUM(AN23:AN28) -> 0 | AO22: нд | AP22: =SUM(AP23:AP28) -> 0 | AQ22: нд | AR22: =SUM(AR23:AR28) -> 0 | AS22: нд | AT22: =SUM(AT23:AT28) -> 0 | AU22: нд | AV22: =SUM(AV23:AV28) -> 0 | AW22: нд | AX22: ='2'!AS18 -> 6.99742745 | AY22: ='2'!BC18 -> 10.91258978 | AZ22: =SUM(AZ23:AZ28) -> 0 | BA22: нд
A23: 0.1 | B23: Технологическое присоединение, всего | C23: нд | D23: =D29 -> 0 | E23: нд | F23: нд | G23: =G29 -> 0 | H23: =H29 -> 0 | I23: нд | J23: =J29 -> 0 | K23: нд | L23: =L29 -> 0 | M23: нд | N23: =N29 -> 0.3 | O23: =O29 -> 0.3 | P23: =P29 -> 0 | Q23: нд | R23: =R29 -> 0 | S23: нд | T23: =T29 -> 0 | U23: нд | V23: =V29 -> 0 | W23: нд | X23: =X29 -> 0 | Y23: нд | Z23: =Z29 -> 0 | AA23: нд | AB23: =AB29 -> 0 | AC23: нд | AD23: =AD29 -> 0 | AE23: нд | AF23: =AF29 -> 0 | AG23: нд | AH23: =AH29 -> 0 | AI23: нд | AJ23: =AJ29 -> 0 | AK23: нд | AL23: =AL29 -> 0 | AM23: нд | AN23: =AN29 -> 0 | AO23: нд | AP23: =AP29 -> 0 | AQ23: нд | AR23: =AR29 -> 0 | AS23: нд | AT23: =AT29 -> 0 | AU23: нд | AV23: =AV29 -> 0 | AW23: нд | AX23: ='2'!AS19 -> 0.39294915 | AY23: ='2'!BC19 -> 5.036352 | AZ23: =AZ29 -> 0 | BA23: нд
A24: 0.2 | B24: Реконструкция, модернизация, техническое перевооружение, всего | C24: нд | D24: =D50 -> 0 | E24: нд | F24: нд | G24: =G50 -> 0 | H24: =H50 -> 0 | I24: нд | J24: =J50 -> 0 | K24: нд | L24: =L50 -> 0 | M24: нд | N24: =N50 -> 0 | O24: нд | P24: =P50 -> 0 | Q24: нд | R24: =R50 -> 0 | S24: нд | T24: =T50 -> 0 | U24: нд | V24: =V50 -> 0 | W24: нд | X24: =X50 -> 4 | Y24: =Y50 -> 4 | Z24: =Z50 -> 0 | AA24: =AA50 -> 9 | AB24: =AB50 -> 0 | AC24: нд | AD24: =AD50 -> 0 | AE24: нд | AF24: =AF50 -> 0 | AG24: нд | AH24: =AH50 -> 0 | AI24: нд | AJ24: =AJ50 -> 0 | AK24: нд | AL24: =AL50 -> 0 | AM24: нд | AN24: =AN50 -> 0 | AO24: нд | AP24: =AP50 -> 0 | AQ24: нд | AR24: =AR50 -> 0 | AS24: нд | AT24: =AT50 -> 0 | AU24: нд | AV24: =AV50 -> 0 | AW24: нд | AX24: ='2'!AS20 -> 5.54613937 | AY24: ='2'!BC20 -> 4.81789885 | AZ24: =AZ50 -> 0 | BA24: нд
A25: 0.3 | B25: Инвестиционные проекты, реализация которых обуславливается схемами и программами перспективного развития электроэнергетики, всего | C25: нд | D25: =D81 -> 0 | E25: нд | F25: нд | G25: =G81 -> 0 | H25: =H81 -> 0 | I25: нд | J25: =J81 -> 0 | K25: нд | L25: =L81 -> 0 | M25: нд | N25: =N81 -> 0 | O25: нд | P25: =P81 -> 0 | Q25: нд | R25: =R81 -> 0 | S25: нд | T25: =T81 -> 0 | U25: нд | V25: =V81 -> 0 | W25: нд | X25: =X81 -> 0 | Y25: нд | Z25: =Z81 -> 0 | AA25: нд | AB25: =AB81 -> 0 | AC25: нд | AD25: =AD81 -> 0 | AE25: нд | AF25: =AF81 -> 0 | AG25: нд | AH25: =AH81 -> 0 | AI25: нд | AJ25: =AJ81 -> 0 | AK25: нд | AL25: =AL81 -> 0 | AM25: нд | AN25: =AN81 -> 0 | AO25: нд | AP25: =AP81 -> 0 | AQ25: нд | AR25: =AR81 -> 0 | AS25: нд | AT25: =AT81 -> 0 | AU25: нд | AV25: =AV81 -> 0 | AW25: нд | AX25: ='2'!AS21 -> 0 | AY25: ='2'!BC21 -> 0 | AZ25: =AZ81 -> 0 | BA25: нд
A26: 0.4 | B26: Прочее новое строительство объектов электросетевого хозяйства, всего | C26: нд | D26: =D84 -> 0 | E26: нд | F26: нд | G26: =G84 -> 0 | H26: =H84 -> 0 | I26: нд | J26: =J84 -> 0 | K26: нд | L26: =L84 -> 0 | M26: нд | N26: =N84 -> 0 | O26: нд | P26: =P84 -> 0 | Q26: нд | R26: =R84 -> 0 | S26: нд | T26: =T84 -> 0 | U26: нд | V26: =V84 -> 0 | W26: нд | X26: =X84 -> 0 | Y26: нд | Z26: =Z84 -> 0 | AA26: нд | AB26: =AB84 -> 0 | AC26: нд | AD26: =AD84 -> 0 | AE26: нд | AF26: =AF84 -> 0 | AG26: нд | AH26: =AH84 -> 0 | AI26: нд | AJ26: =AJ84 -> 0 | AK26: нд | AL26: =AL84 -> 0 | AM26: нд | AN26: =AN84 -> 0 | AO26: нд | AP26: =AP84 -> 0 | AQ26: нд | AR26: =AR84 -> 0 | AS26: нд | AT26: =AT84 -> 0 | AU26: нд | AV26: =AV84 -> 0 | AW26: нд | AX26: ='2'!AS22 -> 0 | AY26: ='2'!BC22 -> 0 | AZ26: =AZ84 -> 0 | BA26: нд
A27: 0.5 | B27: Покупка земельных участков для целей реализации инвестиционных проектов, всего | C27: нд | D27: =D85 -> 0 | E27: нд | F27: нд | G27: =G85 -> 0 | H27: =H85 -> 0 | I27: нд | J27: =J85 -> 0 | K27: нд | L27: =L85 -> 0 | M27: нд | N27: =N85 -> 0 | O27: нд | P27: =P85 -> 0 | Q27: нд | R27: =R85 -> 0 | S27: нд | T27: =T85 -> 0 | U27: нд | V27: =V85 -> 0 | W27: нд | X27: =X85 -> 0 | Y27: нд | Z27: =Z85 -> 0 | AA27: нд | AB27: =AB85 -> 0 | AC27: нд | AD27: =AD85 -> 0 | AE27: нд | AF27: =AF85 -> 0 | AG27: нд | AH27: =AH85 -> 0 | AI27: нд | AJ27: =AJ85 -> 0 | AK27: нд | AL27: =AL85 -> 0 | AM27: нд | AN27: =AN85 -> 0 | AO27: нд | AP27: =AP85 -> 0 | AQ27: нд | AR27: =AR85 -> 0 | AS27: нд | AT27: =AT85 -> 0 | AU27: нд | AV27: =AV85 -> 0 | AW27: нд | AX27: ='2'!AS23 -> 0 | AY27: ='2'!BC23 -> 0 | AZ27: =AZ85 -> 0 | BA27: нд
A28: 0.6 | B28: Прочие инвестиционные проекты, всего | C28: нд | D28: =D86 -> 0 | E28: нд | F28: нд | G28: =G86 -> 0 | H28: =H86 -> 0 | I28: нд | J28: =J86 -> 0 | K28: нд | L28: =L86 -> 0 | M28: нд | N28: =N86 -> 0 | O28: нд | P28: =P86 -> 0 | Q28: нд | R28: =R86 -> 0 | S28: нд | T28: =T86 -> 0 | U28: нд | V28: =V86 -> 0 | W28: нд | X28: =X86 -> нд | Y28: нд | Z28: =Z86 -> 0 | AA28: нд | AB28: =AB86 -> 0 | AC28: нд | AD28: =AD86 -> 0 | AE28: нд | AF28: =AF86 -> 0 | AG28: нд | AH28: =AH86 -> 0 | AI28: нд | AJ28: =AJ86 -> 0 | AK28: нд | AL28: =AL86 -> 0 | AM28: нд | AN28: =AN86 -> 0 | AO28: нд | AP28: =AP86 -> 0 | AQ28: нд | AR28: =AR86 -> 0 | AS28: нд | AT28: =AT86 -> 0 | AU28: нд | AV28: =AV86 -> 0 | AW28: нд | AX28: ='2'!AS24 -> 1.05833893 | AY28: ='2'!BC24 -> 1.05833893 | AZ28: =AZ86 -> 0 | BA28: нд
A29: 1.1 | B29: Технологическое присоединение, всего, в том числе: | C29: нд | D29: =D30 -> 0 | E29: нд | F29: нд | G29: =G30 -> 0 | H29: =H30 -> 0 | I29: нд | J29: =J30 -> 0 | K29: нд | L29: =L30 -> 0 | M29: нд | N29: =N30 -> 0.3 | O29: =O30 -> 0.3 | P29: =P30 -> 0 | Q29: нд | R29: =R30 -> 0 | S29: нд | T29: =T30 -> 0 | U29: нд | V29: =V30 -> 0 | W29: нд | X29: =X30 -> 0 | Y29: нд | Z29: =Z30 -> 0 | AA29: нд | AB29: =AB30 -> 0 | AC29: нд | AD29: =AD30 -> 0 | AE29: нд | AF29: =AF30 -> 0 | AG29: нд | AH29: =AH30 -> 0 | AI29: нд | AJ29: =AJ30 -> 0 | AK29: нд | AL29: =AL30 -> 0 | AM29: нд | AN29: =AN30 -> 0 | AO29: нд | AP29: =AP30 -> 0 | AQ29: нд | AR29: =AR30 -> 0 | AS29: нд | AT29: =AT30 -> 0 | AU29: нд | AV29: =AV30 -> 0 | AW29: нд | AX29: ='2'!AS25 -> 0.39294915 | AY29: ='2'!BC25 -> 5.036352 | AZ29: =AZ30 -> 0 | BA29: нд
A30: 1.1.1 | B30: Технологическое присоединение энергопринимающих устройств потребителей, всего, в том числе: | C30: нд | D30: =D31 -> 0 | E30: нд | F30: нд | G30: =G31 -> 0 | H30: =H31 -> 0 | I30: нд | J30: =J31 -> 0 | K30: нд | L30: =L31 -> 0 | M30: нд | N30: =N31 -> 0.3 | O30: =O31 -> 0.3 | P30: =P31 -> 0 | Q30: нд | R30: =R31 -> 0 | S30: нд | T30: =T31 -> 0 | U30: нд | V30: =V31 -> 0 | W30: нд | X30: =X31 -> 0 | Y30: нд | Z30: =Z31 -> 0 | AA30: нд | AB30: =AB31 -> 0 | AC30: нд | AD30: =AD31 -> 0 | AE30: нд | AF30: =AF31 -> 0 | AG30: нд | AH30: =AH31 -> 0 | AI30: нд | AJ30: =AJ31 -> 0 | AK30: нд | AL30: =AL31 -> 0 | AM30: нд | AN30: =AN31 -> 0 | AO30: нд | AP30: =AP31 -> 0 | AQ30: нд | AR30: =AR31 -> 0 | AS30: нд | AT30: =AT31 -> 0 | AU30: нд | AV30: =AV31 -> 0 | AW30: нд | AX30: ='2'!AS26 -> 0.39294915 | AY30: ='2'!BC26 -> 5.036352 | AZ30: =AZ31 -> 0 | BA30: нд
A31: 1.1.1.1 | B31: Технологическое присоединение энергопринимающих устройств потребителей максимальной мощностью до 15 кВт включительно, всего | C31: нд | D31: =D33 -> 0 | E31: нд | F31: нд | G31: =G33 -> 0 | H31: =H33 -> 0 | I31: нд | J31: =J33 -> 0 | K31: нд | L31: =L33 -> 0 | M31: нд | N31: =N32 -> 0.3 | O31: =O32 -> 0.3 | P31: =P33 -> 0 | Q31: нд | R31: =R33 -> 0 | S31: нд | T31: =T33 -> 0 | U31: нд | V31: =V33 -> 0 | W31: нд | X31: =X33 -> 0 | Y31: нд | Z31: =Z33 -> 0 | AA31: нд | AB31: =AB33 -> 0 | AC31: нд | AD31: =AD33 -> 0 | AE31: нд | AF31: =AF33 -> 0 | AG31: нд | AH31: =AH33 -> 0 | AI31: нд | AJ31: =AJ33 -> 0 | AK31: нд | AL31: =AL33 -> 0 | AM31: нд | AN31: =AN33 -> 0 | AO31: нд | AP31: =AP33 -> 0 | AQ31: нд | AR31: =AR33 -> 0 | AS31: нд | AT31: =AT33 -> 0 | AU31: нд | AV31: =AV33 -> 0 | AW31: нд | AX31: ='2'!AS27 -> 0.39294915 | AY31: ='2'!BC27 -> 2.2485 | AZ31: =AZ33 -> 0 | BA31: нд
A32: 1.1.1.1.1 | B32: Строительство электрических сетей для создания технической возможности технологического присоединения энергопринимающих устройств Заявителей, максимальной мощностью, не превышающей 15 кВт включительно, не включаемых в состав платы за технологическое присоединение (строительство "последней мили") | C32: Н_МСК_17 | D32: =D34 -> 0 | E32: нд | F32: =F34 -> нд | G32: нд | H32: =H34 -> 0 | I32: нд | J32: =J34 -> 0 | K32: нд | L32: =L34 -> 0 | M32: нд | N32: 0.3 | O32: 0.3 | P32: =P34 -> 0 | Q32: нд | R32: =R34 -> 0 | S32: нд | T32: =T34 -> 0 | U32: нд | V32: =V34 -> 0 | W32: нд | X32: =X34 -> 0 | Y32: нд | Z32: =Z34 -> 0 | AA32: нд | AB32: =AB34 -> 0 | AC32: нд | AD32: =AD34 -> 0 | AE32: нд | AF32: =AF34 -> 0 | AG32: нд | AH32: =AH34 -> 0 | AI32: нд | AJ32: =AJ34 -> 0 | AK32: нд | AL32: =AL34 -> 0 | AM32: нд | AN32: =AN34 -> 0 | AO32: нд | AP32: =AP34 -> 0 | AQ32: нд | AR32: =AR34 -> 0 | AS32: нд | AT32: =AT34 -> 0 | AU32: нд | AV32: =AV34 -> 0 | AW32: нд | AX32: ='2'!AS28 -> 0.39294915 | AY32: ='2'!BC28 -> 2.2485 | AZ32: =AZ34 -> 0 | BA32: нд
A33: 1.1.1.2 | B33: Технологическое присоединение энергопринимающих устройств потребителей максимальной мощностью до 150 кВт включительно, всего | C33: нд | D33: 0 | E33: нд | F33: нд | G33: 0 | H33: 0 | I33: нд | J33: 0 | K33: нд | L33: 0 | M33: нд | N33: 0 | O33: нд | P33: 0 | Q33: нд | R33: 0 | S33: нд | T33: 0 | U33: нд | V33: 0 | W33: нд | X33: 0 | Y33: нд | Z33: 0 | AA33: нд | AB33: 0 | AC33: нд | AD33: 0 | AE33: нд | AF33: 0 | AG33: нд | AH33: 0 | AI33: нд | AJ33: 0 | AK33: нд | AL33: 0 | AM33: нд | AN33: 0 | AO33: нд | AP33: 0 | AQ33: нд | AR33: 0 | AS33: нд | AT33: 0 | AU33: нд | AV33: 0 | AW33: нд | AX33: ='2'!AS38 -> 0 | AY33: ='2'!BC38 -> 2.787852 | AZ33: 0 | BA33: нд
A34: 1.1.1.3 | B34: Технологическое присоединение энергопринимающих устройств потребителей свыше 150 кВт, всего, в том числе: | C34: нд | D34: 0 | E34: нд | F34: нд | G34: 0 | H34: 0 | I34: нд | J34: 0 | K34: нд | L34: 0 | M34: нд | N34: 0 | O34: нд | P34: 0 | Q34: нд | R34: 0 | S34: нд | T34: 0 | U34: нд | V34: 0 | W34: нд | X34: 0 | Y34: нд | Z34: 0 | AA34: нд | AB34: 0 | AC34: нд | AD34: 0 | AE34: нд | AF34: 0 | AG34: нд | AH34: 0 | AI34: нд | AJ34: 0 | AK34: нд | AL34: 0 | AM34: нд | AN34: 0 | AO34: нд | AP34: 0 | AQ34: нд | AR34: 0 | AS34: нд | AT34: 0 | AU34: нд | AV34: 0 | AW34: нд | AX34: ='2'!AS39 -> 0 | AY34: ='2'!BC39 -> 0 | AZ34: 0 | BA34: нд
A35: 1.1.2 | B35: Технологическое присоединение объектов электросетевого хозяйства, всего, в том числе: | C35: нд | D35: 0 | E35: нд | F35: нд | G35: 0 | H35: 0 | I35: нд | J35: 0 | K35: нд | L35: 0 | M35: нд | N35: 0 | O35: нд | P35: 0 | Q35: нд | R35: 0 | S35: нд | T35: 0 | U35: нд | V35: 0 | W35: нд | X35: 0 | Y35: нд | Z35: 0 | AA35: нд | AB35: 0 | AC35: нд | AD35: 0 | AE35: нд | AF35: 0 | AG35: нд | AH35: 0 | AI35: нд | AJ35: 0 | AK35: нд | AL35: 0 | AM35: нд | AN35: 0 | AO35: нд | AP35: 0 | AQ35: нд | AR35: 0 | AS35: нд | AT35: 0 | AU35: нд | AV35: 0 | AW35: нд | AX35: ='2'!AS40 -> 0 | AY35: ='2'!BC40 -> 0 | AZ35: 0 | BA35: нд
A36: 1.1.2.1 | B36: Технологическое присоединение объектов электросетевого хозяйства, принадлежащих иным сетевым организациям и иным лицам, всего, в том числе: | C36: нд | D36: 0 | E36: нд | F36: нд | G36: 0 | H36: 0 | I36: нд | J36: 0 | K36: нд | L36: 0 | M36: нд | N36: 0 | O36: нд | P36: 0 | Q36: нд | R36: 0 | S36: нд | T36: 0 | U36: нд | V36: 0 | W36: нд | X36: 0 | Y36: нд | Z36: 0 | AA36: нд | AB36: 0 | AC36: нд | AD36: 0 | AE36: нд | AF36: 0 | AG36: нд | AH36: 0 | AI36: нд | AJ36: 0 | AK36: нд | AL36: 0 | AM36: нд | AN36: 0 | AO36: нд | AP36: 0 | AQ36: нд | AR36: 0 | AS36: нд | AT36: 0 | AU36: нд | AV36: 0 | AW36: нд | AX36: ='2'!AS41 -> 0 | AY36: ='2'!BC41 -> 0 | AZ36: 0 | BA36: нд
A37: 1.1.2.2 | B37: Технологическое присоединение к электрическим сетям иных сетевых организаций, всего, в том числе: | C37: нд | D37: 0 | E37: нд | F37: нд | G37: 0 | H37: 0 | I37: нд | J37: 0 | K37: нд | L37: 0 | M37: нд | N37: 0 | O37: нд | P37: 0 | Q37: нд | R37: 0 | S37: нд | T37: 0 | U37: нд | V37: 0 | W37: нд | X37: 0 | Y37: нд | Z37: 0 | AA37: нд | AB37: 0 | AC37: нд | AD37: 0 | AE37: нд | AF37: 0 | AG37: нд | AH37: 0 | AI37: нд | AJ37: 0 | AK37: нд | AL37: 0 | AM37: нд | AN37: 0 | AO37: нд | AP37: 0 | AQ37: нд | AR37: 0 | AS37: нд | AT37: 0 | AU37: нд | AV37: 0 | AW37: нд | AX37: ='2'!AS42 -> 0 | AY37: ='2'!BC42 -> 0 | AZ37: 0 | BA37: нд
A38: 1.1.3 | B38: Технологическое присоединение объектов по производству электрической энергии всего, в том числе: | C38: нд | D38: 0 | E38: нд | F38: нд | G38: 0 | H38: 0 | I38: нд | J38: 0 | K38: нд | L38: 0 | M38: нд | N38: 0 | O38: нд | P38: 0 | Q38: нд | R38: 0 | S38: нд | T38: 0 | U38: нд | V38: 0 | W38: нд | X38: 0 | Y38: нд | Z38: 0 | AA38: нд | AB38: 0 | AC38: нд | AD38: 0 | AE38: нд | AF38: 0 | AG38: нд | AH38: 0 | AI38: нд | AJ38: 0 | AK38: нд | AL38: 0 | AM38: нд | AN38: 0 | AO38: нд | AP38: 0 | AQ38: нд | AR38: 0 | AS38: нд | AT38: 0 | AU38: нд | AV38: 0 | AW38: нд | AX38: ='2'!AS43 -> 0 | AY38: ='2'!BC43 -> 0 | AZ38: 0 | BA38: нд
A39: 1.1.3.1 | B39: Наименование объекта по производству электрической энергии, всего, в том числе: | C39: нд | D39: 0 | E39: нд | F39: нд | G39: 0 | H39: 0 | I39: нд | J39: 0 | K39: нд | L39: 0 | M39: нд | N39: 0 | O39: нд | P39: 0 | Q39: нд | R39: 0 | S39: нд | T39: 0 | U39: нд | V39: 0 | W39: нд | X39: 0 | Y39: нд | Z39: 0 | AA39: нд | AB39: 0 | AC39: нд | AD39: 0 | AE39: нд | AF39: 0 | AG39: нд | AH39: 0 | AI39: нд | AJ39: 0 | AK39: нд | AL39: 0 | AM39: нд | AN39: 0 | AO39: нд | AP39: 0 | AQ39: нд | AR39: 0 | AS39: нд | AT39: 0 | AU39: нд | AV39: 0 | AW39: нд | AX39: ='2'!AS44 -> 0 | AY39: ='2'!BC44 -> 0 | AZ39: 0 | BA39: нд
A40: 1.1.3.1 | B40: Строительство новых объектов электросетевого хозяйства (за исключением усиления существующей электрической сети) в целях осуществления технологического присоединения объекта по производству электрической энергии, всего, в том числе: | C40: нд | D40: 0 | E40: нд | F40: нд | G40: 0 | H40: 0 | I40: нд | J40: 0 | K40: нд | L40: 0 | M40: нд | N40: 0 | O40: нд | P40: 0 | Q40: нд | R40: 0 | S40: нд | T40: 0 | U40: нд | V40: 0 | W40: нд | X40: 0 | Y40: нд | Z40: 0 | AA40: нд | AB40: 0 | AC40: нд | AD40: 0 | AE40: нд | AF40: 0 | AG40: нд | AH40: 0 | AI40: нд | AJ40: 0 | AK40: нд | AL40: 0 | AM40: нд | AN40: 0 | AO40: нд | AP40: 0 | AQ40: нд | AR40: 0 | AS40: нд | AT40: 0 | AU40: нд | AV40: 0 | AW40: нд | AX40: ='2'!AS45 -> 0 | AY40: ='2'!BC45 -> 0 | AZ40: 0 | BA40: нд
A41: 1.1.3.1 | B41: Строительство новых объектов электросетевого хозяйства для усиления электрической сети в целях осуществления технологического присоединения объекта по производству электрической энергии, всего, в том числе: | C41: нд | D41: 0 | E41: нд | F41: нд | G41: 0 | H41: 0 | I41: нд | J41: 0 | K41: нд | L41: 0 | M41: нд | N41: 0 | O41: нд | P41: 0 | Q41: нд | R41: 0 | S41: нд | T41: 0 | U41: нд | V41: 0 | W41: нд | X41: 0 | Y41: нд | Z41: 0 | AA41: нд | AB41: 0 | AC41: нд | AD41: 0 | AE41: нд | AF41: 0 | AG41: нд | AH41: 0 | AI41: нд | AJ41: 0 | AK41: нд | AL41: 0 | AM41: нд | AN41: 0 | AO41: нд | AP41: 0 | AQ41: нд | AR41: 0 | AS41: нд | AT41: 0 | AU41: нд | AV41: 0 | AW41: нд | AX41: ='2'!AS46 -> 0 | AY41: ='2'!BC46 -> 0 | AZ41: 0 | BA41: нд
A42: 1.1.3.1 | B42: Реконструкция существующих объектов электросетевого хозяйства для усиления электрической сети в целях осуществления технологического присоединения объекта по производству электрической энергии всего, в том числе: | C42: нд | D42: 0 | E42: нд | F42: нд | G42: 0 | H42: 0 | I42: нд | J42: 0 | K42: нд | L42: 0 | M42: нд | N42: 0 | O42: нд | P42: 0 | Q42: нд | R42: 0 | S42: нд | T42: 0 | U42: нд | V42: 0 | W42: нд | X42: 0 | Y42: нд | Z42: 0 | AA42: нд | AB42: 0 | AC42: нд | AD42: 0 | AE42: нд | AF42: 0 | AG42: нд | AH42: 0 | AI42: нд | AJ42: 0 | AK42: нд | AL42: 0 | AM42: нд | AN42: 0 | AO42: нд | AP42: 0 | AQ42: нд | AR42: 0 | AS42: нд | AT42: 0 | AU42: нд | AV42: 0 | AW42: нд | AX42: ='2'!AS47 -> 0 | AY42: ='2'!BC47 -> 0 | AZ42: 0 | BA42: нд
A43: 1.1.3.2 | B43: Наименование объекта по производству электрической энергии, всего, в том числе: | C43: нд | D43: 0 | E43: нд | F43: нд | G43: 0 | H43: 0 | I43: нд | J43: 0 | K43: нд | L43: 0 | M43: нд | N43: 0 | O43: нд | P43: 0 | Q43: нд | R43: 0 | S43: нд | T43: 0 | U43: нд | V43: 0 | W43: нд | X43: 0 | Y43: нд | Z43: 0 | AA43: нд | AB43: 0 | AC43: нд | AD43: 0 | AE43: нд | AF43: 0 | AG43: нд | AH43: 0 | AI43: нд | AJ43: 0 | AK43: нд | AL43: 0 | AM43: нд | AN43: 0 | AO43: нд | AP43: 0 | AQ43: нд | AR43: 0 | AS43: нд | AT43: 0 | AU43: нд | AV43: 0 | AW43: нд | AX43: ='2'!AS48 -> 0 | AY43: ='2'!BC48 -> 0 | AZ43: 0 | BA43: нд
A44: 1.1.3.2 | B44: Строительство новых объектов электросетевого хозяйства (за исключением усиления существующей электрической сети) в целях осуществления технологического присоединения объекта по производству электрической энергии, всего, в том числе: | C44: нд | D44: 0 | E44: нд | F44: нд | G44: 0 | H44: 0 | I44: нд | J44: 0 | K44: нд | L44: 0 | M44: нд | N44: 0 | O44: нд | P44: 0 | Q44: нд | R44: 0 | S44: нд | T44: 0 | U44: нд | V44: 0 | W44: нд | X44: 0 | Y44: нд | Z44: 0 | AA44: нд | AB44: 0 | AC44: нд | AD44: 0 | AE44: нд | AF44: 0 | AG44: нд | AH44: 0 | AI44: нд | AJ44: 0 | AK44: нд | AL44: 0 | AM44: нд | AN44: 0 | AO44: нд | AP44: 0 | AQ44: нд | AR44: 0 | AS44: нд | AT44: 0 | AU44: нд | AV44: 0 | AW44: нд | AX44: ='2'!AS49 -> 0 | AY44: ='2'!BC49 -> 0 | AZ44: 0 | BA44: нд
A45: 1.1.3.2 | B45: Строительство новых объектов электросетевого хозяйства для усиления электрической сети в целях осуществления технологического присоединения объекта по производству электрической энергии, всего, в том числе: | C45: нд | D45: 0 | E45: нд | F45: нд | G45: 0 | H45: 0 | I45: нд | J45: 0 | K45: нд | L45: 0 | M45: нд | N45: 0 | O45: нд | P45: 0 | Q45: нд | R45: 0 | S45: нд | T45: 0 | U45: нд | V45: 0 | W45: нд | X45: 0 | Y45: нд | Z45: 0 | AA45: нд | AB45: 0 | AC45: нд | AD45: 0 | AE45: нд | AF45: 0 | AG45: нд | AH45: 0 | AI45: нд | AJ45: 0 | AK45: нд | AL45: 0 | AM45: нд | AN45: 0 | AO45: нд | AP45: 0 | AQ45: нд | AR45: 0 | AS45: нд | AT45: 0 | AU45: нд | AV45: 0 | AW45: нд | AX45: ='2'!AS50 -> 0 | AY45: ='2'!BC50 -> 0 | AZ45: 0 | BA45: нд
A46: 1.1.3.2 | B46: Реконструкция существующих объектов электросетевого хозяйства для усиления электрической сети в целях осуществления технологического присоединения объекта по производству электрической энергии, всего, в том числе: | C46: нд | D46: 0 | E46: нд | F46: нд | G46: 0 | H46: 0 | I46: нд | J46: 0 | K46: нд | L46: 0 | M46: нд | N46: 0 | O46: нд | P46: 0 | Q46: нд | R46: 0 | S46: нд | T46: 0 | U46: нд | V46: 0 | W46: нд | X46: 0 | Y46: нд | Z46: 0 | AA46: нд | AB46: 0 | AC46: нд | AD46: 0 | AE46: нд | AF46: 0 | AG46: нд | AH46: 0 | AI46: нд | AJ46: 0 | AK46: нд | AL46: 0 | AM46: нд | AN46: 0 | AO46: нд | AP46: 0 | AQ46: нд | AR46: 0 | AS46: нд | AT46: 0 | AU46: нд | AV46: 0 | AW46: нд | AX46: ='2'!AS51 -> 0 | AY46: ='2'!BC51 -> 0 | AZ46: 0 | BA46: нд
A47: 1.1.4 | B47: Усиление электрической сети в целях осуществления технологического присоединения энергопринимающих устройств потребителей и (или) объектов электросетевого хозяйства всего, в том числе: | C47: нд | D47: 0 | E47: нд | F47: нд | G47: 0 | H47: 0 | I47: нд | J47: 0 | K47: нд | L47: 0 | M47: нд | N47: 0 | O47: нд | P47: 0 | Q47: нд | R47: 0 | S47: нд | T47: 0 | U47: нд | V47: 0 | W47: нд | X47: 0 | Y47: нд | Z47: 0 | AA47: нд | AB47: 0 | AC47: нд | AD47: 0 | AE47: нд | AF47: 0 | AG47: нд | AH47: 0 | AI47: нд | AJ47: 0 | AK47: нд | AL47: 0 | AM47: нд | AN47: 0 | AO47: нд | AP47: 0 | AQ47: нд | AR47: 0 | AS47: нд | AT47: 0 | AU47: нд | AV47: 0 | AW47: нд | AX47: ='2'!AS52 -> 0 | AY47: ='2'!BC52 -> 0 | AZ47: 0 | BA47: нд
A48: 1.1.4.1 | B48: Строительство новых объектов электросетевого хозяйства для усиления электрической сети в целях осуществления технологического присоединения, всего, в том числе: | C48: нд | D48: 0 | E48: нд | F48: нд | G48: 0 | H48: 0 | I48: нд | J48: 0 | K48: нд | L48: 0 | M48: нд | N48: 0 | O48: нд | P48: 0 | Q48: нд | R48: 0 | S48: нд | T48: 0 | U48: нд | V48: 0 | W48: нд | X48: 0 | Y48: нд | Z48: 0 | AA48: нд | AB48: 0 | AC48: нд | AD48: 0 | AE48: нд | AF48: 0 | AG48: нд | AH48: 0 | AI48: нд | AJ48: 0 | AK48: нд | AL48: 0 | AM48: нд | AN48: 0 | AO48: нд | AP48: 0 | AQ48: нд | AR48: 0 | AS48: нд | AT48: 0 | AU48: нд | AV48: 0 | AW48: нд | AX48: ='2'!AS53 -> 0 | AY48: ='2'!BC53 -> 0 | AZ48: 0 | BA48: нд
A49: 1.1.4.2 | B49: Реконструкция существующих объектов электросетевого хозяйства для усиления электрической сети в целях осуществления технологического присоединения, всего, в том числе: | C49: нд | D49: 0 | E49: нд | F49: нд | G49: 0 | H49: 0 | I49: нд | J49: 0 | K49: нд | L49: 0 | M49: нд | N49: 0 | O49: нд | P49: 0 | Q49: нд | R49: 0 | S49: нд | T49: 0 | U49: нд | V49: 0 | W49: нд | X49: 0 | Y49: нд | Z49: 0 | AA49: нд | AB49: 0 | AC49: нд | AD49: 0 | AE49: нд | AF49: 0 | AG49: нд | AH49: 0 | AI49: нд | AJ49: 0 | AK49: нд | AL49: 0 | AM49: нд | AN49: 0 | AO49: нд | AP49: 0 | AQ49: нд | AR49: 0 | AS49: нд | AT49: 0 | AU49: нд | AV49: 0 | AW49: нд | AX49: ='2'!AS54 -> 0 | AY49: ='2'!BC54 -> 0 | AZ49: 0 | BA49: нд
A50: 1.2 | B50: Реконструкция, модернизация, техническое перевооружение всего, в том числе: | C50: нд | D50: =D51+D59+D66 -> 0 | E50: нд | F50: нд | G50: =G51+G59+G66 -> 0 | H50: =H51+H59+H66 -> 0 | I50: нд | J50: =J51+J59+J66 -> 0 | K50: нд | L50: =L51+L59+L66 -> 0 | M50: нд | N50: =N51+N59+N66 -> 0 | O50: нд | P50: =P51+P59+P66 -> 0 | Q50: нд | R50: =R51+R59+R66 -> 0 | S50: нд | T50: =T51+T59+T66 -> 0 | U50: нд | V50: =V51+V59+V66 -> 0 | W50: нд | X50: =X59 -> 4 | Y50: =Y59 -> 4 | Z50: =Z51+Z59+Z66 -> 0 | AA50: =AA51 -> 9 | AB50: =AB51+AB59+AB66 -> 0 | AC50: нд | AD50: =AD51+AD59+AD66 -> 0 | AE50: нд | AF50: =AF51+AF59+AF66 -> 0 | AG50: нд | AH50: =AH51+AH59+AH66 -> 0 | AI50: нд | AJ50: =AJ51+AJ59+AJ66 -> 0 | AK50: нд | AL50: =AL51+AL59+AL66 -> 0 | AM50: нд | AN50: =AN51+AN59+AN66 -> 0 | AO50: нд | AP50: =AP51+AP59+AP66 -> 0 | AQ50: нд | AR50: =AR51+AR59+AR66 -> 0 | AS50: нд | AT50: =AT51+AT59+AT66 -> 0 | AU50: нд | AV50: =AV51+AV59+AV66 -> 0 | AW50: нд | AX50: ='2'!AS76 -> 5.54613937 | AY50: ='2'!BC76 -> 4.81789885 | AZ50: =AZ51+AZ59+AZ66 -> 0 | BA50: нд
A51: 1.2.1 | B51: Реконструкция, модернизация, техническое перевооружение трансформаторных и иных подстанций, распределительных пунктов, всего, в том числе: | C51: нд | D51: =D52 -> 0 | E51: нд | F51: нд | G51: =G52 -> 0 | H51: =H52 -> 0 | I51: нд | J51: =J52 -> 0 | K51: нд | L51: =L52 -> 0 | M51: нд | N51: =N52 -> 0 | O51: нд | P51: =P52 -> 0 | Q51: нд | R51: =R52 -> 0 | S51: нд | T51: =T52 -> 0 | U51: нд | V51: =V52 -> 0 | W51: нд | X51: =X52 -> 0 | Y51: нд | Z51: =Z52 -> 0 | AA51: =AA52 -> 9 | AB51: =AB52 -> 0 | AC51: нд | AD51: =AD52 -> 0 | AE51: нд | AF51: =AF52 -> 0 | AG51: нд | AH51: =AH52 -> 0 | AI51: нд | AJ51: =AJ52 -> 0 | AK51: нд | AL51: =AL52 -> 0 | AM51: нд | AN51: =AN52 -> 0 | AO51: нд | AP51: =AP52 -> 0 | AQ51: нд | AR51: =AR52 -> 0 | AS51: нд | AT51: =AT52 -> 0 | AU51: нд | AV51: =AV52 -> 0 | AW51: нд | AX51: ='2'!AS77 -> 2.42966421 | AY51: ='2'!BC77 -> 0 | AZ51: =AZ52 -> 0 | BA51: нд
A52: 1.2.1.1 | B52: Реконструкция трансформаторных и иных подстанций, всего, в том числе: | C52: нд | D52: =SUM(D58:D60) -> 0 | E52: нд | F52: нд | G52: =SUM(G58:G60) -> 0 | H52: =SUM(H58:H60) -> 0 | I52: нд | J52: =SUM(J58:J60) -> 0 | K52: нд | L52: =SUM(L58:L60) -> 0 | M52: нд | N52: =SUM(N58:N60) -> 0 | O52: нд | P52: =SUM(P58:P60) -> 0 | Q52: нд | R52: =SUM(R58:R60) -> 0 | S52: нд | T52: =SUM(T58:T60) -> 0 | U52: нд | V52: =SUM(V58:V60) -> 0 | W52: нд | X52: 0 | Y52: нд | Z52: =SUM(Z58:Z60) -> 0 | AA52: =SUM(AA53:AA57) -> 9 | AB52: =SUM(AB58:AB60) -> 0 | AC52: нд | AD52: =SUM(AD58:AD60) -> 0 | AE52: нд | AF52: =SUM(AF58:AF60) -> 0 | AG52: нд | AH52: =SUM(AH58:AH60) -> 0 | AI52: нд | AJ52: =SUM(AJ58:AJ60) -> 0 | AK52: нд | AL52: =SUM(AL58:AL60) -> 0 | AM52: нд | AN52: =SUM(AN58:AN60) -> 0 | AO52: нд | AP52: =SUM(AP58:AP60) -> 0 | AQ52: нд | AR52: =SUM(AR58:AR60) -> 0 | AS52: нд | AT52: =SUM(AT58:AT60) -> 0 | AU52: нд | AV52: =SUM(AV58:AV60) -> 0 | AW52: нд | AX52: ='2'!AS78 -> 2.42966421 | AY52: ='2'!BC78 -> 0 | AZ52: =SUM(AZ58:AZ60) -> 0 | BA52: нд
A53: 1.2.1.1 | B53: Замена ячеек с автоматами АВМ-1000 А на панели щитов ЩО-70 в ТП-10/0,4 кВ «Масис» по адресу: г.Саранск, Александровское шоссе, 26 | C53: Н_МСК_01 | D53: 0 | E53: 0 | F53: 0 | G53: 0 | H53: 0 | I53: 0 | J53: 0 | K53: 0 | L53: 0 | M53: 0 | N53: 0 | O53: 0 | P53: 0 | Q53: 0 | R53: 0 | S53: 0 | T53: 0 | U53: 0 | V53: 0 | W53: 0 | X53: 0 | Y53: 0 | Z53: 0 | AA53: 0 | AB53: 0 | AC53: 0 | AD53: 0 | AE53: 0 | AF53: 0 | AG53: 0 | AH53: 0 | AI53: 0 | AJ53: 0 | AK53: 0 | AL53: 0 | AM53: 0 | AN53: 0 | AO53: 0 | AP53: 0 | AQ53: 0 | AR53: 0 | AS53: 0 | AT53: 0 | AU53: 0 | AV53: 0 | AW53: 0 | AX53: ='2'!AS79 -> 0 | AY53: ='2'!BC79 -> 0 | AZ53: 0 | BA53: 0
A54: 1.2.1.1 | B54: Установка камеры КСО-366 1НУЗ В ТП-10/0,4 кВ «Масис» по адресу: г.Саранск, Александровское шоссе, 26 | C54: Н_МСК_02 | D54: 0 | E54: 0 | F54: 0 | G54: 0 | H54: 0 | I54: 0 | J54: 0 | K54: 0 | L54: 0 | M54: 0 | N54: 0 | O54: 0 | P54: 0 | Q54: 0 | R54: 0 | S54: 0 | T54: 0 | U54: 0 | V54: 0 | W54: 0 | X54: 0 | Y54: 0 | Z54: 0 | AA54: 0 | AB54: 0 | AC54: 0 | AD54: 0 | AE54: 0 | AF54: 0 | AG54: 0 | AH54: 0 | AI54: 0 | AJ54: 0 | AK54: 0 | AL54: 0 | AM54: 0 | AN54: 0 | AO54: 0 | AP54: 0 | AQ54: 0 | AR54: 0 | AS54: 0 | AT54: 0 | AU54: 0 | AV54: 0 | AW54: 0 | AX54: ='2'!AS80 -> 0 | AY54: ='2'!BC80 -> 0 | AZ54: 0 | BA54: 0
A55: 1.2.1.1 | B55: Замена выключателей нагрузки ВН-16 на ВНА/ТЕ-(Л)л-10/630 ТП-560/630/6/0,4 кВ «СТЭМ» по адресу: г.Саранск, ул. Пролетарская, 144 А | C55: Н_МСК_03 | D55: 0 | E55: 0 | F55: 0 | G55: 0 | H55: 0 | I55: 0 | J55: 0 | K55: 0 | L55: 0 | M55: 0 | N55: 0 | O55: 0 | P55: 0 | Q55: 0 | R55: 0 | S55: 0 | T55: 0 | U55: 0 | V55: 0 | W55: 0 | X55: 0 | Y55: 0 | Z55: 0 | AA55: 0 | AB55: 0 | AC55: 0 | AD55: 0 | AE55: 0 | AF55: 0 | AG55: 0 | AH55: 0 | AI55: 0 | AJ55: 0 | AK55: 0 | AL55: 0 | AM55: 0 | AN55: 0 | AO55: 0 | AP55: 0 | AQ55: 0 | AR55: 0 | AS55: 0 | AT55: 0 | AU55: 0 | AV55: 0 | AW55: 0 | AX55: ='2'!AS81 -> 0 | AY55: ='2'!BC81 -> 0 | AZ55: 0 | BA55: 0
A56: 1.2.1.1 | B56: Замена масляных выключателей на вакуумные в ТП-630/10/0,4 кВ «Ремстроймаш», по адресу: г.Саранск, Александровское шоссе, 8 | C56: Н_МСК_04 | D56: 0 | E56: 0 | F56: 0 | G56: 0 | H56: 0 | I56: 0 | J56: 0 | K56: 0 | L56: 0 | M56: 0 | N56: 0 | O56: 0 | P56: 0 | Q56: 0 | R56: 0 | S56: 0 | T56: 0 | U56: 0 | V56: 0 | W56: 0 | X56: 0 | Y56: 0 | Z56: 0 | AA56: 9 | AB56: 0 | AC56: 0 | AD56: 0 | AE56: 0 | AF56: 0 | AG56: 0 | AH56: 0 | AI56: 0 | AJ56: 0 | AK56: 0 | AL56: 0 | AM56: 0 | AN56: 0 | AO56: 0 | AP56: 0 | AQ56: 0 | AR56: 0 | AS56: 0 | AT56: 0 | AU56: 0 | AV56: 0 | AW56: 0 | AX56: ='2'!AS82 -> 1.93751202 | AY56: ='2'!BC82 -> 0 | AZ56: 0 | BA56: 0
A57: 1.2.1.1 | B57: Монтаж ТСН-10/0,4 кВ для ТП-630/10/0,4 кВ «Рестроймаш», по адресу: г.Саранск, Александровское шоссе, 8 | C57: Н_МСК_05 | D57: 0 | E57: 0 | F57: 0 | G57: 0 | H57: 0 | I57: 0 | J57: 0 | K57: 0 | L57: 0 | M57: 0 | N57: 0 | O57: 0 | P57: 0 | Q57: 0 | R57: 0 | S57: 0 | T57: 0 | U57: 0 | V57: 0 | W57: 0 | X57: 0 | Y57: 0 | Z57: 0 | AA57: 0 | AB57: 0 | AC57: 0 | AD57: 0 | AE57: 0 | AF57: 0 | AG57: 0 | AH57: 0 | AI57: 0 | AJ57: 0 | AK57: 0 | AL57: 0 | AM57: 0 | AN57: 0 | AO57: 0 | AP57: 0 | AQ57: 0 | AR57: 0 | AS57: 0 | AT57: 0 | AU57: 0 | AV57: 0 | AW57: 0 | AX57: ='2'!AS83 -> 0.49215219 | AY57: ='2'!BC83 -> 0 | AZ57: 0 | BA57: 0
A58: 1.2.1.2 | B58: Модернизация, техническое перевооружение трансформаторных и иных подстанций, распределительных пунктов, всего, в том числе: | C58: нд | D58: 0 | E58: нд | F58: нд | G58: 0 | H58: 0 | I58: нд | J58: 0 | K58: нд | L58: 0 | M58: нд | N58: 0 | O58: нд | P58: 0 | Q58: нд | R58: 0 | S58: нд | T58: 0 | U58: нд | V58: 0 | W58: нд | X58: 0 | Y58: нд | Z58: 0 | AA58: нд | AB58: 0 | AC58: нд | AD58: 0 | AE58: нд | AF58: 0 | AG58: нд | AH58: 0 | AI58: нд | AJ58: 0 | AK58: нд | AL58: 0 | AM58: нд | AN58: 0 | AO58: нд | AP58: 0 | AQ58: нд | AR58: 0 | AS58: нд | AT58: 0 | AU58: нд | AV58: 0 | AW58: нд | AX58: ='2'!AS84 -> 0 | AY58: ='2'!BC84 -> 0 | AZ58: 0 | BA58: нд
A59: 1.2.2 | B59: Реконструкция, модернизация, техническое перевооружение линий электропередачи, всего, в том числе: | C59: нд | D59: =D60 -> 0 | E59: нд | F59: нд | G59: =G60 -> 0 | H59: =H60 -> 0 | I59: нд | J59: =J60 -> 0 | K59: нд | L59: =L60 -> 0 | M59: нд | N59: =N60 -> 0 | O59: нд | P59: =P60 -> 0 | Q59: нд | R59: =R60 -> 0 | S59: нд | T59: =T60 -> 0 | U59: нд | V59: =V60 -> 0 | W59: нд | X59: =X60 -> 4 | Y59: =Y60 -> 4 | Z59: =Z60 -> 0 | AA59: нд | AB59: =AB60 -> 0 | AC59: нд | AD59: =AD60 -> 0 | AE59: нд | AF59: =AF60 -> 0 | AG59: нд | AH59: =AH60 -> 0 | AI59: нд | AJ59: =AJ60 -> 0 | AK59: нд | AL59: =AL60 -> 0 | AM59: нд | AN59: =AN60 -> 0 | AO59: нд | AP59: =AP60 -> 0 | AQ59: нд | AR59: =AR60 -> 0 | AS59: нд | AT59: =AT60 -> 0 | AU59: нд | AV59: =AV60 -> 0 | AW59: нд | AX59: ='2'!AS85 -> 3.11647516 | AY59: ='2'!BC85 -> 2.71347516 | AZ59: =AZ60 -> 0 | BA59: нд
A60: 1.2.2.1 | B60: Реконструкция линий электропередачи, всего, в том числе: | C60: нд | D60: =SUM(D63:D67) -> 0 | E60: нд | F60: нд | G60: =SUM(G63:G67) -> 0 | H60: =SUM(H63:H67) -> 0 | I60: нд | J60: =SUM(J63:J67) -> 0 | K60: нд | L60: =SUM(L63:L67) -> 0 | M60: нд | N60: =SUM(N63:N67) -> 0 | O60: нд | P60: =SUM(P63:P67) -> 0 | Q60: нд | R60: =SUM(R63:R67) -> 0 | S60: нд | T60: =SUM(T63:T67) -> 0 | U60: нд | V60: =SUM(V63:V67) -> 0 | W60: нд | X60: =SUM(X63:X67) -> 4 | Y60: =SUM(Y63:Y67) -> 4 | Z60: =SUM(Z63:Z67) -> 0 | AA60: нд | AB60: =SUM(AB63:AB67) -> 0 | AC60: нд | AD60: =SUM(AD63:AD67) -> 0 | AE60: нд | AF60: =SUM(AF63:AF67) -> 0 | AG60: нд | AH60: =SUM(AH63:AH67) -> 0 | AI60: нд | AJ60: =SUM(AJ63:AJ67) -> 0 | AK60: нд | AL60: =SUM(AL63:AL67) -> 0 | AM60: нд | AN60: =SUM(AN63:AN67) -> 0 | AO60: нд | AP60: =SUM(AP63:AP67) -> 0 | AQ60: нд | AR60: =SUM(AR63:AR67) -> 0 | AS60: нд | AT60: =SUM(AT63:AT67) -> 0 | AU60: нд | AV60: =SUM(AV63:AV67) -> 0 | AW60: нд | AX60: ='2'!AS86 -> 3.11647516 | AY60: ='2'!BC86 -> 2.71347516 | AZ60: =SUM(AZ63:AZ67) -> 0 | BA60: нд
A61: 1.2.2.1.1 | B61: Реконструкция линии ВЛ-0,4 кВ протяженностью 0,867 км на ВЛИ-0,4 кВ по адресу: р.п. Ромоданово, пер. Филатова | C61: Н_МСК_06 | D61: 0 | E61: 0 | F61: 0 | G61: 0 | H61: 0 | I61: 0 | J61: 0 | K61: 0 | L61: 0 | M61: 0 | N61: 0 | O61: 0 | P61: 0 | Q61: 0 | R61: 0 | S61: 0 | T61: 0 | U61: 0 | V61: 0 | W61: 0 | X61: 0 | Y61: 0 | Z61: 0 | AA61: 0 | AB61: 0 | AC61: 0 | AD61: 0 | AE61: 0 | AF61: 0 | AG61: 0 | AH61: 0 | AI61: 0 | AJ61: 0 | AK61: 0 | AL61: 0 | AM61: 0 | AN61: 0 | AO61: 0 | AP61: 0 | AQ61: 0 | AR61: 0 | AS61: 0 | AT61: 0 | AU61: 0 | AV61: 0 | AW61: 0 | AX61: ='2'!AS87 -> 0 | AY61: ='2'!BC87 -> 0 | AZ61: 0 | BA61: 0
A62: 1.2.2.1.2 | B62: Реконструкция ВЛ-10 кВ от яч. 23 ГПП 110/10 кВ «ВКМ-Сталь» | C62: Н_МСК_07 | D62: 0 | E62: 0 | F62: 0 | G62: 0 | H62: 0 | I62: 0 | J62: 0 | K62: 0 | L62: 0 | M62: 0 | N62: 0 | O62: 0 | P62: 0 | Q62: 0 | R62: 0 | S62: 0 | T62: 0 | U62: 0 | V62: 0 | W62: 0 | X62: 0 | Y62: 0 | Z62: 0 | AA62: 0 | AB62: 0 | AC62: 0 | AD62: 0 | AE62: 0 | AF62: 0 | AG62: 0 | AH62: 0 | AI62: 0 | AJ62: 0 | AK62: 0 | AL62: 0 | AM62: 0 | AN62: 0 | AO62: 0 | AP62: 0 | AQ62: 0 | AR62: 0 | AS62: 0 | AT62: 0 | AU62: 0 | AV62: 0 | AW62: 0 | AX62: ='2'!AS88 -> 0 | AY62: ='2'!BC88 -> 0 | AZ62: 0 | BA62: 0
A63: 1.2.2.1.3 | B63: Замена двух КЛ-6 кВ от ГРУ-6 кВ ТЭЦ-2 до ТП-630/10/0,4 кВ «Ремстроймаш», по адресу: г.Саранск, Александровское шоссе, 8 | C63: Н_МСК_08 | D63: 0 | E63: нд | F63: нд | G63: 0 | H63: 0 | I63: нд | J63: 0 | K63: нд | L63: 0 | M63: нд | N63: 0 | O63: нд | P63: 0 | Q63: нд | R63: 0 | S63: нд | T63: 0 | U63: нд | V63: 0 | W63: нд | X63: 4 | Y63: 4 | Z63: 0 | AA63: нд | AB63: 0 | AC63: нд | AD63: 0 | AE63: нд | AF63: 0 | AG63: нд | AH63: 0 | AI63: нд | AJ63: 0 | AK63: нд | AL63: 0 | AM63: нд | AN63: 0 | AO63: нд | AP63: 0 | AQ63: нд | AR63: 0 | AS63: нд | AT63: 0 | AU63: нд | AV63: 0 | AW63: нд | AX63: ='2'!AS89 -> 0.403 | AY63: ='2'!BC89 -> 0 | AZ63: 0 | BA63: нд
A64: 1.2.2.1.4 | B64: Реконструкция ВЛ-0,4 кВ от ТП 10/0,4 кВ "Поводимовская школа - интернат" с заменой ТП 10/0,4 кВ мощностью 160 кВА в с. Поводимово Дубенского муниципального района РМ | C64: ='2'!C91 -> J_МСК_21 | D64: 0 | E64: 0 | F64: 0 | G64: 0 | H64: 0 | I64: 0 | J64: 0 | K64: 0 | L64: 0 | M64: 0 | N64: 0 | O64: 0 | P64: 0 | Q64: 0 | R64: 0 | S64: 0 | T64: 0 | U64: 0 | V64: 0 | W64: 0 | X64: 0 | Y64: 0 | Z64: 0 | AA64: 0 | AB64: 0 | AC64: 0 | AD64: 0 | AE64: 0 | AF64: 0 | AG64: 0 | AH64: 0 | AI64: 0 | AJ64: 0 | AK64: 0 | AL64: 0 | AM64: 0 | AN64: 0 | AO64: 0 | AP64: 0 | AQ64: 0 | AR64: 0 | AS64: 0 | AT64: 0 | AU64: 0 | AV64: 0 | AW64: 0 | AX64: 0 | AY64: ='2'!BC91 -> 2.71347516 | AZ64: 0 | BA64: 0
A65: 1.2.2.2 | B65: Модернизация, техническое перевооружение линий электропередачи, всего, в том числе: | C65: нд | D65: 0 | E65: нд | F65: нд | G65: 0 | H65: 0 | I65: нд | J65: 0 | K65: нд | L65: 0 | M65: нд | N65: 0 | O65: нд | P65: 0 | Q65: нд | R65: 0 | S65: нд | T65: 0 | U65: нд | V65: 0 | W65: нд | X65: 0 | Y65: нд | Z65: 0 | AA65: нд | AB65: 0 | AC65: нд | AD65: 0 | AE65: нд | AF65: 0 | AG65: нд | AH65: 0 | AI65: нд | AJ65: 0 | AK65: нд | AL65: 0 | AM65: нд | AN65: 0 | AO65: нд | AP65: 0 | AQ65: нд | AR65: 0 | AS65: нд | AT65: 0 | AU65: нд | AV65: 0 | AW65: нд | AX65: ='2'!AS90 -> 0 | AY65: ='2'!BC90 -> 0 | AZ65: 0 | BA65: нд
A66: 1.2.3 | B66: Развитие и модернизация учета электрической энергии (мощности), всего, в том числе: | C66: нд | D66: =D75 -> 0 | E66: нд | F66: нд | G66: =G75 -> 0 | H66: =H75 -> 0 | I66: нд | J66: =J75 -> 0 | K66: нд | L66: =L75 -> 0 | M66: нд | N66: =N75 -> 0 | O66: нд | P66: =P75 -> 0 | Q66: нд | R66: =R75 -> 0 | S66: нд | T66: =T75 -> 0 | U66: нд | V66: =V75 -> 0 | W66: нд | X66: =X75 -> 0 | Y66: нд | Z66: =Z75 -> 0 | AA66: нд | AB66: =AB75 -> 0 | AC66: нд | AD66: =AD75 -> 0 | AE66: нд | AF66: =AF75 -> 0 | AG66: нд | AH66: =AH75 -> 0 | AI66: нд | AJ66: =AJ75 -> 0 | AK66: нд | AL66: =AL75 -> 0 | AM66: нд | AN66: =AN75 -> 0 | AO66: нд | AP66: =AP75 -> 0 | AQ66: нд | AR66: =AR75 -> 0 | AS66: нд | AT66: =AT75 -> 0 | AU66: нд | AV66: =AV75 -> 0 | AW66: нд | AX66: ='2'!AS92 -> 0 | AY66: ='2'!BC92 -> 2.10442369 | AZ66: =AZ75 -> 0 | BA66: нд
A67: 1.2.3.1 | B67: «Установка приборов учета, класс напряжения 0,22 (0,4) кВ, всего, в том числе:» | C67: нд | D67: 0 | E67: нд | F67: нд | G67: 0 | H67: 0 | I67: нд | J67: 0 | K67: нд | L67: 0 | M67: нд | N67: 0 | O67: нд | P67: 0 | Q67: нд | R67: 0 | S67: нд | T67: 0 | U67: нд | V67: 0 | W67: нд | X67: 0 | Y67: нд | Z67: 0 | AA67: нд | AB67: 0 | AC67: нд | AD67: 0 | AE67: нд | AF67: 0 | AG67: нд | AH67: 0 | AI67: нд | AJ67: 0 | AK67: нд | AL67: 0 | AM67: нд | AN67: 0 | AO67: нд | AP67: 0 | AQ67: нд | AR67: 0 | AS67: нд | AT67: 0 | AU67: нд | AV67: 0 | AW67: нд | AX67: ='2'!AS93 -> 0 | AY67: ='2'!BC93 -> 0 | AZ67: 0 | BA67: нд
A68: 1.2.3.1 | B68: Внедрение автоматизированной системы технического учета электроэнергии (АСТУЭ) в количестве 312 шт. | C68: Н_МСК_09 | D68: 0 | E68: 0 | F68: 0 | G68: 0 | H68: 0 | I68: 0 | J68: 0 | K68: 0 | L68: 0 | M68: 0 | N68: 0 | O68: 0 | P68: 0 | Q68: 0 | R68: 0 | S68: 0 | T68: 0 | U68: 0 | V68: 0 | W68: 0 | X68: 0 | Y68: 0 | Z68: 0 | AA68: 0 | AB68: 0 | AC68: 0 | AD68: 0 | AE68: 0 | AF68: 0 | AG68: нд | AH68: 0 | AI68: нд | AJ68: 55 | AK68: 0 | AL68: 0 | AM68: 0 | AN68: 0 | AO68: 0 | AP68: 0 | AQ68: 0 | AR68: 0 | AS68: 0 | AT68: 0 | AU68: 0 | AV68: 0 | AW68: 0 | AX68: ='2'!AS94 -> 0 | AY68: ='2'!BC94 -> 0 | AZ68: 0 | BA68: 0
B69: Строительство системы коммерческого учета с применением интеллектуальных приборов учета | C69: J_МСК_20 | D69: 0 | E69: нд | F69: нд | G69: 0 | H69: 0 | I69: нд | J69: 0 | K69: нд | L69: 0 | M69: нд | N69: 0 | O69: нд | P69: 0 | Q69: нд | R69: 0 | S69: нд | T69: 0 | U69: нд | V69: 0 | W69: нд | X69: 0 | Y69: нд | Z69: 0 | AA69: нд | AB69: 0 | AC69: нд | AD69: 0 | AE69: нд | AF69: 0 | AG69: нд | AH69: 0 | AX69: ='2'!AS95 -> 0 | AY69: ='2'!BC95 -> 2.10442369
A70: 1.2.3.2 | B70: «Установка приборов учета, класс напряжения 6 (10) кВ, всего, в том числе:» | C70: нд | D70: 0 | E70: нд | F70: нд | G70: 0 | H70: 0 | I70: нд | J70: 0 | K70: нд | L70: 0 | M70: нд | N70: 0 | O70: нд | P70: 0 | Q70: нд | R70: 0 | S70: нд | T70: 0 | U70: нд | V70: 0 | W70: нд | X70: 0 | Y70: нд | Z70: 0 | AA70: нд | AB70: 0 | AC70: нд | AD70: 0 | AE70: нд | AF70: 0 | AG70: нд | AH70: 0 | AI70: нд | AJ70: 0 | AK70: нд | AL70: 0 | AM70: нд | AN70: 0 | AO70: нд | AP70: 0 | AQ70: нд | AR70: 0 | AS70: нд | AT70: 0 | AU70: нд | AV70: 0 | AW70: нд | AX70: ='2'!AS96 -> 0 | AY70: ='2'!BC96 -> 0 | AZ70: 0 | BA70: нд
A71: 1.2.3.2 | B71: Внедрение автоматизированной системы технического учета электроэнергии (АСТУЭ) в количестве 17 шт. | C71: Н_МСК_10 | D71: 0 | E71: 0 | F71: 0 | G71: 0 | H71: 0 | I71: 0 | J71: 0 | K71: 0 | L71: 0 | M71: 0 | N71: 0 | O71: 0 | P71: 0 | Q71: 0 | R71: 0 | S71: 0 | T71: 0 | U71: 0 | V71: 0 | W71: 0 | X71: 0 | Y71: 0 | Z71: 0 | AA71: 0 | AB71: 0 | AC71: 0 | AD71: 0 | AE71: 0 | AF71: 0 | AG71: 0 | AH71: 0 | AI71: 0 | AJ71: 0 | AK71: 0 | AL71: 0 | AM71: 0 | AN71: 0 | AO71: 0 | AP71: 0 | AQ71: 0 | AR71: 0 | AS71: 0 | AT71: 0 | AU71: 0 | AV71: 0 | AW71: 0 | AX71: ='2'!AS97 -> 0 | AY71: ='2'!BC97 -> 0 | AZ71: 0 | BA71: 0
A72: 1.2.3.3 | B72: «Установка приборов учета, класс напряжения 35 кВ, всего, в том числе:» | C72: нд | D72: 0 | E72: нд | F72: нд | G72: 0 | H72: 0 | I72: нд | J72: 0 | K72: нд | L72: 0 | M72: нд | N72: 0 | O72: нд | P72: 0 | Q72: нд | R72: 0 | S72: нд | T72: 0 | U72: нд | V72: 0 | W72: нд | X72: 0 | Y72: нд | Z72: 0 | AA72: нд | AB72: 0 | AC72: нд | AD72: 0 | AE72: нд | AF72: 0 | AG72: нд | AH72: 0 | AI72: нд | AJ72: 0 | AK72: нд | AL72: 0 | AM72: нд | AN72: 0 | AO72: нд | AP72: 0 | AQ72: нд | AR72: 0 | AS72: нд | AT72: 0 | AU72: нд | AV72: 0 | AW72: нд | AX72: ='2'!AS98 -> 0 | AY72: ='2'!BC98 -> 0 | AZ72: 0 | BA72: нд
A73: 1.2.3.4 | B73: «Установка приборов учета, класс напряжения 110 кВ и выше, всего, в том числе:» | C73: нд | D73: 0 | E73: нд | F73: нд | G73: 0 | H73: 0 | I73: нд | J73: 0 | K73: нд | L73: 0 | M73: нд | N73: 0 | O73: нд | P73: 0 | Q73: нд | R73: 0 | S73: нд | T73: 0 | U73: нд | V73: 0 | W73: нд | X73: 0 | Y73: нд | Z73: 0 | AA73: нд | AB73: 0 | AC73: нд | AD73: 0 | AE73: нд | AF73: 0 | AG73: нд | AH73: 0 | AI73: нд | AJ73: 0 | AK73: нд | AL73: 0 | AM73: нд | AN73: 0 | AO73: нд | AP73: 0 | AQ73: нд | AR73: 0 | AS73: нд | AT73: 0 | AU73: нд | AV73: 0 | AW73: нд | AX73: ='2'!AS99 -> 0 | AY73: ='2'!BC99 -> 0 | AZ73: 0 | BA73: нд
A74: 1.2.3.5 | B74: «Включение приборов учета в систему сбора и передачи данных, класс напряжения 0,22 (0,4) кВ, всего, в том числе:» | C74: нд | D74: 0 | E74: нд | F74: нд | G74: 0 | H74: 0 | I74: нд | J74: 0 | K74: нд | L74: 0 | M74: нд | N74: 0 | O74: нд | P74: 0 | Q74: нд | R74: 0 | S74: нд | T74: 0 | U74: нд | V74: 0 | W74: нд | X74: 0 | Y74: нд | Z74: 0 | AA74: нд | AB74: 0 | AC74: нд | AD74: 0 | AE74: нд | AF74: 0 | AG74: нд | AH74: 0 | AI74: нд | AJ74: 0 | AK74: нд | AL74: 0 | AM74: нд | AN74: 0 | AO74: нд | AP74: 0 | AQ74: нд | AR74: 0 | AS74: нд | AT74: 0 | AU74: нд | AV74: 0 | AW74: нд | AX74: ='2'!AS100 -> 0 | AY74: ='2'!BC100 -> 0 | AZ74: 0 | BA74: нд
A75: 1.2.3.6 | B75: «Включение приборов учета в систему сбора и передачи данных, класс напряжения 6 (10) кВ, всего, в том числе:» | C75: нд | D75: =D76 -> 0 | E75: нд | F75: нд | G75: =G76 -> 0 | H75: =H76 -> 0 | I75: нд | J75: =J76 -> 0 | K75: нд | L75: =L76 -> 0 | M75: нд | N75: =N76 -> 0 | O75: нд | P75: =P76 -> 0 | Q75: нд | R75: =R76 -> 0 | S75: нд | T75: =T76 -> 0 | U75: нд | V75: =V76 -> 0 | W75: нд | X75: =X76 -> 0 | Y75: нд | Z75: =Z76 -> 0 | AA75: нд | AB75: =AB76 -> 0 | AC75: нд | AD75: =AD76 -> 0 | AE75: нд | AF75: =AF76 -> 0 | AG75: нд | AH75: =AH76 -> 0 | AI75: нд | AJ75: =AJ76 -> 0 | AK75: нд | AL75: =AL76 -> 0 | AM75: нд | AN75: =AN76 -> 0 | AO75: нд | AP75: =AP76 -> 0 | AQ75: нд | AR75: =AR76 -> 0 | AS75: нд | AT75: =AT76 -> 0 | AU75: нд | AV75: =AV76 -> 0 | AW75: нд | AX75: ='2'!AS101 -> 0 | AY75: ='2'!BC101 -> 0 | AZ75: =AZ76 -> 0 | BA75: нд
A76: 1.2.3.7 | B76: «Включение приборов учета в систему сбора и передачи данных, класс напряжения 35 кВ, всего, в том числе:» | C76: нд | D76: 0 | E76: нд | F76: нд | G76: 0 | H76: 0 | I76: нд | J76: 0 | K76: нд | L76: 0 | M76: нд | N76: 0 | O76: нд | P76: 0 | Q76: нд | R76: 0 | S76: нд | T76: 0 | U76: нд | V76: 0 | W76: нд | X76: 0 | Y76: нд | Z76: 0 | AA76: нд | AB76: 0 | AC76: нд | AD76: 0 | AE76: нд | AF76: 0 | AG76: нд | AH76: 0 | AI76: нд | AJ76: 0 | AK76: нд | AL76: 0 | AM76: нд | AN76: 0 | AO76: нд | AP76: 0 | AQ76: нд | AR76: 0 | AS76: нд | AT76: 0 | AU76: нд | AV76: 0 | AW76: нд | AX76: ='2'!AS102 -> 0 | AY76: ='2'!BC102 -> 0 | AZ76: 0 | BA76: нд
A77: 1.2.3.8 | B77: «Включение приборов учета в систему сбора и передачи данных, класс напряжения 110 кВ и выше, всего, в том числе:» | C77: нд | D77: 0 | E77: нд | F77: нд | G77: 0 | H77: 0 | I77: нд | J77: 0 | K77: нд | L77: 0 | M77: нд | N77: 0 | O77: нд | P77: 0 | Q77: нд | R77: 0 | S77: нд | T77: 0 | U77: нд | V77: 0 | W77: нд | X77: 0 | Y77: нд | Z77: 0 | AA77: нд | AB77: 0 | AC77: нд | AD77: 0 | AE77: нд | AF77: 0 | AG77: нд | AH77: 0 | AI77: нд | AJ77: 0 | AK77: нд | AL77: 0 | AM77: нд | AN77: 0 | AO77: нд | AP77: 0 | AQ77: нд | AR77: 0 | AS77: нд | AT77: 0 | AU77: нд | AV77: 0 | AW77: нд | AX77: ='2'!AS103 -> 0 | AY77: ='2'!BC103 -> 0 | AZ77: 0 | BA77: нд
A78: 1.2.4 | B78: Реконструкция, модернизация, техническое перевооружение прочих объектов основных средств, всего, в том числе: | C78: нд | D78: 0 | E78: нд | F78: нд | G78: 0 | H78: 0 | I78: нд | J78: 0 | K78: нд | L78: 0 | M78: нд | N78: 0 | O78: нд | P78: 0 | Q78: нд | R78: 0 | S78: нд | T78: 0 | U78: нд | V78: 0 | W78: нд | X78: 0 | Y78: нд | Z78: 0 | AA78: нд | AB78: 0 | AC78: нд | AD78: 0 | AE78: нд | AF78: 0 | AG78: нд | AH78: 0 | AI78: нд | AJ78: 0 | AK78: нд | AL78: 0 | AM78: нд | AN78: 0 | AO78: нд | AP78: 0 | AQ78: нд | AR78: 0 | AS78: нд | AT78: 0 | AU78: нд | AV78: 0 | AW78: нд | AX78: ='2'!AS104 -> 0 | AY78: ='2'!BC104 -> 0 | AZ78: 0 | BA78: нд
A79: 1.2.4.1 | B79: Реконструкция прочих объектов основных средств, всего, в том числе: | C79: нд | D79: 0 | E79: нд | F79: нд | G79: 0 | H79: 0 | I79: нд | J79: 0 | K79: нд | L79: 0 | M79: нд | N79: 0 | O79: нд | P79: 0 | Q79: нд | R79: 0 | S79: нд | T79: 0 | U79: нд | V79: 0 | W79: нд | X79: 0 | Y79: нд | Z79: 0 | AA79: нд | AB79: 0 | AC79: нд | AD79: 0 | AE79: нд | AF79: 0 | AG79: нд | AH79: 0 | AI79: нд | AJ79: 0 | AK79: нд | AL79: 0 | AM79: нд | AN79: 0 | AO79: нд | AP79: 0 | AQ79: нд | AR79: 0 | AS79: нд | AT79: 0 | AU79: нд | AV79: 0 | AW79: нд | AX79: ='2'!AS105 -> 0 | AY79: ='2'!BC105 -> 0 | AZ79: 0 | BA79: нд
A80: 1.2.4.2 | B80: Модернизация, техническое перевооружение прочих объектов основных средств, всего, в том числе: | C80: нд | D80: 0 | E80: нд | F80: нд | G80: 0 | H80: 0 | I80: нд | J80: 0 | K80: нд | L80: 0 | M80: нд | N80: 0 | O80: нд | P80: 0 | Q80: нд | R80: 0 | S80: нд | T80: 0 | U80: нд | V80: 0 | W80: нд | X80: 0 | Y80: нд | Z80: 0 | AA80: нд | AB80: 0 | AC80: нд | AD80: 0 | AE80: нд | AF80: 0 | AG80: нд | AH80: 0 | AI80: нд | AJ80: 0 | AK80: нд | AL80: 0 | AM80: нд | AN80: 0 | AO80: нд | AP80: 0 | AQ80: нд | AR80: 0 | AS80: нд | AT80: 0 | AU80: нд | AV80: 0 | AW80: нд | AX80: ='2'!AS106 -> 0 | AY80: ='2'!BC106 -> 0 | AZ80: 0 | BA80: нд
A81: 1.3 | B81: Инвестиционные проекты, реализация которых обуславливается схемами и программами перспективного развития электроэнергетики, всего, в том числе: | C81: нд | D81: 0 | E81: нд | F81: нд | G81: 0 | H81: 0 | I81: нд | J81: 0 | K81: нд | L81: 0 | M81: нд | N81: 0 | O81: нд | P81: 0 | Q81: нд | R81: 0 | S81: нд | T81: 0 | U81: нд | V81: 0 | W81: нд | X81: 0 | Y81: нд | Z81: 0 | AA81: нд | AB81: 0 | AC81: нд | AD81: 0 | AE81: нд | AF81: 0 | AG81: нд | AH81: 0 | AI81: нд | AJ81: 0 | AK81: нд | AL81: 0 | AM81: нд | AN81: 0 | AO81: нд | AP81: 0 | AQ81: нд | AR81: 0 | AS81: нд | AT81: 0 | AU81: нд | AV81: 0 | AW81: нд | AX81: ='2'!AS107 -> 0 | AY81: ='2'!BC107 -> 0 | AZ81: 0 | BA81: нд
A82: 1.3.1 | B82: Инвестиционные проекты, предусмотренные схемой и программой развития Единой энергетической системы России, всего, в том числе: | C82: нд | D82: 0 | E82: нд | F82: нд | G82: 0 | H82: 0 | I82: нд | J82: 0 | K82: нд | L82: 0 | M82: нд | N82: 0 | O82: нд | P82: 0 | Q82: нд | R82: 0 | S82: нд | T82: 0 | U82: нд | V82: 0 | W82: нд | X82: 0 | Y82: нд | Z82: 0 | AA82: нд | AB82: 0 | AC82: нд | AD82: 0 | AE82: нд | AF82: 0 | AG82: нд | AH82: 0 | AI82: нд | AJ82: 0 | AK82: нд | AL82: 0 | AM82: нд | AN82: 0 | AO82: нд | AP82: 0 | AQ82: нд | AR82: 0 | AS82: нд | AT82: 0 | AU82: нд | AV82: 0 | AW82: нд | AX82: ='2'!AS108 -> 0 | AY82: ='2'!BC108 -> 0 | AZ82: 0 | BA82: нд
A83: 1.3.2 | B83: Инвестиционные проекты, предусмотренные схемой и программой развития субъекта Российской Федерации, всего, в том числе: | C83: нд | D83: 0 | E83: нд | F83: нд | G83: 0 | H83: 0 | I83: нд | J83: 0 | K83: нд | L83: 0 | M83: нд | N83: 0 | O83: нд | P83: 0 | Q83: нд | R83: 0 | S83: нд | T83: 0 | U83: нд | V83: 0 | W83: нд | X83: 0 | Y83: нд | Z83: 0 | AA83: нд | AB83: 0 | AC83: нд | AD83: 0 | AE83: нд | AF83: 0 | AG83: нд | AH83: 0 | AI83: нд | AJ83: 0 | AK83: нд | AL83: 0 | AM83: нд | AN83: 0 | AO83: нд | AP83: 0 | AQ83: нд | AR83: 0 | AS83: нд | AT83: 0 | AU83: нд | AV83: 0 | AW83: нд | AX83: ='2'!AS109 -> 0 | AY83: ='2'!BC109 -> 0 | AZ83: 0 | BA83: нд
A84: 1.4 | B84: Прочее новое строительство объектов электросетевого хозяйства, всего, в том числе: | C84: нд | D84: =D100 -> 0 | E84: нд | F84: нд | G84: =G100 -> 0 | H84: =H100 -> 0 | I84: нд | J84: =J100 -> 0 | K84: нд | L84: =L100 -> 0 | M84: нд | N84: =N100 -> 0 | O84: нд | P84: =P100 -> 0 | Q84: нд | R84: =R100 -> 0 | S84: нд | T84: =T100 -> 0 | U84: нд | V84: =V100 -> 0 | W84: нд | X84: =Y100 -> 0 | Y84: нд | Z84: =Z100 -> 0 | AA84: нд | AB84: =AB100 -> 0 | AC84: нд | AD84: =AD100 -> 0 | AE84: нд | AF84: =AF100 -> 0 | AG84: нд | AH84: =AH100 -> 0 | AI84: нд | AJ84: =AJ100 -> 0 | AK84: нд | AL84: =AL100 -> 0 | AM84: нд | AN84: =AN100 -> 0 | AO84: нд | AP84: =AP100 -> 0 | AQ84: нд | AR84: =AR100 -> 0 | AS84: нд | AT84: =AT100 -> 0 | AU84: нд | AV84: =AV100 -> 0 | AW84: нд | AX84: ='2'!AS110 -> 0 | AY84: ='2'!BC110 -> 0 | AZ84: =AZ100 -> 0 | BA84: нд
A85: 1.5 | B85: Покупка земельных участков для целей реализации инвестиционных проектов, всего, в том числе: | C85: нд | D85: 0 | E85: нд | F85: нд | G85: 0 | H85: 0 | I85: нд | J85: 0 | K85: нд | L85: 0 | M85: нд | N85: 0 | O85: нд | P85: 0 | Q85: нд | R85: 0 | S85: нд | T85: 0 | U85: нд | V85: 0 | W85: нд | X85: 0 | Y85: нд | Z85: 0 | AA85: нд | AB85: 0 | AC85: нд | AD85: 0 | AE85: нд | AF85: 0 | AG85: нд | AH85: 0 | AI85: нд | AJ85: 0 | AK85: нд | AL85: 0 | AM85: нд | AN85: 0 | AO85: нд | AP85: 0 | AQ85: нд | AR85: 0 | AS85: нд | AT85: 0 | AU85: нд | AV85: 0 | AW85: нд | AX85: ='2'!AS114 -> 0 | AY85: ='2'!BC114 -> 0 | AZ85: 0 | BA85: нд
A86: 1.6 | B86: Прочие инвестиционные проекты, всего, в том числе: | C86: нд | D86: =D87 -> 0 | E86: нд | F86: нд | G86: =G87 -> 0 | H86: =H87 -> 0 | I86: нд | J86: =J87 -> 0 | K86: нд | L86: =L87 -> 0 | M86: нд | N86: =N87 -> 0 | O86: нд | P86: =P87 -> 0 | Q86: нд | R86: =R87 -> 0 | S86: нд | T86: =T87 -> 0 | U86: нд | V86: =V87 -> 0 | W86: нд | X86: =Y87 -> нд | Y86: нд | Z86: =Z87 -> 0 | AA86: нд | AB86: =AB87 -> 0 | AC86: нд | AD86: =AD87 -> 0 | AE86: нд | AF86: =AF87 -> 0 | AG86: нд | AH86: =AH87 -> 0 | AI86: нд | AJ86: =AJ87 -> 0 | AK86: нд | AL86: =AL87 -> 0 | AM86: нд | AN86: =AN87 -> 0 | AO86: нд | AP86: =AP87 -> 0 | AQ86: нд | AR86: =AR87 -> 0 | AS86: нд | AT86: =AT87 -> 0 | AU86: нд | AV86: =AV87 -> 0 | AW86: нд | AX86: ='2'!AS115 -> 1.05833893 | AY86: ='2'!BC115 -> 1.05833893 | AZ86: =AZ87 -> 0 | BA86: нд
A87: 1.6.1 | B87: Приобретение в лизинг автотранспортных средств | C87: нд | D87: 0 | E87: нд | F87: нд | G87: 0 | H87: 0 | I87: нд | J87: 0 | K87: нд | L87: 0 | M87: нд | N87: 0 | O87: нд | P87: 0 | Q87: нд | R87: 0 | S87: нд | T87: 0 | U87: нд | V87: 0 | W87: нд | X87: нд | Y87: нд | Z87: 0 | AA87: нд | AB87: 0 | AC87: нд | AD87: 0 | AE87: нд | AF87: 0 | AG87: нд | AH87: 0 | AI87: нд | AJ87: 0 | AK87: нд | AL87: 0 | AM87: нд | AN87: 0 | AO87: нд | AP87: 0 | AQ87: нд | AR87: 0 | AS87: нд | AT87: 0 | AU87: нд | AV87: 0 | AW87: нд | AX87: ='2'!AS116 -> 1.05833893 | AY87: ='2'!BC116 -> 1.05833893 | AZ87: 0 | BA87: нд
A88: 1.6.1.1 | B88: Приобретение в лизинг автотранспортных средств УАЗ-390995-04 Комби в количестве 1 ед. | C88: Н_МСК_11 | D88: 0 | E88: нд | F88: нд | G88: 0 | H88: 0 | I88: нд | J88: 0 | K88: нд | L88: 0 | M88: нд | N88: 0 | O88: нд | P88: 0 | Q88: нд | R88: 0 | S88: нд | T88: 0 | U88: нд | V88: 0 | W88: нд | X88: нд | Y88: нд | Z88: 0 | AA88: нд | AB88: 0 | AC88: нд | AD88: 0 | AE88: нд | AF88: 0 | AG88: нд | AH88: 0 | AI88: нд | AJ88: 0 | AK88: нд | AL88: 0 | AM88: нд | AN88: 0 | AO88: нд | AP88: 0 | AQ88: нд | AR88: 0 | AS88: нд | AT88: 0 | AU88: нд | AV88: 0 | AW88: нд | AX88: ='2'!AS117 -> 0 | AY88: ='2'!BC117 -> 0 | AZ88: 0 | BA88: нд
A89: 1.6.1.2 | B89: Приобретение в лизинг автотранспортных средств УАЗ-390945-520 Фермер в количестве 1 ед. | C89: Н_МСК_12 | D89: 0 | E89: нд | F89: нд | G89: 0 | H89: 0 | I89: нд | J89: 0 | K89: нд | L89: 0 | M89: нд | N89: 0 | O89: нд | P89: 0 | Q89: нд | R89: 0 | S89: нд | T89: 0 | U89: нд | V89: 0 | W89: нд | X89: нд | Y89: нд | Z89: 0 | AA89: нд | AB89: 0 | AC89: нд | AD89: 0 | AE89: нд | AF89: 0 | AG89: нд | AH89: 0 | AI89: нд | AJ89: 0 | AK89: нд | AL89: 0 | AM89: нд | AN89: 0 | AO89: нд | AP89: 0 | AQ89: нд | AR89: 0 | AS89: нд | AT89: 0 | AU89: нд | AV89: 0 | AW89: нд | AX89: ='2'!AS118 -> 0.1298644 | AY89: ='2'!BC118 -> 0.1298644 | AZ89: 0 | BA89: нд
A90: 1.6.1.3 | B90: Приобретение в лизинг автотранспортных средств Автогидроподъемник телескопический на шасси ГАЗ 3309 со сдвоенной кабиной в количестве 1 ед. | C90: Н_МСК_13 | D90: 0 | E90: нд | F90: нд | G90: 0 | H90: 0 | I90: нд | J90: 0 | K90: нд | L90: 0 | M90: нд | N90: 0 | O90: нд | P90: 0 | Q90: нд | R90: 0 | S90: нд | T90: 0 | U90: нд | V90: 0 | W90: нд | X90: нд | Y90: нд | Z90: 0 | AA90: нд | AB90: 0 | AC90: нд | AD90: 0 | AE90: нд | AF90: 0 | AG90: нд | AH90: 0 | AI90: нд | AJ90: 0 | AK90: нд | AL90: 0 | AM90: нд | AN90: 0 | AO90: нд | AP90: 0 | AQ90: нд | AR90: 0 | AS90: нд | AT90: 0 | AU90: нд | AV90: 0 | AW90: нд | AX90: ='2'!AS119 -> 0 | AY90: ='2'!BC119 -> 0 | AZ90: 0 | BA90: нд
A91: 1.6.1.4 | B91: Приобретение в лизинг автотранспортных средств Автогидроподъемник телескопический на шасси ГАЗ 33088-1010 Садко 4х4 в количестве 1 ед. | C91: Н_МСК_18 | D91: 0 | E91: нд | F91: нд | G91: 0 | H91: 0 | I91: нд | J91: 0 | K91: нд | L91: 0 | M91: нд | N91: 0 | O91: нд | P91: 0 | Q91: нд | R91: 0 | S91: нд | T91: 0 | U91: нд | V91: 0 | W91: нд | X91: нд | Y91: нд | Z91: 0 | AA91: нд | AB91: 0 | AC91: нд | AD91: 0 | AE91: нд | AF91: 0 | AG91: нд | AH91: 0 | AI91: нд | AJ91: 0 | AK91: нд | AL91: 0 | AM91: нд | AN91: 0 | AO91: нд | AP91: 0 | AQ91: нд | AR91: 0 | AS91: нд | AT91: 0 | AU91: нд | AV91: 0 | AW91: нд | AX91: ='2'!AS120 -> 0.92847453 | AY91: ='2'!BC120 -> 0.92847453 | AZ91: 0 | BA91: нд
A92: 1.6.2 | B92: Приобретение АИД-70М | C92: Н_МСК_14 | D92: 0 | E92: нд | F92: нд | G92: 0 | H92: 0 | I92: нд | J92: 0 | K92: нд | L92: 0 | M92: нд | N92: 0 | O92: нд | P92: 0 | Q92: нд | R92: 0 | S92: нд | T92: 0 | U92: нд | V92: 0 | W92: нд | X92: нд | Y92: нд | Z92: 0 | AA92: нд | AB92: 0 | AC92: нд | AD92: 0 | AE92: нд | AF92: 0 | AG92: нд | AH92: 0 | AI92: нд | AJ92: 0 | AK92: нд | AL92: 0 | AM92: нд | AN92: 0 | AO92: нд | AP92: 0 | AQ92: нд | AR92: 0 | AS92: нд | AT92: 0 | AU92: нд | AV92: 0 | AW92: нд | AX92: ='2'!AS124 -> 0 | AY92: ='2'!BC124 -> 0 | AZ92: 0 | BA92: нд
A93: 1.6.3 | B93: Приобретение прибора Атлет-319 «СКИН» | C93: Н_МСК_15 | D93: 0 | E93: нд | F93: нд | G93: 0 | H93: 0 | I93: нд | J93: 0 | K93: нд | L93: 0 | M93: нд | N93: 0 | O93: нд | P93: 0 | Q93: нд | R93: 0 | S93: нд | T93: 0 | U93: нд | V93: 0 | W93: нд | X93: нд | Y93: нд | Z93: 0 | AA93: нд | AB93: 0 | AC93: нд | AD93: 0 | AE93: нд | AF93: 0 | AG93: нд | AH93: 0 | AI93: нд | AJ93: 0 | AK93: нд | AL93: 0 | AM93: нд | AN93: 0 | AO93: нд | AP93: 0 | AQ93: нд | AR93: 0 | AS93: нд | AT93: 0 | AU93: нд | AV93: 0 | AW93: нд | AX93: ='2'!AS125 -> 0 | AY93: ='2'!BC125 -> 0 | AZ93: 0 | BA93: нд
A94: 1.6.4 | B94: Приобретение прибора Рейс 105 М1 | C94: Н_МСК_16 | D94: 0 | E94: нд | F94: нд | G94: 0 | H94: 0 | I94: нд | J94: 0 | K94: нд | L94: 0 | M94: нд | N94: 0 | O94: нд | P94: 0 | Q94: нд | R94: 0 | S94: нд | T94: 0 | U94: нд | V94: 0 | W94: нд | X94: нд | Y94: нд | Z94: 0 | AA94: нд | AB94: 0 | AC94: нд | AD94: 0 | AE94: нд | AF94: 0 | AG94: нд | AH94: 0 | AI94: нд | AJ94: 0 | AK94: нд | AL94: 0 | AM94: нд | AN94: 0 | AO94: нд | AP94: 0 | AQ94: нд | AR94: 0 | AS94: нд | AT94: 0 | AU94: нд | AV94: 0 | AW94: нд | AX94: ='2'!AS126 -> 0 | AY94: ='2'!BC126 -> 0 | AZ94: 0 | BA94: нд

Sheet 1-22
BC1: Приложение № 1
BC2: к приказу Минэнерго России
BC3: от 5 мая 2016 г. № 380
A4: Форма 1. Перечени инвестиционных проектов
A5: на год _2022 г._
A7: Инвестиционная программа_____Общество с ограниченной ответственностью "Мордовская сетевая компания"____
A8: полное наименование субъекта электроэнергетики
A10: Год раскрытия информации: __2021__ год
A12: Утвержденные плановые значения показателей приведены в соответствии с приказом Министерства энергетики и тарифной политики Республики Мордовия №126 от 30.10.2020 г.
A13: реквизиты решения органа исполнительной власти, утвердившего инвестиционную программу
A15: Номер группы инвести-ционных проектов | B15: Наименование инвестиционного проекта (группы инвестиционных проектов) | C15: Идентифика-тор инвестицион-ного проекта | D15: Цели реализации инвестиционных проектов и плановые (фактические) значения количественных показателей, характеризующие достижение таких целей
D16: Развитие электрической сети/усиление существующей электрической сети, связанное с подключением новых потребителей | V16: Замещение (обновление) электрической сети/повышение экономической эффективности (мероприятия направленные на снижение эксплуатационных затрат) оказания услуг в сфере электроэнергетики | AH16: Повышение надежности оказываемых услуг в сфере электроэнергетики | AN16: Повышение качества оказываемых услуг в сфере электроэнергетики | AR16: Выполнение требований законодательства Российской Федерации, предписаний органов исполнительной власти, регламентов рынков электрической энергии | AX16: Обеспечение текущей деятельности в сфере электроэнергетики, в том числе развитие информационной инфраструктуры, хозяйственное обеспечение деятельности | BB16: Инвестиции, связанные с деятельностью, не относящейся к сфере электроэнергетики
D17: Показатель увеличения мощности силовых трансформаторов на подстанциях, не связанного с осуществлением технологического присоединения к электрическим сетям (ΔРтр.n) | F17: Показатель увеличения мощности силовых трансформаторов на подстанциях в рамках осуществления технологического присоединения к электрическим сетям (ΔРтп_тр.n) | H17: Показатель увеличения протяженности линий электропередачи, не связанного с осуществлением технологического присоединения к электрическим сеям (ΔLлэп.n) | L17: Показатель увеличения протяженности линий электропередачи в рамках осуществления технологического присоединения к электрическим сетям (ΔLтп_лэп.n) | P17: Показатель максимальной мощности присоединяемых потребителей электрической эенергии (Sпотр.тп) | R17: Показатель максимальной мощности энергопринимающих устройств при осуществлении технологического присоединения объектов электросетевого хозяйства, принадлежащих иным сетевым организациям или иным лицам (Sэх.тп) | T17: Показатель степени загрузки трансформаторной подстанции (Кзагр.) | V17: Показатель замены силовых трансформаторов (Рз_тр.n) | X17: Показатель замены линий электропередачи (Lз_лэп.n) | Z17: Показатель замены линий электропередачи (Lз_лэп.n) | AB17: Показатель замены выключателей (Вз.n) | AD17: Показатель замены устройств компенсации реактивной мощности (Рз_укрм.n) | AF17: Показатель оценки изменения доли полезного отпуска электрической энергии, который формируется посредством приборов учета электричекой энергии, включенных в систему сбора и передачи данных (ΔПОдист) | AH17: Показатель оценки изменения средней продолжительности прекращения передачи электрической энергии потребителям услуг (Δпsaidi) | AJ17: Показатель оценки изменения средней частоты прекращения передачи электрической энергии потребителям услуг (ΔПsaifi) | AL17: Показатель оценки изменения объема недоотпущенной электрической энергии (ΔПens) | AN17: Показатель общего числа исполненных в рамках инвестиционной программы обязательств сетевой организации по осуществлению технологического присоединения (Nсд_тпр) | AP17: Показатель числа обязательств сетевой организации по осуществлению технологического присоединения, исполненных в рамках инвестиционной программы с нарушением установленного срока технологического присоединения (Nсд_тпр.нс) | AR17: Показатель объема финансовых потребностей, необходимых для реализации мероприятий, направленных на выполнение требований законодательства (Фтз) | AT17: Показатель объема финансовых потребностей, необходимых для реализации мероприятий, напрвленных на выполнение приедписаний органов исполнительной власти (Фоив) | AV17: Показатель объема финансовых потребностей, необходимых для реализации мероприятий, направленных на выполнение требований регламентов рынков электрической энергии (Фтрр) | AX17: Показатель объема финансовых потребностей, необходимых для реализации мероприятий, направленных на развитие информационной инфраструктуры (Фит) | AZ17: Показатель объема финансовых потребностей, необходимых для реализации мероприятий, направленных на хозяйственное обеспечение деятельности сетевой организации (Фхо) | BB17: Показатель объема финансовых потребностей, необходимых для реализации мероприятий, направленных на реализацию инвестиционных проектов, связанных с деятельностью, не относящейся к сфере электроэнергетики (Фнэ)
D18: план | E18: Предложение по корректировке утвержденного плана | F18: план | G18: Предложение по корректировке утвержденного плана | H18: план | I18: Предложение по корректировке утвержденного плана | J18: план | K18: Предложение по корректировке утвержденного плана | L18: план | M18: Предложение по корректировке утвержденного плана | N18: план | O18: Предложение по корректировке утвержденного плана | P18: план | Q18: Предложение по корректировке утвержденного плана | R18: план | S18: Предложение по корректировке утвержденного плана | T18: план | U18: Предложение по корректировке утвержденного плана | V18: план | W18: Предложение по корректировке утвержденного плана | X18: план | Y18: Предложение по корректировке утвержденного плана | Z18: план | AA18: Предложение по корректировке утвержденного плана | AB18: план | AC18: Предложение по корректировке утвержденного плана | AD18: план | AE18: Предложение по корректировке утвержденного плана | AF18: план | AG18: Предложение по корректировке утвержденного плана | AH18: план | AI18: Предложение по корректировке утвержденного плана | AJ18: план | AK18: Предложение по корректировке утвержденного плана | AL18: план | AM18: Предложение по корректировке утвержденного плана | AN18: план | AO18: Предложение по корректировке утвержденного плана | AP18: план | AQ18: Предложение по корректировке утвержденного плана | AR18: план | AS18: Предложение по корректировке утвержденного плана | AT18: план | AU18: Предложение по корректировке утвержденного плана | AV18: план | AW18: Предложение по корректировке утвержденного плана | AX18: план | AY18: Предложение по корректировке утвержденного плана | AZ18: план | BA18: Предложение по корректировке утвержденного плана | BB18: план | BC18: Предложение по корректировке утвержденного плана
A19: 0 | B19: 0 | C19: 0 | D19: Класс напряжения, кВ | V19: Класс напряжения, кВ | AF19: 0 | AG19: 0 | AH19: 0 | AI19: 0 | AJ19: 0 | AK19: 0 | AL19: 0 | AM19: 0 | AN19: 0 | AO19: 0 | AP19: 0 | AQ19: 0 | AR19: 0 | AS19: 0 | AT19: 0 | AU19: 0 | AV19: 0 | AW19: 0 | AX19: 0 | AY19: 0 | AZ19: 0 | BA19: 0 | BB19: 0 | BC19: 0
A20: 0 | B20: 0 | C20: 0 | D20: 6-10 | F20: 6-10 | H20: 6-10 | J20: 0.4 | L20: 6-10 | N20: 0.4 | P20: 0 | Q20: 0 | R20: 0 | S20: 0 | T20: 0 | U20: 0 | V20: 6-10 | X20: 0,4 | Z20: 6-10 | AB20: 6-10 | AD20: 0 | AE20: 0 | AF20: 0 | AG20: 0 | AH20: 0 | AI20: 0 | AJ20: 0 | AK20: 0 | AL20: 0 | AM20: 0 | AN20: 0 | AO20: 0 | AP20: 0 | AQ20: 0 | AR20: 0 | AS20: 0 | AT20: 0 | AU20: 0 | AV20: 0 | AW20: 0 | AX20: 0 | AY20: 0 | AZ20: 0 | BA20: 0 | BB20: 0 | BC20: 0
A21: 1 | B21: 2 | C21: 3 | D21: 4.1 | E21: 4.2 | F21: 4.3 | G21: 4.4 | H21: 4.5.1 | I21: 4.6.1 | J21: 4.5.2 | K21: 4.6.2 | L21: 4.7.1 | M21: 4.8.1 | N21: 4.7.2 | O21: 4.8.2 | P21: 4.9 | Q21: 4.10 | R21: 4.11 | S21: 4.12 | T21: 4.13 | U21: 4.14 | V21: 5.1 | W21: 5.2 | X21: 5.3 | Y21: 5.4 | Z21: 5.5 | AA21: 5.6 | AB21: 5.7 | AC21: 5.8 | AD21: 5.9 | AE21: 5.10 | AF21: 5.11 | AG21: 5.10 | AH21: 6.1 | AI21: 6.2 | AJ21: 6.3 | AK21: 6.4 | AL21: 6.5 | AM21: 6.6 | AN21: 7.1 | AO21: 7.2 | AP21: 7.3 | AQ21: 7.4 | AR21: 8.1 | AS21: 8.2 | AT21: 8.3 | AU21: 8.4 | AV21: 8.5 | AW21: 8.6 | AX21: 9.1 | AY21: 9.2 | AZ21: 9.3 | BA21: 9.4 | BB21: 10.1 | BC21: 10.2
A22: 0 | B22: ВСЕГО по инвестиционной программе, в том числе: | C22: нд | D22: =SUM(D23:D28) -> 0 | E22: нд | F22: =SUM(F23:F28) -> 0 | G22: =G23 -> 0.41 | H22: =SUM(H23:H28) -> 0 | I22: нд | J22: =SUM(J23:J28) -> 0 | K22: нд | L22: =SUM(L23:L28) -> 0 | M22: нд | N22: =SUM(N23:N28) -> 0.3 | O22: =SUM(O23:O28) -> 0 | P22: =SUM(P23:P28) -> 0 | Q22: нд | R22: =SUM(R23:R28) -> 0 | S22: нд | T22: =SUM(T23:T28) -> 0 | U22: нд | V22: =SUM(V23:V28) -> 0 | W22: нд | X22: =SUM(X23:X28) -> 0 | Y22: =SUM(Y23:Y28) -> 0 | Z22: =SUM(Z23:Z28) -> 0 | AA22: нд | AB22: =SUM(AB23:AB28) ->  | AC22: =SUM(AC23:AC28) -> 0 | AD22: =SUM(AD23:AD28) -> 0 | AE22: нд | AF22: =SUM(AF23:AF28) -> 0 | AG22: нд | AH22: =SUM(AH23:AH28) -> 0 | AI22: нд | AJ22: =SUM(AJ23:AJ28) -> 0 | AK22: нд | AL22: =SUM(AL23:AL28) -> 0 | AM22: =SUM(AM23:AM28) -> 0 | AN22: =SUM(AN23:AN28) -> 0 | AO22: нд | AP22: =SUM(AP23:AP28) -> 0 | AQ22: нд | AR22: =SUM(AR23:AR28) -> 0 | AS22: нд | AT22: =SUM(AT23:AT28) -> 0 | AU22: нд | AV22: =SUM(AV23:AV28) -> 0 | AW22: нд | AX22: =SUM(AX23:AX28) -> 0 | AY22: нд | AZ22: ='2'!BM18 -> 15.20777382 | BA22: 0 | BB22: =SUM(BB23:BB28) -> 0 | BC22: нд
A23: 0.1 | B23: Технологическое присоединение, всего | C23: нд | D23: =D29 -> 0 | E23: нд | F23: =F29 -> 0 | G23: =G29 -> 0.41 | H23: =H29 -> 0 | I23: нд | J23: =J29 -> 0 | K23: нд | L23: =L29 -> 0 | M23: нд | N23: =N29 -> 0.3 | O23: =O29 ->  | P23: =P29 -> 0 | Q23: нд | R23: =R29 -> 0 | S23: нд | T23: =T29 -> 0 | U23: нд | V23: =V29 -> 0 | W23: нд | X23: =X29 -> 0 | Y23: нд | Z23: =Z29 -> 0 | AA23: нд | AB23: =AB29 -> 0 | AC23: нд | AD23: =AD29 -> 0 | AE23: нд | AF23: =AF29 -> 0 | AG23: нд | AH23: =AH29 -> 0 | AI23: нд | AJ23: =AJ29 -> 0 | AK23: нд | AL23: =AL29 -> нд | AM23: =AM29 -> 0 | AN23: =AN29 -> 0 | AO23: нд | AP23: =AP29 -> 0 | AQ23: нд | AR23: =AR29 -> 0 | AS23: нд | AT23: =AT29 -> 0 | AU23: нд | AV23: =AV29 -> 0 | AW23: нд | AX23: =AX29 -> 0 | AY23: нд | AZ23: ='2'!BM19 -> 10.149744 | BA23: 0 | BB23: =BB29 -> 0 | BC23: нд
A24: 0.2 | B24: Реконструкция, модернизация, техническое перевооружение, всего | C24: нд | D24: =D50 -> 0 | E24: нд | F24: =F50 -> 0 | G24: нд | H24: =H50 -> 0 | I24: нд | J24: =J50 -> 0 | K24: нд | L24: =L50 -> 0 | M24: нд | N24: =N50 -> 0 | O24: нд | P24: =P50 -> 0 | Q24: нд | R24: =R50 -> 0 | S24: нд | T24: =T50 -> 0 | U24: нд | V24: =V50 -> 0 | W24: нд | X24: =X50 -> 0 | Y24: =Y50 -> 0 | Z24: =Z50 -> 0 | AA24: нд | AB24: =AB50 ->  | AC24: =AC50 -> 0 | AD24: =AD50 -> 0 | AE24: нд | AF24: =AF50 -> 0 | AG24: нд | AH24: =AH50 -> 0 | AI24: нд | AJ24: =AJ50 -> 0 | AK24: нд | AL24: =AL50 -> 0 | AM24: =AM50 -> 0 | AN24: =AN50 -> 0 | AO24: нд | AP24: =AP50 -> 0 | AQ24: нд | AR24: =AR50 -> 0 | AS24: нд | AT24: =AT50 -> 0 | AU24: нд | AV24: =AV50 -> 0 | AW24: нд | AX24: =AX50 -> 0 | AY24: нд | AZ24: ='2'!BM20 -> 2.8042183 | BA24: 0 | BB24: =BB50 -> 0 | BC24: нд
A25: 0.3 | B25: Инвестиционные проекты, реализация которых обуславливается схемами и программами перспективного развития электроэнергетики, всего | C25: нд | D25: =D76 -> 0 | E25: нд | F25: =F76 -> 0 | G25: нд | H25: =H76 -> 0 | I25: нд | J25: =J76 -> 0 | K25: нд | L25: =L76 -> 0 | M25: нд | N25: =N76 -> 0 | O25: нд | P25: =P76 -> 0 | Q25: нд | R25: =R76 -> 0 | S25: нд | T25: =T76 -> 0 | U25: нд | V25: =V76 -> 0 | W25: нд | X25: =X76 -> 0 | Y25: нд | Z25: =Z76 -> 0 | AA25: нд | AB25: =AB76 -> 0 | AC25: нд | AD25: =AD76 -> 0 | AE25: нд | AF25: =AF76 -> 0 | AG25: нд | AH25: =AH76 -> 0 | AI25: нд | AJ25: =AJ76 -> 0 | AK25: нд | AL25: нд | AM25: =AM76 -> 0 | AN25: =AN76 -> 0 | AO25: нд | AP25: =AP76 -> 0 | AQ25: нд | AR25: =AR76 -> 0 | AS25: нд | AT25: =AT76 -> 0 | AU25: нд | AV25: =AV76 -> 0 | AW25: нд | AX25: =AX76 -> 0 | AY25: нд | AZ25: ='2'!BM21 -> 0 | BA25: 0 | BB25: =BB76 -> 0 | BC25: нд
A26: 0.4 | B26: Прочее новое строительство объектов электросетевого хозяйства, всего | C26: нд | D26: =D79 -> 0 | E26: нд | F26: =F79 -> 0 | G26: нд | H26: =H79 -> 0 | I26: нд | J26: =J79 -> 0 | K26: нд | L26: =L79 -> 0 | M26: нд | N26: =N79 -> 0 | O26: нд | P26: =P79 -> 0 | Q26: нд | R26: =R79 -> 0 | S26: нд | T26: =T79 -> 0 | U26: нд | V26: =V79 -> 0 | W26: нд | X26: =X79 -> 0 | Y26: нд | Z26: =Z79 -> 0 | AA26: нд | AB26: =AB79 -> 0 | AC26: нд | AD26: =AD79 -> 0 | AE26: нд | AF26: =AF79 -> 0 | AG26: нд | AH26: =AH79 -> 0 | AI26: нд | AJ26: =AJ79 -> 0 | AK26: нд | AL26: нд | AM26: =AM79 -> нд | AN26: =AN79 -> 0 | AO26: нд | AP26: =AP79 -> 0 | AQ26: нд | AR26: =AR79 -> 0 | AS26: нд | AT26: =AT79 -> 0 | AU26: нд | AV26: =AV79 -> 0 | AW26: нд | AX26: =AX79 -> 0 | AY26: нд | AZ26: ='2'!BM22 -> 2.25381152 | BA26: 0 | BB26: =BB79 -> 0 | BC26: нд
A27: 0.5 | B27: Покупка земельных участков для целей реализации инвестиционных проектов, всего | C27: нд | D27: =D83 -> 0 | E27: нд | F27: =F83 -> 0 | G27: нд | H27: =H83 -> 0 | I27: нд | J27: =J83 -> 0 | K27: нд | L27: =L83 -> 0 | M27: нд | N27: =N83 -> 0 | O27: нд | P27: =P83 -> 0 | Q27: нд | R27: =R83 -> 0 | S27: нд | T27: =T83 -> 0 | U27: нд | V27: =V83 -> 0 | W27: нд | X27: =X83 -> 0 | Y27: нд | Z27: =Z83 -> 0 | AA27: нд | AB27: =AB83 -> 0 | AC27: нд | AD27: =AD83 -> 0 | AE27: нд | AF27: =AF83 -> 0 | AG27: нд | AH27: =AH83 -> 0 | AI27: нд | AJ27: =AJ83 -> 0 | AK27: нд | AL27: нд | AM27: =AM83 -> 0 | AN27: =AN83 -> 0 | AO27: нд | AP27: =AP83 -> 0 | AQ27: нд | AR27: =AR83 -> 0 | AS27: нд | AT27: =AT83 -> 0 | AU27: нд | AV27: =AV83 -> 0 | AW27: нд | AX27: =AX83 -> 0 | AY27: нд | AZ27: ='2'!BM23 -> 0 | BA27: 0 | BB27: =BB83 -> 0 | BC27: нд
A28: 0.6 | B28: Прочие инвестиционные проекты, всего | C28: нд | D28: =D84 -> 0 | E28: нд | F28: =F84 -> 0 | G28: нд | H28: =H84 -> 0 | I28: нд | J28: =J84 -> 0 | K28: нд | L28: =L84 -> 0 | M28: нд | N28: =N84 -> 0 | O28: нд | P28: =P84 -> 0 | Q28: нд | R28: =R84 -> 0 | S28: нд | T28: =T84 -> 0 | U28: нд | V28: =V84 -> 0 | W28: нд | X28: =X84 -> 0 | Y28: нд | Z28: =Z84 -> 0 | AA28: нд | AB28: =AB84 -> 0 | AC28: =AC84 -> нд | AD28: =AD84 -> 0 | AE28: нд | AF28: =AF84 -> 0 | AG28: нд | AH28: =AH84 -> 0 | AI28: нд | AJ28: =AJ84 -> 0 | AK28: нд | AL28: нд | AM28: =AM84 -> 0 | AN28: =AN84 -> 0 | AO28: нд | AP28: =AP84 -> 0 | AQ28: нд | AR28: =AR84 -> 0 | AS28: нд | AT28: =AT84 -> 0 | AU28: нд | AV28: =AV84 -> 0 | AW28: нд | AX28: =AX84 -> 0 | AY28: нд | AZ28: ='2'!BM24 -> 0 | BA28: 0 | BB28: =BB84 -> 0 | BC28: нд
A29: 1.1 | B29: Технологическое присоединение, всего, в том числе: | C29: нд | D29: =D30 -> 0 | E29: нд | F29: =F30 -> 0 | G29: =G30 -> 0.41 | H29: =H30 -> 0 | I29: нд | J29: =J30 -> 0 | K29: нд | L29: =L30 -> 0 | M29: нд | N29: =N30 -> 0.3 | O29: =O30 ->  | P29: =P30 -> 0 | Q29: нд | R29: =R30 -> 0 | S29: нд | T29: =T30 -> 0 | U29: нд | V29: =V30 -> 0 | W29: нд | X29: =X30 -> 0 | Y29: нд | Z29: =Z30 -> 0 | AA29: нд | AB29: =AB30 -> 0 | AC29: нд | AD29: =AD30 -> 0 | AE29: нд | AF29: =AF30 -> 0 | AG29: нд | AH29: =AH30 -> 0 | AI29: нд | AJ29: =AJ30 -> 0 | AK29: нд | AL29: нд | AM29: =AM30 -> 0 | AN29: =AN30 -> 0 | AO29: нд | AP29: =AP30 -> 0 | AQ29: нд | AR29: =AR30 -> 0 | AS29: нд | AT29: =AT30 -> 0 | AU29: нд | AV29: =AV30 -> 0 | AW29: нд | AX29: =AX30 -> 0 | AY29: нд | AZ29: ='2'!BM25 -> 10.149744 | BA29: 0 | BB29: =BB30 -> 0 | BC29: нд
A30: 1.1.1 | B30: Технологическое присоединение энергопринимающих устройств потребителей, всего, в том числе: | C30: нд | D30: =D31+D33+D34 -> 0 | E30: нд | F30: =F31+F33+F34 -> 0 | G30: =G31 -> 0.41 | H30: =H31+H33+H34 -> 0 | I30: нд | J30: =J31+J33+J34 -> 0 | K30: нд | L30: =L31+L33+L34 -> 0 | M30: нд | N30: =N31 -> 0.3 | O30: =O31 ->  | P30: =P31+P33+P34 -> 0 | Q30: нд | R30: =R31+R33+R34 -> 0 | S30: нд | T30: =T31+T33+T34 -> 0 | U30: нд | V30: =V31+V33+V34 -> 0 | W30: нд | X30: =X31 -> 0 | Y30: нд | Z30: =Z31+Z33+Z34 -> 0 | AA30: нд | AB30: =AB31 -> 0 | AC30: нд | AD30: =AD31+AD33+AD34 -> 0 | AE30: нд | AF30: =AF31+AF33+AF34 -> 0 | AG30: нд | AH30: =AH31+AH33+AH34 -> 0 | AI30: нд | AJ30: =AJ31+AJ33+AJ34 -> 0 | AK30: нд | AL30: нд | AM30: =AM31 -> 0 | AN30: =AN31+AN33+AN34 -> 0 | AO30: нд | AP30: =AP31+AP33+AP34 -> 0 | AQ30: нд | AR30: =AR31+AR33+AR34 -> 0 | AS30: нд | AT30: =AT31+AT33+AT34 -> 0 | AU30: нд | AV30: =AV31+AV33+AV34 -> 0 | AW30: нд | AX30: =AX31+AX33+AX34 -> 0 | AY30: нд | AZ30: =AZ29 -> 10.149744 | BA30: 0 | BB30: =BB31+BB33+BB34 -> 0 | BC30: нд
A31: 1.1.1.1 | B31: Технологическое присоединение энергопринимающих устройств потребителей максимальной мощностью до 15 кВт включительно, всего | C31: нд | D31: =D33 -> 0 | E31: нд | F31: =F33 -> 0 | G31: =G32 -> 0.41 | H31: =H33 -> 0 | I31: нд | J31: =J33 -> 0 | K31: нд | L31: =L33 -> 0 | M31: нд | N31: =N32 -> 0.3 | O31: =O32 ->  | P31: =P33 -> 0 | Q31: нд | R31: =R33 -> 0 | S31: нд | T31: =T33 -> 0 | U31: нд | V31: =V33 -> 0 | W31: нд | X31: =X33 -> 0 | Y31: нд | Z31: =Z33 -> 0 | AA31: нд | AB31: =AB33 -> 0 | AC31: нд | AD31: =AD33 -> 0 | AE31: нд | AF31: =AF33 -> 0 | AG31: нд | AH31: =AH33 -> 0 | AI31: нд | AJ31: =AJ33 -> 0 | AK31: нд | AL31: нд | AM31: =AM33 -> 0 | AN31: =AN33 -> 0 | AO31: нд | AP31: =AP33 -> 0 | AQ31: нд | AR31: =AR33 -> 0 | AS31: нд | AT31: =AT33 -> 0 | AU31: нд | AV31: =AV33 -> 0 | AW31: нд | AX31: =AX33 -> 0 | AY31: нд | AZ31: ='2'!BM27 -> 1.91976 | BA31: 0 | BB31: =BB33 -> 0 | BC31: нд
A32: 1.1.1.1.1 | B32: Строительство электрических сетей для создания технической возможности технологического присоединения энергопринимающих устройств Заявителей, максимальной мощностью, не превышающей 15 кВт включительно, не включаемых в состав платы за технологическое присоединение (строительство "последней мили") | C32: Н_МСК_17 | D32: =D34 -> 0 | E32: нд | F32: =F34 -> 0 | G32: =0.25+0.16 -> 0.41 | H32: =H34 -> 0 | I32: нд | J32: =J34 -> 0 | K32: нд | L32: =L34 -> 0 | M32: нд | N32: 0.3 | P32: =P34 -> 0 | Q32: нд | R32: =R34 -> 0 | S32: нд | T32: =T34 -> 0 | U32: нд | V32: =V34 -> 0 | W32: нд | X32: =X34 -> 0 | Y32: нд | Z32: =Z34 -> 0 | AA32: нд | AB32: =AB34 -> 0 | AC32: нд | AD32: =AD34 -> 0 | AE32: нд | AF32: =AF34 -> 0 | AG32: нд | AH32: =AH34 -> 0 | AI32: нд | AJ32: =AJ34 -> 0 | AK32: нд | AL32: нд | AM32: =AM34 -> 0 | AN32: =AN34 -> 0 | AO32: нд | AP32: =AP34 -> 0 | AQ32: нд | AR32: =AR34 -> 0 | AS32: нд | AT32: =AT34 -> 0 | AU32: нд | AV32: =AV34 -> 0 | AW32: нд | AX32: =AX34 -> 0 | AY32: нд | AZ32: =AZ31 -> 1.91976 | BA32: 0 | BB32: =BB34 -> 0 | BC32: нд
A33: 1.1.1.2 | B33: Технологическое присоединение энергопринимающих устройств потребителей максимальной мощностью до 150 кВт включительно, всего | C33: нд | D33: 0 | E33: нд | F33: 0 | G33: нд | H33: 0 | I33: нд | J33: 0 | K33: нд | L33: 0 | M33: нд | N33: 0 | O33: нд | P33: 0 | Q33: нд | R33: 0 | S33: нд | T33: 0 | U33: нд | V33: 0 | W33: нд | X33: 0 | Y33: нд | Z33: 0 | AA33: нд | AB33: 0 | AC33: нд | AD33: 0 | AE33: нд | AF33: 0 | AG33: нд | AH33: 0 | AI33: нд | AJ33: 0 | AK33: нд | AL33: нд | AM33: 0 | AN33: 0 | AO33: нд | AP33: 0 | AQ33: нд | AR33: 0 | AS33: нд | AT33: 0 | AU33: нд | AV33: 0 | AW33: нд | AX33: 0 | AY33: нд | AZ33: ='2'!BM38 -> 8.229984 | BA33: 0 | BB33: 0 | BC33: нд
A34: 1.1.1.3 | B34: Технологическое присоединение энергопринимающих устройств потребителей свыше 150 кВт, всего, в том числе: | C34: нд | D34: 0 | E34: нд | F34: 0 | G34: нд | H34: 0 | I34: нд | J34: 0 | K34: нд | L34: 0 | M34: нд | N34: 0 | O34: нд | P34: 0 | Q34: нд | R34: 0 | S34: нд | T34: 0 | U34: нд | V34: 0 | W34: нд | X34: 0 | Y34: нд | Z34: 0 | AA34: нд | AB34: 0 | AC34: нд | AD34: 0 | AE34: нд | AF34: 0 | AG34: нд | AH34: 0 | AI34: нд | AJ34: 0 | AK34: нд | AL34: нд | AM34: 0 | AN34: 0 | AO34: нд | AP34: 0 | AQ34: нд | AR34: 0 | AS34: нд | AT34: 0 | AU34: нд | AV34: 0 | AW34: нд | AX34: 0 | AY34: нд | AZ34: 0 | BA34: 0 | BB34: 0 | BC34: нд
A35: 1.1.2 | B35: Технологическое присоединение объектов электросетевого хозяйства, всего, в том числе: | C35: нд | D35: 0 | E35: нд | F35: 0 | G35: нд | H35: 0 | I35: нд | J35: 0 | K35: нд | L35: 0 | M35: нд | N35: 0 | O35: нд | P35: 0 | Q35: нд | R35: 0 | S35: нд | T35: 0 | U35: нд | V35: 0 | W35: нд | X35: 0 | Y35: нд | Z35: 0 | AA35: нд | AB35: 0 | AC35: нд | AD35: 0 | AE35: нд | AF35: 0 | AG35: нд | AH35: 0 | AI35: нд | AJ35: 0 | AK35: нд | AL35: нд | AM35: 0 | AN35: 0 | AO35: нд | AP35: 0 | AQ35: нд | AR35: 0 | AS35: нд | AT35: 0 | AU35: нд | AV35: 0 | AW35: нд | AX35: 0 | AY35: нд | AZ35: 0 | BA35: 0 | BB35: 0 | BC35: нд
A36: 1.1.2.1 | B36: Технологическое присоединение объектов электросетевого хозяйства, принадлежащих иным сетевым организациям и иным лицам, всего, в том числе: | C36: нд | D36: 0 | E36: нд | F36: 0 | G36: нд | H36: 0 | I36: нд | J36: 0 | K36: нд | L36: 0 | M36: нд | N36: 0 | O36: нд | P36: 0 | Q36: нд | R36: 0 | S36: нд | T36: 0 | U36: нд | V36: 0 | W36: нд | X36: 0 | Y36: нд | Z36: 0 | AA36: нд | AB36: 0 | AC36: нд | AD36: 0 | AE36: нд | AF36: 0 | AG36: нд | AH36: 0 | AI36: нд | AJ36: 0 | AK36: нд | AL36: нд | AM36: 0 | AN36: 0 | AO36: нд | AP36: 0 | AQ36: нд | AR36: 0 | AS36: нд | AT36: 0 | AU36: нд | AV36: 0 | AW36: нд | AX36: 0 | AY36: нд | AZ36: 0 | BA36: 0 | BB36: 0 | BC36: нд
A37: 1.1.2.2 | B37: Технологическое присоединение к электрическим сетям иных сетевых организаций, всего, в том числе: | C37: нд | D37: 0 | E37: нд | F37: 0 | G37: нд | H37: 0 | I37: нд | J37: 0 | K37: нд | L37: 0 | M37: нд | N37: 0 | O37: нд | P37: 0 | Q37: нд | R37: 0 | S37: нд | T37: 0 | U37: нд | V37: 0 | W37: нд | X37: 0 | Y37: нд | Z37: 0 | AA37: нд | AB37: 0 | AC37: нд | AD37: 0 | AE37: нд | AF37: 0 | AG37: нд | AH37: 0 | AI37: нд | AJ37: 0 | AK37: нд | AL37: нд | AM37: 0 | AN37: 0 | AO37: нд | AP37: 0 | AQ37: нд | AR37: 0 | AS37: нд | AT37: 0 | AU37: нд | AV37: 0 | AW37: нд | AX37: 0 | AY37: нд | AZ37: 0 | BA37: 0 | BB37: 0 | BC37: нд
A38: 1.1.3 | B38: Технологическое присоединение объектов по производству электрической энергии всего, в том числе: | C38: нд | D38: 0 | E38: нд | F38: 0 | G38: нд | H38: 0 | I38: нд | J38: 0 | K38: нд | L38: 0 | M38: нд | N38: 0 | O38: нд | P38: 0 | Q38: нд | R38: 0 | S38: нд | T38: 0 | U38: нд | V38: 0 | W38: нд | X38: 0 | Y38: нд | Z38: 0 | AA38: нд | AB38: 0 | AC38: нд | AD38: 0 | AE38: нд | AF38: 0 | AG38: нд | AH38: 0 | AI38: нд | AJ38: 0 | AK38: нд | AL38: нд | AM38: 0 | AN38: 0 | AO38: нд | AP38: 0 | AQ38: нд | AR38: 0 | AS38: нд | AT38: 0 | AU38: нд | AV38: 0 | AW38: нд | AX38: 0 | AY38: нд | AZ38: 0 | BA38: 0 | BB38: 0 | BC38: нд
A39: 1.1.3.1 | B39: Наименование объекта по производству электрической энергии, всего, в том числе: | C39: нд | D39: 0 | E39: нд | F39: 0 | G39: нд | H39: 0 | I39: нд | J39: 0 | K39: нд | L39: 0 | M39: нд | N39: 0 | O39: нд | P39: 0 | Q39: нд | R39: 0 | S39: нд | T39: 0 | U39: нд | V39: 0 | W39: нд | X39: 0 | Y39: нд | Z39: 0 | AA39: нд | AB39: 0 | AC39: нд | AD39: 0 | AE39: нд | AF39: 0 | AG39: нд | AH39: 0 | AI39: нд | AJ39: 0 | AK39: нд | AL39: нд | AM39: 0 | AN39: 0 | AO39: нд | AP39: 0 | AQ39: нд | AR39: 0 | AS39: нд | AT39: 0 | AU39: нд | AV39: 0 | AW39: нд | AX39: 0 | AY39: нд | AZ39: 0 | BA39: 0 | BB39: 0 | BC39: нд
A40: 1.1.3.1 | B40: Строительство новых объектов электросетевого хозяйства (за исключением усиления существующей электрической сети) в целях осуществления технологического присоединения объекта по производству электрической энергии, всего, в том числе: | C40: нд | D40: 0 | E40: нд | F40: 0 | G40: нд | H40: 0 | I40: нд | J40: 0 | K40: нд | L40: 0 | M40: нд | N40: 0 | O40: нд | P40: 0 | Q40: нд | R40: 0 | S40: нд | T40: 0 | U40: нд | V40: 0 | W40: нд | X40: 0 | Y40: нд | Z40: 0 | AA40: нд | AB40: 0 | AC40: нд | AD40: 0 | AE40: нд | AF40: 0 | AG40: нд | AH40: 0 | AI40: нд | AJ40: 0 | AK40: нд | AL40: нд | AM40: 0 | AN40: 0 | AO40: нд | AP40: 0 | AQ40: нд | AR40: 0 | AS40: нд | AT40: 0 | AU40: нд | AV40: 0 | AW40: нд | AX40: 0 | AY40: нд | AZ40: 0 | BA40: 0 | BB40: 0 | BC40: нд
A41: 1.1.3.1 | B41: Строительство новых объектов электросетевого хозяйства для усиления электрической сети в целях осуществления технологического присоединения объекта по производству электрической энергии, всего, в том числе: | C41: нд | D41: 0 | E41: нд | F41: 0 | G41: нд | H41: 0 | I41: нд | J41: 0 | K41: нд | L41: 0 | M41: нд | N41: 0 | O41: нд | P41: 0 | Q41: нд | R41: 0 | S41: нд | T41: 0 | U41: нд | V41: 0 | W41: нд | X41: 0 | Y41: нд | Z41: 0 | AA41: нд | AB41: 0 | AC41: нд | AD41: 0 | AE41: нд | AF41: 0 | AG41: нд | AH41: 0 | AI41: нд | AJ41: 0 | AK41: нд | AL41: нд | AM41: 0 | AN41: 0 | AO41: нд | AP41: 0 | AQ41: нд | AR41: 0 | AS41: нд | AT41: 0 | AU41: нд | AV41: 0 | AW41: нд | AX41: 0 | AY41: нд | AZ41: 0 | BA41: 0 | BB41: 0 | BC41: нд
A42: 1.1.3.1 | B42: Реконструкция существующих объектов электросетевого хозяйства для усиления электрической сети в целях осуществления технологического присоединения объекта по производству электрической энергии всего, в том числе: | C42: нд | D42: 0 | E42: нд | F42: 0 | G42: нд | H42: 0 | I42: нд | J42: 0 | K42: нд | L42: 0 | M42: нд | N42: 0 | O42: нд | P42: 0 | Q42: нд | R42: 0 | S42: нд | T42: 0 | U42: нд | V42: 0 | W42: нд | X42: 0 | Y42: нд | Z42: 0 | AA42: нд | AB42: 0 | AC42: нд | AD42: 0 | AE42: нд | AF42: 0 | AG42: нд | AH42: 0 | AI42: нд | AJ42: 0 | AK42: нд | AL42: нд | AM42: 0 | AN42: 0 | AO42: нд | AP42: 0 | AQ42: нд | AR42: 0 | AS42: нд | AT42: 0 | AU42: нд | AV42: 0 | AW42: нд | AX42: 0 | AY42: нд | AZ42: 0 | BA42: 0 | BB42: 0 | BC42: нд
A43: 1.1.3.2 | B43: Наименование объекта по производству электрической энергии, всего, в том числе: | C43: нд | D43: 0 | E43: нд | F43: 0 | G43: нд | H43: 0 | I43: нд | J43: 0 | K43: нд | L43: 0 | M43: нд | N43: 0 | O43: нд | P43: 0 | Q43: нд | R43: 0 | S43: нд | T43: 0 | U43: нд | V43: 0 | W43: нд | X43: 0 | Y43: нд | Z43: 0 | AA43: нд | AB43: 0 | AC43: нд | AD43: 0 | AE43: нд | AF43: 0 | AG43: нд | AH43: 0 | AI43: нд | AJ43: 0 | AK43: нд | AL43: нд | AM43: 0 | AN43: 0 | AO43: нд | AP43: 0 | AQ43: нд | AR43: 0 | AS43: нд | AT43: 0 | AU43: нд | AV43: 0 | AW43: нд | AX43: 0 | AY43: нд | AZ43: 0 | BA43: 0 | BB43: 0 | BC43: нд
A44: 1.1.3.2 | B44: Строительство новых объектов электросетевого хозяйства (за исключением усиления существующей электрической сети) в целях осуществления технологического присоединения объекта по производству электрической энергии, всего, в том числе: | C44: нд | D44: 0 | E44: нд | F44: 0 | G44: нд | H44: 0 | I44: нд | J44: 0 | K44: нд | L44: 0 | M44: нд | N44: 0 | O44: нд | P44: 0 | Q44: нд | R44: 0 | S44: нд | T44: 0 | U44: нд | V44: 0 | W44: нд | X44: 0 | Y44: нд | Z44: 0 | AA44: нд | AB44: 0 | AC44: нд | AD44: 0 | AE44: нд | AF44: 0 | AG44: нд | AH44: 0 | AI44: нд | AJ44: 0 | AK44: нд | AL44: нд | AM44: 0 | AN44: 0 | AO44: нд | AP44: 0 | AQ44: нд | AR44: 0 | AS44: нд | AT44: 0 | AU44: нд | AV44: 0 | AW44: нд | AX44: 0 | AY44: нд | AZ44: 0 | BA44: 0 | BB44: 0 | BC44: нд
A45: 1.1.3.2 | B45: Строительство новых объектов электросетевого хозяйства для усиления электрической сети в целях осуществления технологического присоединения объекта по производству электрической энергии, всего, в том числе: | C45: нд | D45: 0 | E45: нд | F45: 0 | G45: нд | H45: 0 | I45: нд | J45: 0 | K45: нд | L45: 0 | M45: нд | N45: 0 | O45: нд | P45: 0 | Q45: нд | R45: 0 | S45: нд | T45: 0 | U45: нд | V45: 0 | W45: нд | X45: 0 | Y45: нд | Z45: 0 | AA45: нд | AB45: 0 | AC45: нд | AD45: 0 | AE45: нд | AF45: 0 | AG45: нд | AH45: 0 | AI45: нд | AJ45: 0 | AK45: нд | AL45: нд | AM45: 0 | AN45: 0 | AO45: нд | AP45: 0 | AQ45: нд | AR45: 0 | AS45: нд | AT45: 0 | AU45: нд | AV45: 0 | AW45: нд | AX45: 0 | AY45: нд | AZ45: 0 | BA45: 0 | BB45: 0 | BC45: нд
A46: 1.1.3.2 | B46: Реконструкция существующих объектов электросетевого хозяйства для усиления электрической сети в целях осуществления технологического присоединения объекта по производству электрической энергии, всего, в том числе: | C46: нд | D46: 0 | E46: нд | F46: 0 | G46: нд | H46: 0 | I46: нд | J46: 0 | K46: нд | L46: 0 | M46: нд | N46: 0 | O46: нд | P46: 0 | Q46: нд | R46: 0 | S46: нд | T46: 0 | U46: нд | V46: 0 | W46: нд | X46: 0 | Y46: нд | Z46: 0 | AA46: нд | AB46: 0 | AC46: нд | AD46: 0 | AE46: нд | AF46: 0 | AG46: нд | AH46: 0 | AI46: нд | AJ46: 0 | AK46: нд | AL46: нд | AM46: 0 | AN46: 0 | AO46: нд | AP46: 0 | AQ46: нд | AR46: 0 | AS46: нд | AT46: 0 | AU46: нд | AV46: 0 | AW46: нд | AX46: 0 | AY46: нд | AZ46: 0 | BA46: 0 | BB46: 0 | BC46: нд
A47: 1.1.4 | B47: Усиление электрической сети в целях осуществления технологического присоединения энергопринимающих устройств потребителей и (или) объектов электросетевого хозяйства всего, в том числе: | C47: нд | D47: 0 | E47: нд | F47: 0 | G47: нд | H47: 0 | I47: нд | J47: 0 | K47: нд | L47: 0 | M47: нд | N47: 0 | O47: нд | P47: 0 | Q47: нд | R47: 0 | S47: нд | T47: 0 | U47: нд | V47: 0 | W47: нд | X47: 0 | Y47: нд | Z47: 0 | AA47: нд | AB47: 0 | AC47: нд | AD47: 0 | AE47: нд | AF47: 0 | AG47: нд | AH47: 0 | AI47: нд | AJ47: 0 | AK47: нд | AL47: нд | AM47: 0 | AN47: 0 | AO47: нд | AP47: 0 | AQ47: нд | AR47: 0 | AS47: нд | AT47: 0 | AU47: нд | AV47: 0 | AW47: нд | AX47: 0 | AY47: нд | AZ47: 0 | BA47: 0 | BB47: 0 | BC47: нд
A48: 1.1.4.1 | B48: Строительство новых объектов электросетевого хозяйства для усиления электрической сети в целях осуществления технологического присоединения, всего, в том числе: | C48: нд | D48: 0 | E48: нд | F48: 0 | G48: нд | H48: 0 | I48: нд | J48: 0 | K48: нд | L48: 0 | M48: нд | N48: 0 | O48: нд | P48: 0 | Q48: нд | R48: 0 | S48: нд | T48: 0 | U48: нд | V48: 0 | W48: нд | X48: 0 | Y48: нд | Z48: 0 | AA48: нд | AB48: 0 | AC48: нд | AD48: 0 | AE48: нд | AF48: 0 | AG48: нд | AH48: 0 | AI48: нд | AJ48: 0 | AK48: нд | AL48: нд | AM48: 0 | AN48: 0 | AO48: нд | AP48: 0 | AQ48: нд | AR48: 0 | AS48: нд | AT48: 0 | AU48: нд | AV48: 0 | AW48: нд | AX48: 0 | AY48: нд | AZ48: 0 | BA48: 0 | BB48: 0 | BC48: нд
A49: 1.1.4.2 | B49: Реконструкция существующих объектов электросетевого хозяйства для усиления электрической сети в целях осуществления технологического присоединения, всего, в том числе: | C49: нд | D49: 0 | E49: нд | F49: 0 | G49: нд | H49: 0 | I49: нд | J49: 0 | K49: нд | L49: 0 | M49: нд | N49: 0 | O49: нд | P49: 0 | Q49: нд | R49: 0 | S49: нд | T49: 0 | U49: нд | V49: 0 | W49: нд | X49: 0 | Y49: нд | Z49: 0 | AA49: нд | AB49: 0 | AC49: нд | AD49: 0 | AE49: нд | AF49: 0 | AG49: нд | AH49: 0 | AI49: нд | AJ49: 0 | AK49: нд | AL49: нд | AM49: 0 | AN49: 0 | AO49: нд | AP49: 0 | AQ49: нд | AR49: 0 | AS49: нд | AT49: 0 | AU49: нд | AV49: 0 | AW49: нд | AX49: 0 | AY49: нд | AZ49: 0 | BA49: 0 | BB49: 0 | BC49: нд
A50: 1.2 | B50: Реконструкция, модернизация, техническое перевооружение всего, в том числе: | C50: нд | D50: 0 | E50: нд | F50: 0 | G50: нд | H50: 0 | I50: нд | J50: 0 | K50: нд | L50: 0 | M50: нд | N50: 0 | O50: нд | P50: 0 | Q50: нд | R50: 0 | S50: нд | T50: 0 | U50: нд | V50: 0 | W50: нд | X50: =X52+X57+X61 -> 0 | Y50: =Y52+Y57+Y61 -> 0 | Z50: 0 | AA50: нд | AB50: =AB52 ->  | AC50: =AC52 -> 0 | AD50: 0 | AE50: нд | AF50: 0 | AG50: нд | AH50: 0 | AI50: нд | AJ50: 0 | AK50: нд | AL50: =AL61 -> 0 | AM50: =AM51+AM57+AM61 -> 0 | AN50: 0 | AO50: нд | AP50: 0 | AQ50: нд | AR50: 0 | AS50: нд | AT50: 0 | AU50: нд | AV50: 0 | AW50: нд | AX50: 0 | AY50: нд | AZ50: ='2'!BM76 -> 2.8042183 | BA50: 0 | BB50: 0 | BC50: нд
A51: 1.2.1 | B51: Реконструкция, модернизация, техническое перевооружение трансформаторных и иных подстанций, распределительных пунктов, всего, в том числе: | C51: нд | D51: 0 | E51: нд | F51: 0 | G51: нд | H51: 0 | I51: нд | J51: 0 | K51: нд | L51: 0 | M51: нд | N51: 0 | O51: нд | P51: 0 | Q51: нд | R51: 0 | S51: нд | T51: 0 | U51: нд | V51: 0 | W51: нд | X51: 0 | Y51: нд | Z51: 0 | AA51: нд | AB51: 0 | AC51: нд | AD51: 0 | AE51: нд | AF51: 0 | AG51: нд | AH51: 0 | AI51: нд | AJ51: 0 | AK51: нд | AL51: нд | AM51: =AM52 -> 0 | AN51: 0 | AO51: нд | AP51: 0 | AQ51: нд | AR51: 0 | AS51: нд | AT51: 0 | AU51: нд | AV51: 0 | AW51: нд | AX51: 0 | AY51: нд | AZ51: 0 | BA51: 0 | BB51: 0 | BC51: нд
A52: 1.2.1.1 | B52: Реконструкция трансформаторных и иных подстанций, всего, в том числе: | C52: нд | D52: 0 | E52: нд | F52: 0 | G52: нд | H52: 0 | I52: нд | J52: 0 | K52: нд | L52: 0 | M52: нд | N52: 0 | O52: нд | P52: 0 | Q52: нд | R52: 0 | S52: нд | T52: 0 | U52: нд | V52: 0 | W52: нд | X52: 0 | Y52: 0 | Z52: 0 | AA52: нд | AB52: =#REF! ->  | AC52: =AC53+AC54+AC55 -> 0 | AD52: 0 | AE52: нд | AF52: 0 | AG52: нд | AH52: 0 | AI52: нд | AJ52: 0 | AK52: нд | AL52: 0 | AM52: =SUM(AM56:AM58) -> 0 | AN52: 0 | AO52: нд | AP52: 0 | AQ52: нд | AR52: 0 | AS52: нд | AT52: 0 | AU52: нд | AV52: 0 | AW52: нд | AX52: 0 | AY52: нд | AZ52: 0 | BA52: 0 | BB52: 0 | BC52: нд
A53: 1.2.1.1.2 | B53: Установка камеры КСО-366 1НУЗ В ТП-10/0,4 кВ «Масис» по адресу: г.Саранск, Александровское шоссе, 26 | C53: Н_МСК_02 | D53: 0 | E53: 0 | F53: 0 | G53: 0 | H53: 0 | I53: 0 | J53: 0 | K53: 0 | L53: 0 | M53: 0 | N53: 0 | O53: 0 | P53: 0 | Q53: 0 | R53: 0 | S53: 0 | T53: 0 | U53: 0 | V53: 0 | W53: 0 | X53: 0 | Y53: 0 | Z53: 0 | AA53: 0 | AB53: 0 | AC53: 0 | AD53: 0 | AE53: 0 | AF53: 0 | AG53: 0 | AH53: 0 | AI53: 0 | AJ53: 0 | AK53: 0 | AL53: 0 | AM53: 0 | AN53: 0 | AO53: 0 | AP53: 0 | AQ53: 0 | AR53: 0 | AS53: 0 | AT53: 0 | AU53: 0 | AV53: 0 | AW53: 0 | AX53: 0 | AY53: 0 | AZ53: 0 | BA53: 0 | BB53: 0 | BC53: 0
A54: 1.2.1.1.4 | B54: Замена масляных выключателей на вакуумные в ТП-630/10/0,4 кВ «Ремстроймаш», по адресу: г.Саранск, Александровское шоссе, 8 | C54: Н_МСК_04 | D54: 0 | E54: 0 | F54: 0 | G54: 0 | H54: 0 | I54: 0 | J54: 0 | K54: 0 | L54: 0 | M54: 0 | N54: 0 | O54: 0 | P54: 0 | Q54: 0 | R54: 0 | S54: 0 | T54: 0 | U54: 0 | V54: 0 | W54: 0 | X54: 0 | Y54: 0 | Z54: 0 | AA54: 0 | AB54: 0 | AC54: 0 | AD54: 0 | AE54: 0 | AF54: 0 | AG54: 0 | AH54: 0 | AI54: 0 | AJ54: 0 | AK54: 0 | AL54: 0 | AM54: 0 | AN54: 0 | AO54: 0 | AP54: 0 | AQ54: 0 | AR54: 0 | AS54: 0 | AT54: 0 | AU54: 0 | AV54: 0 | AW54: 0 | AX54: 0 | AY54: 0 | AZ54: 0 | BA54: 0 | BB54: 0 | BC54: 0
A55: 1.2.1.1.5 | B55: Монтаж ТСН-10/0,4 кВ для ТП-630/10/0,4 кВ «Рестроймаш», по адресу: г.Саранск, Александровское шоссе, 8 | C55: Н_МСК_05 | D55: 0 | E55: 0 | F55: 0 | G55: 0 | H55: 0 | I55: 0 | J55: 0 | K55: 0 | L55: 0 | M55: 0 | N55: 0 | O55: 0 | P55: 0 | Q55: 0 | R55: 0 | S55: 0 | T55: 0 | U55: 0 | V55: 0 | W55: 0 | X55: 0 | Y55: 0 | Z55: 0 | AA55: 0 | AB55: 0 | AC55: 0 | AD55: 0 | AE55: 0 | AF55: 0 | AG55: 0 | AH55: 0 | AI55: 0 | AJ55: 0 | AK55: 0 | AL55: 0 | AM55: 0 | AN55: 0 | AO55: 0 | AP55: 0 | AQ55: 0 | AR55: 0 | AS55: 0 | AT55: 0 | AU55: 0 | AV55: 0 | AW55: 0 | AX55: 0 | AY55: 0 | AZ55: 0 | BA55: 0 | BB55: 0 | BC55: 0
A56: 1.2.1.2 | B56: Модернизация, техническое перевооружение трансформаторных и иных подстанций, распределительных пунктов, всего, в том числе: | C56: нд | D56: 0 | E56: нд | F56: 0 | G56: нд | H56: 0 | I56: нд | J56: 0 | K56: нд | L56: 0 | M56: нд | N56: 0 | O56: нд | P56: 0 | Q56: нд | R56: 0 | S56: нд | T56: 0 | U56: нд | V56: 0 | W56: нд | X56: 0 | Y56: нд | Z56: 0 | AA56: нд | AB56: 0 | AC56: нд | AD56: 0 | AE56: нд | AF56: 0 | AG56: нд | AH56: 0 | AI56: нд | AJ56: 0 | AK56: нд | AL56: нд | AM56: 0 | AN56: 0 | AO56: нд | AP56: 0 | AQ56: нд | AR56: 0 | AS56: нд | AT56: 0 | AU56: нд | AV56: 0 | AW56: нд | AX56: 0 | AY56: нд | AZ56: 0 | BA56: 0 | BB56: 0 | BC56: нд
